Workbook

Sheet mapping
B1: Mapping Sheet | G1: Source: Xrates on 6/21/2012 | H1: and xe.com
B2: Currency Mapping | L2: Country Mapping
B3: Currency | C3: in USD | G3: Value of 1 American Dollar | L3: Actual | M3: Mapping
B4: USD | C4: 1 | G4: Argentine Peso | H4: 4.49273 | I4: ARS | L4: USA | M4: USA
B5: EUR | C5: =1/INDEX($H$4:$H$64,MATCH(tblXrate[[#This Row],[Currency]],$I$4:$I$64,0)) -> 1.270399439 | G5: Australian Dollar | H5: 0.980479 | I5: AUD | L5: India | M5: India
B6: PKR | C6: =1/INDEX($H$4:$H$64,MATCH(tblXrate[[#This Row],[Currency]],$I$4:$I$64,0)) -> 0.01061408872 | G6: Botswana Pula | H6: 7.65697 | I6: BWP | L6: UK | M6: UK
B7: INR | C7: =1/INDEX($H$4:$H$64,MATCH(tblXrate[[#This Row],[Currency]],$I$4:$I$64,0)) -> 0.01780791669 | G7: Brazilian Real | H7: 2.02314 | I7: BRL | L7: Australia | M7: Australia
B8: GBP | C8: =1/INDEX($H$4:$H$64,MATCH(tblXrate[[#This Row],[Currency]],$I$4:$I$64,0)) -> 1.576178272 | G8: British Pound | H8: 0.634446 | I8: GBP | L8: Canada | M8: Canada
B9: AUD | C9: =1/INDEX($H$4:$H$64,MATCH(tblXrate[[#This Row],[Currency]],$I$4:$I$64,0)) -> 1.019909656 | G9: Brunei dollar | H9: 1.2687 | I9: BND | L9: Pakistan | M9: Pakistan
B10: CAD | C10: =1/INDEX($H$4:$H$64,MATCH(tblXrate[[#This Row],[Currency]],$I$4:$I$64,0)) -> 0.983361523 | G10: Bulgarian Lev | H10: 1.53952 | I10: BGN | L10: South Africa | M10: South Africa
B11: PHP | C11: =1/INDEX($H$4:$H$64,MATCH(tblXrate[[#This Row],[Currency]],$I$4:$I$64,0)) -> 0.02370505226 | G11: Canadian Dollar | H11: 1.01692 | I11: CAD | L11: Germany | M11: Germany
B12: AED | C12: =1/INDEX($H$4:$H$64,MATCH(tblXrate[[#This Row],[Currency]],$I$4:$I$64,0)) -> 0.2722192127 | G12: Chilean Peso | H12: 497.268 | I12: CLP | L12: UAE | M12: UAE
B13: MXN | C13: =1/INDEX($H$4:$H$64,MATCH(tblXrate[[#This Row],[Currency]],$I$4:$I$64,0)) -> 0.07304655257 | G13: Chinese Yuan | H13: 6.36091 | I13: CNY | L13: Brazil | M13: Brazil
B14: SEK | C14: =1/INDEX($H$4:$H$64,MATCH(tblXrate[[#This Row],[Currency]],$I$4:$I$64,0)) -> 0.1436552504 | G14: Colombian Peso | H14: 1769.79 | I14: COP | L14: Netherlands | M14: Netherlands
B15: BDT | C15: =1/INDEX($H$4:$H$64,MATCH(tblXrate[[#This Row],[Currency]],$I$4:$I$64,0)) -> 0.01222084534 | G15: Croatian Kuna | H15: 5.93671 | I15: HRK | L15: Singapore | M15: Singapore
B16: COSTARICAN | C16: =1/INDEX($H$4:$H$64,MATCH(tblXrate[[#This Row],[Currency]],$I$4:$I$64,0)) -> 0.002007830539 | G16: Danish Krone | H16: 5.85123 | I16: DKK | L16: Philippines | M16: Philippines
B17: ZAR | C17: =1/INDEX($H$4:$H$64,MATCH(tblXrate[[#This Row],[Currency]],$I$4:$I$64,0)) -> 0.1219217799 | G17: Euro | H17: 0.787154 | I17: EUR | L17: Portugal | M17: Portugal
B18: NZD | C18: =1/INDEX($H$4:$H$64,MATCH(tblXrate[[#This Row],[Currency]],$I$4:$I$64,0)) -> 0.7975880936 | G18: Hong Kong Dollar | H18: 7.75889 | I18: HKD | L18: Spain | M18: Spain
B19: CNY | C19: =1/INDEX($H$4:$H$64,MATCH(tblXrate[[#This Row],[Currency]],$I$4:$I$64,0)) -> 0.1572102105 | G19: Hungarian Forint | H19: 225.874 | I19: HUF | L19: New Zealand | M19: New Zealand
B20: EGYPT | C20: =1/INDEX($H$4:$H$64,MATCH(tblXrate[[#This Row],[Currency]],$I$4:$I$64,0)) -> 0.1652619402 | G20: Iceland Krona | H20: 124.697 | I20: ISK | L20: Russia | M20: Russia
B21: NAIRA | C21: =1/INDEX($H$4:$H$64,MATCH(tblXrate[[#This Row],[Currency]],$I$4:$I$64,0)) -> 0.006163328197 | G21: Indian Rupee | H21: 56.1548 | I21: INR | L21: Saudi Arabia | M21: Saudi Arabia
B22: AED | C22: =1/INDEX($H$4:$H$64,MATCH(tblXrate[[#This Row],[Currency]],$I$4:$I$64,0)) -> 0.2722192127 | G22: Indonesian Rupiah | H22: 9443.81 | I22: IDR | L22: Mexico | M22: Mexico
B23: BRL | C23: =1/INDEX($H$4:$H$64,MATCH(tblXrate[[#This Row],[Currency]],$I$4:$I$64,0)) -> 0.4942811669 | G23: Israeli New Shekel | H23: 3.86721 | I23: ILS | L23: Indonesia | M23: Indonesia
B24: RON | C24: =1/INDEX($H$4:$H$64,MATCH(tblXrate[[#This Row],[Currency]],$I$4:$I$64,0)) -> 0.2846132391 | G24: Japanese Yen | H24: 78.9043 | I24: JPY | L24: Norway | M24: Norway
B25: USD | C25: 1 | G25: Kazakhstani Tenge | H25: 148.88 | I25: KZT | L25: Malaysia | M25: Malaysia
B26: MYR | C26: =1/INDEX($H$4:$H$64,MATCH(tblXrate[[#This Row],[Currency]],$I$4:$I$64,0)) -> 0.3168005677 | G26: Kuwaiti Dinar | H26: 0.2794 | I26: KWD | L26: The Netherlands | M26: Netherlands
B27: LKR | C27: =1/INDEX($H$4:$H$64,MATCH(tblXrate[[#This Row],[Currency]],$I$4:$I$64,0)) -> 0.007524058176 | G27: Latvian Lat | H27: 0.548489 | I27: LVL | L27: Romania | M27: Romania
B28: SGD | C28: =1/INDEX($H$4:$H$64,MATCH(tblXrate[[#This Row],[Currency]],$I$4:$I$64,0)) -> 0.7888239424 | G28: Libyan Dinar | H28: 1.9324 | I28: LYD | L28: Poland | M28: Poland
B29: GBP | C29: =1/INDEX($H$4:$H$64,MATCH(tblXrate[[#This Row],[Currency]],$I$4:$I$64,0)) -> 1.576178272 | G29: Lithuanian Litas | H29: 2.71788 | I29: LTL | L29: Italy | M29: Italy
B30: DOP | C30: =1/INDEX($H$4:$H$64,MATCH(tblXrate[[#This Row],[Currency]],$I$4:$I$64,0)) -> 0.02567394095 | G30: Malaysian Ringgit | H30: 3.15656 | I30: MYR | L30: Hungary | M30: Hungary
B31: PLN | C31: =1/INDEX($H$4:$H$64,MATCH(tblXrate[[#This Row],[Currency]],$I$4:$I$64,0)) -> 0.3003147298 | G31: Mauritius Rupee | H31: 30.7159 | I31: MUR | L31: Denmark | M31: Denmark
B32: KENYA | C32: =1/INDEX($H$4:$H$64,MATCH(tblXrate[[#This Row],[Currency]],$I$4:$I$64,0)) -> 0.0119760479 | G32: Mexican Peso | H32: 13.6899 | I32: MXN | L32: Ireland | M32: Ireland
B33: DKK | C33: =1/INDEX($H$4:$H$64,MATCH(tblXrate[[#This Row],[Currency]],$I$4:$I$64,0)) -> 0.1709042372 | G33: Nepalese Rupee | H33: 89.65 | I33: NPR | L33: Israel | M33: Israel
B34: IDR | C34: =1/INDEX($H$4:$H$64,MATCH(tblXrate[[#This Row],[Currency]],$I$4:$I$64,0)) -> 0.0001058894662 | G34: New Zealand Dollar | H34: 1.25378 | I34: NZD | L34: France | M34: France
B35: MONGOLIAN | C35: =1/INDEX($H$4:$H$64,MATCH(tblXrate[[#This Row],[Currency]],$I$4:$I$64,0)) -> 0.000756429652 | G35: Norwegian Kroner | H35: 5.90838 | I35: NOK | L35: Colombia | M35: Colombia
B36: JPY | C36: =1/INDEX($H$4:$H$64,MATCH(tblXrate[[#This Row],[Currency]],$I$4:$I$64,0)) -> 0.01267358053 | G36: Omani Rial | H36: 0.3845 | I36: OMR | L36: Switzerland | M36: Switzerland
B37: SAR | C37: =1/INDEX($H$4:$H$64,MATCH(tblXrate[[#This Row],[Currency]],$I$4:$I$64,0)) -> 0.2666666667 | G37: Pakistan Rupee | H37: 94.2144 | I37: PKR | L37: Sri Lanka | M37: Sri Lanka
B38: MAD | C38: =1/INDEX($H$4:$H$64,MATCH(tblXrate[[#This Row],[Currency]],$I$4:$I$64,0)) -> 0.1145475372 | G38: Philippine Peso | H38: 42.1851 | I38: PHP | L38: Belgium | M38: Belgium
B39: MUR | C39: =1/INDEX($H$4:$H$64,MATCH(tblXrate[[#This Row],[Currency]],$I$4:$I$64,0)) -> 0.03255642843 | G39: Qatari Rial | H39: 3.64 | I39: QAR | L39: Dubai | M39: Dubai
B40: NOK | C40: =1/INDEX($H$4:$H$64,MATCH(tblXrate[[#This Row],[Currency]],$I$4:$I$64,0)) -> 0.1692511314 | G40: Romanian Leu | H40: 3.51354 | I40: RON | L40: Ukraine | M40: Ukraine
B41: CHF | C41: =1/INDEX($H$4:$H$64,MATCH(tblXrate[[#This Row],[Currency]],$I$4:$I$64,0)) -> 1.057873062 | G41: Russian Ruble | H41: 32.5458 | I41: RUB | L41: Kuwait | M41: Kuwait
B42: ETB | C42: =1/INDEX($H$4:$H$64,MATCH(tblXrate[[#This Row],[Currency]],$I$4:$I$64,0)) -> 0.05656108597 | G42: Saudi Riyal | H42: 3.75 | I42: SAR | L42: Iran | M42: Iran
G43: Singapore Dollar | H43: 1.26771 | I43: SGD | L43: Qatar | M43: Qatar
G44: South African Rand | H44: 8.20198 | I44: ZAR | L44: Nigeria | M44: Nigeria
G45: South Korean Won | H45: 1151.09 | I45: KRW | L45: Finland | M45: Finland
G46: Sri Lanka Rupee | H46: 132.907 | I46: LKR | L46: Europe | M46: Europe
G47: Swedish Krona | H47: 6.96111 | I47: SEK | L47: Japan | M47: Japan
G48: Swiss Franc | H48: 0.945293 | I48: CHF | L48: Brasil | M48: Brasil
G49: Taiwan Dollar | H49: 29.8594 | I49: TWD | L49: NZ | M49: New Zealand
G50: Thai Baht | H50: 31.5003 | I50: THB | L50: Greece | M50: Greece
G51: Trinidad/Tobago Doll | H51: 6.39122 | I51: TTD | L51: USA | M51: USA
G52: Turkish Lira | H52: 1.79447 | I52: TRY | L52: Panama | M52: Panama
G53: Venezuelan Bolivar | H53: 4.29402 | I53: VEF | L53: Turkey | M53: Turkey
G54: UAE Dirham | H54: 3.67351 | I54: AED | L54: Sweden | M54: Sweden
G55: Bangladesh Takha | H55: 81.8274 | I55: BDT | L55: China | M55: China
G56: Costarican CRC | H56: 498.05 | I56: Costarican | L56: Bangladesh | M56: Bangladesh
G57: Egyptian Pound | H57: 6.051 | I57: Egypt | L57: Croatia | M57: Croatia
G58: Nigerian Naira | H58: 162.25 | I58: NAIRA | L58: United Arab Emirates | M58: UAE
G59: Dominican Peso | H59: 38.95 | I59: DOP | L59: MÃ©xico | M59: Mexico
G60: Polish Zloty | H60: 3.32984 | I60: PLN | L60: Zambia | M60: Zambia
G61: Kenyan Shilling | H61: 83.5 | I61: Kenya | L61: Tunisia | M61: Tunisia
G62: Mongolian Tughrik | H62: 1322 | I62: Mongolian | L62: Saudi Arabai | M62: Saudi Arabia
G63: Moroccan Dirham | H63: 8.73 | I63: MAD | L63: Ethiopia | M63: Ethiopia
G64: Ethiopian Birr | H64: 17.68 | I64: ETB | L64: CEE | M64: CEE
L65: SouthAfrica | M65: South Africa
L66: Central America | M66: Central America
L67: Uruguay | M67: Uruguay
L68: Kenya | M68: Kenya
L69: Republica Dominicana | M69: Republica Dominicana
L70: Kingdom of Saudi Arabia | M70: Saudi Arabia
L71: Slovakia | M71: Slovakia
L72: Austria | M72: Austria
L73: Guyana | M73: Guyana
L74: Azerbaijan | M74: Azerbaijan
L75: Bulgaria | M75: Bulgaria
L76: Kuwait | M76: Kuwait
L77: Peru | M77: Peru
L78: Vietnam | M78: Vietnam
L79: Armenia | M79: Armenia
L80: Zimbabwe | M80: Zimbabwe
L81: RSA | M81: South Africa
L82: Libya | M82: Libya
L83: Self-employed | M83: Self-employed
L84: Lithuania | M84: Lithuania
L85: Somalia | M85: Somalia
L86: Colombia - South America | M86: Colombia
L87: BRA | M87: Brazil
L88: Mainland Europe (Euro zone) | M88: Europe
L89: Thailand | M89: Thailand
L90: Continental Europe | M90: CEE
L91: Asia | M91: Asia
L92: Mauritius | M92: Mauritius
L93: Cambodia | M93: Cambodia
L94: Costa Rica | M94: Costa Rica
L95: Viet Nam | M95: Viet Nam
L96: Mongolia | M96: Mongolia
L97: Estonia | M97: Estonia
L98: Montenegro | M98: Montenegro
L99: EU | M99: Europe
L100: Morocco | M100: Morocco
L101: Republic of Georgia | M101: Republic of Georgia
L102: Mozambique | M102: Mozambique
L103: Europe/Croatia | M103: Croatia
L104: Myanmar | M104: Myanmar
L105: Bermuda | M105: Bermuda
L106: Myanmar [Burma] | M106: Myanmar
L107: FR | M107: France
L108: MYS | M108: MYS
L109: Bhutan | M109: Bhutan
L110: Baltic | M110: Baltic
L111: Slovenia | M111: Slovenia
L112: New Zealand | M112: New Zealand
L113: Bolivia | M113: Bolivia
L114: Czech Republic | M114: Czech Republic
L115: Ghana | M115: Ghana
L116: Bangkok | M116: Thailand
L117: Srilanka | M117: Sri Lanka
L118: NL | M118: Netherlands
L119: Hong Kong | M119: Hong Kong
L120: Nld | M120: New Zealand
L121: Aruba | M121: Aruba
L122: DK | M122: Denmark
L123: Iceland | M123: Iceland
L124: Dominican Republic | M124: Dominican Republic
L125: Uganda | M125: Uganda
L126: Oman | M126: Oman
L127: Inonesia | M127: Indonesia
L128: Argentina | M128: Argentina
L129: United Arab Emriate | M129: United Arab Emriate
L130: Pakistan, Angola | M130: Pakistan
L131: Canad | M131: Canada
L132: Egypt | M132: Egypt
L133: Arabian Gulf | M133: Arabian Gulf
L134: Paraguay | M134: Paraguay
L135: Latin America | M135: Latin America
L136: Albania | M136: Albania
L137: Lesotho | M137: Lesotho

Sheet Data
B1: Excel Salary Survey Data
B3: Note: Experience data is not available for first few hundred rows.
B5: Unique ID | C5: Timestamp | D5: Your Salary | E5: clean Salary (in local currency) | F5: Currency | G5: Salary in USD | H5: Salaryklass | I5: Your Job Title | J5: Job Type | K5: Where do you work | L5: Country | M5: Continent | N5: WORKHOURS | O5: MAXHOURS | P5: Whklass | Q5: Years of Experience | S5: Country | T5: Continent | V5: MAXHOURS | W5: MINHOURS | X5: MAXHOURS | Z5: WORKHOURS | AA5: HOURS | AC5: Job Type | AD5: Country | AE5: Continent | AF5: Continent | AG5: Years of Experience
B6: ID0001 | C6: 2012-05-25T03:11:32 | D6: 5846 | E6: 5846 | F6: USD | G6: 5846 | H6: 1 | I6: MIS Analyst | J6: Analyst | K6: India | L6: India | M6: Asia | N6: 4 to 6 hours a day | O6: 6 | P6: 6 | Q6: 4 | V6: 2 | W6: 4 | X6: 6 | Z6: 4 to 6 hours a day | AA6: 4 | AC6: Accountant | AD6: Egypt | AE6: Africa | AF6: Asia | AG6: 0
B7: ID0002 | C7: 2012-05-25T03:13:13 | D7: 15000 usd | E7: 15000 | F7: USD | G7: 15000 | H7: 2 | I7: cost control | J7: Controller | K7: europe/Croatia | L7: Croatia | M7: Europe | N7: All the 8 hours baby, all the 8! | O7: 8 | P7: 8 | Q7: 30 | S7: Country | T7: Continent | V7: 3 | W7: 8 | X7: 8 | Z7: All the 8 hours baby, all the 8! | AA7: 8 | AC7: Analyst | AD7: Ethiopia | AE7: Africa | AF7: Europe | AG7: 0.1
B8: ID0003 | C8: 2012-05-25T03:16:26 | D8: 58000 | E8: 58000 | F8: USD | G8: 58000 | H8: 6 | I8: Financial Analyst | J8: Analyst | K8: USA | L8: USA | M8: North America | N8: All the 8 hours baby, all the 8! | O8: 8 | P8: 8 | Q8: 5 | S8: South Africa | T8: Africa | U8: 1 | V8: 6 | W8: 8 | X8: 8 | Z8: 2 to 3 hours per day | AA8: 2 | AC8: Consultant | AD8: Ghana | AE8: Africa | AF8: South America | AG8: 0.3
B9: ID0004 | C9: 2012-05-25T03:23:42 | D9: 48000 | E9: 48000 | F9: USD | G9: 48000 | H9: 5 | I9: Quality Control | J9: Controller | K9: Pakistan | L9: Pakistan | M9: Asia | N9: 2 to 3 hours per day | O9: 3 | P9: 2 | Q9: 3 | S9: Somalia | T9: Africa | U9: 2 | V9: 8 | W9: 2 | X9: 3 | Z9: 1 or 2 hours a day | AA9: 1 | AC9: Controller | AD9: Kenya | AE9: Africa | AF9: Africa | AG9: 0.5
B10: ID0005 | C10: 2012-05-25T03:27:04 | D10: 54000 | E10: 54000 | F10: USD | G10: 54000 | H10: 6 | I10: Quality Engineer | J10: Engineer | K10: USA | L10: USA | M10: North America | N10: All the 8 hours baby, all the 8! | O10: 8 | P10: 8 | Q10: 5.5 | S10: Mozambique | T10: Africa | U10: 3 | W10: 8 | X10: 8 | Z10: Excel ?!? What Excel? | AC10: CXO or Top Mgmt. | AD10: Lesotho | AE10: Africa | AF10: Oceania | AG10: 0.6
B11: ID0006 | C11: 2012-05-25T03:28:28 | D11: 41731 | E11: 41731 | F11: USD | G11: 41731 | H11: 5 | I11: Analyst | J11: Analyst | K11: Iceland | L11: Iceland | M11: Europe | N11: All the 8 hours baby, all the 8! | O11: 8 | P11: 8 | Q11: 8.5 | S11: Egypt | T11: Africa | U11: 4 | W11: 8 | X11: 8 | AC11: Engineer | AD11: Libya | AE11: Africa | AF11: North America | AG11: 0.8
B12: ID0007 | C12: 2012-05-25T03:33:51 | D12: 145000 | E12: 145000 | F12: EUR | G12: 184207.9187 | H12: 11 | I12: senior project manager | J12: Manager | K12: Germany | L12: Germany | M12: Europe | N12: 1 or 2 hours a day | O12: 2 | P12: 2 | Q12: 10 | S12: Nigeria | T12: Africa | U12: 5 | W12: 1 | X12: 2 | AC12: Manager | AD12: Mauritius | AE12: Africa | AF12: Central America | AG12: 1
B13: ID0008 | C13: 2012-05-25T03:36:37 | D13: 12000 | E13: 12000 | F13: USD | G13: 12000 | H13: 2 | I13: Assistant SP&A | J13: Analyst | K13: Ukraine | L13: Ukraine | M13: Europe | N13: All the 8 hours baby, all the 8! | O13: 8 | P13: 8 | Q13: 3 | S13: Zimbabwe | T13: Africa | U13: 6 | W13: 8 | X13: 8 | AC13: Misc. | AD13: Morocco | AE13: Africa | AF13: Others | AG13: 1.1
B14: ID0009 | C14: 2012-05-25T03:37:17 | D14: 44000 $ | E14: 44000 | F14: USD | G14: 44000 | H14: 5 | I14: CFO | J14: CXO or Top Mgmt. | K14: Portugal | L14: Portugal | M14: Europe | N14: 1 or 2 hours a day | O14: 2 | P14: 2 | Q14: 9.5 | S14: Zambia | T14: Africa | U14: 7 | W14: 1 | X14: 2 | AC14: Reporting | AD14: Mozambique | AE14: Africa | AG14: 1.5
B15: ID0010 | C15: 2012-05-25T03:38:57 | D15: PKR 8,000 | E15: 1152000 | F15: PKR | G15: 12227.4302 | H15: 2 | I15: Audit Trainee | J15: Accountant | K15: Pakistan | L15: Pakistan | M15: Asia | N15: All the 8 hours baby, all the 8! | O15: 8 | P15: 8 | Q15: 10 | S15: Kenya | T15: Africa | U15: 8 | W15: 8 | X15: 8 | Z15: Asia | AA15: 28 | AC15: Specialist | AD15: Nigeria | AE15: Africa | AG15: 1.6
B16: ID0011 | C16: 2012-05-25T03:43:45 | D16: â‚¬ 51650 | E16: 51650 | F16: EUR | G16: 65616.13102 | H16: 7 | I16: Training Specialist | J16: Specialist | K16: Ireland | L16: Ireland | M16: Europe | N16: 2 to 3 hours per day | O16: 3 | P16: 2 | Q16: 20 | S16: Uganda | T16: Africa | U16: 9 | W16: 2 | X16: 3 | Z16: Europe | AA16: 34 | AD16: Somalia | AE16: Africa | AG16: 2
B17: ID0012 | C17: 2012-05-25T03:43:56 | D17: 14000 | E17: 14000 | F17: USD | G17: 14000 | H17: 2 | I17: quality engineer | J17: Engineer | K17: Hungary | L17: Hungary | M17: Europe | N17: 4 to 6 hours a day | O17: 6 | P17: 6 | Q17: 20 | S17: Ghana | T17: Africa | U17: 10 | W17: 4 | X17: 6 | Z17: South America | AA17: 10 | AD17: South Africa | AE17: Africa | AG17: 2.4
B18: ID0013 | C18: 2012-05-25T03:48:53 | D18: 749000 INR | E18: 749000 | F18: INR | G18: 13338.1296 | H18: 2 | I18: Senion Analyst | J18: Analyst | K18: India | L18: India | M18: Asia | N18: All the 8 hours baby, all the 8! | O18: 8 | P18: 8 | Q18: 10 | S18: Libya | T18: Africa | U18: 11 | W18: 8 | X18: 8 | Z18: Africa | AA18: 16 | AD18: Tunisia | AE18: Africa | AG18: 2.5
B19: ID0014 | C19: 2012-05-25T03:50:58 | D19: 49000 | E19: 49000 | F19: USD | G19: 49000 | H19: 5 | I19: business analyst | J19: Analyst | K19: USA | L19: USA | M19: North America | N19: All the 8 hours baby, all the 8! | O19: 8 | P19: 8 | Q19: 7 | S19: Morocco | T19: Africa | U19: 12 | W19: 8 | X19: 8 | Z19: Australia | AA19: 2 | AD19: Uganda | AE19: Africa | AG19: 3
B20: ID0015 | C20: 2012-05-25T03:53:22 | D20: 85000 | E20: 85000 | F20: USD | G20: 85000 | H20: 9 | I20: Project Engineer | J20: Engineer | K20: USA | L20: USA | M20: North America | N20: 1 or 2 hours a day | O20: 2 | P20: 2 | Q20: 9.5 | S20: Lesotho | T20: Africa | U20: 13 | W20: 1 | X20: 2 | Z20: North America | AA20: 1 | AD20: Zambia | AE20: Africa | AG20: 3.5
B21: ID0016 | C21: 2012-05-25T03:56:40 | D21: 75000 | E21: 75000 | F21: USD | G21: 75000 | H21: 8 | I21: Sr Project Engineer | J21: Engineer | K21: USA | L21: USA | M21: North America | N21: All the 8 hours baby, all the 8! | O21: 8 | P21: 8 | Q21: 8.5 | S21: Mauritius | T21: Africa | U21: 14 | W21: 8 | X21: 8 | Z21: Central America | AA21: 5 | AD21: Zimbabwe | AE21: Africa | AG21: 4
B22: ID0017 | C22: 2012-05-25T04:10:11 | D22: 107000 | E22: 107000 | F22: USD | G22: 107000 | H22: 11 | I22: Business Development | J22: Manager | K22: Switzerland | L22: Switzerland | M22: Europe | N22: 4 to 6 hours a day | O22: 6 | P22: 6 | Q22: 5.5 | S22: Tunisia | T22: Africa | U22: 15 | W22: 4 | X22: 6 | Z22: Others | AA22: 7 | AD22: Arabian Gulf | AE22: Others | AG22: 4.5
B23: ID0018 | C23: 2012-05-25T04:10:44 | D23: 45000 | E23: 45000 | F23: USD | G23: 45000 | H23: 5 | I23: Excel Report Writer | J23: Reporting | K23: South Africa | L23: South Africa | M23: Africa | N23: All the 8 hours baby, all the 8! | O23: 8 | P23: 8 | Q23: 4.5 | S23: Ethiopia | T23: Africa | U23: 16 | W23: 8 | X23: 8 | AA23: =SUM(AA15:AA22) -> 103 | AD23: Asia | AE23: Others | AG23: 4.6
B24: ID0019 | C24: 2012-05-25T04:16:32 | D24: 550000 | E24: 550000 | F24: INR | G24: 9794.354178 | H24: 1 | I24: AGM | J24: Manager | K24: India | L24: India | M24: Asia | N24: 2 to 3 hours per day | O24: 3 | P24: 2 | Q24: 10 | S24: India | T24: Asia | U24: 1 | W24: 2 | X24: 3 | AD24: Bangladesh | AE24: Asia | AG24: 5
B25: ID0020 | C25: 2012-05-25T04:19:22 | D25: 50000 | E25: 50000 | F25: USD | G25: 50000 | H25: 6 | I25: GM | J25: Manager | K25: India | L25: India | M25: Asia | N25: 1 or 2 hours a day | O25: 2 | P25: 2 | Q25: 10 | S25: Pakistan | T25: Asia | U25: 2 | W25: 1 | X25: 2 | AD25: Bhutan | AE25: Asia | AG25: 5.5
B26: ID0021 | C26: 2012-05-25T04:24:01 | D26: 13500 | E26: 13500 | F26: USD | G26: 13500 | H26: 2 | I26: DSE Co-ordinator | J26: Manager | K26: India | L26: India | M26: Asia | N26: 4 to 6 hours a day | O26: 6 | P26: 6 | Q26: 8.5 | S26: Russia | T26: Asia | U26: 3 | W26: 4 | X26: 6 | AD26: Cambodia | AE26: Asia | AG26: 5.6
B27: ID0022 | C27: 2012-05-25T04:24:12 | D27: 96000 | E27: 96000 | F27: USD | G27: 96000 | H27: 10 | I27: Analyst | J27: Analyst | K27: USA | L27: USA | M27: North America | N27: 2 to 3 hours per day | O27: 3 | P27: 2 | Q27: 30 | S27: United Arab Emirates | T27: Asia | U27: 4 | W27: 2 | X27: 3 | AD27: China | AE27: Asia | AG27: 6
B28: ID0023 | C28: 2012-05-25T04:31:41 | D28: 1000000 | E28: 1000000 | F28: INR | G28: 17807.91669 | H28: 2 | I28: Manager | J28: Manager | K28: India | L28: India | M28: Asia | N28: 4 to 6 hours a day | O28: 6 | P28: 6 | Q28: 9.5 | S28: Saudi Arabia | T28: Asia | U28: 5 | W28: 4 | X28: 6 | AD28: Dubai | AE28: Asia | AG28: 6.4
B29: ID0024 | C29: 2012-05-25T04:32:49 | D29: 75000 | E29: 75000 | F29: USD | G29: 75000 | H29: 8 | I29: Marketing Director | J29: CXO or Top Mgmt. | K29: USA | L29: USA | M29: North America | N29: 4 to 6 hours a day | O29: 6 | P29: 6 | Q29: 7 | S29: Turkey | T29: Asia | U29: 6 | W29: 4 | X29: 6 | AD29: Hong Kong | AE29: Asia | AG29: 6.5
B30: ID0025 | C30: 2012-05-25T04:43:51 | D30: 40000 us | E30: 40000 | F30: USD | G30: 40000 | H30: 5 | I30: sales and marketing | J30: Manager | K30: USA | L30: USA | M30: North America | N30: 2 to 3 hours per day | O30: 3 | P30: 2 | Q30: 5.5 | S30: Singapore | T30: Asia | U30: 7 | W30: 2 | X30: 3 | AD30: India | AE30: Asia | AG30: 7
B31: ID0026 | C31: 2012-05-25T04:45:01 | D31: 60000 | E31: 60000 | F31: USD | G31: 60000 | H31: 7 | I31: Analyst II | J31: Analyst | K31: USA | L31: USA | M31: North America | N31: All the 8 hours baby, all the 8! | O31: 8 | P31: 8 | Q31: 4 | S31: Thailand | T31: Asia | U31: 8 | W31: 8 | X31: 8 | AD31: Indonesia | AE31: Asia | AG31: 7.3
B32: ID0028 | C32: 2012-05-25T04:48:33 | D32: 2700 | E32: 32400 | F32: EUR | G32: 41160.94182 | H32: 5 | I32: Project Leader | J32: Manager | K32: Belgium | L32: Belgium | M32: Europe | N32: 4 to 6 hours a day | O32: 6 | P32: 6 | Q32: 2.5 | S32: Philippines | T32: Asia | U32: 9 | W32: 4 | X32: 6 | AD32: Iran | AE32: Asia | AG32: 7.9
B33: ID0029 | C33: 2012-05-25T04:52:23 | D33: 900000 INR | E33: 900000 | F33: INR | G33: 16027.12502 | H33: 2 | I33: Applications Engineer | J33: Engineer | K33: India | L33: India | M33: Asia | N33: 1 or 2 hours a day | O33: 2 | P33: 2 | Q33: 2 | S33: Dubai | T33: Asia | U33: 10 | W33: 1 | X33: 2 | AD33: Israel | AE33: Asia | AG33: 8
B34: ID0030 | C34: 2012-05-25T04:55:35 | D34: Rs 600000 | E34: 600000 | F34: INR | G34: 10684.75001 | H34: 2 | I34: strategy manager | J34: Manager | K34: India | L34: India | M34: Asia | N34: 4 to 6 hours a day | O34: 6 | P34: 6 | Q34: 2 | S34: Israel | T34: Asia | U34: 11 | W34: 4 | X34: 6 | AD34: Japan | AE34: Asia | AG34: 8.5
B35: ID0031 | C35: 2012-05-25T04:55:48 | D35: 41000 | E35: 41000 | F35: USD | G35: 41000 | H35: 5 | I35: Chief of the department of public budget analisis and forecasting | J35: Manager | K35: Russia | L35: Russia | M35: Asia | N35: All the 8 hours baby, all the 8! | O35: 8 | P35: 8 | Q35: 8 | S35: Bangladesh | T35: Asia | U35: 12 | W35: 8 | X35: 8 | AD35: Kuwait | AE35: Asia | AG35: 9
B36: ID0032 | C36: 2012-05-25T04:57:06 | D36: 360000 INR | E36: 360000 | F36: INR | G36: 6410.850007 | H36: 1 | I36: Specialist | J36: Specialist | K36: India | L36: India | M36: Asia | N36: 4 to 6 hours a day | O36: 6 | P36: 6 | Q36: 2 | S36: Iran | T36: Asia | U36: 13 | W36: 4 | X36: 6 | AD36: Kuwait | AE36: Asia | AG36: 10
B37: ID0033 | C37: 2012-05-25T04:58:45 | D37: Â£35000 | E37: 35000 | F37: GBP | G37: 55166.23952 | H37: 6 | I37: Management Information Analyst | J37: Analyst | K37: UK | L37: UK | M37: Europe | N37: All the 8 hours baby, all the 8! | O37: 8 | P37: 8 | Q37: 5 | S37: Japan | T37: Asia | U37: 14 | W37: 8 | X37: 8 | AD37: Malaysia | AE37: Asia | AG37: 11
B38: ID0035 | C38: 2012-05-25T05:01:09 | D38: 1600 $ | E38: 19200 | F38: USD | G38: 19200 | H38: 2 | I38: Analyst | J38: Analyst | K38: Poland | L38: Poland | M38: Europe | N38: 2 to 3 hours per day | O38: 3 | P38: 2 | Q38: 6 | S38: China | T38: Asia | U38: 15 | W38: 2 | X38: 3 | AD38: Mongolia | AE38: Asia | AG38: 12
B39: ID0036 | C39: 2012-05-25T05:04:12 | D39: 500000 | E39: 500000 | F39: INR | G39: 8903.958344 | H39: 1 | I39: Senior Consultant | J39: Consultant | K39: India | L39: India | M39: Asia | N39: All the 8 hours baby, all the 8! | O39: 8 | P39: 8 | Q39: 2 | S39: Sri Lanka | T39: Asia | U39: 16 | W39: 8 | X39: 8 | AD39: Myanmar | AE39: Asia | AG39: 13
B40: ID0037 | C40: 2012-05-25T05:07:31 | D40: 150000 | E40: 150000 | F40: USD | G40: 150000 | H40: 11 | I40: Portfolio Manager | J40: Manager | K40: USA | L40: USA | M40: North America | N40: 2 to 3 hours per day | O40: 3 | P40: 2 | Q40: 3 | S40: Indonesia | T40: Asia | U40: 17 | W40: 2 | X40: 3 | AD40: Oman | AE40: Asia | AG40: 14
B41: ID0038 | C41: 2012-05-25T05:10:29 | D41: 69000 | E41: 69000 | F41: USD | G41: 69000 | H41: 7 | I41: Design Engineer | J41: Engineer | K41: USA | L41: USA | M41: North America | N41: 4 to 6 hours a day | O41: 6 | P41: 6 | Q41: 1 | S41: Cambodia | T41: Asia | U41: 18 | W41: 4 | X41: 6 | AD41: Pakistan | AE41: Asia | AG41: 15
B42: ID0039 | C42: 2012-05-25T05:11:37 | D42: 30000 | E42: 30000 | F42: USD | G42: 30000 | H42: 4 | I42: Academic Advisor | J42: Consultant | K42: USA | L42: USA | M42: North America | N42: 2 to 3 hours per day | O42: 3 | P42: 2 | Q42: 5 | S42: Bhutan | T42: Asia | U42: 19 | W42: 2 | X42: 3 | AD42: Philippines | AE42: Asia | AG42: 16
B43: ID0040 | C43: 2012-05-25T05:13:50 | D43: Rs. 400000 | E43: 400000 | F43: INR | G43: 7123.166675 | H43: 1 | I43: Coordination | J43: Manager | K43: India | L43: India | M43: Asia | N43: 4 to 6 hours a day | O43: 6 | P43: 6 | Q43: 20 | S43: Qatar | T43: Asia | U43: 20 | W43: 4 | X43: 6 | AD43: Qatar | AE43: Asia | AG43: 17
B44: ID0041 | C44: 2012-05-25T05:18:48 | D44: 70000 | E44: 70000 | F44: AUD | G44: 71393.67595 | H44: 8 | I44: consultant | J44: Consultant | K44: Australia | L44: Australia | M44: Oceania | N44: 2 to 3 hours per day | O44: 3 | P44: 2 | Q44: 4.5 | S44: Vietnam | T44: Asia | U44: 21 | W44: 2 | X44: 3 | AD44: Russia | AE44: Asia | AG44: 18
B45: ID0042 | C45: 2012-05-25T05:20:10 | D45: 14500 | E45: 14500 | F45: USD | G45: 14500 | H45: 2 | I45: Business Analsyt | J45: Analyst | K45: India | L45: India | M45: Asia | N45: 4 to 6 hours a day | O45: 6 | P45: 6 | Q45: 9 | S45: Kuwait | T45: Asia | U45: 22 | W45: 4 | X45: 6 | AD45: Saudi Arabia | AE45: Asia | AG45: 19
B46: ID0043 | C46: 2012-05-25T05:30:39 | D46: 70000 | E46: 70000 | F46: CAD | G46: 68835.30661 | H46: 7 | I46: Product Engineer | J46: Engineer | K46: Canada | L46: Canada | M46: North America | N46: 2 to 3 hours per day | O46: 3 | P46: 2 | Q46: 6 | S46: Malaysia | T46: Asia | U46: 23 | W46: 2 | X46: 3 | AD46: Singapore | AE46: Asia | AG46: 20
B47: ID0044 | C47: 2012-05-25T05:35:28 | D47: 58000 | E47: 58000 | F47: USD | G47: 58000 | H47: 6 | I47: Senior Accountant | J47: Accountant | K47: USA | L47: USA | M47: North America | N47: 4 to 6 hours a day | O47: 6 | P47: 6 | Q47: 10 | S47: Kuwait | T47: Asia | U47: 24 | W47: 4 | X47: 6 | AD47: Sri Lanka | AE47: Asia | AG47: 21
B48: ID0045 | C48: 2012-05-25T05:45:01 | D48: 90000 | E48: 90000 | F48: USD | G48: 90000 | H48: 10 | I48: Scientist | J48: Misc. | K48: USA | L48: USA | M48: North America | N48: 1 or 2 hours a day | O48: 2 | P48: 2 | Q48: 4.5 | S48: Mongolia | T48: Asia | U48: 25 | W48: 1 | X48: 2 | AD48: Thailand | AE48: Asia | AG48: 22
B49: ID0046 | C49: 2012-05-25T05:46:47 | D49: 800000 | E49: 800000 | F49: INR | G49: 14246.33335 | H49: 2 | I49: Team Lead | J49: Manager | K49: India | L49: India | M49: Asia | N49: 2 to 3 hours per day | O49: 3 | P49: 2 | Q49: 2 | S49: Myanmar | T49: Asia | U49: 26 | W49: 2 | X49: 3 | AD49: Turkey | AE49: Asia | AG49: 23
B50: ID0047 | C50: 2012-05-25T05:47:10 | D50: 32000 | E50: 32000 | F50: GBP | G50: 50437.70471 | H50: 6 | I50: Senior intelligence analyst | J50: Analyst | K50: UK | L50: UK | M50: Europe | N50: 4 to 6 hours a day | O50: 6 | P50: 6 | Q50: 9.5 | S50: Hong Kong | T50: Asia | U50: 27 | W50: 4 | X50: 6 | AD50: United Arab Emiratess | AE50: Asia | AG50: 25
B51: ID0048 | C51: 2012-05-25T05:47:52 | D51: 1000 | E51: 12000 | F51: USD | G51: 12000 | H51: 2 | I51: Freelance consultant | J51: Consultant | K51: USA | L51: USA | M51: North America | N51: 1 or 2 hours a day | O51: 2 | P51: 2 | Q51: 1.5 | S51: Oman | T51: Asia | U51: 28 | W51: 1 | X51: 2 | AD51: Vietnam | AE51: Asia | AG51: 26
B52: ID0049 | C52: 2012-05-25T06:04:42 | D52: â‚¬ 45 | E52: 45000 | F52: EUR | G52: 57167.97475 | H52: 6 | I52: Online Traffic Manager / Web Analist | J52: Manager | K52: The Netherlands | L52: Netherlands | M52: Europe | N52: 4 to 6 hours a day | O52: 6 | P52: 6 | Q52: 7 | S52: Australia | T52: Oceania | U52: 1 | W52: 4 | X52: 6 | AD52: Vietnam | AE52: Asia | AG52: 27
B53: ID0050 | C53: 2012-05-25T06:04:57 | D53: 100000 USD | E53: 100000 | F53: USD | G53: 100000 | H53: 11 | I53: Seinor Financial Analyst | J53: Analyst | K53: Germany | L53: Germany | M53: Europe | N53: All the 8 hours baby, all the 8! | O53: 8 | P53: 8 | Q53: 10 | S53: New Zealand | T53: Oceania | U53: 2 | W53: 8 | X53: 8 | AD53: Australia | AE53: Australia | AG53: 28
B54: ID0051 | C54: 2012-05-25T06:05:17 | D54: 57000 | E54: 57000 | F54: USD | G54: 57000 | H54: 6 | I54: Senior Accounting Supervisor | J54: Accountant | K54: USA | L54: USA | M54: North America | N54: 2 to 3 hours per day | O54: 3 | P54: 2 | Q54: 4 | S54: Panama | T54: Central America | U54: 1 | W54: 2 | X54: 3 | AD54: New Zealand | AE54: Australia | AG54: 29
B55: ID0052 | C55: 2012-05-25T06:07:15 | D55: 40000 | E55: 40000 | F55: GBP | G55: 63047.13088 | H55: 7 | I55: Senior Accountant | J55: Accountant | K55: UK | L55: UK | M55: Europe | N55: 4 to 6 hours a day | O55: 6 | P55: 6 | Q55: 1.5 | S55: Mexico | T55: Central America | U55: 2 | W55: 4 | X55: 6 | AD55: Central America | AE55: Others | AG55: 30
B56: ID0053 | C56: 2012-05-25T06:09:44 | D56: 2000 Euros | E56: 24000 | F56: EUR | G56: 30489.58654 | H56: 4 | I56: PPC Manager | J56: Manager | K56: Germany | L56: Germany | M56: Europe | N56: All the 8 hours baby, all the 8! | O56: 8 | P56: 8 | Q56: 1 | S56: Costa Rica | T56: Central America | U56: 3 | W56: 8 | X56: 8 | AD56: Costa Rica | AE56: Central America | AG56: 32
B57: ID0054 | C57: 2012-05-25T06:10:18 | D57: 4320 | E57: 4320 | F57: USD | G57: 4320 | H57: 1 | I57: Financial Planner | J57: Accountant | K57: India | L57: India | M57: Asia | N57: 2 to 3 hours per day | O57: 3 | P57: 2 | Q57: 3.5 | S57: Dominican Republic | T57: Central America | U57: 4 | W57: 2 | X57: 3 | AD57: Dominican Republic | AE57: Central America | AG57: 33
B58: ID0055 | C58: 2012-05-25T06:15:42 | D58: 62000 | E58: 62000 | F58: USD | G58: 62000 | H58: 7 | I58: Analyst | J58: Analyst | K58: USA | L58: USA | M58: North America | N58: 4 to 6 hours a day | O58: 6 | P58: 6 | Q58: 8 | S58: Croatia | T58: Europe | U58: 1 | W58: 4 | X58: 6 | AD58: Mexico | AE58: Central America | AG58: 34
B59: ID0056 | C59: 2012-05-25T06:26:44 | D59: 7500 | E59: 7500 | F59: USD | G59: 7500 | H59: 1 | I59: Analyst | J59: Analyst | K59: India | L59: India | M59: Asia | N59: 4 to 6 hours a day | O59: 6 | P59: 6 | Q59: 20 | S59: Iceland | T59: Europe | U59: 2 | W59: 4 | X59: 6 | AD59: Panama | AE59: Central America | AG59: 35
B60: ID0057 | C60: 2012-05-25T06:27:29 | D60: Â£18000 | E60: 18000 | F60: GBP | G60: 28371.2089 | H60: 3 | I60: Building Design and Performance Researcher | J60: Manager | K60: UK | L60: UK | M60: Europe | N60: 1 or 2 hours a day | O60: 2 | P60: 2 | Q60: 6 | S60: Germany | T60: Europe | U60: 3 | W60: 1 | X60: 2 | AD60: Dominican Republic | AE60: Central America | AG60: 36
B61: ID0058 | C61: 2012-05-25T06:49:25 | D61: 49000 | E61: 49000 | F61: EUR | G61: 62249.57251 | H61: 7 | I61: Project leader | J61: Manager | K61: France | L61: France | M61: Europe | N61: 2 to 3 hours per day | O61: 3 | P61: 2 | Q61: 30 | S61: Ukraine | T61: Europe | U61: 4 | W61: 2 | X61: 3 | AD61: Albania | AE61: Europe | AG61: 40
B62: ID0059 | C62: 2012-05-25T06:57:52 | D62: 38000 | E62: 38000 | F62: USD | G62: 38000 | H62: 4 | I62: Senior Analyst | J62: Analyst | K62: USA | L62: USA | M62: North America | N62: 4 to 6 hours a day | O62: 6 | P62: 6 | Q62: 6.5 | S62: Portugal | T62: Europe | U62: 5 | W62: 4 | X62: 6 | AD62: Armenia | AE62: Europe
B63: ID0060 | C63: 2012-05-25T07:00:52 | D63: 41000 | E63: 41000 | F63: USD | G63: 41000 | H63: 5 | I63: Specialist | J63: Specialist | K63: USA | L63: USA | M63: North America | N63: 4 to 6 hours a day | O63: 6 | P63: 6 | Q63: 8.5 | S63: Ireland | T63: Europe | U63: 6 | W63: 4 | X63: 6 | AD63: Austria | AE63: Europe
B64: ID0061 | C64: 2012-05-25T07:11:09 | D64: 68000 | E64: 68000 | F64: USD | G64: 68000 | H64: 7 | I64: Engineering Data Analyst | J64: Analyst | K64: USA | L64: USA | M64: North America | N64: All the 8 hours baby, all the 8! | O64: 8 | P64: 8 | Q64: 1.5 | S64: Hungary | T64: Europe | U64: 7 | W64: 8 | X64: 8 | AD64: Azerbaijan | AE64: Europe
B65: ID0062 | C65: 2012-05-25T07:13:31 | D65: 56000 | E65: 56000 | F65: CAD | G65: 55068.24529 | H65: 6 | I65: Sales Analyst | J65: Analyst | K65: CANADA | L65: Canada | M65: North America | N65: All the 8 hours baby, all the 8! | O65: 8 | P65: 8 | Q65: 1.5 | S65: Switzerland | T65: Europe | U65: 8 | W65: 8 | X65: 8 | AD65: Baltic | AE65: Europe
B66: ID0063 | C66: 2012-05-25T07:15:12 | D66: 61000 | E66: 61000 | F66: USD | G66: 61000 | H66: 7 | I66: Coordinator Of Costa and Buget | J66: Manager | K66: Brazil | L66: Brazil | M66: South America | N66: All the 8 hours baby, all the 8! | O66: 8 | P66: 8 | Q66: 9.5 | S66: Belgium | T66: Europe | U66: 9 | W66: 8 | X66: 8 | AD66: Belgium | AE66: Europe
B67: ID0064 | C67: 2012-05-25T07:18:53 | D67: 43000 | E67: 43000 | F67: EUR | G67: 54627.17588 | H67: 6 | I67: SAP consultant | J67: Consultant | K67: FR | L67: France | M67: Europe | N67: 4 to 6 hours a day | O67: 6 | P67: 6 | Q67: 2.5 | S67: UK | T67: Europe | U67: 10 | W67: 4 | X67: 6 | AD67: Bulgaria | AE67: Europe
B68: ID0065 | C68: 2012-05-25T07:20:08 | D68: 85000 | E68: 85000 | F68: USD | G68: 85000 | H68: 9 | I68: Manager | J68: Manager | K68: USA | L68: USA | M68: North America | N68: 4 to 6 hours a day | O68: 6 | P68: 6 | Q68: 1 | S68: Poland | T68: Europe | U68: 11 | W68: 4 | X68: 6 | AD68: Continental Europe | AE68: Others
B69: ID0066 | C69: 2012-05-25T07:21:18 | D69: â‚¬ 38000 | E69: 38000 | F69: EUR | G69: 48275.17868 | H69: 5 | I69: busines analist | J69: Analyst | K69: The Netherlands | L69: Netherlands | M69: Europe | N69: 1 or 2 hours a day | O69: 2 | P69: 2 | Q69: 1 | S69: Netherlands | T69: Europe | U69: 12 | W69: 1 | X69: 2 | AD69: Croatia | AE69: Europe
B70: ID0067 | C70: 2012-05-25T07:25:12 | D70: 85000 | E70: 85000 | F70: AUD | G70: 86692.32079 | H70: 9 | I70: head of data | J70: CXO or Top Mgmt. | K70: Australia | L70: Australia | M70: Oceania | N70: 4 to 6 hours a day | O70: 6 | P70: 6 | Q70: 3 | S70: France | T70: Europe | U70: 13 | W70: 4 | X70: 6 | AD70: Czech Republic | AE70: Europe
B71: ID0068 | C71: 2012-05-25T07:29:12 | D71: 85087 | E71: 85087 | F71: USD | G71: 85087 | H71: 9 | I71: Business Systems Analyst | J71: Analyst | K71: USA | L71: USA | M71: North America | N71: 2 to 3 hours per day | O71: 3 | P71: 2 | Q71: 9.5 | S71: Greece | T71: Europe | U71: 14 | W71: 2 | X71: 3 | AD71: Denmark | AE71: Europe
B72: ID0069 | C72: 2012-05-25T07:38:22 | D72: 50000 | E72: 50000 | F72: USD | G72: 50000 | H72: 6 | I72: Financial Analyst II | J72: Analyst | K72: USA | L72: USA | M72: North America | N72: All the 8 hours baby, all the 8! | O72: 8 | P72: 8 | Q72: 2 | S72: Sweden | T72: Europe | U72: 15 | W72: 8 | X72: 8 | AD72: Estonia | AE72: Europe
B73: ID0070 | C73: 2012-05-25T07:47:00 | D73: 100000 | E73: 100000 | F73: USD | G73: 100000 | H73: 11 | I73: Mngr MI | J73: Manager | K73: RSA | L73: South Africa | M73: Africa | N73: 4 to 6 hours a day | O73: 6 | P73: 6 | Q73: 9 | S73: Romania | T73: Europe | U73: 16 | W73: 4 | X73: 6 | AD73: Europe | AE73: Europe
B74: ID0071 | C74: 2012-05-25T22:49:00 | D74: 57000 | E74: 57000 | F74: USD | G74: 57000 | H74: 6 | I74: sales analyst | J74: Analyst | K74: USA | L74: USA | M74: North America | N74: 4 to 6 hours a day | O74: 6 | P74: 6 | Q74: 7.5 | S74: Finland | T74: Europe | U74: 17 | W74: 4 | X74: 6 | AD74: Finland | AE74: Europe
B75: ID0072 | C75: 2012-05-25T22:52:28 | D75: 75000 | E75: 75000 | F75: USD | G75: 75000 | H75: 8 | I75: Consumer Research Program Manager | J75: Manager | K75: USA | L75: USA | M75: North America | N75: All the 8 hours baby, all the 8! | O75: 8 | P75: 8 | Q75: 5.5 | S75: Republic of Georgia | T75: Europe | U75: 18 | W75: 8 | X75: 8 | AD75: France | AE75: Europe
B76: ID0073 | C76: 2012-05-25T22:59:05 | D76: $AUD100000 | E76: 100000 | F76: AUD | G76: 101990.9656 | H76: 11 | I76: technical trainer | J76: Manager | K76: Australia | L76: Australia | M76: Oceania | N76: 4 to 6 hours a day | O76: 6 | P76: 6 | Q76: 3 | S76: Estonia | T76: Europe | U76: 19 | W76: 4 | X76: 6 | AD76: Germany | AE76: Europe
B77: ID0074 | C77: 2012-05-25T23:01:20 | D77: 2785 | E77: 33420 | F77: USD | G77: 33420 | H77: 4 | I77: Process Flow Coordinator | J77: Manager | K77: United Arab Emiratess | L77: United Arab Emirates | M77: Asia | N77: All the 8 hours baby, all the 8! | O77: 8 | P77: 8 | Q77: 5 | S77: Norway | T77: Europe | U77: 20 | W77: 8 | X77: 8 | AD77: Greece | AE77: Europe
B78: ID0075 | C78: 2012-05-25T23:03:00 | D78: 59450 | E78: 59450 | F78: CAD | G78: 58460.84254 | H78: 6 | I78: Process Improvement Specialist | J78: Specialist | K78: Canada | L78: Canada | M78: North America | N78: All the 8 hours baby, all the 8! | O78: 8 | P78: 8 | Q78: 20 | S78: Spain | T78: Europe | U78: 21 | W78: 8 | X78: 8 | AD78: Hungary | AE78: Europe
B79: ID0076 | C79: 2012-05-25T23:12:29 | D79: 15000 | E79: 15000 | F79: USD | G79: 15000 | H79: 2 | I79: Excel Programmer Consultant | J79: Consultant | K79: USA | L79: USA | M79: North America | N79: All the 8 hours baby, all the 8! | O79: 8 | P79: 8 | Q79: 9.5 | S79: Lithuania | T79: Europe | U79: 22 | W79: 8 | X79: 8 | AD79: Iceland | AE79: Europe
B80: ID0077 | C80: 2012-05-25T23:15:34 | D80: US $60,000 | E80: 60000 | F80: USD | G80: 60000 | H80: 7 | I80: Statistical Analyst | J80: Analyst | K80: Canada | L80: Canada | M80: North America | N80: 1 or 2 hours a day | O80: 2 | P80: 2 | Q80: 6 | S80: Denmark | T80: Europe | U80: 23 | W80: 1 | X80: 2 | AD80: Ireland | AE80: Europe
B81: ID0078 | C81: 2012-05-25T23:18:45 | D81: 100000 | E81: 100000 | F81: GBP | G81: 157617.8272 | H81: 11 | I81: Analyst | J81: Analyst | K81: UK | L81: UK | M81: Europe | N81: 2 to 3 hours per day | O81: 3 | P81: 2 | Q81: 3 | S81: Italy | T81: Europe | U81: 24 | W81: 2 | X81: 3 | AD81: Italy | AE81: Europe
B82: ID0079 | C82: 2012-05-25T23:20:46 | D82: Us$ 18000 | E82: 18000 | F82: USD | G82: 18000 | H82: 2 | I82: Operational Analyst | J82: Analyst | K82: Saudi Arabia | L82: Saudi Arabia | M82: Asia | N82: All the 8 hours baby, all the 8! | O82: 8 | P82: 8 | Q82: 4.5 | S82: Czech Republic | T82: Europe | U82: 25 | W82: 8 | X82: 8 | AD82: Lithuania | AE82: Europe
B83: ID0080 | C83: 2012-05-25T23:31:16 | D83: 50000 | E83: 50000 | F83: USD | G83: 50000 | H83: 6 | I83: Exceler | J83: Manager | K83: USA | L83: USA | M83: North America | N83: 2 to 3 hours per day | O83: 3 | P83: 2 | Q83: 4 | S83: Slovenia | T83: Europe | U83: 26 | W83: 2 | X83: 3 | AD83: Montenegro | AE83: Europe
B84: ID0081 | C84: 2012-05-25T23:33:15 | D84: 26000 | E84: 26000 | F84: USD | G84: 26000 | H84: 3 | I84: Marketing Analyst | J84: Analyst | K84: Panama | L84: Panama | M84: Central America | N84: All the 8 hours baby, all the 8! | O84: 8 | P84: 8 | Q84: 6.5 | S84: Albania | T84: Europe | U84: 27 | W84: 8 | X84: 8 | AD84: Netherlands | AE84: Europe
B85: ID0082 | C85: 2012-05-25T23:49:27 | D85: Â£30000 | E85: 30000 | F85: GBP | G85: 47285.34816 | H85: 5 | I85: Database Manager | J85: Manager | K85: UK | L85: UK | M85: Europe | N85: 4 to 6 hours a day | O85: 6 | P85: 6 | Q85: 9 | S85: Montenegro | T85: Europe | U85: 28 | W85: 4 | X85: 6 | AD85: Norway | AE85: Europe
B86: ID0083 | C86: 2012-05-26T00:00:52 | D86: 150000 | E86: 150000 | F86: USD | G86: 150000 | H86: 11 | I86: Director | J86: CXO or Top Mgmt. | K86: USA | L86: USA | M86: North America | N86: All the 8 hours baby, all the 8! | O86: 8 | P86: 8 | Q86: 6 | S86: Austria | T86: Europe | U86: 29 | W86: 8 | X86: 8 | AD86: Poland | AE86: Europe
B87: ID0084 | C87: 2012-05-26T00:05:45 | D87: 120000 | E87: 120000 | F87: USD | G87: 120000 | H87: 11 | I87: Manager, Forecasts & Budgets | J87: Manager | K87: USA | L87: USA | M87: North America | N87: 4 to 6 hours a day | O87: 6 | P87: 6 | Q87: 5.5 | S87: Europe | T87: Europe | U87: 30 | W87: 4 | X87: 6 | AD87: Portugal | AE87: Europe
B88: ID0085 | C88: 2012-05-26T00:10:17 | D88: 500000 | E88: 500000 | F88: INR | G88: 8903.958344 | H88: 1 | I88: Senior Consultant | J88: Consultant | K88: India | L88: India | M88: Asia | N88: All the 8 hours baby, all the 8! | O88: 8 | P88: 8 | Q88: 7 | S88: Bulgaria | T88: Europe | U88: 31 | W88: 8 | X88: 8 | AD88: Republic of Georgia | AE88: Europe
B89: ID0086 | C89: 2012-05-26T00:11:21 | D89: US $ 31330.00 | E89: 31330 | F89: USD | G89: 31330 | H89: 4 | I89: VBA Analyst | J89: Analyst | K89: Brazil | L89: Brazil | M89: South America | N89: All the 8 hours baby, all the 8! | O89: 8 | P89: 8 | Q89: 2 | S89: Azerbaijan | T89: Europe | U89: 32 | W89: 8 | X89: 8 | AD89: Romania | AE89: Europe
B90: ID0087 | C90: 2012-05-26T00:15:17 | D90: 110000 | E90: 110000 | F90: USD | G90: 110000 | H90: 11 | I90: Senior Scheduling Engineer | J90: Engineer | K90: USA | L90: USA | M90: North America | N90: 2 to 3 hours per day | O90: 3 | P90: 2 | Q90: 7.5 | S90: Slovakia | T90: Europe | U90: 33 | W90: 2 | X90: 3 | AD90: Slovakia | AE90: Europe
B91: ID0088 | C91: 2012-05-26T00:22:49 | D91: 81,000USD | E91: 81000 | F91: USD | G91: 81000 | H91: 9 | I91: Strategy Consultant | J91: Consultant | K91: UK | L91: UK | M91: Europe | N91: 4 to 6 hours a day | O91: 6 | P91: 6 | Q91: 3 | S91: Armenia | T91: Europe | U91: 34 | W91: 4 | X91: 6 | AD91: Slovenia | AE91: Europe
B92: ID0089 | C92: 2012-05-26T00:39:04 | D92: 40000 | E92: 40000 | F92: USD | G92: 40000 | H92: 5 | I92: Admin | J92: Analyst | K92: USA | L92: USA | M92: North America | N92: 4 to 6 hours a day | O92: 6 | P92: 6 | Q92: 20 | S92: Baltic | T92: Others | U92: 1 | W92: 4 | X92: 6 | AD92: Spain | AE92: Europe
B93: ID0090 | C93: 2012-05-26T00:39:28 | D93: 42000 | E93: 42000 | F93: CAD | G93: 41301.18397 | H93: 5 | I93: IT Asset Administrator | J93: Analyst | K93: Canada | L93: Canada | M93: North America | N93: 4 to 6 hours a day | O93: 6 | P93: 6 | Q93: 6 | S93: Canada | T93: North America | U93: 1 | W93: 4 | X93: 6 | AD93: Sweden | AE93: Europe
B94: ID0091 | C94: 2012-05-26T00:39:36 | D94: 125000 | E94: 125000 | F94: USD | G94: 125000 | H94: 11 | I94: Director of Marketing | J94: CXO or Top Mgmt. | K94: USA | L94: USA | M94: North America | N94: 4 to 6 hours a day | O94: 6 | P94: 6 | Q94: 9.5 | S94: Arabian Gulf | T94: Others | U94: 2 | W94: 4 | X94: 6 | AD94: Switzerland | AE94: Europe
B95: ID0092 | C95: 2012-05-26T00:39:38 | D95: 36000 | E95: 36000 | F95: USD | G95: 36000 | H95: 4 | I95: Graphic Design Manager | J95: Manager | K95: USA | L95: USA | M95: North America | N95: 2 to 3 hours per day | O95: 3 | P95: 2 | Q95: 3 | S95: Central America | T95: Others | U95: 3 | W95: 2 | X95: 3 | AD95: UK | AE95: Europe
B96: ID0093 | C96: 2012-05-26T00:39:54 | D96: Rs. 12,000/- | E96: 144000 | F96: INR | G96: 2564.340003 | H96: 1 | I96: Financial Consultant | J96: Consultant | K96: India | L96: India | M96: Asia | N96: 1 or 2 hours a day | O96: 2 | P96: 2 | Q96: 10 | S96: Self-employed | T96: Others | U96: 4 | W96: 1 | X96: 2 | AD96: Ukraine | AE96: Europe
B97: ID0094 | C97: 2012-05-26T00:40:00 | D97: 75000 | E97: 75000 | F97: USD | G97: 75000 | H97: 8 | I97: Data Analyst | J97: Analyst | K97: USA | L97: USA | M97: North America | N97: 1 or 2 hours a day | O97: 2 | P97: 2 | Q97: 5 | S97: Asia | T97: Others | U97: 5 | W97: 1 | X97: 2 | AD97: Canada | AE97: North America
B98: ID0095 | C98: 2012-05-26T00:40:20 | D98: 95000 | E98: 95000 | F98: USD | G98: 95000 | H98: 10 | I98: CFO | J98: CXO or Top Mgmt. | K98: USA | L98: USA | M98: North America | N98: 4 to 6 hours a day | O98: 6 | P98: 6 | Q98: 9 | S98: CEE | T98: Others | U98: 6 | W98: 4 | X98: 6 | AD98: Malaysia | AE98: Asia
B99: ID0096 | C99: 2012-05-26T00:40:27 | D99: 24000 | E99: 24000 | F99: USD | G99: 24000 | H99: 3 | I99: Paraeducator | J99: Manager | K99: USA | L99: USA | M99: North America | N99: 2 to 3 hours per day | O99: 3 | P99: 2 | Q99: 5.5 | S99: Latin America | T99: Others | U99: 7 | W99: 2 | X99: 3 | AD99: Self-employed | AE99: Others
B100: ID0097 | C100: 2012-05-26T00:40:31 | D100: 91,000 USD | E100: 91000 | F100: USD | G100: 91000 | H100: 10 | I100: Channel Marketing Manager | J100: Manager | K100: USA | L100: USA | M100: North America | N100: 1 or 2 hours a day | O100: 2 | P100: 2 | Q100: 9 | S100: USA | T100: Central America | U100: 5 | W100: 1 | X100: 2 | AD100: Argentina | AE100: South America
B101: ID0098 | C101: 2012-05-26T00:40:39 | D101: 40000 | E101: 40000 | F101: USD | G101: 40000 | H101: 5 | I101: Sales and Marketing Analyst | J101: Analyst | K101: USA | L101: USA | M101: North America | N101: 4 to 6 hours a day | O101: 6 | P101: 6 | Q101: 5 | S101: Brazil | T101: South America | U101: 1 | W101: 4 | X101: 6 | AD101: Aruba | AE101: South America
B102: ID0099 | C102: 2012-05-26T00:40:40 | D102: 57000 | E102: 57000 | F102: USD | G102: 57000 | H102: 6 | I102: Production Scheduler | J102: Manager | K102: USA | L102: USA | M102: North America | N102: 4 to 6 hours a day | O102: 6 | P102: 6 | Q102: 10 | S102: Colombia | T102: South America | U102: 2 | W102: 4 | X102: 6 | AD102: Bermuda | AE102: South America
B103: ID0100 | C103: 2012-05-26T00:40:41 | D103: 74000 | E103: 74000 | F103: USD | G103: 74000 | H103: 8 | I103: Senior Consultant | J103: Consultant | K103: USA | L103: USA | M103: North America | N103: 4 to 6 hours a day | O103: 6 | P103: 6 | Q103: 6 | S103: Bermuda | T103: South America | U103: 3 | W103: 4 | X103: 6 | AD103: Bolivia | AE103: South America
B104: ID0101 | C104: 2012-05-26T00:40:42 | D104: 80k | E104: 80000 | F104: USD | G104: 80000 | H104: 9 | I104: financial analyst | J104: Analyst | K104: USA | L104: USA | M104: North America | N104: 4 to 6 hours a day | O104: 6 | P104: 6 | Q104: 9 | S104: Guyana | T104: South America | U104: 4 | W104: 4 | X104: 6 | AD104: Brazil | AE104: South America
B105: ID0102 | C105: 2012-05-26T00:40:46 | D105: 90000 | E105: 90000 | F105: USD | G105: 90000 | H105: 10 | I105: Product Specialist | J105: Specialist | K105: USA | L105: USA | M105: North America | N105: 4 to 6 hours a day | O105: 6 | P105: 6 | Q105: 5 | S105: Uruguay | T105: South America | U105: 5 | W105: 4 | X105: 6 | AD105: Brazil | AE105: South America
B106: ID0103 | C106: 2012-05-26T00:40:48 | D106: 21000 | E106: 21000 | F106: USD | G106: 21000 | H106: 3 | I106: IT support | J106: Analyst | K106: arabian Gulf | L106: Arabian Gulf | M106: Others | N106: 1 or 2 hours a day | O106: 2 | P106: 2 | Q106: 8.5 | S106: Aruba | T106: South America | U106: 6 | W106: 1 | X106: 2 | AD106: Colombia | AE106: South America
B107: ID0104 | C107: 2012-05-26T00:40:50 | D107: 52000 | E107: 52000 | F107: USD | G107: 52000 | H107: 6 | I107: sr. project coordinator | J107: Manager | K107: USA | L107: USA | M107: North America | N107: 4 to 6 hours a day | O107: 6 | P107: 6 | Q107: 9 | S107: Paraguay | T107: South America | U107: 7 | W107: 4 | X107: 6 | AD107: Guyana | AE107: South America
B108: ID0105 | C108: 2012-05-26T00:40:52 | D108: 19200 | E108: 19200 | F108: USD | G108: 19200 | H108: 2 | I108: Sr Administrative Assistant | J108: Analyst | K108: Mexico | L108: Mexico | M108: North America | N108: 4 to 6 hours a day | O108: 6 | P108: 6 | Q108: 20 | S108: Argentina | T108: South America | U108: 8 | W108: 4 | X108: 6 | AD108: Latin America | AE108: South America
B109: ID0106 | C109: 2012-05-26T00:40:57 | D109: 36000 | E109: 36000 | F109: USD | G109: 36000 | H109: 4 | I109: Analyst | J109: Analyst | K109: USA | L109: USA | M109: North America | N109: 4 to 6 hours a day | O109: 6 | P109: 6 | Q109: 2.5 | S109: Bolivia | T109: South America | U109: 9 | W109: 4 | X109: 6 | AD109: Paraguay | AE109: South America
B110: ID0107 | C110: 2012-05-26T00:41:02 | D110: 57400 | E110: 57400 | F110: USD | G110: 57400 | H110: 6 | I110: IT Analyst | J110: Analyst | K110: USA | L110: USA | M110: North America | N110: 4 to 6 hours a day | O110: 6 | P110: 6 | Q110: 10 | S110: Peru | T110: South America | U110: 10 | W110: 4 | X110: 6 | AD110: Peru | AE110: South America
B111: ID0108 | C111: 2012-05-26T00:41:03 | D111: 66000 | E111: 66000 | F111: USD | G111: 66000 | H111: 7 | I111: Analyst | J111: Analyst | K111: USA | L111: USA | M111: North America | N111: 2 to 3 hours per day | O111: 3 | P111: 2 | Q111: 6.5 | W111: 2 | X111: 3 | AD111: Uruguay | AE111: South America
B112: ID0109 | C112: 2012-05-26T00:41:06 | D112: 35000 | E112: 35000 | F112: EUR | G112: 44463.98036 | H112: 5 | I112: Project manager | J112: Manager | K112: Greece | L112: Greece | M112: Europe | N112: 4 to 6 hours a day | O112: 6 | P112: 6 | Q112: 6 | W112: 4 | X112: 6 | AD112: USA | AE112: South America
B113: ID0111 | C113: 2012-05-26T00:41:16 | D113: $85,000+ | E113: 85000 | F113: USD | G113: 85000 | H113: 9 | I113: Strategic Analyst | J113: Analyst | K113: USA | L113: USA | M113: North America | N113: 4 to 6 hours a day | O113: 6 | P113: 6 | Q113: 9 | W113: 4 | X113: 6
B114: ID0112 | C114: 2012-05-26T00:41:22 | D114: 50000 | E114: 50000 | F114: USD | G114: 50000 | H114: 6 | I114: Transportation Specialist | J114: Specialist | K114: USA | L114: USA | M114: North America | N114: 4 to 6 hours a day | O114: 6 | P114: 6 | Q114: 5 | W114: 4 | X114: 6
B115: ID0113 | C115: 2012-05-26T00:41:27 | D115: $58,000 USD | E115: 58000 | F115: USD | G115: 58000 | H115: 6 | I115: Operations Programs Support | J115: Manager | K115: USA | L115: USA | M115: North America | N115: 4 to 6 hours a day | O115: 6 | P115: 6 | Q115: 6 | W115: 4 | X115: 6
B116: ID0114 | C116: 2012-05-26T00:41:28 | D116: 37900 | E116: 37900 | F116: USD | G116: 37900 | H116: 4 | I116: Accounting Coordinator | J116: Accountant | K116: USA | L116: USA | M116: North America | N116: All the 8 hours baby, all the 8! | O116: 8 | P116: 8 | Q116: 8.5 | W116: 8 | X116: 8
B117: ID0115 | C117: 2012-05-26T00:41:30 | D117: 4000 | E117: 48000 | F117: USD | G117: 48000 | H117: 5 | I117: Asst.Manager Finance | J117: Manager | K117: United Arab Emiratess | L117: United Arab Emirates | M117: Asia | N117: 2 to 3 hours per day | O117: 3 | P117: 2 | Q117: 5.5 | W117: 2 | X117: 3
B118: ID0116 | C118: 2012-05-26T00:41:32 | D118: 67000 | E118: 67000 | F118: USD | G118: 67000 | H118: 7 | I118: Operations Cost Analyst | J118: Analyst | K118: USA | L118: USA | M118: North America | N118: 4 to 6 hours a day | O118: 6 | P118: 6 | Q118: 9 | W118: 4 | X118: 6
B119: ID0117 | C119: 2012-05-26T00:41:35 | D119: 85000 | E119: 85000 | F119: USD | G119: 85000 | H119: 9 | I119: Financial Controller | J119: Controller | K119: United Arab Emiratess | L119: United Arab Emirates | M119: Asia | N119: 4 to 6 hours a day | O119: 6 | P119: 6 | Q119: 3 | W119: 4 | X119: 6
B120: ID0118 | C120: 2012-05-26T00:41:35 | D120: 56160 | E120: 56160 | F120: USD | G120: 56160 | H120: 6 | I120: Utilization Analyst | J120: Analyst | K120: USA | L120: USA | M120: North America | N120: 4 to 6 hours a day | O120: 6 | P120: 6 | Q120: 30 | W120: 4 | X120: 6
B121: ID0119 | C121: 2012-05-26T00:41:38 | D121: 2000 | E121: 24000 | F121: USD | G121: 24000 | H121: 3 | I121: Researcher | J121: Manager | K121: Colombia | L121: Colombia | M121: South America | N121: All the 8 hours baby, all the 8! | O121: 8 | P121: 8 | Q121: 8.5 | W121: 8 | X121: 8
B122: ID0120 | C122: 2012-05-26T00:41:38 | D122: 52000 | E122: 52000 | F122: USD | G122: 52000 | H122: 6 | I122: Market Analyst | J122: Analyst | K122: USA | L122: USA | M122: North America | N122: Excel ?!? What Excel? | O122: 0 | P122: 1 | Q122: 30 | W122: 0 | X122: 0
B123: ID0121 | C123: 2012-05-26T00:41:41 | D123: 60000 | E123: 60000 | F123: CAD | G123: 59001.69138 | H123: 6 | I123: Web Developer | J123: Analyst | K123: Canada | L123: Canada | M123: North America | N123: Excel ?!? What Excel? | O123: 0 | P123: 1 | Q123: 2 | W123: 0 | X123: 0
B124: ID0122 | C124: 2012-05-26T00:41:43 | D124: 70000 | E124: 70000 | F124: USD | G124: 70000 | H124: 8 | I124: Sr. Acct | J124: Accountant | K124: USA | L124: USA | M124: North America | N124: All the 8 hours baby, all the 8! | O124: 8 | P124: 8 | Q124: 4.5 | W124: 8 | X124: 8
B125: ID0123 | C125: 2012-05-26T00:41:56 | D125: 50000 | E125: 50000 | F125: USD | G125: 50000 | H125: 6 | I125: Information Systems Specialist | J125: Specialist | K125: USA | L125: USA | M125: North America | N125: 4 to 6 hours a day | O125: 6 | P125: 6 | Q125: 30 | W125: 4 | X125: 6
B126: ID0124 | C126: 2012-05-26T00:41:58 | D126: 2300000 | E126: 2300000 | F126: INR | G126: 40958.20838 | H126: 5 | I126: Analytics lead | J126: Analyst | K126: India | L126: India | M126: Asia | N126: 1 or 2 hours a day | O126: 2 | P126: 2 | Q126: 5 | W126: 1 | X126: 2
B127: ID0125 | C127: 2012-05-26T00:42:00 | D127: 80000 | E127: 80000 | F127: USD | G127: 80000 | H127: 9 | I127: Financial Analyst | J127: Analyst | K127: USA | L127: USA | M127: North America | N127: 4 to 6 hours a day | O127: 6 | P127: 6 | Q127: 3 | W127: 4 | X127: 6
B128: ID0126 | C128: 2012-05-26T00:42:08 | D128: 128000 | E128: 128000 | F128: USD | G128: 128000 | H128: 11 | I128: Actuary | J128: Manager | K128: USA | L128: USA | M128: North America | N128: All the 8 hours baby, all the 8! | O128: 8 | P128: 8 | Q128: 4 | W128: 8 | X128: 8
B129: ID0127 | C129: 2012-05-26T00:42:10 | D129: US $44,000 | E129: 44000 | F129: USD | G129: 44000 | H129: 5 | I129: School Tech Coordinator | J129: Manager | K129: USA | L129: USA | M129: North America | N129: 1 or 2 hours a day | O129: 2 | P129: 2 | Q129: 10 | W129: 1 | X129: 2
B130: ID0128 | C130: 2012-05-26T00:42:11 | D130: 65000 | E130: 65000 | F130: USD | G130: 65000 | H130: 7 | I130: sr accountant | J130: Accountant | K130: USA | L130: USA | M130: North America | N130: All the 8 hours baby, all the 8! | O130: 8 | P130: 8 | Q130: 8 | W130: 8 | X130: 8
B131: ID0129 | C131: 2012-05-26T00:42:32 | D131: 36000 usd | E131: 36000 | F131: USD | G131: 36000 | H131: 4 | I131: senior accountant | J131: Accountant | K131: Turkey | L131: Turkey | M131: Asia | N131: 4 to 6 hours a day | O131: 6 | P131: 6 | Q131: 6 | W131: 4 | X131: 6
B132: ID0130 | C132: 2012-05-26T00:42:34 | D132: 1000 | E132: 12000 | F132: USD | G132: 12000 | H132: 2 | I132: Freelance | J132: Consultant | K132: Pakistan | L132: Pakistan | M132: Asia | N132: 1 or 2 hours a day | O132: 2 | P132: 2 | Q132: 8.5 | W132: 1 | X132: 2
B133: ID0131 | C133: 2012-05-26T00:42:41 | D133: 28159.2 | E133: 28159 | F133: GBP | G133: 44383.60396 | H133: 5 | I133: Data Analyst | J133: Analyst | K133: UK | L133: UK | M133: Europe | N133: All the 8 hours baby, all the 8! | O133: 8 | P133: 8 | Q133: 5.5 | W133: 8 | X133: 8
B134: ID0132 | C134: 2012-05-26T00:42:46 | D134: 45000 | E134: 45000 | F134: USD | G134: 45000 | H134: 5 | I134: DBA | J134: Analyst | K134: USA | L134: USA | M134: North America | N134: 4 to 6 hours a day | O134: 6 | P134: 6 | Q134: 2 | W134: 4 | X134: 6
B135: ID0133 | C135: 2012-05-26T00:42:58 | D135: 54000 | E135: 54000 | F135: USD | G135: 54000 | H135: 6 | I135: Research Analyst | J135: Analyst | K135: USA | L135: USA | M135: North America | N135: 2 to 3 hours per day | O135: 3 | P135: 2 | Q135: 4 | W135: 2 | X135: 3
B136: ID0134 | C136: 2012-05-26T00:43:03 | D136: 70000 | E136: 70000 | F136: GBP | G136: 110332.479 | H136: 11 | I136: Project Manager | J136: Manager | K136: UK | L136: UK | M136: Europe | N136: 2 to 3 hours per day | O136: 3 | P136: 2 | Q136: 6.5 | W136: 2 | X136: 3
B137: ID0135 | C137: 2012-05-26T00:43:07 | D137: 71000 | E137: 71000 | F137: USD | G137: 71000 | H137: 8 | I137: Market Research Analyst | J137: Analyst | K137: USA | L137: USA | M137: North America | N137: 4 to 6 hours a day | O137: 6 | P137: 6 | Q137: 3 | W137: 4 | X137: 6
B138: ID0136 | C138: 2012-05-26T00:43:08 | D138: 800000 | E138: 800000 | F138: INR | G138: 14246.33335 | H138: 2 | I138: Manager : Accounts | J138: Manager | K138: India | L138: India | M138: Asia | N138: 2 to 3 hours per day | O138: 3 | P138: 2 | Q138: 6 | W138: 2 | X138: 3
B139: ID0137 | C139: 2012-05-26T00:43:17 | D139: 70000 | E139: 70000 | F139: CAD | G139: 68835.30661 | H139: 7 | I139: project manager | J139: Manager | K139: canada | L139: Canada | M139: North America | N139: 4 to 6 hours a day | O139: 6 | P139: 6 | Q139: 8 | W139: 4 | X139: 6
B140: ID0138 | C140: 2012-05-26T00:43:25 | D140: 50000 | E140: 50000 | F140: CAD | G140: 49168.07615 | H140: 5 | I140: Inventory manger | J140: Manager | K140: Canada | L140: Canada | M140: North America | N140: 4 to 6 hours a day | O140: 6 | P140: 6 | Q140: 2.5 | W140: 4 | X140: 6
B141: ID0139 | C141: 2012-05-26T00:43:27 | D141: 40000 | E141: 40000 | F141: USD | G141: 40000 | H141: 5 | I141: Business Analyst | J141: Analyst | K141: USA | L141: USA | M141: North America | N141: 4 to 6 hours a day | O141: 6 | P141: 6 | Q141: 7.5 | W141: 4 | X141: 6
B142: ID0140 | C142: 2012-05-26T00:43:34 | D142: $62,000 CND | E142: 62000 | F142: CAD | G142: 60968.41443 | H142: 7 | I142: Process Technician | J142: Analyst | K142: Canada | L142: Canada | M142: North America | N142: 2 to 3 hours per day | O142: 3 | P142: 2 | Q142: 1 | W142: 2 | X142: 3
B143: ID0141 | C143: 2012-05-26T00:43:36 | D143: 28000rs | E143: 336000 | F143: INR | G143: 5983.460007 | H143: 1 | I143: MIS Team Leader | J143: Reporting | K143: India | L143: India | M143: Asia | N143: 4 to 6 hours a day | O143: 6 | P143: 6 | Q143: 4 | W143: 4 | X143: 6
B144: ID0142 | C144: 2012-05-26T00:43:36 | D144: 53000 | E144: 53000 | F144: USD | G144: 53000 | H144: 6 | I144: Data Analyst | J144: Analyst | K144: USA | L144: USA | M144: North America | N144: 4 to 6 hours a day | O144: 6 | P144: 6 | Q144: 8 | W144: 4 | X144: 6
B145: ID0143 | C145: 2012-05-26T00:43:49 | D145: 104000 | E145: 104000 | F145: USD | G145: 104000 | H145: 11 | I145: Finance Director | J145: CXO or Top Mgmt. | K145: USA | L145: USA | M145: North America | N145: 2 to 3 hours per day | O145: 3 | P145: 2 | Q145: 20 | W145: 2 | X145: 3
B146: ID0144 | C146: 2012-05-26T00:44:02 | D146: 57000 | E146: 57000 | F146: USD | G146: 57000 | H146: 6 | I146: Industrial Engineer | J146: Engineer | K146: USA | L146: USA | M146: North America | N146: 4 to 6 hours a day | O146: 6 | P146: 6 | Q146: 9.5 | W146: 4 | X146: 6
B147: ID0145 | C147: 2012-05-26T00:44:09 | D147: 45000 | E147: 45000 | F147: USD | G147: 45000 | H147: 5 | I147: data analyst | J147: Analyst | K147: USA | L147: USA | M147: North America | N147: 2 to 3 hours per day | O147: 3 | P147: 2 | Q147: 3.5 | W147: 2 | X147: 3
B148: ID0146 | C148: 2012-05-26T00:44:15 | D148: 92000 | E148: 92000 | F148: USD | G148: 92000 | H148: 10 | I148: Senior Financial & Systems Analyst | J148: Analyst | K148: USA | L148: USA | M148: North America | N148: 4 to 6 hours a day | O148: 6 | P148: 6 | Q148: 7 | W148: 4 | X148: 6
B149: ID0147 | C149: 2012-05-26T00:44:18 | D149: 88000 | E149: 88000 | F149: USD | G149: 88000 | H149: 9 | I149: project manager - metrics | J149: Manager | K149: USA | L149: USA | M149: North America | N149: 4 to 6 hours a day | O149: 6 | P149: 6 | Q149: 4.5 | W149: 4 | X149: 6
B150: ID0148 | C150: 2012-05-26T00:44:20 | D150: 80000 | E150: 80000 | F150: USD | G150: 80000 | H150: 9 | I150: Informatics Research Analyst | J150: Analyst | K150: USA | L150: USA | M150: North America | N150: 2 to 3 hours per day | O150: 3 | P150: 2 | Q150: 5.5 | W150: 2 | X150: 3
B151: ID0149 | C151: 2012-05-26T00:44:22 | D151: 69000 | E151: 69000 | F151: USD | G151: 69000 | H151: 7 | I151: Business Technical Consultant | J151: Consultant | K151: USA | L151: USA | M151: North America | N151: 4 to 6 hours a day | O151: 6 | P151: 6 | Q151: 4 | W151: 4 | X151: 6
B152: ID0150 | C152: 2012-05-26T00:44:23 | D152: 50000 | E152: 50000 | F152: USD | G152: 50000 | H152: 6 | I152: Business Operations Reporting Analyst | J152: Analyst | K152: Mexico | L152: Mexico | M152: North America | N152: All the 8 hours baby, all the 8! | O152: 8 | P152: 8 | Q152: 5 | W152: 8 | X152: 8
B153: ID0151 | C153: 2012-05-26T00:44:40 | D153: 35000 | E153: 35000 | F153: USD | G153: 35000 | H153: 4 | I153: Program Services Coordinator | J153: Manager | K153: USA | L153: USA | M153: North America | N153: 2 to 3 hours per day | O153: 3 | P153: 2 | Q153: 9 | W153: 2 | X153: 3
B154: ID0152 | C154: 2012-05-26T00:44:59 | D154: 96000 | E154: 96000 | F154: USD | G154: 96000 | H154: 10 | I154: Specialist - Finance Planning and Analysis | J154: Analyst | K154: USA | L154: USA | M154: North America | N154: 4 to 6 hours a day | O154: 6 | P154: 6 | Q154: 4 | W154: 4 | X154: 6
B155: ID0153 | C155: 2012-05-26T00:45:00 | D155: 65000 | E155: 65000 | F155: USD | G155: 65000 | H155: 7 | I155: Sr Accountant | J155: Accountant | K155: USA | L155: USA | M155: North America | N155: All the 8 hours baby, all the 8! | O155: 8 | P155: 8 | Q155: 5.5 | W155: 8 | X155: 8
B156: ID0154 | C156: 2012-05-26T00:45:06 | D156: 37440 | E156: 37440 | F156: USD | G156: 37440 | H156: 4 | I156: sales analyst | J156: Analyst | K156: USA | L156: USA | M156: North America | N156: All the 8 hours baby, all the 8! | O156: 8 | P156: 8 | Q156: 7 | W156: 8 | X156: 8
B157: ID0155 | C157: 2012-05-26T00:45:11 | D157: 15500 | E157: 15500 | F157: USD | G157: 15500 | H157: 2 | I157: Proces auditor | J157: Accountant | K157: Mexico | L157: Mexico | M157: North America | N157: All the 8 hours baby, all the 8! | O157: 8 | P157: 8 | Q157: 4 | W157: 8 | X157: 8
B158: ID0156 | C158: 2012-05-26T00:45:17 | D158: 90000 USD | E158: 90000 | F158: USD | G158: 90000 | H158: 10 | I158: Senior Data Quality Analyst | J158: Analyst | K158: USA | L158: USA | M158: North America | N158: 2 to 3 hours per day | O158: 3 | P158: 2 | Q158: 7.5 | W158: 2 | X158: 3
B159: ID0157 | C159: 2012-05-26T00:45:46 | D159: 66500 | E159: 66500 | F159: USD | G159: 66500 | H159: 7 | I159: Sr Business Analyst | J159: Analyst | K159: USA | L159: USA | M159: North America | N159: All the 8 hours baby, all the 8! | O159: 8 | P159: 8 | Q159: 1.5 | W159: 8 | X159: 8
B160: ID0158 | C160: 2012-05-26T00:45:49 | D160: 100000 | E160: 100000 | F160: USD | G160: 100000 | H160: 11 | I160: COST ACCOUNTANT | J160: Accountant | K160: USA | L160: USA | M160: North America | N160: All the 8 hours baby, all the 8! | O160: 8 | P160: 8 | Q160: 6.5 | W160: 8 | X160: 8
B161: ID0159 | C161: 2012-05-26T00:45:51 | D161: Â£32250 | E161: 32250 | F161: GBP | G161: 50831.74927 | H161: 6 | I161: project Support | J161: Manager | K161: UK | L161: UK | M161: Europe | N161: 4 to 6 hours a day | O161: 6 | P161: 6 | Q161: 4 | W161: 4 | X161: 6
B162: ID0160 | C162: 2012-05-26T00:45:53 | D162: 420000 | E162: 420000 | F162: INR | G162: 7479.325009 | H162: 1 | I162: managerial | J162: Manager | K162: India | L162: India | M162: Asia | N162: 1 or 2 hours a day | O162: 2 | P162: 2 | Q162: 20 | W162: 1 | X162: 2
B163: ID0161 | C163: 2012-05-26T00:46:00 | D163: 75000 | E163: 75000 | F163: USD | G163: 75000 | H163: 8 | I163: Program Analyst | J163: Analyst | K163: USA | L163: USA | M163: North America | N163: 1 or 2 hours a day | O163: 2 | P163: 2 | Q163: 40 | W163: 1 | X163: 2
B164: ID0162 | C164: 2012-05-26T00:46:25 | D164: 58 | E164: 58000 | F164: USD | G164: 58000 | H164: 6 | I164: Team Lead - Computer Discounts | J164: Manager | K164: Canada | L164: Canada | M164: North America | N164: 1 or 2 hours a day | O164: 2 | P164: 2 | Q164: 40 | W164: 1 | X164: 2
B165: ID0163 | C165: 2012-05-26T00:46:29 | D165: 55000 | E165: 55000 | F165: USD | G165: 55000 | H165: 6 | I165: Change Architect | J165: Manager | K165: USA | L165: USA | M165: North America | N165: 2 to 3 hours per day | O165: 3 | P165: 2 | Q165: 6.5 | W165: 2 | X165: 3
B166: ID0164 | C166: 2012-05-26T00:47:42 | D166: 60000 | E166: 60000 | F166: USD | G166: 60000 | H166: 7 | I166: Telecom Technician | J166: Analyst | K166: USA | L166: USA | M166: North America | N166: 4 to 6 hours a day | O166: 6 | P166: 6 | Q166: 1.5 | W166: 4 | X166: 6
B167: ID0165 | C167: 2012-05-26T00:47:45 | D167: Rs. 1300000 | E167: 1300000 | F167: INR | G167: 23150.29169 | H167: 3 | I167: Manager | J167: Manager | K167: India | L167: India | M167: Asia | N167: 4 to 6 hours a day | O167: 6 | P167: 6 | Q167: 30 | W167: 4 | X167: 6
B168: ID0166 | C168: 2012-05-26T00:47:50 | D168: 107000 | E168: 107000 | F168: CAD | G168: 105219.683 | H168: 11 | I168: Manager, Asset Optimization | J168: Manager | K168: Canada | L168: Canada | M168: North America | N168: 2 to 3 hours per day | O168: 3 | P168: 2 | Q168: 8 | W168: 2 | X168: 3
B169: ID0167 | C169: 2012-05-26T00:47:57 | D169: 145000 | E169: 145000 | F169: USD | G169: 145000 | H169: 11 | I169: Financialcontroller | J169: Controller | K169: Switzerland | L169: Switzerland | M169: Europe | N169: All the 8 hours baby, all the 8! | O169: 8 | P169: 8 | Q169: 4 | W169: 8 | X169: 8
B170: ID0168 | C170: 2012-05-26T00:48:04 | D170: 22880 | E170: 22880 | F170: USD | G170: 22880 | H170: 3 | I170: Accounting | J170: Accountant | K170: USA | L170: USA | M170: North America | N170: 4 to 6 hours a day | O170: 6 | P170: 6 | Q170: 6 | W170: 4 | X170: 6
B171: ID0169 | C171: 2012-05-26T00:48:07 | D171: 80000 | E171: 80000 | F171: USD | G171: 80000 | H171: 9 | I171: Consultant, HR Services & Governance | J171: Consultant | K171: USA | L171: USA | M171: North America | N171: 4 to 6 hours a day | O171: 6 | P171: 6 | Q171: 6 | W171: 4 | X171: 6
B172: ID0170 | C172: 2012-05-26T00:48:11 | D172: Rs 5 lakh | E172: 500000 | F172: INR | G172: 8903.958344 | H172: 1 | I172: QA Executive | J172: Analyst | K172: India | L172: India | M172: Asia | N172: 2 to 3 hours per day | O172: 3 | P172: 2 | Q172: 5.5 | W172: 2 | X172: 3
B173: ID0171 | C173: 2012-05-26T00:48:46 | D173: 90000 | E173: 90000 | F173: CAD | G173: 88502.53707 | H173: 9 | I173: Senior Actuarial Analyst | J173: Analyst | K173: Canada | L173: Canada | M173: North America | N173: 4 to 6 hours a day | O173: 6 | P173: 6 | Q173: 3.5 | W173: 4 | X173: 6
B174: ID0172 | C174: 2012-05-26T00:48:48 | D174: 180000 | E174: 180000 | F174: INR | G174: 3205.425004 | H174: 1 | I174: Sr. Associate | J174: Analyst | K174: India | L174: India | M174: Asia | N174: 4 to 6 hours a day | O174: 6 | P174: 6 | Q174: 7.5 | W174: 4 | X174: 6
B175: ID0173 | C175: 2012-05-26T00:48:48 | D175: 46584 | E175: 46584 | F175: USD | G175: 46584 | H175: 5 | I175: Budget Analyst | J175: Analyst | K175: USA | L175: USA | M175: North America | N175: 4 to 6 hours a day | O175: 6 | P175: 6 | Q175: 6.5 | W175: 4 | X175: 6
B176: ID0174 | C176: 2012-05-26T00:48:48 | D176: 67000 | E176: 67000 | F176: USD | G176: 67000 | H176: 7 | I176: B.I. Data Analyst II | J176: Analyst | K176: USA | L176: USA | M176: North America | N176: 4 to 6 hours a day | O176: 6 | P176: 6 | Q176: 3 | W176: 4 | X176: 6
B177: ID0175 | C177: 2012-05-26T00:48:57 | D177: Rd. 11 lakhs | E177: 1100000 | F177: INR | G177: 19588.70836 | H177: 2 | I177: Asst manager investor relations and business analytics | J177: Manager | K177: India | L177: India | M177: Asia | N177: 4 to 6 hours a day | O177: 6 | P177: 6 | Q177: 9 | W177: 4 | X177: 6
B178: ID0176 | C178: 2012-05-26T00:49:18 | D178: 92000 | E178: 92000 | F178: USD | G178: 92000 | H178: 10 | I178: Industrial Engineer (Fed) | J178: Engineer | K178: USA | L178: USA | M178: North America | N178: 4 to 6 hours a day | O178: 6 | P178: 6 | Q178: 9.5 | W178: 4 | X178: 6
B179: ID0177 | C179: 2012-05-26T00:49:21 | D179: 75000 | E179: 75000 | F179: USD | G179: 75000 | H179: 8 | I179: Informatics specialist | J179: Specialist | K179: USA | L179: USA | M179: North America | N179: All the 8 hours baby, all the 8! | O179: 8 | P179: 8 | Q179: 9 | W179: 8 | X179: 8
B180: ID0178 | C180: 2012-05-26T00:49:35 | D180: 180000 | E180: 180000 | F180: INR | G180: 3205.425004 | H180: 1 | I180: Sr. Associate | J180: Analyst | K180: India | L180: India | M180: Asia | N180: 4 to 6 hours a day | O180: 6 | P180: 6 | Q180: 5 | W180: 4 | X180: 6
B181: ID0179 | C181: 2012-05-26T00:49:48 | D181: 18500 | E181: 18500 | F181: GBP | G181: 29159.29803 | H181: 3 | I181: Trainee Management Accountant | J181: Manager | K181: UK | L181: UK | M181: Europe | N181: All the 8 hours baby, all the 8! | O181: 8 | P181: 8 | Q181: 8 | W181: 8 | X181: 8
B182: ID0180 | C182: 2012-05-26T00:49:50 | D182: 40000 | E182: 40000 | F182: USD | G182: 40000 | H182: 5 | I182: Senior analyst | J182: Analyst | K182: USA | L182: USA | M182: North America | N182: All the 8 hours baby, all the 8! | O182: 8 | P182: 8 | Q182: 6 | W182: 8 | X182: 8
B183: ID0181 | C183: 2012-05-26T00:49:59 | D183: 111680 | E183: 111680 | F183: USD | G183: 111680 | H183: 11 | I183: Director of Analytics | J183: Analyst | K183: USA | L183: USA | M183: North America | N183: 2 to 3 hours per day | O183: 3 | P183: 2 | Q183: 4 | W183: 2 | X183: 3
B184: ID0182 | C184: 2012-05-26T00:50:11 | D184: 41.406 | E184: 41406 | F184: USD | G184: 41406 | H184: 5 | I184: Executive Assistant | J184: Analyst | K184: Canada | L184: Canada | M184: North America | N184: 1 or 2 hours a day | O184: 2 | P184: 2 | Q184: 6 | W184: 1 | X184: 2
B185: ID0183 | C185: 2012-05-26T00:50:15 | D185: 70000 | E185: 70000 | F185: USD | G185: 70000 | H185: 8 | I185: Project Speciast | J185: Manager | K185: USA | L185: USA | M185: North America | N185: 4 to 6 hours a day | O185: 6 | P185: 6 | Q185: 2 | W185: 4 | X185: 6
B186: ID0184 | C186: 2012-05-26T00:50:31 | D186: 40700 | E186: 40700 | F186: USD | G186: 40700 | H186: 5 | I186: Sales Coordinator & Analytical Support | J186: Analyst | K186: USA | L186: USA | M186: North America | N186: 1 or 2 hours a day | O186: 2 | P186: 2 | Q186: 6.5 | W186: 1 | X186: 2
B187: ID0185 | C187: 2012-05-26T00:50:32 | D187: 40000 | E187: 40000 | F187: USD | G187: 40000 | H187: 5 | I187: analyst | J187: Analyst | K187: USA | L187: USA | M187: North America | N187: 4 to 6 hours a day | O187: 6 | P187: 6 | Q187: 8.5 | W187: 4 | X187: 6
B188: ID0186 | C188: 2012-05-26T00:50:38 | D188: 60000 | E188: 60000 | F188: USD | G188: 60000 | H188: 7 | I188: Senior Staff Accountant | J188: Accountant | K188: USA | L188: USA | M188: North America | N188: 4 to 6 hours a day | O188: 6 | P188: 6 | Q188: 5 | W188: 4 | X188: 6
B189: ID0187 | C189: 2012-05-26T00:50:41 | D189: 92000 | E189: 92000 | F189: CAD | G189: 90469.26012 | H189: 10 | I189: Consultant - Retail Mkts | J189: Consultant | K189: Canada | L189: Canada | M189: North America | N189: All the 8 hours baby, all the 8! | O189: 8 | P189: 8 | Q189: 20 | W189: 8 | X189: 8
B190: ID0188 | C190: 2012-05-26T00:50:43 | D190: 13636.36 | E190: 13636 | F190: USD | G190: 13636 | H190: 2 | I190: Process Manager | J190: Manager | K190: India | L190: India | M190: Asia | N190: All the 8 hours baby, all the 8! | O190: 8 | P190: 8 | Q190: 9 | W190: 8 | X190: 8
B191: ID0189 | C191: 2012-05-26T00:50:43 | D191: 80000 | E191: 80000 | F191: USD | G191: 80000 | H191: 9 | I191: Project Manager (Process Owner) | J191: Manager | K191: USA | L191: USA | M191: North America | N191: 2 to 3 hours per day | O191: 3 | P191: 2 | Q191: 5.5 | W191: 2 | X191: 3
B192: ID0190 | C192: 2012-05-26T00:51:00 | D192: 60000 CAD$ | E192: 60000 | F192: CAD | G192: 59001.69138 | H192: 6 | I192: Demographer | J192: Analyst | K192: Canada | L192: Canada | M192: North America | N192: 2 to 3 hours per day | O192: 3 | P192: 2 | Q192: 7 | W192: 2 | X192: 3
B193: ID0192 | C193: 2012-05-26T00:51:43 | D193: 28000 | E193: 28000 | F193: USD | G193: 28000 | H193: 3 | I193: Administrative Assistant | J193: Analyst | K193: USA | L193: USA | M193: North America | N193: 4 to 6 hours a day | O193: 6 | P193: 6 | Q193: 2 | W193: 4 | X193: 6
B194: ID0193 | C194: 2012-05-26T00:51:55 | D194: 60000 | E194: 60000 | F194: USD | G194: 60000 | H194: 7 | I194: Accounting/Financial Analyst | J194: Analyst | K194: USA | L194: USA | M194: North America | N194: 4 to 6 hours a day | O194: 6 | P194: 6 | Q194: 7 | W194: 4 | X194: 6
B195: ID0194 | C195: 2012-05-26T00:51:59 | D195: 96000 | E195: 96000 | F195: USD | G195: 96000 | H195: 10 | I195: Business Process Specialist | J195: Specialist | K195: USA | L195: USA | M195: North America | N195: 2 to 3 hours per day | O195: 3 | P195: 2 | Q195: 6.5 | W195: 2 | X195: 3
B196: ID0195 | C196: 2012-05-26T00:52:21 | D196: 67000 | E196: 67000 | F196: USD | G196: 67000 | H196: 7 | I196: Financial Analyst | J196: Analyst | K196: USA | L196: USA | M196: North America | N196: 4 to 6 hours a day | O196: 6 | P196: 6 | Q196: 9 | W196: 4 | X196: 6
B197: ID0196 | C197: 2012-05-26T00:52:25 | D197: 70000 | E197: 70000 | F197: USD | G197: 70000 | H197: 8 | I197: Sr Financial Analyst | J197: Analyst | K197: USA | L197: USA | M197: North America | N197: 4 to 6 hours a day | O197: 6 | P197: 6 | Q197: 2 | W197: 4 | X197: 6
B198: ID0197 | C198: 2012-05-26T00:52:30 | D198: 233000 | E198: 233000 | F198: INR | G198: 4149.244588 | H198: 1 | I198: Asst. Manager (MIS) | J198: Manager | K198: India | L198: India | M198: Asia | N198: All the 8 hours baby, all the 8! | O198: 8 | P198: 8 | Q198: 9.5 | W198: 8 | X198: 8
B199: ID0198 | C199: 2012-05-26T00:52:37 | D199: US$ 99000 | E199: 99000 | F199: USD | G199: 99000 | H199: 10 | I199: Business Controller | J199: Controller | K199: USA | L199: USA | M199: North America | N199: 4 to 6 hours a day | O199: 6 | P199: 6 | Q199: 3 | W199: 4 | X199: 6
B200: ID0200 | C200: 2012-05-26T00:53:00 | D200: 90000 | E200: 90000 | F200: USD | G200: 90000 | H200: 10 | I200: Project Manager | J200: Manager | K200: USA | L200: USA | M200: North America | N200: 2 to 3 hours per day | O200: 3 | P200: 2 | Q200: 2 | W200: 2 | X200: 3
B201: ID0201 | C201: 2012-05-26T00:53:02 | D201: Rs. 275000 | E201: 275000 | F201: INR | G201: 4897.177089 | H201: 1 | I201: low level monitoring | J201: Analyst | K201: India | L201: India | M201: Asia | N201: 2 to 3 hours per day | O201: 3 | P201: 2 | Q201: 10 | W201: 2 | X201: 3
B202: ID0202 | C202: 2012-05-26T00:53:18 | D202: INR 16000 | E202: 192000 | F202: INR | G202: 3419.120004 | H202: 1 | I202: Administrative | J202: Analyst | K202: India | L202: India | M202: Asia | N202: All the 8 hours baby, all the 8! | O202: 8 | P202: 8 | Q202: 4 | W202: 8 | X202: 8
... 1691 more rows

Sheet Show
G1: 6
B3: We love Charts
A35: Average of Salary and WorkHours and Experience for Jobtype | I35: Most Frequent Jobtitels
A58: Total of Salary for Continent and Jobtype (THD)
B97: Min Average Max of Total of Salary for Jobtype
A117: Salary All Over World

Sheet Contest1
C1: 1
B4: Country | C4: CXO or Top Mgmt. | D4: Controller | E4: Consultant | F4: Specialist | G4: Accountant | H4: Engineer | I4: Manager | J4: Analyst | K4: Misc. | L4: Reporting | M4: Total | O4: Jobtype | P4: Countperson | Q4: TotalSalary (USD) | R4: Ø Salary (USD) | S4: TotalWorkHours | T4: Ø Hours | U4: TotalExperience (Years) | V4: Ø Experience (Years) | W4: Offset
B5: Egypt | C5: =IF(SUMIFS(pmtSalary,pmtCountry,$B5,pmtJobtype,C$4)=0,"",SUMIFS(pmtSalary,pmtCountry,$B5,pmtJobtype,C$4)) ->  | J5: 19831.43282 | M5: =SUM(C5:L5) -> 19831.43282 | O5: CXO or Top Mgmt. | P5: =COUNTIFS(pmtJobtype,$O5) -> 75 | Q5: =SUMIF(pmtJobtype,$O5,pmtSalary) -> 7294940.671 | R5: =Q5/P5 -> 97265.87562 | S5: =SUMIF(pmtJobtype,$O5,pmtHours) -> 366 | T5: =S5/P5 -> 4.88 | U5: =SUMIF(pmtJobtype,$O5,pmtYER) -> 808 | V5: =U5/P5 -> 10.77333333 | W5: 9.5
B6: Ethiopia | L6: 2953.846154 | M6: =SUM(C6:L6) -> 2953.846154 | O6: Controller | P6: 67 | Q6: 4361963.245 | R6: =Q6/P6 -> 65103.92903 | S6: 377 | T6: =S6/P6 -> 5.626865672 | U6: 791.5 | V6: =U6/P6 -> 11.81343284 | W6: 8.5
B7: Ghana | I7: 18000 | M7: 18000 | O7: Consultant | P7: 90 | Q7: 5665565.99 | R7: 62950.73322 | S7: 464 | T7: 5.155555556 | U7: 764.5 | V7: 8.494444444 | W7: 7.5
B8: Kenya | I8: 51497.00599 | M8: 51497.00599 | O8: Specialist | P8: 51 | Q8: 3050461.433 | R8: 59812.96927 | S8: 278 | T8: 5.450980392 | U8: 459.5 | V8: 9.009803922 | W8: 6.5
B9: Lesotho | G9: 177600 | M9: 177600 | O9: Accountant | P9: 135 | Q9: 7316519.479 | R9: 54196.44058 | S9: 770 | T9: 5.703703704 | U9: 1221 | V9: 9.044444444 | W9: 5.5
B10: Libya | I10: 24864 | M10: 24864 | O10: Engineer | P10: 74 | Q10: 3826921.205 | R10: 51715.15142 | S10: 326 | T10: 4.405405405 | U10: 563.5 | V10: 7.614864865 | W10: 4.5
B11: Mauritius | H11: 9376.251388 | M11: 9376.251388 | O11: Manager | P11: 558 | Q11: 25940438.32 | R11: 46488.24071 | S11: 2798 | T11: 5.014336918 | U11: 5101.6 | V11: 9.14265233 | W11: 3.5
B12: Morocco | D12: 13745.70447 | M12: 13745.70447 | O12: Analyst | P12: 743 | Q12: 34397756.68 | R12: 46295.76942 | S12: 4219 | T12: 5.67833109 | U12: 5559.6 | V12: 7.482637954 | W12: 2.5
B13: Mozambique | H13: 24000 | M13: 24000 | O13: Misc. | P13: 7 | Q13: 321666.3395 | R13: 45952.33422 | S13: 33 | T13: 4.714285714 | U13: 41.5 | V13: 5.928571429 | W13: 1.5
B14: Nigeria | I14: 21497.68875 | J14: 18987 | M14: 40484.68875 | O14: Reporting | P14: 83 | Q14: 1624655.158 | R14: 19574.15853 | S14: 528 | T14: 6.361445783 | U14: 491.4 | V14: 5.920481928 | W14: 0.5
B15: Somalia | C15: =IF(SUMIFS(pmtSalary,pmtCountry,$B15,pmtJobtype,C$4)=0,"",SUMIFS(pmtSalary,pmtCountry,$B15,pmtJobtype,C$4)) ->  | I15: 78000 | M15: 78000 | O15: Total | P15: =SUM(P5:P14) -> 1883 | Q15: =SUM(Q5:Q14) -> 93800888.52 | R15: =SUM(R5:R14) -> 549355.602 | S15: 10159 | T15: =SUM(T5:T14) -> 52.99091023 | U15: =SUM(U5:U14) -> 15802.1 | V15: =SUM(V5:V14) -> 85.22466748
B16: South Africa | C16: 139630.6136 | D16: 9509.898829 | E16: 82000 | F16: 38666 | G16: 73915.32289 | I16: 320480.5693 | J16: 220354.4703 | L16: 57000 | M16: 941556.8749
B17: Tunisia | J17: 11000 | M17: 11000 | O17: Average of Salary and WorkHours and Experience for Jobtype
B18: Uganda | J18: 100000 | M18: 100000
B19: Zambia | G19: 26000 | M19: 26000
B20: Zimbabwe | J20: 36400 | M20: 36400
B21: Bangladesh | J21: 20598.01729 | M21: 20598.01729
B22: Bhutan | J22: 4800 | M22: 4800
B23: Cambodia | E23: 3000 | M23: 3000
B24: China | G24: 15092.18021 | J24: 19000 | M24: 34092.18021
B25: Dubai | C25: =IF(SUMIFS(pmtSalary,pmtCountry,$B25,pmtJobtype,C$4)=0,"",SUMIFS(pmtSalary,pmtCountry,$B25,pmtJobtype,C$4)) ->  | G25: 69868.48682 | J25: 58799.34994 | M25: 128667.8368
B26: Hong Kong | J26: 20000 | M26: 20000
B27: India | C27: 372571.8336 | D27: 73277.24006 | E27: 278567.9194 | F27: 153450.4334 | G27: 312239.5747 | H27: 272752.1626 | I27: 3363147.494 | J27: 2129031.374 | K27: 70205.33953 | L27: 618885.0837 | M27: 7644128.455
B28: Indonesia | D28: 30000 | I28: 168000 | J28: 32982.69438 | M28: 230982.6944
B29: Iran | D29: 12000 | G29: 30000 | J29: 12000 | M29: 54000
B30: Israel | I30: 248000 | L30: 86200 | M30: 334200
B31: Japan | J31: 202694.3221 | M31: 202694.3221
B32: Kuwait | D32: 15600 | I32: 42000 | J32: 86000 | M32: 143600
B33: Malaysia | C33: 35000 | H33: 11404.82044 | I33: 98568.11212 | J33: 42000 | M33: 186972.9326
B34: Mongolia | J34: 7261.72466 | M34: 7261.72466
B35: Myanmar | C35: =IF(SUMIFS(pmtSalary,pmtCountry,$B35,pmtJobtype,C$4)=0,"",SUMIFS(pmtSalary,pmtCountry,$B35,pmtJobtype,C$4)) ->  | I35: 35400 | M35: 35400
B36: Oman | C36: 100800 | M36: 100800
B37: Pakistan | D37: 48000 | E37: 51596.63066 | G37: 18533.41485 | I37: 134970.4435 | J37: 89322 | L37: 1910.535969 | M37: 344333.025
B38: Philippines | F38: 16519 | G38: 19068 | I38: 37833.2634 | J38: 89982.44878 | L38: 28869.50383 | M38: 192272.216
B39: Qatar | D39: 48000 | G39: 49200 | I39: 62000 | M39: 159200
B40: Russia | D40: 24000 | E40: 36000 | F40: 135147 | I40: 101000 | J40: 207000 | M40: 503147
B41: Saudi Arabia | D41: 56960 | G41: 59500 | H41: 57600 | I41: 202093.3333 | J41: 18000 | M41: 394153.3333
B42: Singapore | E42: 255600 | G42: 60000 | H42: 95000 | I42: 93211.8027 | J42: 174200 | M42: 678011.8027
B43: Sri Lanka | D43: 13800 | G43: 3000 | I43: 97805.77396 | M43: 114605.774
B44: Thailand | H44: 138000 | I44: 8000 | M44: 146000
B45: Turkey | C45: =IF(SUMIFS(pmtSalary,pmtCountry,$B45,pmtJobtype,C$4)=0,"",SUMIFS(pmtSalary,pmtCountry,$B45,pmtJobtype,C$4)) ->  | G45: 36000 | J45: 60000 | M45: 96000
B46: United Arab Emirates | D46: 140500 | G46: 108000 | H46: 36000 | I46: 406072.3055 | J46: 126710.7981 | M46: 817283.1036
B47: Vietnam | G47: 10000 | I47: 10000 | M47: 20000
B48: Australia | C48: 285574.7038 | D48: 248857.9562 | E48: 723115.9464 | F48: 189703.1961 | G48: 556870.6724 | H48: 327390.9997 | I48: 1816989.564 | J48: 3287964.979 | L48: 85000 | M48: 7521468.018
B49: New Zealand | E49: 72000 | G49: 199397.0234 | H49: 39879.40468 | I49: 419095.5351 | J49: 323941.3613 | M49: 1054313.325
B50: Costa Rica | J50: 28109.62755 | M50: 28109.62755
B51: Dominican Republic | H51: 6629 | J51: 15404.36457 | M51: 22033.36457
B52: Mexico | C52: 145000 | G52: 15500 | I52: 63000 | J52: 97884.98289 | M52: 321384.9829
B53: Panama | I53: 63519.97195 | J53: 26000 | M53: 89519.97195
B54: USA | C54: 4899000 | D54: 1492825 | E54: 1771000 | F54: 1745000 | G54: 2718962 | H54: 1873460 | I54: 11249348 | J54: 18587370 | K54: 251461 | L54: 291000 | M54: 44879426
B55: Albania | C55: =IF(SUMIFS(pmtSalary,pmtCountry,$B55,pmtJobtype,C$4)=0,"",SUMIFS(pmtSalary,pmtCountry,$B55,pmtJobtype,C$4)) -> 20571 | M55: 20571
B56: Armenia | L56: 6000 | M56: 6000
B57: Austria | I57: 50815.97756 | M57: 50815.97756
B58: Azerbaijan | E58: 36000 | M58: 36000
B59: Belgium | I59: 41160.94182 | J59: 125667.9125 | M59: 166828.8543
B60: Bulgaria | J60: 14400 | M60: 14400
B61: Croatia | D61: 15000 | I61: 115468.7596 | M61: 130468.7596
B62: Czech Republic | D62: 36000 | M62: 36000
B63: Denmark | C63: 76906.90675 | D63: 82888.55506 | E63: 20000 | H63: 102542.5423 | I63: 106815.1483 | J63: 106000 | M63: 495153.1524
B64: Estonia | J64: 12000 | M64: 12000
B65: Finland | C65: =IF(SUMIFS(pmtSalary,pmtCountry,$B65,pmtJobtype,C$4)=0,"",SUMIFS(pmtSalary,pmtCountry,$B65,pmtJobtype,C$4)) ->  | E65: 60000 | I65: 76223.96634 | J65: 89944.28028 | M65: 226168.2466
B66: France | E66: 134916.4204 | I66: 164876.7484 | J66: 41923.18149 | M66: 341716.3503
B67: Germany | D67: 182302.3195 | E67: 271911.913 | F67: 88927.96073 | I67: 512506.9935 | J67: 298182.3125 | M67: 1353831.499
B68: Greece | I68: 90198.36017 | M68: 90198.36017
B69: Hungary | D69: 35063.02452 | H69: 14000 | I69: 63000 | J69: 11518.71171 | M69: 123581.7362
B70: Iceland | J70: 41731 | M70: =SUM(C70:L70) -> 41731
B71: Ireland | E71: 88927.96073 | F71: 65616.13102 | J71: 153718.3321 | M71: 308262.4239
B72: Italy | C72: 69871.96914 | D72: 30489.58654 | E72: 19055.99158 | G72: 63519.97195 | J72: 100615.6356 | M72: 283553.1548
B73: Lithuania | G73: 15000 | M73: 15000
B74: Montenegro | I74: 13500 | M74: 13500
B75: Netherlands | C75: =IF(SUMIFS(pmtSalary,pmtCountry,$B75,pmtJobtype,C$4)=0,"",SUMIFS(pmtSalary,pmtCountry,$B75,pmtJobtype,C$4)) ->  | D75: 142284.7372 | E75: 38111.98317 | G75: 62564.63157 | H75: 129580.7428 | I75: 307436.6642 | J75: 745089.271 | L75: 254079.8878 | M75: 1679147.918
B76: Norway | D76: 210000 | G76: 110000 | I76: 305412.768 | J76: 67700.45258 | M76: 693113.2206
B77: Poland | E77: 96000 | I77: 54043.1885 | J77: 55218.88379 | M77: 205262.0723
B78: Portugal | C78: 44000 | D78: 19818.23125 | F78: 15244.79327 | G78: 110270.6713 | H78: 63519.97195 | I78: 49545.57812 | J78: 26678.38822 | M78: 329077.6341
B79: Republic of Georgia | F79: 5250 | M79: 5250
B80: Romania | F80: 18499.86054 | G80: 8500 | I80: 34200 | J80: 7500 | L80: 30000 | M80: 98699.86054
B81: Slovakia | J81: 13000 | M81: 13000
B82: Slovenia | J82: 19055.99158 | M82: 19055.99158
B83: Spain | C83: 127039.9439 | D83: 35571.18429 | E83: 12000 | H83: 52086.377 | I83: 112430.3504 | J83: 123228.7456 | M83: 462356.6011
B84: Sweden | C84: 100000 | E84: 68954.52018 | M84: 168954.5202
B85: Switzerland | C85: =IF(SUMIFS(pmtSalary,pmtCountry,$B85,pmtJobtype,C$4)=0,"",SUMIFS(pmtSalary,pmtCountry,$B85,pmtJobtype,C$4)) ->  | D85: 145000 | I85: 255102.2286 | J85: 150000 | M85: 550102.2286
B86: UK | C86: 685637.5483 | D86: 655690.1612 | E86: 1006831.355 | F86: 468124.9468 | G86: 948945.1805 | H86: 406863.6259 | I86: 2721995.253 | J86: 3333228.066 | L86: 127756.3008 | M86: 10355072.44
B87: Ukraine | F87: 7600 | I87: 12000 | J87: 12000 | L87: 15000 | M87: 46600
B88: Canada | C88: 98336.1523 | D88: 178971.7972 | E88: 302875.3491 | F88: 102712.1111 | G88: 1360972.348 | H88: 68835.30661 | I88: 1125351.611 | J88: 1970317.882 | M88: 5208372.557
B89: Arabian Gulf | J89: 21000 | M89: 21000 | N89: =SUM(M89:M96) -> 984582.716
B90: Asia | I90: 12000 | M90: 12000
B91: Baltic | J91: 8400 | M91: =SUM(C91:L91) -> 8400
B92: CEE | I92: 174335.9495 | M92: 174335.9495
B93: Central America | C93: 95000 | M93: 95000
B94: Europe | D94: 343007.8485 | I94: 126531.7841 | J94: 149907.1338 | M94: =SUM(C94:L94) -> 619446.7665
B95: Latin America | C95: =IF(SUMIFS(pmtSalary,pmtCountry,$B95,pmtJobtype,C$4)=0,"",SUMIFS(pmtSalary,pmtCountry,$B95,pmtJobtype,C$4)) ->  | I95: 4400 | M95: 4400
B96: Self-employed | J96: 50000 | M96: 50000
B97: Argentina | I97: 24000 | M97: 24000
B98: Aruba | E98: 5000 | M98: 5000
B99: Bermuda | G99: 78000 | M99: 78000
B100: Bolivia | J100: 9600 | M100: 9600
B101: Brazil | D101: 15600 | E101: 232100 | H101: 98000 | I101: 87691.18301 | J101: 420049.5485 | M101: 853440.7315
B102: Colombia | D102: 7200 | I102: 24000 | J102: 30610 | M102: 61810
B103: Guyana | I103: 6000 | M103: 6000
B104: Paraguay | L104: 20000 | M104: 20000
B105: Peru | J105: 15840 | M105: 15840
B106: Uruguay | I106: 35000 | M106: 35000
B107: Total | C107: =SUM(C$5:C$106) -> 7294940.671 | D107: =SUM(D$5:D$106) -> 4361963.245 | E107: 5665565.99 | F107: 3050461.433 | G107: 7316519.479 | H107: 3826921.205 | I107: 25940438.32 | J107: 34397756.68 | K107: 321666.3395 | L107: 1624655.158 | M107: 93800888.52
B108: Min | C108: =MIN(C$5:C$106) -> 20571 | D108: 7200 | E108: 3000 | F108: 5250 | G108: 3000 | H108: 6629 | I108: 4400 | J108: 4800 | K108: 70205.33953 | L108: 1910.535969 | M108: 2953.846154
B109: Average | C109: =AVERAGE(C$5:C$106) -> 455933.792 | D109: =AVERAGE(D$5:D$106) -> 145398.7748 | E109: 236065.2496 | F109: 217890.1024 | G109: 252293.7751 | H109: 191346.0603 | I109: 463222.1128 | J109: 545996.1377 | K109: 160833.1698 | L109: 116046.797 | M109: 919616.5541
B110: Max | C110: =MAX(C$5:C$106) -> 4899000 | D110: =MAX(D$5:D$106) -> 1492825 | E110: 1771000 | F110: 1745000 | G110: 2718962 | H110: 1873460 | I110: 11249348 | J110: 18587370 | K110: 251461 | L110: 618885.0837 | M110: 44879426
B111: Quartile 1 | C111: =QUARTILE(C$5:C$106,1) -> 75148.17235 | D111: =QUARTILE(D$5:D$106,1) -> 16654.55781 | E111: 36000 | F111: 17014.21513 | G111: 19068 | H111: 33000 | I111: 35300 | J111: 18993.5 | K111: 115519.2546 | L111: 16250
B112: Median | C112: =MEDIAN(C$5:C$106) -> 100400 | D112: =MEDIAN(D$5:D$106) -> 42000 | E112: 77000 | F112: 77272.04588 | G112: 62564.63157 | H112: 66177.63928 | I112: 82845.59151 | J112: 50000 | K112: 160833.1698 | L112: 43500
B113: Quartile 3 | C113: =QUARTILE(C$5:C$106,3) -> 180143.6759 | D113: =QUARTILE(D$5:D$106,3) -> 144321.1843 | E113: 259677.9783 | F113: 148874.5751 | G113: 110270.6713 | H113: 131685.5571 | I113: 181275.2955 | J113: 138308.966 | K113: 206147.0849 | L113: 117367.2256
B114: Bottom | C114: =C111 -> 75148.17235 | D114: =D111 -> 16654.55781 | E114: 36000 | F114: 17014.21513 | G114: 19068 | H114: 33000 | I114: 35300 | J114: 18993.5 | K114: 115519.2546 | L114: 16250
B115: 2Q Box | C115: =(C112-C111) -> 25251.82765 | D115: =(D112-D111) -> 25345.44219 | E115: 41000 | F115: 60257.83074 | G115: 43496.63157 | H115: 33177.63928 | I115: 47545.59151 | J115: 31006.5 | K115: 45313.91512 | L115: 27250
B116: 3Q Box | C116: =C113-C112 -> 79743.67595 | D116: =D113-D112 -> 102321.1843 | E116: 182677.9783 | F116: 71602.52921 | G116: 47706.03973 | H116: 65507.9178 | I116: 98429.70396 | J116: 88308.96596 | K116: 45313.91512 | L116: 73867.22558
B117: Whisker- | C117: =C111-C108 -> 54577.17235 | D117: =D111-D108 -> 9454.557812 | E117: 33000 | F117: 11764.21513 | G117: 16068 | H117: 26371 | I117: 30900 | J117: 14193.5 | K117: 45313.91512 | L117: 14339.46403
B118: Whisker+ | C118: =C110-C113 -> 4718856.324 | D118: =D110-D113 -> 1348503.816 | E118: 1511322.022 | F118: 1596125.425 | G118: 2608691.329 | H118: 1741774.443 | I118: 11068072.7 | J118: 18449061.03 | K118: 45313.91512 | L118: 501517.8581
B119: Offset | C119: 0.5 | D119: 1.5 | E119: 2.5 | F119: 3.5 | G119: 4.5 | H119: 5.5 | I119: 6.5 | J119: 7.5 | K119: 8.5 | L119: 9.5
B121: ST. Anzahl
B122: Gem. ST

Sheet Contest2
C1: 1000
B2: Jobtype | C2: Africa | D2: Asia | E2: Oceania | F2: Central America | G2: Europe | H2: North America | I2: South America | J2: Others | K2: Total
B3: Analyst | C3: =SUMIFS(pmtSalary,pmtJobtype,$B3,pmtContinent,C$2)/$C$1 -> 406.5729031 | D3: 3400.382729 | E3: 3611.906341 | F3: 69.51399212 | G3: 5698.308299 | H3: 20655.57286 | I3: 476.0995485 | J3: 79.4 | K3: =SUM(C3:J3) -> 34397.75668
B4: Manager | C4: 514.3392641 | D4: 5108.102529 | E4: 2236.085099 | F4: 63.51997195 | G4: 5213.26471 | H4: 12437.69961 | I4: 176.691183 | J4: 190.7359495 | K4: =SUM(C4:J4) -> 25940.43832
B5: Accountant | C5: 277.5153229 | D5: 790.5016566 | E5: 756.2676958 | F5: 0 | G5: 1318.800455 | H5: 4095.434348 | I5: 78 | J5: 0 | K5: 7316.519479
B6: CXO or Top Mgmt. | C6: 139.6306136 | D6: 508.3718336 | E6: 285.5747038 | F6: 0 | G6: 1124.027368 | H6: 5142.336152 | I6: 0 | J6: 95 | K6: 7294.940671
B7: Consultant | C7: 82 | D7: 624.7645501 | E7: 795.1159464 | F7: 0 | G7: 1852.710144 | H7: 2073.875349 | I7: 237.1 | J7: 0 | K7: 5665.56599
B8: Controller | C8: 23.2556033 | D8: 462.1372401 | E8: 248.8579562 | F8: 0 | G8: 1933.115648 | H8: 1671.796797 | I8: 22.8 | J8: 0 | K8: 4361.963245
B9: Engineer | C9: 33.37625139 | D9: 610.7569831 | E9: 367.2704044 | F9: 6.629 | G9: 768.59326 | H9: 1942.295307 | I9: 98 | J9: 0 | K9: 3826.921205
B10: Specialist | C10: 38.666 | D10: 305.1164334 | E10: 189.7031961 | F10: 0 | G10: 669.2636924 | H10: 1847.712111 | I10: 0 | J10: 0 | K10: 3050.461433
B11: Reporting | C11: 59.95384615 | D11: 735.8651235 | E11: 85 | F11: 0 | G11: 432.8361886 | H11: 291 | I11: 20 | J11: 0 | K11: 1624.655158
B12: Misc. | C12: 0 | D12: 70.20533953 | E12: 0 | F12: 0 | G12: 0 | H12: 251.461 | I12: 0 | J12: 0 | K12: 321.6663395
B13: Total | C13: =SUM(C3:C12) -> 1575.309804 | D13: =SUM(D3:D12) -> 12616.20442 | E13: 8575.781343 | F13: 139.6629641 | G13: 19010.91977 | H13: 50409.18354 | I13: 1108.690731 | J13: 365.1359495 | K13: 93800.88852
B15: Total of Salary for Continent and Jobtype (THD)

Sheet Contest31
A1: DBClick | B1: Country | C1: Data | D1: Fullcolor
A2: 1 | B2: Egypt | C2: =SUMIF(pmtCountry,$B2,pmtSalary) -> 19831.43282 | D2: =VLOOKUP($C2,$G$28:$M$41,7,TRUE) -> 55808
A3: 2 | B3: Ethiopia | C3: =SUMIF(pmtCountry,$B3,pmtSalary) -> 2953.846154 | D3: =VLOOKUP($C3,$G$28:$M$41,7,TRUE) -> 56832
A4: 3 | B4: Ghana | C4: =SUMIF(pmtCountry,$B4,pmtSalary) -> 18000 | D4: 55808
A5: 4 | B5: Kenya | C5: =SUMIF(pmtCountry,$B5,pmtSalary) -> 51497.00599 | D5: 32256
A6: 5 | B6: Lesotho | C6: =SUMIF(pmtCountry,$B6,pmtSalary) -> 177600 | D6: 8587173
A7: 6 | B7: Libya | C7: =SUMIF(pmtCountry,$B7,pmtSalary) -> 24864 | D7: 53248
A8: 7 | B8: Mauritius | C8: =SUMIF(pmtCountry,$B8,pmtSalary) -> 9376.251388 | D8: 56832
A9: 8 | B9: Morocco | C9: =SUMIF(pmtCountry,$B9,pmtSalary) -> 13745.70447 | D9: 55808
A10: 9 | B10: Mozambique | C10: =SUMIF(pmtCountry,$B10,pmtSalary) -> 24000 | D10: 53248
A11: 10 | B11: Nigeria | C11: =SUMIF(pmtCountry,$B11,pmtSalary) -> 40484.68875 | D11: 38400
A12: 11 | B12: Somalia | C12: =SUMIF(pmtCountry,$B12,pmtSalary) -> 78000 | D12: 12916725
A13: 12 | B13: South Africa | C13: =SUMIF(pmtCountry,$B13,pmtSalary) -> 941556.8749 | D13: 6292857
A14: 13 | B14: Tunisia | C14: =SUMIF(pmtCountry,$B14,pmtSalary) -> 11000 | D14: 55808
A15: 14 | B15: Uganda | C15: =SUMIF(pmtCountry,$B15,pmtSalary) -> 100000 | D15: 8587173
A16: 15 | B16: Zambia | C16: =SUMIF(pmtCountry,$B16,pmtSalary) -> 26000 | D16: 53248
A17: 16 | B17: Zimbabwe | C17: =SUMIF(pmtCountry,$B17,pmtSalary) -> 36400 | D17: 41984
A18: 17 | B18: Bangladesh | C18: =SUMIF(pmtCountry,$B18,pmtSalary) -> 20598.01729 | D18: 53248
A19: 18 | B19: Bhutan | C19: =SUMIF(pmtCountry,$B19,pmtSalary) -> 4800 | D19: 56832
A20: 19 | B20: Cambodia | C20: =SUMIF(pmtCountry,$B20,pmtSalary) -> 3000 | D20: 56832
A21: 20 | B21: China | C21: =SUMIF(pmtCountry,$B21,pmtSalary) -> 34092.18021 | D21: 41984
A22: 21 | B22: Dubai | C22: =SUMIF(pmtCountry,$B22,pmtSalary) -> 128667.8368 | D22: 8587173
A23: 22 | B23: Hong Kong | C23: =SUMIF(pmtCountry,$B23,pmtSalary) -> 20000 | D23: 53248
A24: 23 | B24: India | C24: =SUMIF(pmtCountry,$B24,pmtSalary) -> 7644128.455 | D24: 4785244
A25: 24 | B25: Indonesia | C25: =SUMIF(pmtCountry,$B25,pmtSalary) -> 230982.6944 | D25: 7931799
A26: 25 | B26: Iran | C26: =SUMIF(pmtCountry,$B26,pmtSalary) -> 54000 | D26: 32256
A27: 26 | B27: Israel | C27: =SUMIF(pmtCountry,$B27,pmtSalary) -> 334200 | D27: 7931799 | G27: SGClass | H27: Salarygroup | I27: ID | J27: R | K27: G | L27: B | M27: Fullcolor | N27: Fullcolor
A28: 27 | B28: Japan | C28: =SUMIF(pmtCountry,$B28,pmtSalary) -> 202694.3221 | D28: 7931799 | G28: 0 | H28: 0-1000 | I28: 1 | J28: 0 | K28: 222 | L28: 0 | M28: =farbe(J28,K28,L28) -> 56832
A29: 28 | B29: Kuwait | C29: =SUMIF(pmtCountry,$B29,pmtSalary) -> 143600 | D29: 8587173 | G29: 10000 | H29: 1001-10000 | I29: 2 | J29: 0 | K29: 218 | L29: 0 | M29: =farbe(J29,K29,L29) -> 55808
A30: 29 | B30: Malaysia | C30: =SUMIF(pmtCountry,$B30,pmtSalary) -> 186972.9326 | D30: 8587173 | G30: 20000 | H30: 10001-20000 | I30: 3 | J30: 0 | K30: 208 | L30: 0 | M30: 53248
A31: 30 | B31: Mongolia | C31: =SUMIF(pmtCountry,$B31,pmtSalary) -> 7261.72466 | D31: 56832 | G31: 30000 | H31: 20001-30000 | I31: 4 | J31: 0 | K31: 164 | L31: 0 | M31: 41984
A32: 31 | B32: Myanmar | C32: =SUMIF(pmtCountry,$B32,pmtSalary) -> 35400 | D32: 41984 | G32: 40000 | H32: 30001-40000 | I32: 5 | J32: 0 | K32: 150 | L32: 0 | M32: 38400
A33: 32 | B33: Oman | C33: =SUMIF(pmtCountry,$B33,pmtSalary) -> 100800 | D33: 8587173 | G33: 50000 | H33: 40001-50000 | I33: 6 | J33: 0 | K33: 126 | L33: 0 | M33: 32256
A34: 33 | B34: Pakistan | C34: =SUMIF(pmtCountry,$B34,pmtSalary) -> 344333.025 | D34: 7931799 | G34: 60000 | H34: 50001-60000 | I34: 7 | J34: 0 | K34: 96 | L34: 0 | M34: 24576
A35: 34 | B35: Philippines | C35: =SUMIF(pmtCountry,$B35,pmtSalary) -> 192272.216 | D35: 8587173 | G35: 70000 | H35: 60001-70000 | I35: 8 | J35: 245 | K35: 23 | L35: 197 | M35: 12916725
A36: 35 | B36: Qatar | C36: =SUMIF(pmtCountry,$B36,pmtSalary) -> 159200 | D36: 8587173 | G36: 80000 | H36: 70001-80000 | I36: 9 | J36: 216 | K36: 10 | L36: 176 | M36: 11537112
A37: 36 | B37: Russia | C37: =SUMIF(pmtCountry,$B37,pmtSalary) -> 503147 | D37: 6292857 | G37: 90000 | H37: 80001-90000 | I37: 10 | J37: 188 | K37: 8 | L37: 149 | M37: 9767100
A38: 37 | B38: Saudi Arabia | C38: =SUMIF(pmtCountry,$B38,pmtSalary) -> 394153.3333 | D38: 7931799 | G38: 100000 | H38: 90001-100000 | I38: 11 | J38: 165 | K38: 7 | L38: 131 | M38: 8587173
A39: 38 | B39: Singapore | C39: =SUMIF(pmtCountry,$B39,pmtSalary) -> 678011.8027 | D39: 6292857 | G39: 200000 | H39: 100001-200000 | I39: 12 | J39: 151 | K39: 7 | L39: 121 | M39: 7931799
A40: 39 | B40: Sri Lanka | C40: =SUMIF(pmtCountry,$B40,pmtSalary) -> 114605.774 | D40: 8587173 | G40: 500000 | H40: 200001-600000 | I40: 13 | J40: 121 | K40: 5 | L40: 96 | M40: 6292857
A41: 40 | B41: Thailand | C41: =SUMIF(pmtCountry,$B41,pmtSalary) -> 146000 | D41: 8587173 | G41: 1300000 | H41: 600001-1300000 | I41: 14 | J41: 92 | K41: 4 | L41: 73 | M41: 4785244
A42: 41 | B42: Turkey | C42: =SUMIF(pmtCountry,$B42,pmtSalary) -> 96000 | D42: 9767100
A43: 42 | B43: United Arab Emirates | C43: =SUMIF(pmtCountry,$B43,pmtSalary) -> 817283.1036 | D43: 6292857
A44: 43 | B44: Vietnam | C44: =SUMIF(pmtCountry,$B44,pmtSalary) -> 20000 | D44: 53248
A45: 44 | B45: Costa Rica | C45: =SUMIF(pmtCountry,$B45,pmtSalary) -> 28109.62755 | D45: 53248
A46: 45 | B46: Dominican Republic | C46: =SUMIF(pmtCountry,$B46,pmtSalary) -> 22033.36457 | D46: 53248
A47: 46 | B47: Panama | C47: =SUMIF(pmtCountry,$B47,pmtSalary) -> 89519.97195 | D47: 11537112
A48: 47 | B48: Albania | C48: =SUMIF(pmtCountry,$B48,pmtSalary) -> 20571 | D48: 53248
A49: 48 | B49: Armenia | C49: =SUMIF(pmtCountry,$B49,pmtSalary) -> 6000 | D49: 56832
A50: 49 | B50: Austria | C50: =SUMIF(pmtCountry,$B50,pmtSalary) -> 50815.97756 | D50: 32256
A51: 50 | B51: Azerbaijan | C51: =SUMIF(pmtCountry,$B51,pmtSalary) -> 36000 | D51: 41984
A52: 51 | B52: Belgium | C52: =SUMIF(pmtCountry,$B52,pmtSalary) -> 166828.8543 | D52: 8587173
A53: 52 | B53: Bulgaria | C53: =SUMIF(pmtCountry,$B53,pmtSalary) -> 14400 | D53: 55808
A54: 53 | B54: Croatia | C54: =SUMIF(pmtCountry,$B54,pmtSalary) -> 130468.7596 | D54: 8587173
A55: 54 | B55: Czech Republic | C55: =SUMIF(pmtCountry,$B55,pmtSalary) -> 36000 | D55: 41984
A56: 55 | B56: Denmark | C56: =SUMIF(pmtCountry,$B56,pmtSalary) -> 495153.1524 | D56: 7931799
A57: 56 | B57: Estonia | C57: =SUMIF(pmtCountry,$B57,pmtSalary) -> 12000 | D57: 55808
A58: 57 | B58: Finland | C58: =SUMIF(pmtCountry,$B58,pmtSalary) -> 226168.2466 | D58: 7931799
A59: 58 | B59: France | C59: =SUMIF(pmtCountry,$B59,pmtSalary) -> 341716.3503 | D59: 7931799
A60: 59 | B60: Germany | C60: =SUMIF(pmtCountry,$B60,pmtSalary) -> 1353831.499 | D60: 4785244
A61: 60 | B61: Greece | C61: =SUMIF(pmtCountry,$B61,pmtSalary) -> 90198.36017 | D61: 9767100
A62: 61 | B62: Hungary | C62: =SUMIF(pmtCountry,$B62,pmtSalary) -> 123581.7362 | D62: 8587173
A63: 62 | B63: Iceland | C63: =SUMIF(pmtCountry,$B63,pmtSalary) -> 41731 | D63: 38400
A64: 63 | B64: Ireland | C64: =SUMIF(pmtCountry,$B64,pmtSalary) -> 308262.4239 | D64: 7931799
A65: 64 | B65: Italy | C65: =SUMIF(pmtCountry,$B65,pmtSalary) -> 283553.1548 | D65: 7931799
A66: 65 | B66: Lithuania | C66: =SUMIF(pmtCountry,$B66,pmtSalary) -> 15000 | D66: 55808
A67: 66 | B67: Montenegro | C67: =SUMIF(pmtCountry,$B67,pmtSalary) -> 13500 | D67: =VLOOKUP($C67,$G$28:$M$41,7,TRUE) -> 55808
A68: 67 | B68: Netherlands | C68: =SUMIF(pmtCountry,$B68,pmtSalary) -> 1679147.918 | D68: 4785244
A69: 68 | B69: Norway | C69: =SUMIF(pmtCountry,$B69,pmtSalary) -> 693113.2206 | D69: 6292857
A70: 69 | B70: Poland | C70: =SUMIF(pmtCountry,$B70,pmtSalary) -> 205262.0723 | D70: 7931799
A71: 70 | B71: Portugal | C71: =SUMIF(pmtCountry,$B71,pmtSalary) -> 329077.6341 | D71: 7931799
A72: 71 | B72: Republic of Georgia | C72: =SUMIF(pmtCountry,$B72,pmtSalary) -> 5250 | D72: 56832
A73: 72 | B73: Romania | C73: =SUMIF(pmtCountry,$B73,pmtSalary) -> 98699.86054 | D73: 9767100
A74: 73 | B74: Slovakia | C74: =SUMIF(pmtCountry,$B74,pmtSalary) -> 13000 | D74: 55808
A75: 74 | B75: Slovenia | C75: =SUMIF(pmtCountry,$B75,pmtSalary) -> 19055.99158 | D75: 55808
A76: 75 | B76: Spain | C76: =SUMIF(pmtCountry,$B76,pmtSalary) -> 462356.6011 | D76: 7931799
A77: 76 | B77: Sweden | C77: =SUMIF(pmtCountry,$B77,pmtSalary) -> 168954.5202 | D77: 8587173
A78: 77 | B78: Switzerland | C78: =SUMIF(pmtCountry,$B78,pmtSalary) -> 550102.2286 | D78: 6292857
A79: 78 | B79: UK | C79: =SUMIF(pmtCountry,$B79,pmtSalary) -> 10355072.44 | D79: 4785244
A80: 79 | B80: Ukraine | C80: =SUMIF(pmtCountry,$B80,pmtSalary) -> 46600 | D80: 38400
A81: 80 | B81: Canada | C81: =SUMIF(pmtCountry,$B81,pmtSalary) -> 5208372.557 | D81: 4785244
A82: 81 | B82: Mexico | C82: =SUMIF(pmtCountry,$B82,pmtSalary) -> 321384.9829 | D82: 7931799
A83: 82 | B83: USA | C83: =SUMIF(pmtCountry,$B83,pmtSalary) -> 44879426 | D83: 4785244
A84: 83 | B84: Australia | C84: =SUMIF(pmtCountry,$B84,pmtSalary) -> 7521468.018 | D84: 4785244
A85: 84 | B85: New Zealand | C85: =SUMIF(pmtCountry,$B85,pmtSalary) -> 1054313.325 | D85: 6292857
A86: 93 | B86: Argentina | C86: =SUMIF(pmtCountry,$B86,pmtSalary) -> 24000 | D86: 53248
A87: 94 | B87: Aruba | C87: =SUMIF(pmtCountry,$B87,pmtSalary) -> 5000 | D87: 56832
A88: 95 | B88: Bermuda | C88: =SUMIF(pmtCountry,$B88,pmtSalary) -> 78000 | D88: 12916725
A89: 96 | B89: Bolivia | C89: =SUMIF(pmtCountry,$B89,pmtSalary) -> 9600 | D89: 56832
A90: 97 | B90: Brazil | C90: =SUMIF(pmtCountry,$B90,pmtSalary) -> 853440.7315 | D90: 6292857
A91: 98 | B91: Colombia | C91: =SUMIF(pmtCountry,$B91,pmtSalary) -> 61810 | D91: 24576
A92: 99 | B92: Guyana | C92: =SUMIF(pmtCountry,$B92,pmtSalary) -> 6000 | D92: 56832
A93: 100 | B93: Paraguay | C93: =SUMIF(pmtCountry,$B93,pmtSalary) -> 20000 | D93: 53248
A94: 101 | B94: Peru | C94: =SUMIF(pmtCountry,$B94,pmtSalary) -> 15840 | D94: 55808
A95: 102 | B95: Uruguay | C95: =SUMIF(pmtCountry,$B95,pmtSalary) -> 35000 | D95: 41984
A96: 103 | B96: Others | C96: =SUMIF(pmtContinent,$B$96,pmtSalary) -> 365135.9495 | D96: 7931799
B98: Others
B99: Arabian Gulf
B100: Asia
B101: Baltic
B102: CEE
B103: Central America
B104: Europe
B105: Latin America
B106: Self-employed

Sheet Contest4
C1: 1
AA3: 100
B4: Länder | C4: CXO or Top Mgmt. | D4: Controller | E4: Consultant | F4: Specialist | G4: Accountant | H4: Engineer | I4: Manager | J4: Analyst | K4: Misc. | L4: Reporting | M4: Summe | O4: Jobtype | P4: Summe | Q4: Min | R4: Mittelwert | S4: Max | T4: Quartile 1 | U4: Median | V4: Quartile 3 | W4: Bottom | X4: Min Box | Y4: Max Box | Z4: Whisker- | AA4: Whisker+ | AB4: Offset
B5: Egypt | C5: =IF(IF($C$1=1,SUMIFS(Data!$G$6:$G$1888,Data!$L$6:$L$1888,$B5,Data!$J$6:$J$1888,C$4),SUMIFS(Data!$O$6:$O$1888,Data!$L$6:$L$1888,$B5,Data!$J$6:$J$1888,C$4))>0,IF($C$1=1,SUMIFS(Data!$G$6:$G$1888,Data!$L$6:$L$1888,$B5,Data!$J$6:$J$1888,C$4),SUMIFS(Data!$O$6:$O$1888,Data!$L$6:$L$1888,$B5,Data!$J$6:$J$1888,C$4)),"") ->  | D5: =IF(IF($C$1=1,SUMIFS(Data!$G$6:$G$1888,Data!$L$6:$L$1888,$B5,Data!$J$6:$J$1888,D$4),SUMIFS(Data!$O$6:$O$1888,Data!$L$6:$L$1888,$B5,Data!$J$6:$J$1888,D$4))>0,IF($C$1=1,SUMIFS(Data!$G$6:$G$1888,Data!$L$6:$L$1888,$B5,Data!$J$6:$J$1888,D$4),SUMIFS(Data!$O$6:$O$1888,Data!$L$6:$L$1888,$B5,Data!$J$6:$J$1888,D$4)),"") ->  | E5: =IF(IF($C$1=1,SUMIFS(Data!$G$6:$G$1888,Data!$L$6:$L$1888,$B5,Data!$J$6:$J$1888,E$4),SUMIFS(Data!$O$6:$O$1888,Data!$L$6:$L$1888,$B5,Data!$J$6:$J$1888,E$4))>0,IF($C$1=1,SUMIFS(Data!$G$6:$G$1888,Data!$L$6:$L$1888,$B5,Data!$J$6:$J$1888,E$4),SUMIFS(Data!$O$6:$O$1888,Data!$L$6:$L$1888,$B5,Data!$J$6:$J$1888,E$4)),"") ->  | F5: =IF(IF($C$1=1,SUMIFS(Data!$G$6:$G$1888,Data!$L$6:$L$1888,$B5,Data!$J$6:$J$1888,F$4),SUMIFS(Data!$O$6:$O$1888,Data!$L$6:$L$1888,$B5,Data!$J$6:$J$1888,F$4))>0,IF($C$1=1,SUMIFS(Data!$G$6:$G$1888,Data!$L$6:$L$1888,$B5,Data!$J$6:$J$1888,F$4),SUMIFS(Data!$O$6:$O$1888,Data!$L$6:$L$1888,$B5,Data!$J$6:$J$1888,F$4)),"") ->  | G5: =IF(IF($C$1=1,SUMIFS(Data!$G$6:$G$1888,Data!$L$6:$L$1888,$B5,Data!$J$6:$J$1888,G$4),SUMIFS(Data!$O$6:$O$1888,Data!$L$6:$L$1888,$B5,Data!$J$6:$J$1888,G$4))>0,IF($C$1=1,SUMIFS(Data!$G$6:$G$1888,Data!$L$6:$L$1888,$B5,Data!$J$6:$J$1888,G$4),SUMIFS(Data!$O$6:$O$1888,Data!$L$6:$L$1888,$B5,Data!$J$6:$J$1888,G$4)),"") ->  | H5: =IF(IF($C$1=1,SUMIFS(Data!$G$6:$G$1888,Data!$L$6:$L$1888,$B5,Data!$J$6:$J$1888,H$4),SUMIFS(Data!$O$6:$O$1888,Data!$L$6:$L$1888,$B5,Data!$J$6:$J$1888,H$4))>0,IF($C$1=1,SUMIFS(Data!$G$6:$G$1888,Data!$L$6:$L$1888,$B5,Data!$J$6:$J$1888,H$4),SUMIFS(Data!$O$6:$O$1888,Data!$L$6:$L$1888,$B5,Data!$J$6:$J$1888,H$4)),"") ->  | I5: =IF(IF($C$1=1,SUMIFS(Data!$G$6:$G$1888,Data!$L$6:$L$1888,$B5,Data!$J$6:$J$1888,I$4),SUMIFS(Data!$O$6:$O$1888,Data!$L$6:$L$1888,$B5,Data!$J$6:$J$1888,I$4))>0,IF($C$1=1,SUMIFS(Data!$G$6:$G$1888,Data!$L$6:$L$1888,$B5,Data!$J$6:$J$1888,I$4),SUMIFS(Data!$O$6:$O$1888,Data!$L$6:$L$1888,$B5,Data!$J$6:$J$1888,I$4)),"") ->  | J5: =IF(IF($C$1=1,SUMIFS(Data!$G$6:$G$1888,Data!$L$6:$L$1888,$B5,Data!$J$6:$J$1888,J$4),SUMIFS(Data!$O$6:$O$1888,Data!$L$6:$L$1888,$B5,Data!$J$6:$J$1888,J$4))>0,IF($C$1=1,SUMIFS(Data!$G$6:$G$1888,Data!$L$6:$L$1888,$B5,Data!$J$6:$J$1888,J$4),SUMIFS(Data!$O$6:$O$1888,Data!$L$6:$L$1888,$B5,Data!$J$6:$J$1888,J$4)),"") -> 19831.43282 | K5: =IF(IF($C$1=1,SUMIFS(Data!$G$6:$G$1888,Data!$L$6:$L$1888,$B5,Data!$J$6:$J$1888,K$4),SUMIFS(Data!$O$6:$O$1888,Data!$L$6:$L$1888,$B5,Data!$J$6:$J$1888,K$4))>0,IF($C$1=1,SUMIFS(Data!$G$6:$G$1888,Data!$L$6:$L$1888,$B5,Data!$J$6:$J$1888,K$4),SUMIFS(Data!$O$6:$O$1888,Data!$L$6:$L$1888,$B5,Data!$J$6:$J$1888,K$4)),"") ->  | L5: =IF(IF($C$1=1,SUMIFS(Data!$G$6:$G$1888,Data!$L$6:$L$1888,$B5,Data!$J$6:$J$1888,L$4),SUMIFS(Data!$O$6:$O$1888,Data!$L$6:$L$1888,$B5,Data!$J$6:$J$1888,L$4))>0,IF($C$1=1,SUMIFS(Data!$G$6:$G$1888,Data!$L$6:$L$1888,$B5,Data!$J$6:$J$1888,L$4),SUMIFS(Data!$O$6:$O$1888,Data!$L$6:$L$1888,$B5,Data!$J$6:$J$1888,L$4)),"") ->  | M5: =SUM(C5:L5) -> 19831.43282 | O5: CXO or Top Mgmt. | P5: =C107 -> 7294940.671 | Q5: =MIN(C$5:C$106) -> 20571 | R5: =AVERAGE(C$5:C$106) -> 455933.792 | S5: =MAX(C$5:C$106) -> 4899000 | T5: =QUARTILE(C$5:C$106,1) -> 75148.17235 | U5: =MEDIAN(C$5:C$106) -> 100400 | V5: =QUARTILE(C$5:C$106,3) -> 180143.6759 | W5: =T5 -> 75148.17235 | X5: =(U5-T5) -> 25251.82765 | Y5: =V5-U5 -> 79743.67595 | Z5: =T5-Q5 -> 54577.17235 | AA5: =(S5-V5)/$AA$3 -> 47188.56324 | AB5: 0.5
B6: Ethiopia | C6: =IF(IF($C$1=1,SUMIFS(Data!$G$6:$G$1888,Data!$L$6:$L$1888,$B6,Data!$J$6:$J$1888,C$4),SUMIFS(Data!$O$6:$O$1888,Data!$L$6:$L$1888,$B6,Data!$J$6:$J$1888,C$4))>0,IF($C$1=1,SUMIFS(Data!$G$6:$G$1888,Data!$L$6:$L$1888,$B6,Data!$J$6:$J$1888,C$4),SUMIFS(Data!$O$6:$O$1888,Data!$L$6:$L$1888,$B6,Data!$J$6:$J$1888,C$4)),"") ->  | D6: =IF(IF($C$1=1,SUMIFS(Data!$G$6:$G$1888,Data!$L$6:$L$1888,$B6,Data!$J$6:$J$1888,D$4),SUMIFS(Data!$O$6:$O$1888,Data!$L$6:$L$1888,$B6,Data!$J$6:$J$1888,D$4))>0,IF($C$1=1,SUMIFS(Data!$G$6:$G$1888,Data!$L$6:$L$1888,$B6,Data!$J$6:$J$1888,D$4),SUMIFS(Data!$O$6:$O$1888,Data!$L$6:$L$1888,$B6,Data!$J$6:$J$1888,D$4)),"") ->  | E6: =IF(IF($C$1=1,SUMIFS(Data!$G$6:$G$1888,Data!$L$6:$L$1888,$B6,Data!$J$6:$J$1888,E$4),SUMIFS(Data!$O$6:$O$1888,Data!$L$6:$L$1888,$B6,Data!$J$6:$J$1888,E$4))>0,IF($C$1=1,SUMIFS(Data!$G$6:$G$1888,Data!$L$6:$L$1888,$B6,Data!$J$6:$J$1888,E$4),SUMIFS(Data!$O$6:$O$1888,Data!$L$6:$L$1888,$B6,Data!$J$6:$J$1888,E$4)),"") ->  | F6: =IF(IF($C$1=1,SUMIFS(Data!$G$6:$G$1888,Data!$L$6:$L$1888,$B6,Data!$J$6:$J$1888,F$4),SUMIFS(Data!$O$6:$O$1888,Data!$L$6:$L$1888,$B6,Data!$J$6:$J$1888,F$4))>0,IF($C$1=1,SUMIFS(Data!$G$6:$G$1888,Data!$L$6:$L$1888,$B6,Data!$J$6:$J$1888,F$4),SUMIFS(Data!$O$6:$O$1888,Data!$L$6:$L$1888,$B6,Data!$J$6:$J$1888,F$4)),"") ->  | G6: =IF(IF($C$1=1,SUMIFS(Data!$G$6:$G$1888,Data!$L$6:$L$1888,$B6,Data!$J$6:$J$1888,G$4),SUMIFS(Data!$O$6:$O$1888,Data!$L$6:$L$1888,$B6,Data!$J$6:$J$1888,G$4))>0,IF($C$1=1,SUMIFS(Data!$G$6:$G$1888,Data!$L$6:$L$1888,$B6,Data!$J$6:$J$1888,G$4),SUMIFS(Data!$O$6:$O$1888,Data!$L$6:$L$1888,$B6,Data!$J$6:$J$1888,G$4)),"") ->  | H6: =IF(IF($C$1=1,SUMIFS(Data!$G$6:$G$1888,Data!$L$6:$L$1888,$B6,Data!$J$6:$J$1888,H$4),SUMIFS(Data!$O$6:$O$1888,Data!$L$6:$L$1888,$B6,Data!$J$6:$J$1888,H$4))>0,IF($C$1=1,SUMIFS(Data!$G$6:$G$1888,Data!$L$6:$L$1888,$B6,Data!$J$6:$J$1888,H$4),SUMIFS(Data!$O$6:$O$1888,Data!$L$6:$L$1888,$B6,Data!$J$6:$J$1888,H$4)),"") ->  | I6: =IF(IF($C$1=1,SUMIFS(Data!$G$6:$G$1888,Data!$L$6:$L$1888,$B6,Data!$J$6:$J$1888,I$4),SUMIFS(Data!$O$6:$O$1888,Data!$L$6:$L$1888,$B6,Data!$J$6:$J$1888,I$4))>0,IF($C$1=1,SUMIFS(Data!$G$6:$G$1888,Data!$L$6:$L$1888,$B6,Data!$J$6:$J$1888,I$4),SUMIFS(Data!$O$6:$O$1888,Data!$L$6:$L$1888,$B6,Data!$J$6:$J$1888,I$4)),"") ->  | J6: =IF(IF($C$1=1,SUMIFS(Data!$G$6:$G$1888,Data!$L$6:$L$1888,$B6,Data!$J$6:$J$1888,J$4),SUMIFS(Data!$O$6:$O$1888,Data!$L$6:$L$1888,$B6,Data!$J$6:$J$1888,J$4))>0,IF($C$1=1,SUMIFS(Data!$G$6:$G$1888,Data!$L$6:$L$1888,$B6,Data!$J$6:$J$1888,J$4),SUMIFS(Data!$O$6:$O$1888,Data!$L$6:$L$1888,$B6,Data!$J$6:$J$1888,J$4)),"") ->  | K6: =IF(IF($C$1=1,SUMIFS(Data!$G$6:$G$1888,Data!$L$6:$L$1888,$B6,Data!$J$6:$J$1888,K$4),SUMIFS(Data!$O$6:$O$1888,Data!$L$6:$L$1888,$B6,Data!$J$6:$J$1888,K$4))>0,IF($C$1=1,SUMIFS(Data!$G$6:$G$1888,Data!$L$6:$L$1888,$B6,Data!$J$6:$J$1888,K$4),SUMIFS(Data!$O$6:$O$1888,Data!$L$6:$L$1888,$B6,Data!$J$6:$J$1888,K$4)),"") ->  | L6: =IF(IF($C$1=1,SUMIFS(Data!$G$6:$G$1888,Data!$L$6:$L$1888,$B6,Data!$J$6:$J$1888,L$4),SUMIFS(Data!$O$6:$O$1888,Data!$L$6:$L$1888,$B6,Data!$J$6:$J$1888,L$4))>0,IF($C$1=1,SUMIFS(Data!$G$6:$G$1888,Data!$L$6:$L$1888,$B6,Data!$J$6:$J$1888,L$4),SUMIFS(Data!$O$6:$O$1888,Data!$L$6:$L$1888,$B6,Data!$J$6:$J$1888,L$4)),"") -> 2953.846154 | M6: =SUM(C6:L6) -> 2953.846154 | O6: Controller | P6: =SUM(D$5:D$106) -> 4361963.245 | Q6: =MIN(D$5:D$106) -> 7200 | R6: =AVERAGE(D$5:D$106) -> 145398.7748 | S6: =MAX(D$5:D$106) -> 1492825 | T6: =QUARTILE(D$5:D$106,1) -> 16654.55781 | U6: =MEDIAN(D$5:D$106) -> 42000 | V6: =QUARTILE(D$5:D$106,3) -> 144321.1843 | W6: 16654.55781 | X6: 25345.44219 | Y6: 102321.1843 | Z6: 9454.557812 | AA6: =(S6-V6)/$AA$3 -> 13485.03816 | AB6: 1.5
B7: Ghana | C7: =IF(IF($C$1=1,SUMIFS(Data!$G$6:$G$1888,Data!$L$6:$L$1888,$B7,Data!$J$6:$J$1888,C$4),SUMIFS(Data!$O$6:$O$1888,Data!$L$6:$L$1888,$B7,Data!$J$6:$J$1888,C$4))>0,IF($C$1=1,SUMIFS(Data!$G$6:$G$1888,Data!$L$6:$L$1888,$B7,Data!$J$6:$J$1888,C$4),SUMIFS(Data!$O$6:$O$1888,Data!$L$6:$L$1888,$B7,Data!$J$6:$J$1888,C$4)),"") ->  | D7: =IF(IF($C$1=1,SUMIFS(Data!$G$6:$G$1888,Data!$L$6:$L$1888,$B7,Data!$J$6:$J$1888,D$4),SUMIFS(Data!$O$6:$O$1888,Data!$L$6:$L$1888,$B7,Data!$J$6:$J$1888,D$4))>0,IF($C$1=1,SUMIFS(Data!$G$6:$G$1888,Data!$L$6:$L$1888,$B7,Data!$J$6:$J$1888,D$4),SUMIFS(Data!$O$6:$O$1888,Data!$L$6:$L$1888,$B7,Data!$J$6:$J$1888,D$4)),"") ->  | E7: =IF(IF($C$1=1,SUMIFS(Data!$G$6:$G$1888,Data!$L$6:$L$1888,$B7,Data!$J$6:$J$1888,E$4),SUMIFS(Data!$O$6:$O$1888,Data!$L$6:$L$1888,$B7,Data!$J$6:$J$1888,E$4))>0,IF($C$1=1,SUMIFS(Data!$G$6:$G$1888,Data!$L$6:$L$1888,$B7,Data!$J$6:$J$1888,E$4),SUMIFS(Data!$O$6:$O$1888,Data!$L$6:$L$1888,$B7,Data!$J$6:$J$1888,E$4)),"") ->  | F7: =IF(IF($C$1=1,SUMIFS(Data!$G$6:$G$1888,Data!$L$6:$L$1888,$B7,Data!$J$6:$J$1888,F$4),SUMIFS(Data!$O$6:$O$1888,Data!$L$6:$L$1888,$B7,Data!$J$6:$J$1888,F$4))>0,IF($C$1=1,SUMIFS(Data!$G$6:$G$1888,Data!$L$6:$L$1888,$B7,Data!$J$6:$J$1888,F$4),SUMIFS(Data!$O$6:$O$1888,Data!$L$6:$L$1888,$B7,Data!$J$6:$J$1888,F$4)),"") ->  | G7: =IF(IF($C$1=1,SUMIFS(Data!$G$6:$G$1888,Data!$L$6:$L$1888,$B7,Data!$J$6:$J$1888,G$4),SUMIFS(Data!$O$6:$O$1888,Data!$L$6:$L$1888,$B7,Data!$J$6:$J$1888,G$4))>0,IF($C$1=1,SUMIFS(Data!$G$6:$G$1888,Data!$L$6:$L$1888,$B7,Data!$J$6:$J$1888,G$4),SUMIFS(Data!$O$6:$O$1888,Data!$L$6:$L$1888,$B7,Data!$J$6:$J$1888,G$4)),"") ->  | H7: =IF(IF($C$1=1,SUMIFS(Data!$G$6:$G$1888,Data!$L$6:$L$1888,$B7,Data!$J$6:$J$1888,H$4),SUMIFS(Data!$O$6:$O$1888,Data!$L$6:$L$1888,$B7,Data!$J$6:$J$1888,H$4))>0,IF($C$1=1,SUMIFS(Data!$G$6:$G$1888,Data!$L$6:$L$1888,$B7,Data!$J$6:$J$1888,H$4),SUMIFS(Data!$O$6:$O$1888,Data!$L$6:$L$1888,$B7,Data!$J$6:$J$1888,H$4)),"") ->  | I7: =IF(IF($C$1=1,SUMIFS(Data!$G$6:$G$1888,Data!$L$6:$L$1888,$B7,Data!$J$6:$J$1888,I$4),SUMIFS(Data!$O$6:$O$1888,Data!$L$6:$L$1888,$B7,Data!$J$6:$J$1888,I$4))>0,IF($C$1=1,SUMIFS(Data!$G$6:$G$1888,Data!$L$6:$L$1888,$B7,Data!$J$6:$J$1888,I$4),SUMIFS(Data!$O$6:$O$1888,Data!$L$6:$L$1888,$B7,Data!$J$6:$J$1888,I$4)),"") -> 18000 | J7: =IF(IF($C$1=1,SUMIFS(Data!$G$6:$G$1888,Data!$L$6:$L$1888,$B7,Data!$J$6:$J$1888,J$4),SUMIFS(Data!$O$6:$O$1888,Data!$L$6:$L$1888,$B7,Data!$J$6:$J$1888,J$4))>0,IF($C$1=1,SUMIFS(Data!$G$6:$G$1888,Data!$L$6:$L$1888,$B7,Data!$J$6:$J$1888,J$4),SUMIFS(Data!$O$6:$O$1888,Data!$L$6:$L$1888,$B7,Data!$J$6:$J$1888,J$4)),"") ->  | K7: =IF(IF($C$1=1,SUMIFS(Data!$G$6:$G$1888,Data!$L$6:$L$1888,$B7,Data!$J$6:$J$1888,K$4),SUMIFS(Data!$O$6:$O$1888,Data!$L$6:$L$1888,$B7,Data!$J$6:$J$1888,K$4))>0,IF($C$1=1,SUMIFS(Data!$G$6:$G$1888,Data!$L$6:$L$1888,$B7,Data!$J$6:$J$1888,K$4),SUMIFS(Data!$O$6:$O$1888,Data!$L$6:$L$1888,$B7,Data!$J$6:$J$1888,K$4)),"") ->  | L7: =IF(IF($C$1=1,SUMIFS(Data!$G$6:$G$1888,Data!$L$6:$L$1888,$B7,Data!$J$6:$J$1888,L$4),SUMIFS(Data!$O$6:$O$1888,Data!$L$6:$L$1888,$B7,Data!$J$6:$J$1888,L$4))>0,IF($C$1=1,SUMIFS(Data!$G$6:$G$1888,Data!$L$6:$L$1888,$B7,Data!$J$6:$J$1888,L$4),SUMIFS(Data!$O$6:$O$1888,Data!$L$6:$L$1888,$B7,Data!$J$6:$J$1888,L$4)),"") ->  | M7: 18000 | O7: Consultant | P7: =SUM(E$5:E$106) -> 5665565.99 | Q7: =MIN(E$5:E$106) -> 3000 | R7: =AVERAGE(E$5:E$106) -> 236065.2496 | S7: =MAX(E$5:E$106) -> 1771000 | T7: =QUARTILE(E$5:E$106,1) -> 36000 | U7: =MEDIAN(E$5:E$106) -> 77000 | V7: =QUARTILE(E$5:E$106,3) -> 259677.9783 | W7: 36000 | X7: 41000 | Y7: 182677.9783 | Z7: 33000 | AA7: 15113.22022 | AB7: 2.5
B8: Kenya | C8: =IF(IF($C$1=1,SUMIFS(Data!$G$6:$G$1888,Data!$L$6:$L$1888,$B8,Data!$J$6:$J$1888,C$4),SUMIFS(Data!$O$6:$O$1888,Data!$L$6:$L$1888,$B8,Data!$J$6:$J$1888,C$4))>0,IF($C$1=1,SUMIFS(Data!$G$6:$G$1888,Data!$L$6:$L$1888,$B8,Data!$J$6:$J$1888,C$4),SUMIFS(Data!$O$6:$O$1888,Data!$L$6:$L$1888,$B8,Data!$J$6:$J$1888,C$4)),"") ->  | D8: =IF(IF($C$1=1,SUMIFS(Data!$G$6:$G$1888,Data!$L$6:$L$1888,$B8,Data!$J$6:$J$1888,D$4),SUMIFS(Data!$O$6:$O$1888,Data!$L$6:$L$1888,$B8,Data!$J$6:$J$1888,D$4))>0,IF($C$1=1,SUMIFS(Data!$G$6:$G$1888,Data!$L$6:$L$1888,$B8,Data!$J$6:$J$1888,D$4),SUMIFS(Data!$O$6:$O$1888,Data!$L$6:$L$1888,$B8,Data!$J$6:$J$1888,D$4)),"") ->  | E8: =IF(IF($C$1=1,SUMIFS(Data!$G$6:$G$1888,Data!$L$6:$L$1888,$B8,Data!$J$6:$J$1888,E$4),SUMIFS(Data!$O$6:$O$1888,Data!$L$6:$L$1888,$B8,Data!$J$6:$J$1888,E$4))>0,IF($C$1=1,SUMIFS(Data!$G$6:$G$1888,Data!$L$6:$L$1888,$B8,Data!$J$6:$J$1888,E$4),SUMIFS(Data!$O$6:$O$1888,Data!$L$6:$L$1888,$B8,Data!$J$6:$J$1888,E$4)),"") ->  | F8: =IF(IF($C$1=1,SUMIFS(Data!$G$6:$G$1888,Data!$L$6:$L$1888,$B8,Data!$J$6:$J$1888,F$4),SUMIFS(Data!$O$6:$O$1888,Data!$L$6:$L$1888,$B8,Data!$J$6:$J$1888,F$4))>0,IF($C$1=1,SUMIFS(Data!$G$6:$G$1888,Data!$L$6:$L$1888,$B8,Data!$J$6:$J$1888,F$4),SUMIFS(Data!$O$6:$O$1888,Data!$L$6:$L$1888,$B8,Data!$J$6:$J$1888,F$4)),"") ->  | G8: =IF(IF($C$1=1,SUMIFS(Data!$G$6:$G$1888,Data!$L$6:$L$1888,$B8,Data!$J$6:$J$1888,G$4),SUMIFS(Data!$O$6:$O$1888,Data!$L$6:$L$1888,$B8,Data!$J$6:$J$1888,G$4))>0,IF($C$1=1,SUMIFS(Data!$G$6:$G$1888,Data!$L$6:$L$1888,$B8,Data!$J$6:$J$1888,G$4),SUMIFS(Data!$O$6:$O$1888,Data!$L$6:$L$1888,$B8,Data!$J$6:$J$1888,G$4)),"") ->  | H8: =IF(IF($C$1=1,SUMIFS(Data!$G$6:$G$1888,Data!$L$6:$L$1888,$B8,Data!$J$6:$J$1888,H$4),SUMIFS(Data!$O$6:$O$1888,Data!$L$6:$L$1888,$B8,Data!$J$6:$J$1888,H$4))>0,IF($C$1=1,SUMIFS(Data!$G$6:$G$1888,Data!$L$6:$L$1888,$B8,Data!$J$6:$J$1888,H$4),SUMIFS(Data!$O$6:$O$1888,Data!$L$6:$L$1888,$B8,Data!$J$6:$J$1888,H$4)),"") ->  | I8: =IF(IF($C$1=1,SUMIFS(Data!$G$6:$G$1888,Data!$L$6:$L$1888,$B8,Data!$J$6:$J$1888,I$4),SUMIFS(Data!$O$6:$O$1888,Data!$L$6:$L$1888,$B8,Data!$J$6:$J$1888,I$4))>0,IF($C$1=1,SUMIFS(Data!$G$6:$G$1888,Data!$L$6:$L$1888,$B8,Data!$J$6:$J$1888,I$4),SUMIFS(Data!$O$6:$O$1888,Data!$L$6:$L$1888,$B8,Data!$J$6:$J$1888,I$4)),"") -> 51497.00599 | J8: =IF(IF($C$1=1,SUMIFS(Data!$G$6:$G$1888,Data!$L$6:$L$1888,$B8,Data!$J$6:$J$1888,J$4),SUMIFS(Data!$O$6:$O$1888,Data!$L$6:$L$1888,$B8,Data!$J$6:$J$1888,J$4))>0,IF($C$1=1,SUMIFS(Data!$G$6:$G$1888,Data!$L$6:$L$1888,$B8,Data!$J$6:$J$1888,J$4),SUMIFS(Data!$O$6:$O$1888,Data!$L$6:$L$1888,$B8,Data!$J$6:$J$1888,J$4)),"") ->  | K8: =IF(IF($C$1=1,SUMIFS(Data!$G$6:$G$1888,Data!$L$6:$L$1888,$B8,Data!$J$6:$J$1888,K$4),SUMIFS(Data!$O$6:$O$1888,Data!$L$6:$L$1888,$B8,Data!$J$6:$J$1888,K$4))>0,IF($C$1=1,SUMIFS(Data!$G$6:$G$1888,Data!$L$6:$L$1888,$B8,Data!$J$6:$J$1888,K$4),SUMIFS(Data!$O$6:$O$1888,Data!$L$6:$L$1888,$B8,Data!$J$6:$J$1888,K$4)),"") ->  | L8: =IF(IF($C$1=1,SUMIFS(Data!$G$6:$G$1888,Data!$L$6:$L$1888,$B8,Data!$J$6:$J$1888,L$4),SUMIFS(Data!$O$6:$O$1888,Data!$L$6:$L$1888,$B8,Data!$J$6:$J$1888,L$4))>0,IF($C$1=1,SUMIFS(Data!$G$6:$G$1888,Data!$L$6:$L$1888,$B8,Data!$J$6:$J$1888,L$4),SUMIFS(Data!$O$6:$O$1888,Data!$L$6:$L$1888,$B8,Data!$J$6:$J$1888,L$4)),"") ->  | M8: 51497.00599 | O8: Specialist | P8: =SUM(F$5:F$106) -> 3050461.433 | Q8: =MIN(F$5:F$106) -> 5250 | R8: =AVERAGE(F$5:F$106) -> 217890.1024 | S8: =MAX(F$5:F$106) -> 1745000 | T8: =QUARTILE(F$5:F$106,1) -> 17014.21513 | U8: =MEDIAN(F$5:F$106) -> 77272.04588 | V8: =QUARTILE(F$5:F$106,3) -> 148874.5751 | W8: 17014.21513 | X8: 60257.83074 | Y8: 71602.52921 | Z8: 11764.21513 | AA8: 15961.25425 | AB8: 3.5
B9: Lesotho | C9: =IF(IF($C$1=1,SUMIFS(Data!$G$6:$G$1888,Data!$L$6:$L$1888,$B9,Data!$J$6:$J$1888,C$4),SUMIFS(Data!$O$6:$O$1888,Data!$L$6:$L$1888,$B9,Data!$J$6:$J$1888,C$4))>0,IF($C$1=1,SUMIFS(Data!$G$6:$G$1888,Data!$L$6:$L$1888,$B9,Data!$J$6:$J$1888,C$4),SUMIFS(Data!$O$6:$O$1888,Data!$L$6:$L$1888,$B9,Data!$J$6:$J$1888,C$4)),"") ->  | D9: =IF(IF($C$1=1,SUMIFS(Data!$G$6:$G$1888,Data!$L$6:$L$1888,$B9,Data!$J$6:$J$1888,D$4),SUMIFS(Data!$O$6:$O$1888,Data!$L$6:$L$1888,$B9,Data!$J$6:$J$1888,D$4))>0,IF($C$1=1,SUMIFS(Data!$G$6:$G$1888,Data!$L$6:$L$1888,$B9,Data!$J$6:$J$1888,D$4),SUMIFS(Data!$O$6:$O$1888,Data!$L$6:$L$1888,$B9,Data!$J$6:$J$1888,D$4)),"") ->  | E9: =IF(IF($C$1=1,SUMIFS(Data!$G$6:$G$1888,Data!$L$6:$L$1888,$B9,Data!$J$6:$J$1888,E$4),SUMIFS(Data!$O$6:$O$1888,Data!$L$6:$L$1888,$B9,Data!$J$6:$J$1888,E$4))>0,IF($C$1=1,SUMIFS(Data!$G$6:$G$1888,Data!$L$6:$L$1888,$B9,Data!$J$6:$J$1888,E$4),SUMIFS(Data!$O$6:$O$1888,Data!$L$6:$L$1888,$B9,Data!$J$6:$J$1888,E$4)),"") ->  | F9: =IF(IF($C$1=1,SUMIFS(Data!$G$6:$G$1888,Data!$L$6:$L$1888,$B9,Data!$J$6:$J$1888,F$4),SUMIFS(Data!$O$6:$O$1888,Data!$L$6:$L$1888,$B9,Data!$J$6:$J$1888,F$4))>0,IF($C$1=1,SUMIFS(Data!$G$6:$G$1888,Data!$L$6:$L$1888,$B9,Data!$J$6:$J$1888,F$4),SUMIFS(Data!$O$6:$O$1888,Data!$L$6:$L$1888,$B9,Data!$J$6:$J$1888,F$4)),"") ->  | G9: =IF(IF($C$1=1,SUMIFS(Data!$G$6:$G$1888,Data!$L$6:$L$1888,$B9,Data!$J$6:$J$1888,G$4),SUMIFS(Data!$O$6:$O$1888,Data!$L$6:$L$1888,$B9,Data!$J$6:$J$1888,G$4))>0,IF($C$1=1,SUMIFS(Data!$G$6:$G$1888,Data!$L$6:$L$1888,$B9,Data!$J$6:$J$1888,G$4),SUMIFS(Data!$O$6:$O$1888,Data!$L$6:$L$1888,$B9,Data!$J$6:$J$1888,G$4)),"") -> 177600 | H9: =IF(IF($C$1=1,SUMIFS(Data!$G$6:$G$1888,Data!$L$6:$L$1888,$B9,Data!$J$6:$J$1888,H$4),SUMIFS(Data!$O$6:$O$1888,Data!$L$6:$L$1888,$B9,Data!$J$6:$J$1888,H$4))>0,IF($C$1=1,SUMIFS(Data!$G$6:$G$1888,Data!$L$6:$L$1888,$B9,Data!$J$6:$J$1888,H$4),SUMIFS(Data!$O$6:$O$1888,Data!$L$6:$L$1888,$B9,Data!$J$6:$J$1888,H$4)),"") ->  | I9: =IF(IF($C$1=1,SUMIFS(Data!$G$6:$G$1888,Data!$L$6:$L$1888,$B9,Data!$J$6:$J$1888,I$4),SUMIFS(Data!$O$6:$O$1888,Data!$L$6:$L$1888,$B9,Data!$J$6:$J$1888,I$4))>0,IF($C$1=1,SUMIFS(Data!$G$6:$G$1888,Data!$L$6:$L$1888,$B9,Data!$J$6:$J$1888,I$4),SUMIFS(Data!$O$6:$O$1888,Data!$L$6:$L$1888,$B9,Data!$J$6:$J$1888,I$4)),"") ->  | J9: =IF(IF($C$1=1,SUMIFS(Data!$G$6:$G$1888,Data!$L$6:$L$1888,$B9,Data!$J$6:$J$1888,J$4),SUMIFS(Data!$O$6:$O$1888,Data!$L$6:$L$1888,$B9,Data!$J$6:$J$1888,J$4))>0,IF($C$1=1,SUMIFS(Data!$G$6:$G$1888,Data!$L$6:$L$1888,$B9,Data!$J$6:$J$1888,J$4),SUMIFS(Data!$O$6:$O$1888,Data!$L$6:$L$1888,$B9,Data!$J$6:$J$1888,J$4)),"") ->  | K9: =IF(IF($C$1=1,SUMIFS(Data!$G$6:$G$1888,Data!$L$6:$L$1888,$B9,Data!$J$6:$J$1888,K$4),SUMIFS(Data!$O$6:$O$1888,Data!$L$6:$L$1888,$B9,Data!$J$6:$J$1888,K$4))>0,IF($C$1=1,SUMIFS(Data!$G$6:$G$1888,Data!$L$6:$L$1888,$B9,Data!$J$6:$J$1888,K$4),SUMIFS(Data!$O$6:$O$1888,Data!$L$6:$L$1888,$B9,Data!$J$6:$J$1888,K$4)),"") ->  | L9: =IF(IF($C$1=1,SUMIFS(Data!$G$6:$G$1888,Data!$L$6:$L$1888,$B9,Data!$J$6:$J$1888,L$4),SUMIFS(Data!$O$6:$O$1888,Data!$L$6:$L$1888,$B9,Data!$J$6:$J$1888,L$4))>0,IF($C$1=1,SUMIFS(Data!$G$6:$G$1888,Data!$L$6:$L$1888,$B9,Data!$J$6:$J$1888,L$4),SUMIFS(Data!$O$6:$O$1888,Data!$L$6:$L$1888,$B9,Data!$J$6:$J$1888,L$4)),"") ->  | M9: 177600 | O9: Accountant | P9: =SUM(G$5:G$106) -> 7316519.479 | Q9: =MIN(G$5:G$106) -> 3000 | R9: =AVERAGE(G$5:G$106) -> 252293.7751 | S9: =MAX(G$5:G$106) -> 2718962 | T9: =QUARTILE(G$5:G$106,1) -> 19068 | U9: =MEDIAN(G$5:G$106) -> 62564.63157 | V9: =QUARTILE(G$5:G$106,3) -> 110270.6713 | W9: 19068 | X9: 43496.63157 | Y9: 47706.03973 | Z9: 16068 | AA9: 26086.91329 | AB9: 4.5
B10: Libya | C10: =IF(IF($C$1=1,SUMIFS(Data!$G$6:$G$1888,Data!$L$6:$L$1888,$B10,Data!$J$6:$J$1888,C$4),SUMIFS(Data!$O$6:$O$1888,Data!$L$6:$L$1888,$B10,Data!$J$6:$J$1888,C$4))>0,IF($C$1=1,SUMIFS(Data!$G$6:$G$1888,Data!$L$6:$L$1888,$B10,Data!$J$6:$J$1888,C$4),SUMIFS(Data!$O$6:$O$1888,Data!$L$6:$L$1888,$B10,Data!$J$6:$J$1888,C$4)),"") ->  | D10: =IF(IF($C$1=1,SUMIFS(Data!$G$6:$G$1888,Data!$L$6:$L$1888,$B10,Data!$J$6:$J$1888,D$4),SUMIFS(Data!$O$6:$O$1888,Data!$L$6:$L$1888,$B10,Data!$J$6:$J$1888,D$4))>0,IF($C$1=1,SUMIFS(Data!$G$6:$G$1888,Data!$L$6:$L$1888,$B10,Data!$J$6:$J$1888,D$4),SUMIFS(Data!$O$6:$O$1888,Data!$L$6:$L$1888,$B10,Data!$J$6:$J$1888,D$4)),"") ->  | E10: =IF(IF($C$1=1,SUMIFS(Data!$G$6:$G$1888,Data!$L$6:$L$1888,$B10,Data!$J$6:$J$1888,E$4),SUMIFS(Data!$O$6:$O$1888,Data!$L$6:$L$1888,$B10,Data!$J$6:$J$1888,E$4))>0,IF($C$1=1,SUMIFS(Data!$G$6:$G$1888,Data!$L$6:$L$1888,$B10,Data!$J$6:$J$1888,E$4),SUMIFS(Data!$O$6:$O$1888,Data!$L$6:$L$1888,$B10,Data!$J$6:$J$1888,E$4)),"") ->  | F10: =IF(IF($C$1=1,SUMIFS(Data!$G$6:$G$1888,Data!$L$6:$L$1888,$B10,Data!$J$6:$J$1888,F$4),SUMIFS(Data!$O$6:$O$1888,Data!$L$6:$L$1888,$B10,Data!$J$6:$J$1888,F$4))>0,IF($C$1=1,SUMIFS(Data!$G$6:$G$1888,Data!$L$6:$L$1888,$B10,Data!$J$6:$J$1888,F$4),SUMIFS(Data!$O$6:$O$1888,Data!$L$6:$L$1888,$B10,Data!$J$6:$J$1888,F$4)),"") ->  | G10: =IF(IF($C$1=1,SUMIFS(Data!$G$6:$G$1888,Data!$L$6:$L$1888,$B10,Data!$J$6:$J$1888,G$4),SUMIFS(Data!$O$6:$O$1888,Data!$L$6:$L$1888,$B10,Data!$J$6:$J$1888,G$4))>0,IF($C$1=1,SUMIFS(Data!$G$6:$G$1888,Data!$L$6:$L$1888,$B10,Data!$J$6:$J$1888,G$4),SUMIFS(Data!$O$6:$O$1888,Data!$L$6:$L$1888,$B10,Data!$J$6:$J$1888,G$4)),"") ->  | H10: =IF(IF($C$1=1,SUMIFS(Data!$G$6:$G$1888,Data!$L$6:$L$1888,$B10,Data!$J$6:$J$1888,H$4),SUMIFS(Data!$O$6:$O$1888,Data!$L$6:$L$1888,$B10,Data!$J$6:$J$1888,H$4))>0,IF($C$1=1,SUMIFS(Data!$G$6:$G$1888,Data!$L$6:$L$1888,$B10,Data!$J$6:$J$1888,H$4),SUMIFS(Data!$O$6:$O$1888,Data!$L$6:$L$1888,$B10,Data!$J$6:$J$1888,H$4)),"") ->  | I10: =IF(IF($C$1=1,SUMIFS(Data!$G$6:$G$1888,Data!$L$6:$L$1888,$B10,Data!$J$6:$J$1888,I$4),SUMIFS(Data!$O$6:$O$1888,Data!$L$6:$L$1888,$B10,Data!$J$6:$J$1888,I$4))>0,IF($C$1=1,SUMIFS(Data!$G$6:$G$1888,Data!$L$6:$L$1888,$B10,Data!$J$6:$J$1888,I$4),SUMIFS(Data!$O$6:$O$1888,Data!$L$6:$L$1888,$B10,Data!$J$6:$J$1888,I$4)),"") -> 24864 | J10: =IF(IF($C$1=1,SUMIFS(Data!$G$6:$G$1888,Data!$L$6:$L$1888,$B10,Data!$J$6:$J$1888,J$4),SUMIFS(Data!$O$6:$O$1888,Data!$L$6:$L$1888,$B10,Data!$J$6:$J$1888,J$4))>0,IF($C$1=1,SUMIFS(Data!$G$6:$G$1888,Data!$L$6:$L$1888,$B10,Data!$J$6:$J$1888,J$4),SUMIFS(Data!$O$6:$O$1888,Data!$L$6:$L$1888,$B10,Data!$J$6:$J$1888,J$4)),"") ->  | K10: =IF(IF($C$1=1,SUMIFS(Data!$G$6:$G$1888,Data!$L$6:$L$1888,$B10,Data!$J$6:$J$1888,K$4),SUMIFS(Data!$O$6:$O$1888,Data!$L$6:$L$1888,$B10,Data!$J$6:$J$1888,K$4))>0,IF($C$1=1,SUMIFS(Data!$G$6:$G$1888,Data!$L$6:$L$1888,$B10,Data!$J$6:$J$1888,K$4),SUMIFS(Data!$O$6:$O$1888,Data!$L$6:$L$1888,$B10,Data!$J$6:$J$1888,K$4)),"") ->  | L10: =IF(IF($C$1=1,SUMIFS(Data!$G$6:$G$1888,Data!$L$6:$L$1888,$B10,Data!$J$6:$J$1888,L$4),SUMIFS(Data!$O$6:$O$1888,Data!$L$6:$L$1888,$B10,Data!$J$6:$J$1888,L$4))>0,IF($C$1=1,SUMIFS(Data!$G$6:$G$1888,Data!$L$6:$L$1888,$B10,Data!$J$6:$J$1888,L$4),SUMIFS(Data!$O$6:$O$1888,Data!$L$6:$L$1888,$B10,Data!$J$6:$J$1888,L$4)),"") ->  | M10: 24864 | O10: Engineer | P10: =SUM(H$5:H$106) -> 3826921.205 | Q10: =MIN(H$5:H$106) -> 6629 | R10: =AVERAGE(H$5:H$106) -> 191346.0603 | S10: =MAX(H$5:H$106) -> 1873460 | T10: =QUARTILE(H$5:H$106,1) -> 33000 | U10: =MEDIAN(H$5:H$106) -> 66177.63928 | V10: =QUARTILE(H$5:H$106,3) -> 131685.5571 | W10: 33000 | X10: 33177.63928 | Y10: 65507.9178 | Z10: 26371 | AA10: 17417.74443 | AB10: 5.5
B11: Mauritius | C11: =IF(IF($C$1=1,SUMIFS(Data!$G$6:$G$1888,Data!$L$6:$L$1888,$B11,Data!$J$6:$J$1888,C$4),SUMIFS(Data!$O$6:$O$1888,Data!$L$6:$L$1888,$B11,Data!$J$6:$J$1888,C$4))>0,IF($C$1=1,SUMIFS(Data!$G$6:$G$1888,Data!$L$6:$L$1888,$B11,Data!$J$6:$J$1888,C$4),SUMIFS(Data!$O$6:$O$1888,Data!$L$6:$L$1888,$B11,Data!$J$6:$J$1888,C$4)),"") ->  | D11: =IF(IF($C$1=1,SUMIFS(Data!$G$6:$G$1888,Data!$L$6:$L$1888,$B11,Data!$J$6:$J$1888,D$4),SUMIFS(Data!$O$6:$O$1888,Data!$L$6:$L$1888,$B11,Data!$J$6:$J$1888,D$4))>0,IF($C$1=1,SUMIFS(Data!$G$6:$G$1888,Data!$L$6:$L$1888,$B11,Data!$J$6:$J$1888,D$4),SUMIFS(Data!$O$6:$O$1888,Data!$L$6:$L$1888,$B11,Data!$J$6:$J$1888,D$4)),"") ->  | E11: =IF(IF($C$1=1,SUMIFS(Data!$G$6:$G$1888,Data!$L$6:$L$1888,$B11,Data!$J$6:$J$1888,E$4),SUMIFS(Data!$O$6:$O$1888,Data!$L$6:$L$1888,$B11,Data!$J$6:$J$1888,E$4))>0,IF($C$1=1,SUMIFS(Data!$G$6:$G$1888,Data!$L$6:$L$1888,$B11,Data!$J$6:$J$1888,E$4),SUMIFS(Data!$O$6:$O$1888,Data!$L$6:$L$1888,$B11,Data!$J$6:$J$1888,E$4)),"") ->  | F11: =IF(IF($C$1=1,SUMIFS(Data!$G$6:$G$1888,Data!$L$6:$L$1888,$B11,Data!$J$6:$J$1888,F$4),SUMIFS(Data!$O$6:$O$1888,Data!$L$6:$L$1888,$B11,Data!$J$6:$J$1888,F$4))>0,IF($C$1=1,SUMIFS(Data!$G$6:$G$1888,Data!$L$6:$L$1888,$B11,Data!$J$6:$J$1888,F$4),SUMIFS(Data!$O$6:$O$1888,Data!$L$6:$L$1888,$B11,Data!$J$6:$J$1888,F$4)),"") ->  | G11: =IF(IF($C$1=1,SUMIFS(Data!$G$6:$G$1888,Data!$L$6:$L$1888,$B11,Data!$J$6:$J$1888,G$4),SUMIFS(Data!$O$6:$O$1888,Data!$L$6:$L$1888,$B11,Data!$J$6:$J$1888,G$4))>0,IF($C$1=1,SUMIFS(Data!$G$6:$G$1888,Data!$L$6:$L$1888,$B11,Data!$J$6:$J$1888,G$4),SUMIFS(Data!$O$6:$O$1888,Data!$L$6:$L$1888,$B11,Data!$J$6:$J$1888,G$4)),"") ->  | H11: =IF(IF($C$1=1,SUMIFS(Data!$G$6:$G$1888,Data!$L$6:$L$1888,$B11,Data!$J$6:$J$1888,H$4),SUMIFS(Data!$O$6:$O$1888,Data!$L$6:$L$1888,$B11,Data!$J$6:$J$1888,H$4))>0,IF($C$1=1,SUMIFS(Data!$G$6:$G$1888,Data!$L$6:$L$1888,$B11,Data!$J$6:$J$1888,H$4),SUMIFS(Data!$O$6:$O$1888,Data!$L$6:$L$1888,$B11,Data!$J$6:$J$1888,H$4)),"") -> 9376.251388 | I11: =IF(IF($C$1=1,SUMIFS(Data!$G$6:$G$1888,Data!$L$6:$L$1888,$B11,Data!$J$6:$J$1888,I$4),SUMIFS(Data!$O$6:$O$1888,Data!$L$6:$L$1888,$B11,Data!$J$6:$J$1888,I$4))>0,IF($C$1=1,SUMIFS(Data!$G$6:$G$1888,Data!$L$6:$L$1888,$B11,Data!$J$6:$J$1888,I$4),SUMIFS(Data!$O$6:$O$1888,Data!$L$6:$L$1888,$B11,Data!$J$6:$J$1888,I$4)),"") ->  | J11: =IF(IF($C$1=1,SUMIFS(Data!$G$6:$G$1888,Data!$L$6:$L$1888,$B11,Data!$J$6:$J$1888,J$4),SUMIFS(Data!$O$6:$O$1888,Data!$L$6:$L$1888,$B11,Data!$J$6:$J$1888,J$4))>0,IF($C$1=1,SUMIFS(Data!$G$6:$G$1888,Data!$L$6:$L$1888,$B11,Data!$J$6:$J$1888,J$4),SUMIFS(Data!$O$6:$O$1888,Data!$L$6:$L$1888,$B11,Data!$J$6:$J$1888,J$4)),"") ->  | K11: =IF(IF($C$1=1,SUMIFS(Data!$G$6:$G$1888,Data!$L$6:$L$1888,$B11,Data!$J$6:$J$1888,K$4),SUMIFS(Data!$O$6:$O$1888,Data!$L$6:$L$1888,$B11,Data!$J$6:$J$1888,K$4))>0,IF($C$1=1,SUMIFS(Data!$G$6:$G$1888,Data!$L$6:$L$1888,$B11,Data!$J$6:$J$1888,K$4),SUMIFS(Data!$O$6:$O$1888,Data!$L$6:$L$1888,$B11,Data!$J$6:$J$1888,K$4)),"") ->  | L11: =IF(IF($C$1=1,SUMIFS(Data!$G$6:$G$1888,Data!$L$6:$L$1888,$B11,Data!$J$6:$J$1888,L$4),SUMIFS(Data!$O$6:$O$1888,Data!$L$6:$L$1888,$B11,Data!$J$6:$J$1888,L$4))>0,IF($C$1=1,SUMIFS(Data!$G$6:$G$1888,Data!$L$6:$L$1888,$B11,Data!$J$6:$J$1888,L$4),SUMIFS(Data!$O$6:$O$1888,Data!$L$6:$L$1888,$B11,Data!$J$6:$J$1888,L$4)),"") ->  | M11: 9376.251388 | O11: Manager | P11: =SUM(I$5:I$106) -> 25940438.32 | Q11: =MIN(I$5:I$106) -> 4400 | R11: =AVERAGE(I$5:I$106) -> 463222.1128 | S11: =MAX(I$5:I$106) -> 11249348 | T11: =QUARTILE(I$5:I$106,1) -> 35300 | U11: =MEDIAN(I$5:I$106) -> 82845.59151 | V11: =QUARTILE(I$5:I$106,3) -> 181275.2955 | W11: 35300 | X11: 47545.59151 | Y11: 98429.70396 | Z11: 30900 | AA11: 110680.727 | AB11: 6.5
B12: Morocco | C12: =IF(IF($C$1=1,SUMIFS(Data!$G$6:$G$1888,Data!$L$6:$L$1888,$B12,Data!$J$6:$J$1888,C$4),SUMIFS(Data!$O$6:$O$1888,Data!$L$6:$L$1888,$B12,Data!$J$6:$J$1888,C$4))>0,IF($C$1=1,SUMIFS(Data!$G$6:$G$1888,Data!$L$6:$L$1888,$B12,Data!$J$6:$J$1888,C$4),SUMIFS(Data!$O$6:$O$1888,Data!$L$6:$L$1888,$B12,Data!$J$6:$J$1888,C$4)),"") ->  | D12: =IF(IF($C$1=1,SUMIFS(Data!$G$6:$G$1888,Data!$L$6:$L$1888,$B12,Data!$J$6:$J$1888,D$4),SUMIFS(Data!$O$6:$O$1888,Data!$L$6:$L$1888,$B12,Data!$J$6:$J$1888,D$4))>0,IF($C$1=1,SUMIFS(Data!$G$6:$G$1888,Data!$L$6:$L$1888,$B12,Data!$J$6:$J$1888,D$4),SUMIFS(Data!$O$6:$O$1888,Data!$L$6:$L$1888,$B12,Data!$J$6:$J$1888,D$4)),"") -> 13745.70447 | E12: =IF(IF($C$1=1,SUMIFS(Data!$G$6:$G$1888,Data!$L$6:$L$1888,$B12,Data!$J$6:$J$1888,E$4),SUMIFS(Data!$O$6:$O$1888,Data!$L$6:$L$1888,$B12,Data!$J$6:$J$1888,E$4))>0,IF($C$1=1,SUMIFS(Data!$G$6:$G$1888,Data!$L$6:$L$1888,$B12,Data!$J$6:$J$1888,E$4),SUMIFS(Data!$O$6:$O$1888,Data!$L$6:$L$1888,$B12,Data!$J$6:$J$1888,E$4)),"") ->  | F12: =IF(IF($C$1=1,SUMIFS(Data!$G$6:$G$1888,Data!$L$6:$L$1888,$B12,Data!$J$6:$J$1888,F$4),SUMIFS(Data!$O$6:$O$1888,Data!$L$6:$L$1888,$B12,Data!$J$6:$J$1888,F$4))>0,IF($C$1=1,SUMIFS(Data!$G$6:$G$1888,Data!$L$6:$L$1888,$B12,Data!$J$6:$J$1888,F$4),SUMIFS(Data!$O$6:$O$1888,Data!$L$6:$L$1888,$B12,Data!$J$6:$J$1888,F$4)),"") ->  | G12: =IF(IF($C$1=1,SUMIFS(Data!$G$6:$G$1888,Data!$L$6:$L$1888,$B12,Data!$J$6:$J$1888,G$4),SUMIFS(Data!$O$6:$O$1888,Data!$L$6:$L$1888,$B12,Data!$J$6:$J$1888,G$4))>0,IF($C$1=1,SUMIFS(Data!$G$6:$G$1888,Data!$L$6:$L$1888,$B12,Data!$J$6:$J$1888,G$4),SUMIFS(Data!$O$6:$O$1888,Data!$L$6:$L$1888,$B12,Data!$J$6:$J$1888,G$4)),"") ->  | H12: =IF(IF($C$1=1,SUMIFS(Data!$G$6:$G$1888,Data!$L$6:$L$1888,$B12,Data!$J$6:$J$1888,H$4),SUMIFS(Data!$O$6:$O$1888,Data!$L$6:$L$1888,$B12,Data!$J$6:$J$1888,H$4))>0,IF($C$1=1,SUMIFS(Data!$G$6:$G$1888,Data!$L$6:$L$1888,$B12,Data!$J$6:$J$1888,H$4),SUMIFS(Data!$O$6:$O$1888,Data!$L$6:$L$1888,$B12,Data!$J$6:$J$1888,H$4)),"") ->  | I12: =IF(IF($C$1=1,SUMIFS(Data!$G$6:$G$1888,Data!$L$6:$L$1888,$B12,Data!$J$6:$J$1888,I$4),SUMIFS(Data!$O$6:$O$1888,Data!$L$6:$L$1888,$B12,Data!$J$6:$J$1888,I$4))>0,IF($C$1=1,SUMIFS(Data!$G$6:$G$1888,Data!$L$6:$L$1888,$B12,Data!$J$6:$J$1888,I$4),SUMIFS(Data!$O$6:$O$1888,Data!$L$6:$L$1888,$B12,Data!$J$6:$J$1888,I$4)),"") ->  | J12: =IF(IF($C$1=1,SUMIFS(Data!$G$6:$G$1888,Data!$L$6:$L$1888,$B12,Data!$J$6:$J$1888,J$4),SUMIFS(Data!$O$6:$O$1888,Data!$L$6:$L$1888,$B12,Data!$J$6:$J$1888,J$4))>0,IF($C$1=1,SUMIFS(Data!$G$6:$G$1888,Data!$L$6:$L$1888,$B12,Data!$J$6:$J$1888,J$4),SUMIFS(Data!$O$6:$O$1888,Data!$L$6:$L$1888,$B12,Data!$J$6:$J$1888,J$4)),"") ->  | K12: =IF(IF($C$1=1,SUMIFS(Data!$G$6:$G$1888,Data!$L$6:$L$1888,$B12,Data!$J$6:$J$1888,K$4),SUMIFS(Data!$O$6:$O$1888,Data!$L$6:$L$1888,$B12,Data!$J$6:$J$1888,K$4))>0,IF($C$1=1,SUMIFS(Data!$G$6:$G$1888,Data!$L$6:$L$1888,$B12,Data!$J$6:$J$1888,K$4),SUMIFS(Data!$O$6:$O$1888,Data!$L$6:$L$1888,$B12,Data!$J$6:$J$1888,K$4)),"") ->  | L12: =IF(IF($C$1=1,SUMIFS(Data!$G$6:$G$1888,Data!$L$6:$L$1888,$B12,Data!$J$6:$J$1888,L$4),SUMIFS(Data!$O$6:$O$1888,Data!$L$6:$L$1888,$B12,Data!$J$6:$J$1888,L$4))>0,IF($C$1=1,SUMIFS(Data!$G$6:$G$1888,Data!$L$6:$L$1888,$B12,Data!$J$6:$J$1888,L$4),SUMIFS(Data!$O$6:$O$1888,Data!$L$6:$L$1888,$B12,Data!$J$6:$J$1888,L$4)),"") ->  | M12: 13745.70447 | O12: Analyst | P12: =SUM(J$5:J$106) -> 34397756.68 | Q12: =MIN(J$5:J$106) -> 4800 | R12: =AVERAGE(J$5:J$106) -> 545996.1377 | S12: =MAX(J$5:J$106) -> 18587370 | T12: =QUARTILE(J$5:J$106,1) -> 18993.5 | U12: =MEDIAN(J$5:J$106) -> 50000 | V12: =QUARTILE(J$5:J$106,3) -> 138308.966 | W12: 18993.5 | X12: 31006.5 | Y12: 88308.96596 | Z12: 14193.5 | AA12: 184490.6103 | AB12: 7.5
B13: Mozambique | C13: =IF(IF($C$1=1,SUMIFS(Data!$G$6:$G$1888,Data!$L$6:$L$1888,$B13,Data!$J$6:$J$1888,C$4),SUMIFS(Data!$O$6:$O$1888,Data!$L$6:$L$1888,$B13,Data!$J$6:$J$1888,C$4))>0,IF($C$1=1,SUMIFS(Data!$G$6:$G$1888,Data!$L$6:$L$1888,$B13,Data!$J$6:$J$1888,C$4),SUMIFS(Data!$O$6:$O$1888,Data!$L$6:$L$1888,$B13,Data!$J$6:$J$1888,C$4)),"") ->  | D13: =IF(IF($C$1=1,SUMIFS(Data!$G$6:$G$1888,Data!$L$6:$L$1888,$B13,Data!$J$6:$J$1888,D$4),SUMIFS(Data!$O$6:$O$1888,Data!$L$6:$L$1888,$B13,Data!$J$6:$J$1888,D$4))>0,IF($C$1=1,SUMIFS(Data!$G$6:$G$1888,Data!$L$6:$L$1888,$B13,Data!$J$6:$J$1888,D$4),SUMIFS(Data!$O$6:$O$1888,Data!$L$6:$L$1888,$B13,Data!$J$6:$J$1888,D$4)),"") ->  | E13: =IF(IF($C$1=1,SUMIFS(Data!$G$6:$G$1888,Data!$L$6:$L$1888,$B13,Data!$J$6:$J$1888,E$4),SUMIFS(Data!$O$6:$O$1888,Data!$L$6:$L$1888,$B13,Data!$J$6:$J$1888,E$4))>0,IF($C$1=1,SUMIFS(Data!$G$6:$G$1888,Data!$L$6:$L$1888,$B13,Data!$J$6:$J$1888,E$4),SUMIFS(Data!$O$6:$O$1888,Data!$L$6:$L$1888,$B13,Data!$J$6:$J$1888,E$4)),"") ->  | F13: =IF(IF($C$1=1,SUMIFS(Data!$G$6:$G$1888,Data!$L$6:$L$1888,$B13,Data!$J$6:$J$1888,F$4),SUMIFS(Data!$O$6:$O$1888,Data!$L$6:$L$1888,$B13,Data!$J$6:$J$1888,F$4))>0,IF($C$1=1,SUMIFS(Data!$G$6:$G$1888,Data!$L$6:$L$1888,$B13,Data!$J$6:$J$1888,F$4),SUMIFS(Data!$O$6:$O$1888,Data!$L$6:$L$1888,$B13,Data!$J$6:$J$1888,F$4)),"") ->  | G13: =IF(IF($C$1=1,SUMIFS(Data!$G$6:$G$1888,Data!$L$6:$L$1888,$B13,Data!$J$6:$J$1888,G$4),SUMIFS(Data!$O$6:$O$1888,Data!$L$6:$L$1888,$B13,Data!$J$6:$J$1888,G$4))>0,IF($C$1=1,SUMIFS(Data!$G$6:$G$1888,Data!$L$6:$L$1888,$B13,Data!$J$6:$J$1888,G$4),SUMIFS(Data!$O$6:$O$1888,Data!$L$6:$L$1888,$B13,Data!$J$6:$J$1888,G$4)),"") ->  | H13: =IF(IF($C$1=1,SUMIFS(Data!$G$6:$G$1888,Data!$L$6:$L$1888,$B13,Data!$J$6:$J$1888,H$4),SUMIFS(Data!$O$6:$O$1888,Data!$L$6:$L$1888,$B13,Data!$J$6:$J$1888,H$4))>0,IF($C$1=1,SUMIFS(Data!$G$6:$G$1888,Data!$L$6:$L$1888,$B13,Data!$J$6:$J$1888,H$4),SUMIFS(Data!$O$6:$O$1888,Data!$L$6:$L$1888,$B13,Data!$J$6:$J$1888,H$4)),"") -> 24000 | I13: =IF(IF($C$1=1,SUMIFS(Data!$G$6:$G$1888,Data!$L$6:$L$1888,$B13,Data!$J$6:$J$1888,I$4),SUMIFS(Data!$O$6:$O$1888,Data!$L$6:$L$1888,$B13,Data!$J$6:$J$1888,I$4))>0,IF($C$1=1,SUMIFS(Data!$G$6:$G$1888,Data!$L$6:$L$1888,$B13,Data!$J$6:$J$1888,I$4),SUMIFS(Data!$O$6:$O$1888,Data!$L$6:$L$1888,$B13,Data!$J$6:$J$1888,I$4)),"") ->  | J13: =IF(IF($C$1=1,SUMIFS(Data!$G$6:$G$1888,Data!$L$6:$L$1888,$B13,Data!$J$6:$J$1888,J$4),SUMIFS(Data!$O$6:$O$1888,Data!$L$6:$L$1888,$B13,Data!$J$6:$J$1888,J$4))>0,IF($C$1=1,SUMIFS(Data!$G$6:$G$1888,Data!$L$6:$L$1888,$B13,Data!$J$6:$J$1888,J$4),SUMIFS(Data!$O$6:$O$1888,Data!$L$6:$L$1888,$B13,Data!$J$6:$J$1888,J$4)),"") ->  | K13: =IF(IF($C$1=1,SUMIFS(Data!$G$6:$G$1888,Data!$L$6:$L$1888,$B13,Data!$J$6:$J$1888,K$4),SUMIFS(Data!$O$6:$O$1888,Data!$L$6:$L$1888,$B13,Data!$J$6:$J$1888,K$4))>0,IF($C$1=1,SUMIFS(Data!$G$6:$G$1888,Data!$L$6:$L$1888,$B13,Data!$J$6:$J$1888,K$4),SUMIFS(Data!$O$6:$O$1888,Data!$L$6:$L$1888,$B13,Data!$J$6:$J$1888,K$4)),"") ->  | L13: =IF(IF($C$1=1,SUMIFS(Data!$G$6:$G$1888,Data!$L$6:$L$1888,$B13,Data!$J$6:$J$1888,L$4),SUMIFS(Data!$O$6:$O$1888,Data!$L$6:$L$1888,$B13,Data!$J$6:$J$1888,L$4))>0,IF($C$1=1,SUMIFS(Data!$G$6:$G$1888,Data!$L$6:$L$1888,$B13,Data!$J$6:$J$1888,L$4),SUMIFS(Data!$O$6:$O$1888,Data!$L$6:$L$1888,$B13,Data!$J$6:$J$1888,L$4)),"") ->  | M13: 24000 | O13: Misc. | P13: =SUM(K$5:K$106) -> 321666.3395 | Q13: =MIN(K$5:K$106) -> 70205.33953 | R13: =AVERAGE(K$5:K$106) -> 160833.1698 | S13: =MAX(K$5:K$106) -> 251461 | T13: =QUARTILE(K$5:K$106,1) -> 115519.2546 | U13: =MEDIAN(K$5:K$106) -> 160833.1698 | V13: =QUARTILE(K$5:K$106,3) -> 206147.0849 | W13: 115519.2546 | X13: 45313.91512 | Y13: 45313.91512 | Z13: 45313.91512 | AA13: 453.1391512 | AB13: 8.5
B14: Nigeria | C14: =IF(IF($C$1=1,SUMIFS(Data!$G$6:$G$1888,Data!$L$6:$L$1888,$B14,Data!$J$6:$J$1888,C$4),SUMIFS(Data!$O$6:$O$1888,Data!$L$6:$L$1888,$B14,Data!$J$6:$J$1888,C$4))>0,IF($C$1=1,SUMIFS(Data!$G$6:$G$1888,Data!$L$6:$L$1888,$B14,Data!$J$6:$J$1888,C$4),SUMIFS(Data!$O$6:$O$1888,Data!$L$6:$L$1888,$B14,Data!$J$6:$J$1888,C$4)),"") ->  | D14: =IF(IF($C$1=1,SUMIFS(Data!$G$6:$G$1888,Data!$L$6:$L$1888,$B14,Data!$J$6:$J$1888,D$4),SUMIFS(Data!$O$6:$O$1888,Data!$L$6:$L$1888,$B14,Data!$J$6:$J$1888,D$4))>0,IF($C$1=1,SUMIFS(Data!$G$6:$G$1888,Data!$L$6:$L$1888,$B14,Data!$J$6:$J$1888,D$4),SUMIFS(Data!$O$6:$O$1888,Data!$L$6:$L$1888,$B14,Data!$J$6:$J$1888,D$4)),"") ->  | E14: =IF(IF($C$1=1,SUMIFS(Data!$G$6:$G$1888,Data!$L$6:$L$1888,$B14,Data!$J$6:$J$1888,E$4),SUMIFS(Data!$O$6:$O$1888,Data!$L$6:$L$1888,$B14,Data!$J$6:$J$1888,E$4))>0,IF($C$1=1,SUMIFS(Data!$G$6:$G$1888,Data!$L$6:$L$1888,$B14,Data!$J$6:$J$1888,E$4),SUMIFS(Data!$O$6:$O$1888,Data!$L$6:$L$1888,$B14,Data!$J$6:$J$1888,E$4)),"") ->  | F14: =IF(IF($C$1=1,SUMIFS(Data!$G$6:$G$1888,Data!$L$6:$L$1888,$B14,Data!$J$6:$J$1888,F$4),SUMIFS(Data!$O$6:$O$1888,Data!$L$6:$L$1888,$B14,Data!$J$6:$J$1888,F$4))>0,IF($C$1=1,SUMIFS(Data!$G$6:$G$1888,Data!$L$6:$L$1888,$B14,Data!$J$6:$J$1888,F$4),SUMIFS(Data!$O$6:$O$1888,Data!$L$6:$L$1888,$B14,Data!$J$6:$J$1888,F$4)),"") ->  | G14: =IF(IF($C$1=1,SUMIFS(Data!$G$6:$G$1888,Data!$L$6:$L$1888,$B14,Data!$J$6:$J$1888,G$4),SUMIFS(Data!$O$6:$O$1888,Data!$L$6:$L$1888,$B14,Data!$J$6:$J$1888,G$4))>0,IF($C$1=1,SUMIFS(Data!$G$6:$G$1888,Data!$L$6:$L$1888,$B14,Data!$J$6:$J$1888,G$4),SUMIFS(Data!$O$6:$O$1888,Data!$L$6:$L$1888,$B14,Data!$J$6:$J$1888,G$4)),"") ->  | H14: =IF(IF($C$1=1,SUMIFS(Data!$G$6:$G$1888,Data!$L$6:$L$1888,$B14,Data!$J$6:$J$1888,H$4),SUMIFS(Data!$O$6:$O$1888,Data!$L$6:$L$1888,$B14,Data!$J$6:$J$1888,H$4))>0,IF($C$1=1,SUMIFS(Data!$G$6:$G$1888,Data!$L$6:$L$1888,$B14,Data!$J$6:$J$1888,H$4),SUMIFS(Data!$O$6:$O$1888,Data!$L$6:$L$1888,$B14,Data!$J$6:$J$1888,H$4)),"") ->  | I14: =IF(IF($C$1=1,SUMIFS(Data!$G$6:$G$1888,Data!$L$6:$L$1888,$B14,Data!$J$6:$J$1888,I$4),SUMIFS(Data!$O$6:$O$1888,Data!$L$6:$L$1888,$B14,Data!$J$6:$J$1888,I$4))>0,IF($C$1=1,SUMIFS(Data!$G$6:$G$1888,Data!$L$6:$L$1888,$B14,Data!$J$6:$J$1888,I$4),SUMIFS(Data!$O$6:$O$1888,Data!$L$6:$L$1888,$B14,Data!$J$6:$J$1888,I$4)),"") -> 21497.68875 | J14: =IF(IF($C$1=1,SUMIFS(Data!$G$6:$G$1888,Data!$L$6:$L$1888,$B14,Data!$J$6:$J$1888,J$4),SUMIFS(Data!$O$6:$O$1888,Data!$L$6:$L$1888,$B14,Data!$J$6:$J$1888,J$4))>0,IF($C$1=1,SUMIFS(Data!$G$6:$G$1888,Data!$L$6:$L$1888,$B14,Data!$J$6:$J$1888,J$4),SUMIFS(Data!$O$6:$O$1888,Data!$L$6:$L$1888,$B14,Data!$J$6:$J$1888,J$4)),"") -> 18987 | K14: =IF(IF($C$1=1,SUMIFS(Data!$G$6:$G$1888,Data!$L$6:$L$1888,$B14,Data!$J$6:$J$1888,K$4),SUMIFS(Data!$O$6:$O$1888,Data!$L$6:$L$1888,$B14,Data!$J$6:$J$1888,K$4))>0,IF($C$1=1,SUMIFS(Data!$G$6:$G$1888,Data!$L$6:$L$1888,$B14,Data!$J$6:$J$1888,K$4),SUMIFS(Data!$O$6:$O$1888,Data!$L$6:$L$1888,$B14,Data!$J$6:$J$1888,K$4)),"") ->  | L14: =IF(IF($C$1=1,SUMIFS(Data!$G$6:$G$1888,Data!$L$6:$L$1888,$B14,Data!$J$6:$J$1888,L$4),SUMIFS(Data!$O$6:$O$1888,Data!$L$6:$L$1888,$B14,Data!$J$6:$J$1888,L$4))>0,IF($C$1=1,SUMIFS(Data!$G$6:$G$1888,Data!$L$6:$L$1888,$B14,Data!$J$6:$J$1888,L$4),SUMIFS(Data!$O$6:$O$1888,Data!$L$6:$L$1888,$B14,Data!$J$6:$J$1888,L$4)),"") ->  | M14: 40484.68875 | O14: Reporting | P14: =SUM(L$5:L$106) -> 1624655.158 | Q14: =MIN(L$5:L$106) -> 1910.535969 | R14: =AVERAGE(L$5:L$106) -> 116046.797 | S14: =MAX(L$5:L$106) -> 618885.0837 | T14: =QUARTILE(L$5:L$106,1) -> 16250 | U14: =MEDIAN(L$5:L$106) -> 43500 | V14: =QUARTILE(L$5:L$106,3) -> 117367.2256 | W14: 16250 | X14: 27250 | Y14: 73867.22558 | Z14: 14339.46403 | AA14: 5015.178581 | AB14: 9.5
B15: Somalia | C15: =IF(IF($C$1=1,SUMIFS(Data!$G$6:$G$1888,Data!$L$6:$L$1888,$B15,Data!$J$6:$J$1888,C$4),SUMIFS(Data!$O$6:$O$1888,Data!$L$6:$L$1888,$B15,Data!$J$6:$J$1888,C$4))>0,IF($C$1=1,SUMIFS(Data!$G$6:$G$1888,Data!$L$6:$L$1888,$B15,Data!$J$6:$J$1888,C$4),SUMIFS(Data!$O$6:$O$1888,Data!$L$6:$L$1888,$B15,Data!$J$6:$J$1888,C$4)),"") ->  | D15: =IF(IF($C$1=1,SUMIFS(Data!$G$6:$G$1888,Data!$L$6:$L$1888,$B15,Data!$J$6:$J$1888,D$4),SUMIFS(Data!$O$6:$O$1888,Data!$L$6:$L$1888,$B15,Data!$J$6:$J$1888,D$4))>0,IF($C$1=1,SUMIFS(Data!$G$6:$G$1888,Data!$L$6:$L$1888,$B15,Data!$J$6:$J$1888,D$4),SUMIFS(Data!$O$6:$O$1888,Data!$L$6:$L$1888,$B15,Data!$J$6:$J$1888,D$4)),"") ->  | E15: =IF(IF($C$1=1,SUMIFS(Data!$G$6:$G$1888,Data!$L$6:$L$1888,$B15,Data!$J$6:$J$1888,E$4),SUMIFS(Data!$O$6:$O$1888,Data!$L$6:$L$1888,$B15,Data!$J$6:$J$1888,E$4))>0,IF($C$1=1,SUMIFS(Data!$G$6:$G$1888,Data!$L$6:$L$1888,$B15,Data!$J$6:$J$1888,E$4),SUMIFS(Data!$O$6:$O$1888,Data!$L$6:$L$1888,$B15,Data!$J$6:$J$1888,E$4)),"") ->  | F15: =IF(IF($C$1=1,SUMIFS(Data!$G$6:$G$1888,Data!$L$6:$L$1888,$B15,Data!$J$6:$J$1888,F$4),SUMIFS(Data!$O$6:$O$1888,Data!$L$6:$L$1888,$B15,Data!$J$6:$J$1888,F$4))>0,IF($C$1=1,SUMIFS(Data!$G$6:$G$1888,Data!$L$6:$L$1888,$B15,Data!$J$6:$J$1888,F$4),SUMIFS(Data!$O$6:$O$1888,Data!$L$6:$L$1888,$B15,Data!$J$6:$J$1888,F$4)),"") ->  | G15: =IF(IF($C$1=1,SUMIFS(Data!$G$6:$G$1888,Data!$L$6:$L$1888,$B15,Data!$J$6:$J$1888,G$4),SUMIFS(Data!$O$6:$O$1888,Data!$L$6:$L$1888,$B15,Data!$J$6:$J$1888,G$4))>0,IF($C$1=1,SUMIFS(Data!$G$6:$G$1888,Data!$L$6:$L$1888,$B15,Data!$J$6:$J$1888,G$4),SUMIFS(Data!$O$6:$O$1888,Data!$L$6:$L$1888,$B15,Data!$J$6:$J$1888,G$4)),"") ->  | H15: =IF(IF($C$1=1,SUMIFS(Data!$G$6:$G$1888,Data!$L$6:$L$1888,$B15,Data!$J$6:$J$1888,H$4),SUMIFS(Data!$O$6:$O$1888,Data!$L$6:$L$1888,$B15,Data!$J$6:$J$1888,H$4))>0,IF($C$1=1,SUMIFS(Data!$G$6:$G$1888,Data!$L$6:$L$1888,$B15,Data!$J$6:$J$1888,H$4),SUMIFS(Data!$O$6:$O$1888,Data!$L$6:$L$1888,$B15,Data!$J$6:$J$1888,H$4)),"") ->  | I15: =IF(IF($C$1=1,SUMIFS(Data!$G$6:$G$1888,Data!$L$6:$L$1888,$B15,Data!$J$6:$J$1888,I$4),SUMIFS(Data!$O$6:$O$1888,Data!$L$6:$L$1888,$B15,Data!$J$6:$J$1888,I$4))>0,IF($C$1=1,SUMIFS(Data!$G$6:$G$1888,Data!$L$6:$L$1888,$B15,Data!$J$6:$J$1888,I$4),SUMIFS(Data!$O$6:$O$1888,Data!$L$6:$L$1888,$B15,Data!$J$6:$J$1888,I$4)),"") -> 78000 | J15: =IF(IF($C$1=1,SUMIFS(Data!$G$6:$G$1888,Data!$L$6:$L$1888,$B15,Data!$J$6:$J$1888,J$4),SUMIFS(Data!$O$6:$O$1888,Data!$L$6:$L$1888,$B15,Data!$J$6:$J$1888,J$4))>0,IF($C$1=1,SUMIFS(Data!$G$6:$G$1888,Data!$L$6:$L$1888,$B15,Data!$J$6:$J$1888,J$4),SUMIFS(Data!$O$6:$O$1888,Data!$L$6:$L$1888,$B15,Data!$J$6:$J$1888,J$4)),"") ->  | K15: =IF(IF($C$1=1,SUMIFS(Data!$G$6:$G$1888,Data!$L$6:$L$1888,$B15,Data!$J$6:$J$1888,K$4),SUMIFS(Data!$O$6:$O$1888,Data!$L$6:$L$1888,$B15,Data!$J$6:$J$1888,K$4))>0,IF($C$1=1,SUMIFS(Data!$G$6:$G$1888,Data!$L$6:$L$1888,$B15,Data!$J$6:$J$1888,K$4),SUMIFS(Data!$O$6:$O$1888,Data!$L$6:$L$1888,$B15,Data!$J$6:$J$1888,K$4)),"") ->  | L15: =IF(IF($C$1=1,SUMIFS(Data!$G$6:$G$1888,Data!$L$6:$L$1888,$B15,Data!$J$6:$J$1888,L$4),SUMIFS(Data!$O$6:$O$1888,Data!$L$6:$L$1888,$B15,Data!$J$6:$J$1888,L$4))>0,IF($C$1=1,SUMIFS(Data!$G$6:$G$1888,Data!$L$6:$L$1888,$B15,Data!$J$6:$J$1888,L$4),SUMIFS(Data!$O$6:$O$1888,Data!$L$6:$L$1888,$B15,Data!$J$6:$J$1888,L$4)),"") ->  | M15: 78000 | P15: =SUM(P5:P14) -> 93800888.52
B16: South Africa | C16: =IF(IF($C$1=1,SUMIFS(Data!$G$6:$G$1888,Data!$L$6:$L$1888,$B16,Data!$J$6:$J$1888,C$4),SUMIFS(Data!$O$6:$O$1888,Data!$L$6:$L$1888,$B16,Data!$J$6:$J$1888,C$4))>0,IF($C$1=1,SUMIFS(Data!$G$6:$G$1888,Data!$L$6:$L$1888,$B16,Data!$J$6:$J$1888,C$4),SUMIFS(Data!$O$6:$O$1888,Data!$L$6:$L$1888,$B16,Data!$J$6:$J$1888,C$4)),"") -> 139630.6136 | D16: =IF(IF($C$1=1,SUMIFS(Data!$G$6:$G$1888,Data!$L$6:$L$1888,$B16,Data!$J$6:$J$1888,D$4),SUMIFS(Data!$O$6:$O$1888,Data!$L$6:$L$1888,$B16,Data!$J$6:$J$1888,D$4))>0,IF($C$1=1,SUMIFS(Data!$G$6:$G$1888,Data!$L$6:$L$1888,$B16,Data!$J$6:$J$1888,D$4),SUMIFS(Data!$O$6:$O$1888,Data!$L$6:$L$1888,$B16,Data!$J$6:$J$1888,D$4)),"") -> 9509.898829 | E16: =IF(IF($C$1=1,SUMIFS(Data!$G$6:$G$1888,Data!$L$6:$L$1888,$B16,Data!$J$6:$J$1888,E$4),SUMIFS(Data!$O$6:$O$1888,Data!$L$6:$L$1888,$B16,Data!$J$6:$J$1888,E$4))>0,IF($C$1=1,SUMIFS(Data!$G$6:$G$1888,Data!$L$6:$L$1888,$B16,Data!$J$6:$J$1888,E$4),SUMIFS(Data!$O$6:$O$1888,Data!$L$6:$L$1888,$B16,Data!$J$6:$J$1888,E$4)),"") -> 82000 | F16: =IF(IF($C$1=1,SUMIFS(Data!$G$6:$G$1888,Data!$L$6:$L$1888,$B16,Data!$J$6:$J$1888,F$4),SUMIFS(Data!$O$6:$O$1888,Data!$L$6:$L$1888,$B16,Data!$J$6:$J$1888,F$4))>0,IF($C$1=1,SUMIFS(Data!$G$6:$G$1888,Data!$L$6:$L$1888,$B16,Data!$J$6:$J$1888,F$4),SUMIFS(Data!$O$6:$O$1888,Data!$L$6:$L$1888,$B16,Data!$J$6:$J$1888,F$4)),"") -> 38666 | G16: =IF(IF($C$1=1,SUMIFS(Data!$G$6:$G$1888,Data!$L$6:$L$1888,$B16,Data!$J$6:$J$1888,G$4),SUMIFS(Data!$O$6:$O$1888,Data!$L$6:$L$1888,$B16,Data!$J$6:$J$1888,G$4))>0,IF($C$1=1,SUMIFS(Data!$G$6:$G$1888,Data!$L$6:$L$1888,$B16,Data!$J$6:$J$1888,G$4),SUMIFS(Data!$O$6:$O$1888,Data!$L$6:$L$1888,$B16,Data!$J$6:$J$1888,G$4)),"") -> 73915.32289 | H16: =IF(IF($C$1=1,SUMIFS(Data!$G$6:$G$1888,Data!$L$6:$L$1888,$B16,Data!$J$6:$J$1888,H$4),SUMIFS(Data!$O$6:$O$1888,Data!$L$6:$L$1888,$B16,Data!$J$6:$J$1888,H$4))>0,IF($C$1=1,SUMIFS(Data!$G$6:$G$1888,Data!$L$6:$L$1888,$B16,Data!$J$6:$J$1888,H$4),SUMIFS(Data!$O$6:$O$1888,Data!$L$6:$L$1888,$B16,Data!$J$6:$J$1888,H$4)),"") ->  | I16: =IF(IF($C$1=1,SUMIFS(Data!$G$6:$G$1888,Data!$L$6:$L$1888,$B16,Data!$J$6:$J$1888,I$4),SUMIFS(Data!$O$6:$O$1888,Data!$L$6:$L$1888,$B16,Data!$J$6:$J$1888,I$4))>0,IF($C$1=1,SUMIFS(Data!$G$6:$G$1888,Data!$L$6:$L$1888,$B16,Data!$J$6:$J$1888,I$4),SUMIFS(Data!$O$6:$O$1888,Data!$L$6:$L$1888,$B16,Data!$J$6:$J$1888,I$4)),"") -> 320480.5693 | J16: =IF(IF($C$1=1,SUMIFS(Data!$G$6:$G$1888,Data!$L$6:$L$1888,$B16,Data!$J$6:$J$1888,J$4),SUMIFS(Data!$O$6:$O$1888,Data!$L$6:$L$1888,$B16,Data!$J$6:$J$1888,J$4))>0,IF($C$1=1,SUMIFS(Data!$G$6:$G$1888,Data!$L$6:$L$1888,$B16,Data!$J$6:$J$1888,J$4),SUMIFS(Data!$O$6:$O$1888,Data!$L$6:$L$1888,$B16,Data!$J$6:$J$1888,J$4)),"") -> 220354.4703 | K16: =IF(IF($C$1=1,SUMIFS(Data!$G$6:$G$1888,Data!$L$6:$L$1888,$B16,Data!$J$6:$J$1888,K$4),SUMIFS(Data!$O$6:$O$1888,Data!$L$6:$L$1888,$B16,Data!$J$6:$J$1888,K$4))>0,IF($C$1=1,SUMIFS(Data!$G$6:$G$1888,Data!$L$6:$L$1888,$B16,Data!$J$6:$J$1888,K$4),SUMIFS(Data!$O$6:$O$1888,Data!$L$6:$L$1888,$B16,Data!$J$6:$J$1888,K$4)),"") ->  | L16: =IF(IF($C$1=1,SUMIFS(Data!$G$6:$G$1888,Data!$L$6:$L$1888,$B16,Data!$J$6:$J$1888,L$4),SUMIFS(Data!$O$6:$O$1888,Data!$L$6:$L$1888,$B16,Data!$J$6:$J$1888,L$4))>0,IF($C$1=1,SUMIFS(Data!$G$6:$G$1888,Data!$L$6:$L$1888,$B16,Data!$J$6:$J$1888,L$4),SUMIFS(Data!$O$6:$O$1888,Data!$L$6:$L$1888,$B16,Data!$J$6:$J$1888,L$4)),"") -> 57000 | M16: 941556.8749
B17: Tunisia | C17: =IF(IF($C$1=1,SUMIFS(Data!$G$6:$G$1888,Data!$L$6:$L$1888,$B17,Data!$J$6:$J$1888,C$4),SUMIFS(Data!$O$6:$O$1888,Data!$L$6:$L$1888,$B17,Data!$J$6:$J$1888,C$4))>0,IF($C$1=1,SUMIFS(Data!$G$6:$G$1888,Data!$L$6:$L$1888,$B17,Data!$J$6:$J$1888,C$4),SUMIFS(Data!$O$6:$O$1888,Data!$L$6:$L$1888,$B17,Data!$J$6:$J$1888,C$4)),"") ->  | D17: =IF(IF($C$1=1,SUMIFS(Data!$G$6:$G$1888,Data!$L$6:$L$1888,$B17,Data!$J$6:$J$1888,D$4),SUMIFS(Data!$O$6:$O$1888,Data!$L$6:$L$1888,$B17,Data!$J$6:$J$1888,D$4))>0,IF($C$1=1,SUMIFS(Data!$G$6:$G$1888,Data!$L$6:$L$1888,$B17,Data!$J$6:$J$1888,D$4),SUMIFS(Data!$O$6:$O$1888,Data!$L$6:$L$1888,$B17,Data!$J$6:$J$1888,D$4)),"") ->  | E17: =IF(IF($C$1=1,SUMIFS(Data!$G$6:$G$1888,Data!$L$6:$L$1888,$B17,Data!$J$6:$J$1888,E$4),SUMIFS(Data!$O$6:$O$1888,Data!$L$6:$L$1888,$B17,Data!$J$6:$J$1888,E$4))>0,IF($C$1=1,SUMIFS(Data!$G$6:$G$1888,Data!$L$6:$L$1888,$B17,Data!$J$6:$J$1888,E$4),SUMIFS(Data!$O$6:$O$1888,Data!$L$6:$L$1888,$B17,Data!$J$6:$J$1888,E$4)),"") ->  | F17: =IF(IF($C$1=1,SUMIFS(Data!$G$6:$G$1888,Data!$L$6:$L$1888,$B17,Data!$J$6:$J$1888,F$4),SUMIFS(Data!$O$6:$O$1888,Data!$L$6:$L$1888,$B17,Data!$J$6:$J$1888,F$4))>0,IF($C$1=1,SUMIFS(Data!$G$6:$G$1888,Data!$L$6:$L$1888,$B17,Data!$J$6:$J$1888,F$4),SUMIFS(Data!$O$6:$O$1888,Data!$L$6:$L$1888,$B17,Data!$J$6:$J$1888,F$4)),"") ->  | G17: =IF(IF($C$1=1,SUMIFS(Data!$G$6:$G$1888,Data!$L$6:$L$1888,$B17,Data!$J$6:$J$1888,G$4),SUMIFS(Data!$O$6:$O$1888,Data!$L$6:$L$1888,$B17,Data!$J$6:$J$1888,G$4))>0,IF($C$1=1,SUMIFS(Data!$G$6:$G$1888,Data!$L$6:$L$1888,$B17,Data!$J$6:$J$1888,G$4),SUMIFS(Data!$O$6:$O$1888,Data!$L$6:$L$1888,$B17,Data!$J$6:$J$1888,G$4)),"") ->  | H17: =IF(IF($C$1=1,SUMIFS(Data!$G$6:$G$1888,Data!$L$6:$L$1888,$B17,Data!$J$6:$J$1888,H$4),SUMIFS(Data!$O$6:$O$1888,Data!$L$6:$L$1888,$B17,Data!$J$6:$J$1888,H$4))>0,IF($C$1=1,SUMIFS(Data!$G$6:$G$1888,Data!$L$6:$L$1888,$B17,Data!$J$6:$J$1888,H$4),SUMIFS(Data!$O$6:$O$1888,Data!$L$6:$L$1888,$B17,Data!$J$6:$J$1888,H$4)),"") ->  | I17: =IF(IF($C$1=1,SUMIFS(Data!$G$6:$G$1888,Data!$L$6:$L$1888,$B17,Data!$J$6:$J$1888,I$4),SUMIFS(Data!$O$6:$O$1888,Data!$L$6:$L$1888,$B17,Data!$J$6:$J$1888,I$4))>0,IF($C$1=1,SUMIFS(Data!$G$6:$G$1888,Data!$L$6:$L$1888,$B17,Data!$J$6:$J$1888,I$4),SUMIFS(Data!$O$6:$O$1888,Data!$L$6:$L$1888,$B17,Data!$J$6:$J$1888,I$4)),"") ->  | J17: =IF(IF($C$1=1,SUMIFS(Data!$G$6:$G$1888,Data!$L$6:$L$1888,$B17,Data!$J$6:$J$1888,J$4),SUMIFS(Data!$O$6:$O$1888,Data!$L$6:$L$1888,$B17,Data!$J$6:$J$1888,J$4))>0,IF($C$1=1,SUMIFS(Data!$G$6:$G$1888,Data!$L$6:$L$1888,$B17,Data!$J$6:$J$1888,J$4),SUMIFS(Data!$O$6:$O$1888,Data!$L$6:$L$1888,$B17,Data!$J$6:$J$1888,J$4)),"") -> 11000 | K17: =IF(IF($C$1=1,SUMIFS(Data!$G$6:$G$1888,Data!$L$6:$L$1888,$B17,Data!$J$6:$J$1888,K$4),SUMIFS(Data!$O$6:$O$1888,Data!$L$6:$L$1888,$B17,Data!$J$6:$J$1888,K$4))>0,IF($C$1=1,SUMIFS(Data!$G$6:$G$1888,Data!$L$6:$L$1888,$B17,Data!$J$6:$J$1888,K$4),SUMIFS(Data!$O$6:$O$1888,Data!$L$6:$L$1888,$B17,Data!$J$6:$J$1888,K$4)),"") ->  | L17: =IF(IF($C$1=1,SUMIFS(Data!$G$6:$G$1888,Data!$L$6:$L$1888,$B17,Data!$J$6:$J$1888,L$4),SUMIFS(Data!$O$6:$O$1888,Data!$L$6:$L$1888,$B17,Data!$J$6:$J$1888,L$4))>0,IF($C$1=1,SUMIFS(Data!$G$6:$G$1888,Data!$L$6:$L$1888,$B17,Data!$J$6:$J$1888,L$4),SUMIFS(Data!$O$6:$O$1888,Data!$L$6:$L$1888,$B17,Data!$J$6:$J$1888,L$4)),"") ->  | M17: 11000
B18: Uganda | C18: =IF(IF($C$1=1,SUMIFS(Data!$G$6:$G$1888,Data!$L$6:$L$1888,$B18,Data!$J$6:$J$1888,C$4),SUMIFS(Data!$O$6:$O$1888,Data!$L$6:$L$1888,$B18,Data!$J$6:$J$1888,C$4))>0,IF($C$1=1,SUMIFS(Data!$G$6:$G$1888,Data!$L$6:$L$1888,$B18,Data!$J$6:$J$1888,C$4),SUMIFS(Data!$O$6:$O$1888,Data!$L$6:$L$1888,$B18,Data!$J$6:$J$1888,C$4)),"") ->  | D18: =IF(IF($C$1=1,SUMIFS(Data!$G$6:$G$1888,Data!$L$6:$L$1888,$B18,Data!$J$6:$J$1888,D$4),SUMIFS(Data!$O$6:$O$1888,Data!$L$6:$L$1888,$B18,Data!$J$6:$J$1888,D$4))>0,IF($C$1=1,SUMIFS(Data!$G$6:$G$1888,Data!$L$6:$L$1888,$B18,Data!$J$6:$J$1888,D$4),SUMIFS(Data!$O$6:$O$1888,Data!$L$6:$L$1888,$B18,Data!$J$6:$J$1888,D$4)),"") ->  | E18: =IF(IF($C$1=1,SUMIFS(Data!$G$6:$G$1888,Data!$L$6:$L$1888,$B18,Data!$J$6:$J$1888,E$4),SUMIFS(Data!$O$6:$O$1888,Data!$L$6:$L$1888,$B18,Data!$J$6:$J$1888,E$4))>0,IF($C$1=1,SUMIFS(Data!$G$6:$G$1888,Data!$L$6:$L$1888,$B18,Data!$J$6:$J$1888,E$4),SUMIFS(Data!$O$6:$O$1888,Data!$L$6:$L$1888,$B18,Data!$J$6:$J$1888,E$4)),"") ->  | F18: =IF(IF($C$1=1,SUMIFS(Data!$G$6:$G$1888,Data!$L$6:$L$1888,$B18,Data!$J$6:$J$1888,F$4),SUMIFS(Data!$O$6:$O$1888,Data!$L$6:$L$1888,$B18,Data!$J$6:$J$1888,F$4))>0,IF($C$1=1,SUMIFS(Data!$G$6:$G$1888,Data!$L$6:$L$1888,$B18,Data!$J$6:$J$1888,F$4),SUMIFS(Data!$O$6:$O$1888,Data!$L$6:$L$1888,$B18,Data!$J$6:$J$1888,F$4)),"") ->  | G18: =IF(IF($C$1=1,SUMIFS(Data!$G$6:$G$1888,Data!$L$6:$L$1888,$B18,Data!$J$6:$J$1888,G$4),SUMIFS(Data!$O$6:$O$1888,Data!$L$6:$L$1888,$B18,Data!$J$6:$J$1888,G$4))>0,IF($C$1=1,SUMIFS(Data!$G$6:$G$1888,Data!$L$6:$L$1888,$B18,Data!$J$6:$J$1888,G$4),SUMIFS(Data!$O$6:$O$1888,Data!$L$6:$L$1888,$B18,Data!$J$6:$J$1888,G$4)),"") ->  | H18: =IF(IF($C$1=1,SUMIFS(Data!$G$6:$G$1888,Data!$L$6:$L$1888,$B18,Data!$J$6:$J$1888,H$4),SUMIFS(Data!$O$6:$O$1888,Data!$L$6:$L$1888,$B18,Data!$J$6:$J$1888,H$4))>0,IF($C$1=1,SUMIFS(Data!$G$6:$G$1888,Data!$L$6:$L$1888,$B18,Data!$J$6:$J$1888,H$4),SUMIFS(Data!$O$6:$O$1888,Data!$L$6:$L$1888,$B18,Data!$J$6:$J$1888,H$4)),"") ->  | I18: =IF(IF($C$1=1,SUMIFS(Data!$G$6:$G$1888,Data!$L$6:$L$1888,$B18,Data!$J$6:$J$1888,I$4),SUMIFS(Data!$O$6:$O$1888,Data!$L$6:$L$1888,$B18,Data!$J$6:$J$1888,I$4))>0,IF($C$1=1,SUMIFS(Data!$G$6:$G$1888,Data!$L$6:$L$1888,$B18,Data!$J$6:$J$1888,I$4),SUMIFS(Data!$O$6:$O$1888,Data!$L$6:$L$1888,$B18,Data!$J$6:$J$1888,I$4)),"") ->  | J18: =IF(IF($C$1=1,SUMIFS(Data!$G$6:$G$1888,Data!$L$6:$L$1888,$B18,Data!$J$6:$J$1888,J$4),SUMIFS(Data!$O$6:$O$1888,Data!$L$6:$L$1888,$B18,Data!$J$6:$J$1888,J$4))>0,IF($C$1=1,SUMIFS(Data!$G$6:$G$1888,Data!$L$6:$L$1888,$B18,Data!$J$6:$J$1888,J$4),SUMIFS(Data!$O$6:$O$1888,Data!$L$6:$L$1888,$B18,Data!$J$6:$J$1888,J$4)),"") -> 100000 | K18: =IF(IF($C$1=1,SUMIFS(Data!$G$6:$G$1888,Data!$L$6:$L$1888,$B18,Data!$J$6:$J$1888,K$4),SUMIFS(Data!$O$6:$O$1888,Data!$L$6:$L$1888,$B18,Data!$J$6:$J$1888,K$4))>0,IF($C$1=1,SUMIFS(Data!$G$6:$G$1888,Data!$L$6:$L$1888,$B18,Data!$J$6:$J$1888,K$4),SUMIFS(Data!$O$6:$O$1888,Data!$L$6:$L$1888,$B18,Data!$J$6:$J$1888,K$4)),"") ->  | L18: =IF(IF($C$1=1,SUMIFS(Data!$G$6:$G$1888,Data!$L$6:$L$1888,$B18,Data!$J$6:$J$1888,L$4),SUMIFS(Data!$O$6:$O$1888,Data!$L$6:$L$1888,$B18,Data!$J$6:$J$1888,L$4))>0,IF($C$1=1,SUMIFS(Data!$G$6:$G$1888,Data!$L$6:$L$1888,$B18,Data!$J$6:$J$1888,L$4),SUMIFS(Data!$O$6:$O$1888,Data!$L$6:$L$1888,$B18,Data!$J$6:$J$1888,L$4)),"") ->  | M18: 100000 | P18: Min Average Max of Total of Salary for Jobtype
B19: Zambia | C19: =IF(IF($C$1=1,SUMIFS(Data!$G$6:$G$1888,Data!$L$6:$L$1888,$B19,Data!$J$6:$J$1888,C$4),SUMIFS(Data!$O$6:$O$1888,Data!$L$6:$L$1888,$B19,Data!$J$6:$J$1888,C$4))>0,IF($C$1=1,SUMIFS(Data!$G$6:$G$1888,Data!$L$6:$L$1888,$B19,Data!$J$6:$J$1888,C$4),SUMIFS(Data!$O$6:$O$1888,Data!$L$6:$L$1888,$B19,Data!$J$6:$J$1888,C$4)),"") ->  | D19: =IF(IF($C$1=1,SUMIFS(Data!$G$6:$G$1888,Data!$L$6:$L$1888,$B19,Data!$J$6:$J$1888,D$4),SUMIFS(Data!$O$6:$O$1888,Data!$L$6:$L$1888,$B19,Data!$J$6:$J$1888,D$4))>0,IF($C$1=1,SUMIFS(Data!$G$6:$G$1888,Data!$L$6:$L$1888,$B19,Data!$J$6:$J$1888,D$4),SUMIFS(Data!$O$6:$O$1888,Data!$L$6:$L$1888,$B19,Data!$J$6:$J$1888,D$4)),"") ->  | E19: =IF(IF($C$1=1,SUMIFS(Data!$G$6:$G$1888,Data!$L$6:$L$1888,$B19,Data!$J$6:$J$1888,E$4),SUMIFS(Data!$O$6:$O$1888,Data!$L$6:$L$1888,$B19,Data!$J$6:$J$1888,E$4))>0,IF($C$1=1,SUMIFS(Data!$G$6:$G$1888,Data!$L$6:$L$1888,$B19,Data!$J$6:$J$1888,E$4),SUMIFS(Data!$O$6:$O$1888,Data!$L$6:$L$1888,$B19,Data!$J$6:$J$1888,E$4)),"") ->  | F19: =IF(IF($C$1=1,SUMIFS(Data!$G$6:$G$1888,Data!$L$6:$L$1888,$B19,Data!$J$6:$J$1888,F$4),SUMIFS(Data!$O$6:$O$1888,Data!$L$6:$L$1888,$B19,Data!$J$6:$J$1888,F$4))>0,IF($C$1=1,SUMIFS(Data!$G$6:$G$1888,Data!$L$6:$L$1888,$B19,Data!$J$6:$J$1888,F$4),SUMIFS(Data!$O$6:$O$1888,Data!$L$6:$L$1888,$B19,Data!$J$6:$J$1888,F$4)),"") ->  | G19: =IF(IF($C$1=1,SUMIFS(Data!$G$6:$G$1888,Data!$L$6:$L$1888,$B19,Data!$J$6:$J$1888,G$4),SUMIFS(Data!$O$6:$O$1888,Data!$L$6:$L$1888,$B19,Data!$J$6:$J$1888,G$4))>0,IF($C$1=1,SUMIFS(Data!$G$6:$G$1888,Data!$L$6:$L$1888,$B19,Data!$J$6:$J$1888,G$4),SUMIFS(Data!$O$6:$O$1888,Data!$L$6:$L$1888,$B19,Data!$J$6:$J$1888,G$4)),"") -> 26000 | H19: =IF(IF($C$1=1,SUMIFS(Data!$G$6:$G$1888,Data!$L$6:$L$1888,$B19,Data!$J$6:$J$1888,H$4),SUMIFS(Data!$O$6:$O$1888,Data!$L$6:$L$1888,$B19,Data!$J$6:$J$1888,H$4))>0,IF($C$1=1,SUMIFS(Data!$G$6:$G$1888,Data!$L$6:$L$1888,$B19,Data!$J$6:$J$1888,H$4),SUMIFS(Data!$O$6:$O$1888,Data!$L$6:$L$1888,$B19,Data!$J$6:$J$1888,H$4)),"") ->  | I19: =IF(IF($C$1=1,SUMIFS(Data!$G$6:$G$1888,Data!$L$6:$L$1888,$B19,Data!$J$6:$J$1888,I$4),SUMIFS(Data!$O$6:$O$1888,Data!$L$6:$L$1888,$B19,Data!$J$6:$J$1888,I$4))>0,IF($C$1=1,SUMIFS(Data!$G$6:$G$1888,Data!$L$6:$L$1888,$B19,Data!$J$6:$J$1888,I$4),SUMIFS(Data!$O$6:$O$1888,Data!$L$6:$L$1888,$B19,Data!$J$6:$J$1888,I$4)),"") ->  | J19: =IF(IF($C$1=1,SUMIFS(Data!$G$6:$G$1888,Data!$L$6:$L$1888,$B19,Data!$J$6:$J$1888,J$4),SUMIFS(Data!$O$6:$O$1888,Data!$L$6:$L$1888,$B19,Data!$J$6:$J$1888,J$4))>0,IF($C$1=1,SUMIFS(Data!$G$6:$G$1888,Data!$L$6:$L$1888,$B19,Data!$J$6:$J$1888,J$4),SUMIFS(Data!$O$6:$O$1888,Data!$L$6:$L$1888,$B19,Data!$J$6:$J$1888,J$4)),"") ->  | K19: =IF(IF($C$1=1,SUMIFS(Data!$G$6:$G$1888,Data!$L$6:$L$1888,$B19,Data!$J$6:$J$1888,K$4),SUMIFS(Data!$O$6:$O$1888,Data!$L$6:$L$1888,$B19,Data!$J$6:$J$1888,K$4))>0,IF($C$1=1,SUMIFS(Data!$G$6:$G$1888,Data!$L$6:$L$1888,$B19,Data!$J$6:$J$1888,K$4),SUMIFS(Data!$O$6:$O$1888,Data!$L$6:$L$1888,$B19,Data!$J$6:$J$1888,K$4)),"") ->  | L19: =IF(IF($C$1=1,SUMIFS(Data!$G$6:$G$1888,Data!$L$6:$L$1888,$B19,Data!$J$6:$J$1888,L$4),SUMIFS(Data!$O$6:$O$1888,Data!$L$6:$L$1888,$B19,Data!$J$6:$J$1888,L$4))>0,IF($C$1=1,SUMIFS(Data!$G$6:$G$1888,Data!$L$6:$L$1888,$B19,Data!$J$6:$J$1888,L$4),SUMIFS(Data!$O$6:$O$1888,Data!$L$6:$L$1888,$B19,Data!$J$6:$J$1888,L$4)),"") ->  | M19: 26000
B20: Zimbabwe | C20: =IF(IF($C$1=1,SUMIFS(Data!$G$6:$G$1888,Data!$L$6:$L$1888,$B20,Data!$J$6:$J$1888,C$4),SUMIFS(Data!$O$6:$O$1888,Data!$L$6:$L$1888,$B20,Data!$J$6:$J$1888,C$4))>0,IF($C$1=1,SUMIFS(Data!$G$6:$G$1888,Data!$L$6:$L$1888,$B20,Data!$J$6:$J$1888,C$4),SUMIFS(Data!$O$6:$O$1888,Data!$L$6:$L$1888,$B20,Data!$J$6:$J$1888,C$4)),"") ->  | D20: =IF(IF($C$1=1,SUMIFS(Data!$G$6:$G$1888,Data!$L$6:$L$1888,$B20,Data!$J$6:$J$1888,D$4),SUMIFS(Data!$O$6:$O$1888,Data!$L$6:$L$1888,$B20,Data!$J$6:$J$1888,D$4))>0,IF($C$1=1,SUMIFS(Data!$G$6:$G$1888,Data!$L$6:$L$1888,$B20,Data!$J$6:$J$1888,D$4),SUMIFS(Data!$O$6:$O$1888,Data!$L$6:$L$1888,$B20,Data!$J$6:$J$1888,D$4)),"") ->  | E20: =IF(IF($C$1=1,SUMIFS(Data!$G$6:$G$1888,Data!$L$6:$L$1888,$B20,Data!$J$6:$J$1888,E$4),SUMIFS(Data!$O$6:$O$1888,Data!$L$6:$L$1888,$B20,Data!$J$6:$J$1888,E$4))>0,IF($C$1=1,SUMIFS(Data!$G$6:$G$1888,Data!$L$6:$L$1888,$B20,Data!$J$6:$J$1888,E$4),SUMIFS(Data!$O$6:$O$1888,Data!$L$6:$L$1888,$B20,Data!$J$6:$J$1888,E$4)),"") ->  | F20: =IF(IF($C$1=1,SUMIFS(Data!$G$6:$G$1888,Data!$L$6:$L$1888,$B20,Data!$J$6:$J$1888,F$4),SUMIFS(Data!$O$6:$O$1888,Data!$L$6:$L$1888,$B20,Data!$J$6:$J$1888,F$4))>0,IF($C$1=1,SUMIFS(Data!$G$6:$G$1888,Data!$L$6:$L$1888,$B20,Data!$J$6:$J$1888,F$4),SUMIFS(Data!$O$6:$O$1888,Data!$L$6:$L$1888,$B20,Data!$J$6:$J$1888,F$4)),"") ->  | G20: =IF(IF($C$1=1,SUMIFS(Data!$G$6:$G$1888,Data!$L$6:$L$1888,$B20,Data!$J$6:$J$1888,G$4),SUMIFS(Data!$O$6:$O$1888,Data!$L$6:$L$1888,$B20,Data!$J$6:$J$1888,G$4))>0,IF($C$1=1,SUMIFS(Data!$G$6:$G$1888,Data!$L$6:$L$1888,$B20,Data!$J$6:$J$1888,G$4),SUMIFS(Data!$O$6:$O$1888,Data!$L$6:$L$1888,$B20,Data!$J$6:$J$1888,G$4)),"") ->  | H20: =IF(IF($C$1=1,SUMIFS(Data!$G$6:$G$1888,Data!$L$6:$L$1888,$B20,Data!$J$6:$J$1888,H$4),SUMIFS(Data!$O$6:$O$1888,Data!$L$6:$L$1888,$B20,Data!$J$6:$J$1888,H$4))>0,IF($C$1=1,SUMIFS(Data!$G$6:$G$1888,Data!$L$6:$L$1888,$B20,Data!$J$6:$J$1888,H$4),SUMIFS(Data!$O$6:$O$1888,Data!$L$6:$L$1888,$B20,Data!$J$6:$J$1888,H$4)),"") ->  | I20: =IF(IF($C$1=1,SUMIFS(Data!$G$6:$G$1888,Data!$L$6:$L$1888,$B20,Data!$J$6:$J$1888,I$4),SUMIFS(Data!$O$6:$O$1888,Data!$L$6:$L$1888,$B20,Data!$J$6:$J$1888,I$4))>0,IF($C$1=1,SUMIFS(Data!$G$6:$G$1888,Data!$L$6:$L$1888,$B20,Data!$J$6:$J$1888,I$4),SUMIFS(Data!$O$6:$O$1888,Data!$L$6:$L$1888,$B20,Data!$J$6:$J$1888,I$4)),"") ->  | J20: =IF(IF($C$1=1,SUMIFS(Data!$G$6:$G$1888,Data!$L$6:$L$1888,$B20,Data!$J$6:$J$1888,J$4),SUMIFS(Data!$O$6:$O$1888,Data!$L$6:$L$1888,$B20,Data!$J$6:$J$1888,J$4))>0,IF($C$1=1,SUMIFS(Data!$G$6:$G$1888,Data!$L$6:$L$1888,$B20,Data!$J$6:$J$1888,J$4),SUMIFS(Data!$O$6:$O$1888,Data!$L$6:$L$1888,$B20,Data!$J$6:$J$1888,J$4)),"") -> 36400 | K20: =IF(IF($C$1=1,SUMIFS(Data!$G$6:$G$1888,Data!$L$6:$L$1888,$B20,Data!$J$6:$J$1888,K$4),SUMIFS(Data!$O$6:$O$1888,Data!$L$6:$L$1888,$B20,Data!$J$6:$J$1888,K$4))>0,IF($C$1=1,SUMIFS(Data!$G$6:$G$1888,Data!$L$6:$L$1888,$B20,Data!$J$6:$J$1888,K$4),SUMIFS(Data!$O$6:$O$1888,Data!$L$6:$L$1888,$B20,Data!$J$6:$J$1888,K$4)),"") ->  | L20: =IF(IF($C$1=1,SUMIFS(Data!$G$6:$G$1888,Data!$L$6:$L$1888,$B20,Data!$J$6:$J$1888,L$4),SUMIFS(Data!$O$6:$O$1888,Data!$L$6:$L$1888,$B20,Data!$J$6:$J$1888,L$4))>0,IF($C$1=1,SUMIFS(Data!$G$6:$G$1888,Data!$L$6:$L$1888,$B20,Data!$J$6:$J$1888,L$4),SUMIFS(Data!$O$6:$O$1888,Data!$L$6:$L$1888,$B20,Data!$J$6:$J$1888,L$4)),"") ->  | M20: 36400
B21: Bangladesh | C21: =IF(IF($C$1=1,SUMIFS(Data!$G$6:$G$1888,Data!$L$6:$L$1888,$B21,Data!$J$6:$J$1888,C$4),SUMIFS(Data!$O$6:$O$1888,Data!$L$6:$L$1888,$B21,Data!$J$6:$J$1888,C$4))>0,IF($C$1=1,SUMIFS(Data!$G$6:$G$1888,Data!$L$6:$L$1888,$B21,Data!$J$6:$J$1888,C$4),SUMIFS(Data!$O$6:$O$1888,Data!$L$6:$L$1888,$B21,Data!$J$6:$J$1888,C$4)),"") ->  | D21: =IF(IF($C$1=1,SUMIFS(Data!$G$6:$G$1888,Data!$L$6:$L$1888,$B21,Data!$J$6:$J$1888,D$4),SUMIFS(Data!$O$6:$O$1888,Data!$L$6:$L$1888,$B21,Data!$J$6:$J$1888,D$4))>0,IF($C$1=1,SUMIFS(Data!$G$6:$G$1888,Data!$L$6:$L$1888,$B21,Data!$J$6:$J$1888,D$4),SUMIFS(Data!$O$6:$O$1888,Data!$L$6:$L$1888,$B21,Data!$J$6:$J$1888,D$4)),"") ->  | E21: =IF(IF($C$1=1,SUMIFS(Data!$G$6:$G$1888,Data!$L$6:$L$1888,$B21,Data!$J$6:$J$1888,E$4),SUMIFS(Data!$O$6:$O$1888,Data!$L$6:$L$1888,$B21,Data!$J$6:$J$1888,E$4))>0,IF($C$1=1,SUMIFS(Data!$G$6:$G$1888,Data!$L$6:$L$1888,$B21,Data!$J$6:$J$1888,E$4),SUMIFS(Data!$O$6:$O$1888,Data!$L$6:$L$1888,$B21,Data!$J$6:$J$1888,E$4)),"") ->  | F21: =IF(IF($C$1=1,SUMIFS(Data!$G$6:$G$1888,Data!$L$6:$L$1888,$B21,Data!$J$6:$J$1888,F$4),SUMIFS(Data!$O$6:$O$1888,Data!$L$6:$L$1888,$B21,Data!$J$6:$J$1888,F$4))>0,IF($C$1=1,SUMIFS(Data!$G$6:$G$1888,Data!$L$6:$L$1888,$B21,Data!$J$6:$J$1888,F$4),SUMIFS(Data!$O$6:$O$1888,Data!$L$6:$L$1888,$B21,Data!$J$6:$J$1888,F$4)),"") ->  | G21: =IF(IF($C$1=1,SUMIFS(Data!$G$6:$G$1888,Data!$L$6:$L$1888,$B21,Data!$J$6:$J$1888,G$4),SUMIFS(Data!$O$6:$O$1888,Data!$L$6:$L$1888,$B21,Data!$J$6:$J$1888,G$4))>0,IF($C$1=1,SUMIFS(Data!$G$6:$G$1888,Data!$L$6:$L$1888,$B21,Data!$J$6:$J$1888,G$4),SUMIFS(Data!$O$6:$O$1888,Data!$L$6:$L$1888,$B21,Data!$J$6:$J$1888,G$4)),"") ->  | H21: =IF(IF($C$1=1,SUMIFS(Data!$G$6:$G$1888,Data!$L$6:$L$1888,$B21,Data!$J$6:$J$1888,H$4),SUMIFS(Data!$O$6:$O$1888,Data!$L$6:$L$1888,$B21,Data!$J$6:$J$1888,H$4))>0,IF($C$1=1,SUMIFS(Data!$G$6:$G$1888,Data!$L$6:$L$1888,$B21,Data!$J$6:$J$1888,H$4),SUMIFS(Data!$O$6:$O$1888,Data!$L$6:$L$1888,$B21,Data!$J$6:$J$1888,H$4)),"") ->  | I21: =IF(IF($C$1=1,SUMIFS(Data!$G$6:$G$1888,Data!$L$6:$L$1888,$B21,Data!$J$6:$J$1888,I$4),SUMIFS(Data!$O$6:$O$1888,Data!$L$6:$L$1888,$B21,Data!$J$6:$J$1888,I$4))>0,IF($C$1=1,SUMIFS(Data!$G$6:$G$1888,Data!$L$6:$L$1888,$B21,Data!$J$6:$J$1888,I$4),SUMIFS(Data!$O$6:$O$1888,Data!$L$6:$L$1888,$B21,Data!$J$6:$J$1888,I$4)),"") ->  | J21: =IF(IF($C$1=1,SUMIFS(Data!$G$6:$G$1888,Data!$L$6:$L$1888,$B21,Data!$J$6:$J$1888,J$4),SUMIFS(Data!$O$6:$O$1888,Data!$L$6:$L$1888,$B21,Data!$J$6:$J$1888,J$4))>0,IF($C$1=1,SUMIFS(Data!$G$6:$G$1888,Data!$L$6:$L$1888,$B21,Data!$J$6:$J$1888,J$4),SUMIFS(Data!$O$6:$O$1888,Data!$L$6:$L$1888,$B21,Data!$J$6:$J$1888,J$4)),"") -> 20598.01729 | K21: =IF(IF($C$1=1,SUMIFS(Data!$G$6:$G$1888,Data!$L$6:$L$1888,$B21,Data!$J$6:$J$1888,K$4),SUMIFS(Data!$O$6:$O$1888,Data!$L$6:$L$1888,$B21,Data!$J$6:$J$1888,K$4))>0,IF($C$1=1,SUMIFS(Data!$G$6:$G$1888,Data!$L$6:$L$1888,$B21,Data!$J$6:$J$1888,K$4),SUMIFS(Data!$O$6:$O$1888,Data!$L$6:$L$1888,$B21,Data!$J$6:$J$1888,K$4)),"") ->  | L21: =IF(IF($C$1=1,SUMIFS(Data!$G$6:$G$1888,Data!$L$6:$L$1888,$B21,Data!$J$6:$J$1888,L$4),SUMIFS(Data!$O$6:$O$1888,Data!$L$6:$L$1888,$B21,Data!$J$6:$J$1888,L$4))>0,IF($C$1=1,SUMIFS(Data!$G$6:$G$1888,Data!$L$6:$L$1888,$B21,Data!$J$6:$J$1888,L$4),SUMIFS(Data!$O$6:$O$1888,Data!$L$6:$L$1888,$B21,Data!$J$6:$J$1888,L$4)),"") ->  | M21: 20598.01729
B22: Bhutan | C22: =IF(IF($C$1=1,SUMIFS(Data!$G$6:$G$1888,Data!$L$6:$L$1888,$B22,Data!$J$6:$J$1888,C$4),SUMIFS(Data!$O$6:$O$1888,Data!$L$6:$L$1888,$B22,Data!$J$6:$J$1888,C$4))>0,IF($C$1=1,SUMIFS(Data!$G$6:$G$1888,Data!$L$6:$L$1888,$B22,Data!$J$6:$J$1888,C$4),SUMIFS(Data!$O$6:$O$1888,Data!$L$6:$L$1888,$B22,Data!$J$6:$J$1888,C$4)),"") ->  | D22: =IF(IF($C$1=1,SUMIFS(Data!$G$6:$G$1888,Data!$L$6:$L$1888,$B22,Data!$J$6:$J$1888,D$4),SUMIFS(Data!$O$6:$O$1888,Data!$L$6:$L$1888,$B22,Data!$J$6:$J$1888,D$4))>0,IF($C$1=1,SUMIFS(Data!$G$6:$G$1888,Data!$L$6:$L$1888,$B22,Data!$J$6:$J$1888,D$4),SUMIFS(Data!$O$6:$O$1888,Data!$L$6:$L$1888,$B22,Data!$J$6:$J$1888,D$4)),"") ->  | E22: =IF(IF($C$1=1,SUMIFS(Data!$G$6:$G$1888,Data!$L$6:$L$1888,$B22,Data!$J$6:$J$1888,E$4),SUMIFS(Data!$O$6:$O$1888,Data!$L$6:$L$1888,$B22,Data!$J$6:$J$1888,E$4))>0,IF($C$1=1,SUMIFS(Data!$G$6:$G$1888,Data!$L$6:$L$1888,$B22,Data!$J$6:$J$1888,E$4),SUMIFS(Data!$O$6:$O$1888,Data!$L$6:$L$1888,$B22,Data!$J$6:$J$1888,E$4)),"") ->  | F22: =IF(IF($C$1=1,SUMIFS(Data!$G$6:$G$1888,Data!$L$6:$L$1888,$B22,Data!$J$6:$J$1888,F$4),SUMIFS(Data!$O$6:$O$1888,Data!$L$6:$L$1888,$B22,Data!$J$6:$J$1888,F$4))>0,IF($C$1=1,SUMIFS(Data!$G$6:$G$1888,Data!$L$6:$L$1888,$B22,Data!$J$6:$J$1888,F$4),SUMIFS(Data!$O$6:$O$1888,Data!$L$6:$L$1888,$B22,Data!$J$6:$J$1888,F$4)),"") ->  | G22: =IF(IF($C$1=1,SUMIFS(Data!$G$6:$G$1888,Data!$L$6:$L$1888,$B22,Data!$J$6:$J$1888,G$4),SUMIFS(Data!$O$6:$O$1888,Data!$L$6:$L$1888,$B22,Data!$J$6:$J$1888,G$4))>0,IF($C$1=1,SUMIFS(Data!$G$6:$G$1888,Data!$L$6:$L$1888,$B22,Data!$J$6:$J$1888,G$4),SUMIFS(Data!$O$6:$O$1888,Data!$L$6:$L$1888,$B22,Data!$J$6:$J$1888,G$4)),"") ->  | H22: =IF(IF($C$1=1,SUMIFS(Data!$G$6:$G$1888,Data!$L$6:$L$1888,$B22,Data!$J$6:$J$1888,H$4),SUMIFS(Data!$O$6:$O$1888,Data!$L$6:$L$1888,$B22,Data!$J$6:$J$1888,H$4))>0,IF($C$1=1,SUMIFS(Data!$G$6:$G$1888,Data!$L$6:$L$1888,$B22,Data!$J$6:$J$1888,H$4),SUMIFS(Data!$O$6:$O$1888,Data!$L$6:$L$1888,$B22,Data!$J$6:$J$1888,H$4)),"") ->  | I22: =IF(IF($C$1=1,SUMIFS(Data!$G$6:$G$1888,Data!$L$6:$L$1888,$B22,Data!$J$6:$J$1888,I$4),SUMIFS(Data!$O$6:$O$1888,Data!$L$6:$L$1888,$B22,Data!$J$6:$J$1888,I$4))>0,IF($C$1=1,SUMIFS(Data!$G$6:$G$1888,Data!$L$6:$L$1888,$B22,Data!$J$6:$J$1888,I$4),SUMIFS(Data!$O$6:$O$1888,Data!$L$6:$L$1888,$B22,Data!$J$6:$J$1888,I$4)),"") ->  | J22: =IF(IF($C$1=1,SUMIFS(Data!$G$6:$G$1888,Data!$L$6:$L$1888,$B22,Data!$J$6:$J$1888,J$4),SUMIFS(Data!$O$6:$O$1888,Data!$L$6:$L$1888,$B22,Data!$J$6:$J$1888,J$4))>0,IF($C$1=1,SUMIFS(Data!$G$6:$G$1888,Data!$L$6:$L$1888,$B22,Data!$J$6:$J$1888,J$4),SUMIFS(Data!$O$6:$O$1888,Data!$L$6:$L$1888,$B22,Data!$J$6:$J$1888,J$4)),"") -> 4800 | K22: =IF(IF($C$1=1,SUMIFS(Data!$G$6:$G$1888,Data!$L$6:$L$1888,$B22,Data!$J$6:$J$1888,K$4),SUMIFS(Data!$O$6:$O$1888,Data!$L$6:$L$1888,$B22,Data!$J$6:$J$1888,K$4))>0,IF($C$1=1,SUMIFS(Data!$G$6:$G$1888,Data!$L$6:$L$1888,$B22,Data!$J$6:$J$1888,K$4),SUMIFS(Data!$O$6:$O$1888,Data!$L$6:$L$1888,$B22,Data!$J$6:$J$1888,K$4)),"") ->  | L22: =IF(IF($C$1=1,SUMIFS(Data!$G$6:$G$1888,Data!$L$6:$L$1888,$B22,Data!$J$6:$J$1888,L$4),SUMIFS(Data!$O$6:$O$1888,Data!$L$6:$L$1888,$B22,Data!$J$6:$J$1888,L$4))>0,IF($C$1=1,SUMIFS(Data!$G$6:$G$1888,Data!$L$6:$L$1888,$B22,Data!$J$6:$J$1888,L$4),SUMIFS(Data!$O$6:$O$1888,Data!$L$6:$L$1888,$B22,Data!$J$6:$J$1888,L$4)),"") ->  | M22: 4800
B23: Cambodia | C23: =IF(IF($C$1=1,SUMIFS(Data!$G$6:$G$1888,Data!$L$6:$L$1888,$B23,Data!$J$6:$J$1888,C$4),SUMIFS(Data!$O$6:$O$1888,Data!$L$6:$L$1888,$B23,Data!$J$6:$J$1888,C$4))>0,IF($C$1=1,SUMIFS(Data!$G$6:$G$1888,Data!$L$6:$L$1888,$B23,Data!$J$6:$J$1888,C$4),SUMIFS(Data!$O$6:$O$1888,Data!$L$6:$L$1888,$B23,Data!$J$6:$J$1888,C$4)),"") ->  | D23: =IF(IF($C$1=1,SUMIFS(Data!$G$6:$G$1888,Data!$L$6:$L$1888,$B23,Data!$J$6:$J$1888,D$4),SUMIFS(Data!$O$6:$O$1888,Data!$L$6:$L$1888,$B23,Data!$J$6:$J$1888,D$4))>0,IF($C$1=1,SUMIFS(Data!$G$6:$G$1888,Data!$L$6:$L$1888,$B23,Data!$J$6:$J$1888,D$4),SUMIFS(Data!$O$6:$O$1888,Data!$L$6:$L$1888,$B23,Data!$J$6:$J$1888,D$4)),"") ->  | E23: =IF(IF($C$1=1,SUMIFS(Data!$G$6:$G$1888,Data!$L$6:$L$1888,$B23,Data!$J$6:$J$1888,E$4),SUMIFS(Data!$O$6:$O$1888,Data!$L$6:$L$1888,$B23,Data!$J$6:$J$1888,E$4))>0,IF($C$1=1,SUMIFS(Data!$G$6:$G$1888,Data!$L$6:$L$1888,$B23,Data!$J$6:$J$1888,E$4),SUMIFS(Data!$O$6:$O$1888,Data!$L$6:$L$1888,$B23,Data!$J$6:$J$1888,E$4)),"") -> 3000 | F23: =IF(IF($C$1=1,SUMIFS(Data!$G$6:$G$1888,Data!$L$6:$L$1888,$B23,Data!$J$6:$J$1888,F$4),SUMIFS(Data!$O$6:$O$1888,Data!$L$6:$L$1888,$B23,Data!$J$6:$J$1888,F$4))>0,IF($C$1=1,SUMIFS(Data!$G$6:$G$1888,Data!$L$6:$L$1888,$B23,Data!$J$6:$J$1888,F$4),SUMIFS(Data!$O$6:$O$1888,Data!$L$6:$L$1888,$B23,Data!$J$6:$J$1888,F$4)),"") ->  | G23: =IF(IF($C$1=1,SUMIFS(Data!$G$6:$G$1888,Data!$L$6:$L$1888,$B23,Data!$J$6:$J$1888,G$4),SUMIFS(Data!$O$6:$O$1888,Data!$L$6:$L$1888,$B23,Data!$J$6:$J$1888,G$4))>0,IF($C$1=1,SUMIFS(Data!$G$6:$G$1888,Data!$L$6:$L$1888,$B23,Data!$J$6:$J$1888,G$4),SUMIFS(Data!$O$6:$O$1888,Data!$L$6:$L$1888,$B23,Data!$J$6:$J$1888,G$4)),"") ->  | H23: =IF(IF($C$1=1,SUMIFS(Data!$G$6:$G$1888,Data!$L$6:$L$1888,$B23,Data!$J$6:$J$1888,H$4),SUMIFS(Data!$O$6:$O$1888,Data!$L$6:$L$1888,$B23,Data!$J$6:$J$1888,H$4))>0,IF($C$1=1,SUMIFS(Data!$G$6:$G$1888,Data!$L$6:$L$1888,$B23,Data!$J$6:$J$1888,H$4),SUMIFS(Data!$O$6:$O$1888,Data!$L$6:$L$1888,$B23,Data!$J$6:$J$1888,H$4)),"") ->  | I23: =IF(IF($C$1=1,SUMIFS(Data!$G$6:$G$1888,Data!$L$6:$L$1888,$B23,Data!$J$6:$J$1888,I$4),SUMIFS(Data!$O$6:$O$1888,Data!$L$6:$L$1888,$B23,Data!$J$6:$J$1888,I$4))>0,IF($C$1=1,SUMIFS(Data!$G$6:$G$1888,Data!$L$6:$L$1888,$B23,Data!$J$6:$J$1888,I$4),SUMIFS(Data!$O$6:$O$1888,Data!$L$6:$L$1888,$B23,Data!$J$6:$J$1888,I$4)),"") ->  | J23: =IF(IF($C$1=1,SUMIFS(Data!$G$6:$G$1888,Data!$L$6:$L$1888,$B23,Data!$J$6:$J$1888,J$4),SUMIFS(Data!$O$6:$O$1888,Data!$L$6:$L$1888,$B23,Data!$J$6:$J$1888,J$4))>0,IF($C$1=1,SUMIFS(Data!$G$6:$G$1888,Data!$L$6:$L$1888,$B23,Data!$J$6:$J$1888,J$4),SUMIFS(Data!$O$6:$O$1888,Data!$L$6:$L$1888,$B23,Data!$J$6:$J$1888,J$4)),"") ->  | K23: =IF(IF($C$1=1,SUMIFS(Data!$G$6:$G$1888,Data!$L$6:$L$1888,$B23,Data!$J$6:$J$1888,K$4),SUMIFS(Data!$O$6:$O$1888,Data!$L$6:$L$1888,$B23,Data!$J$6:$J$1888,K$4))>0,IF($C$1=1,SUMIFS(Data!$G$6:$G$1888,Data!$L$6:$L$1888,$B23,Data!$J$6:$J$1888,K$4),SUMIFS(Data!$O$6:$O$1888,Data!$L$6:$L$1888,$B23,Data!$J$6:$J$1888,K$4)),"") ->  | L23: =IF(IF($C$1=1,SUMIFS(Data!$G$6:$G$1888,Data!$L$6:$L$1888,$B23,Data!$J$6:$J$1888,L$4),SUMIFS(Data!$O$6:$O$1888,Data!$L$6:$L$1888,$B23,Data!$J$6:$J$1888,L$4))>0,IF($C$1=1,SUMIFS(Data!$G$6:$G$1888,Data!$L$6:$L$1888,$B23,Data!$J$6:$J$1888,L$4),SUMIFS(Data!$O$6:$O$1888,Data!$L$6:$L$1888,$B23,Data!$J$6:$J$1888,L$4)),"") ->  | M23: 3000
B24: China | C24: =IF(IF($C$1=1,SUMIFS(Data!$G$6:$G$1888,Data!$L$6:$L$1888,$B24,Data!$J$6:$J$1888,C$4),SUMIFS(Data!$O$6:$O$1888,Data!$L$6:$L$1888,$B24,Data!$J$6:$J$1888,C$4))>0,IF($C$1=1,SUMIFS(Data!$G$6:$G$1888,Data!$L$6:$L$1888,$B24,Data!$J$6:$J$1888,C$4),SUMIFS(Data!$O$6:$O$1888,Data!$L$6:$L$1888,$B24,Data!$J$6:$J$1888,C$4)),"") ->  | D24: =IF(IF($C$1=1,SUMIFS(Data!$G$6:$G$1888,Data!$L$6:$L$1888,$B24,Data!$J$6:$J$1888,D$4),SUMIFS(Data!$O$6:$O$1888,Data!$L$6:$L$1888,$B24,Data!$J$6:$J$1888,D$4))>0,IF($C$1=1,SUMIFS(Data!$G$6:$G$1888,Data!$L$6:$L$1888,$B24,Data!$J$6:$J$1888,D$4),SUMIFS(Data!$O$6:$O$1888,Data!$L$6:$L$1888,$B24,Data!$J$6:$J$1888,D$4)),"") ->  | E24: =IF(IF($C$1=1,SUMIFS(Data!$G$6:$G$1888,Data!$L$6:$L$1888,$B24,Data!$J$6:$J$1888,E$4),SUMIFS(Data!$O$6:$O$1888,Data!$L$6:$L$1888,$B24,Data!$J$6:$J$1888,E$4))>0,IF($C$1=1,SUMIFS(Data!$G$6:$G$1888,Data!$L$6:$L$1888,$B24,Data!$J$6:$J$1888,E$4),SUMIFS(Data!$O$6:$O$1888,Data!$L$6:$L$1888,$B24,Data!$J$6:$J$1888,E$4)),"") ->  | F24: =IF(IF($C$1=1,SUMIFS(Data!$G$6:$G$1888,Data!$L$6:$L$1888,$B24,Data!$J$6:$J$1888,F$4),SUMIFS(Data!$O$6:$O$1888,Data!$L$6:$L$1888,$B24,Data!$J$6:$J$1888,F$4))>0,IF($C$1=1,SUMIFS(Data!$G$6:$G$1888,Data!$L$6:$L$1888,$B24,Data!$J$6:$J$1888,F$4),SUMIFS(Data!$O$6:$O$1888,Data!$L$6:$L$1888,$B24,Data!$J$6:$J$1888,F$4)),"") ->  | G24: =IF(IF($C$1=1,SUMIFS(Data!$G$6:$G$1888,Data!$L$6:$L$1888,$B24,Data!$J$6:$J$1888,G$4),SUMIFS(Data!$O$6:$O$1888,Data!$L$6:$L$1888,$B24,Data!$J$6:$J$1888,G$4))>0,IF($C$1=1,SUMIFS(Data!$G$6:$G$1888,Data!$L$6:$L$1888,$B24,Data!$J$6:$J$1888,G$4),SUMIFS(Data!$O$6:$O$1888,Data!$L$6:$L$1888,$B24,Data!$J$6:$J$1888,G$4)),"") -> 15092.18021 | H24: =IF(IF($C$1=1,SUMIFS(Data!$G$6:$G$1888,Data!$L$6:$L$1888,$B24,Data!$J$6:$J$1888,H$4),SUMIFS(Data!$O$6:$O$1888,Data!$L$6:$L$1888,$B24,Data!$J$6:$J$1888,H$4))>0,IF($C$1=1,SUMIFS(Data!$G$6:$G$1888,Data!$L$6:$L$1888,$B24,Data!$J$6:$J$1888,H$4),SUMIFS(Data!$O$6:$O$1888,Data!$L$6:$L$1888,$B24,Data!$J$6:$J$1888,H$4)),"") ->  | I24: =IF(IF($C$1=1,SUMIFS(Data!$G$6:$G$1888,Data!$L$6:$L$1888,$B24,Data!$J$6:$J$1888,I$4),SUMIFS(Data!$O$6:$O$1888,Data!$L$6:$L$1888,$B24,Data!$J$6:$J$1888,I$4))>0,IF($C$1=1,SUMIFS(Data!$G$6:$G$1888,Data!$L$6:$L$1888,$B24,Data!$J$6:$J$1888,I$4),SUMIFS(Data!$O$6:$O$1888,Data!$L$6:$L$1888,$B24,Data!$J$6:$J$1888,I$4)),"") ->  | J24: =IF(IF($C$1=1,SUMIFS(Data!$G$6:$G$1888,Data!$L$6:$L$1888,$B24,Data!$J$6:$J$1888,J$4),SUMIFS(Data!$O$6:$O$1888,Data!$L$6:$L$1888,$B24,Data!$J$6:$J$1888,J$4))>0,IF($C$1=1,SUMIFS(Data!$G$6:$G$1888,Data!$L$6:$L$1888,$B24,Data!$J$6:$J$1888,J$4),SUMIFS(Data!$O$6:$O$1888,Data!$L$6:$L$1888,$B24,Data!$J$6:$J$1888,J$4)),"") -> 19000 | K24: =IF(IF($C$1=1,SUMIFS(Data!$G$6:$G$1888,Data!$L$6:$L$1888,$B24,Data!$J$6:$J$1888,K$4),SUMIFS(Data!$O$6:$O$1888,Data!$L$6:$L$1888,$B24,Data!$J$6:$J$1888,K$4))>0,IF($C$1=1,SUMIFS(Data!$G$6:$G$1888,Data!$L$6:$L$1888,$B24,Data!$J$6:$J$1888,K$4),SUMIFS(Data!$O$6:$O$1888,Data!$L$6:$L$1888,$B24,Data!$J$6:$J$1888,K$4)),"") ->  | L24: =IF(IF($C$1=1,SUMIFS(Data!$G$6:$G$1888,Data!$L$6:$L$1888,$B24,Data!$J$6:$J$1888,L$4),SUMIFS(Data!$O$6:$O$1888,Data!$L$6:$L$1888,$B24,Data!$J$6:$J$1888,L$4))>0,IF($C$1=1,SUMIFS(Data!$G$6:$G$1888,Data!$L$6:$L$1888,$B24,Data!$J$6:$J$1888,L$4),SUMIFS(Data!$O$6:$O$1888,Data!$L$6:$L$1888,$B24,Data!$J$6:$J$1888,L$4)),"") ->  | M24: 34092.18021
B25: Dubai | C25: =IF(IF($C$1=1,SUMIFS(Data!$G$6:$G$1888,Data!$L$6:$L$1888,$B25,Data!$J$6:$J$1888,C$4),SUMIFS(Data!$O$6:$O$1888,Data!$L$6:$L$1888,$B25,Data!$J$6:$J$1888,C$4))>0,IF($C$1=1,SUMIFS(Data!$G$6:$G$1888,Data!$L$6:$L$1888,$B25,Data!$J$6:$J$1888,C$4),SUMIFS(Data!$O$6:$O$1888,Data!$L$6:$L$1888,$B25,Data!$J$6:$J$1888,C$4)),"") ->  | D25: =IF(IF($C$1=1,SUMIFS(Data!$G$6:$G$1888,Data!$L$6:$L$1888,$B25,Data!$J$6:$J$1888,D$4),SUMIFS(Data!$O$6:$O$1888,Data!$L$6:$L$1888,$B25,Data!$J$6:$J$1888,D$4))>0,IF($C$1=1,SUMIFS(Data!$G$6:$G$1888,Data!$L$6:$L$1888,$B25,Data!$J$6:$J$1888,D$4),SUMIFS(Data!$O$6:$O$1888,Data!$L$6:$L$1888,$B25,Data!$J$6:$J$1888,D$4)),"") ->  | E25: =IF(IF($C$1=1,SUMIFS(Data!$G$6:$G$1888,Data!$L$6:$L$1888,$B25,Data!$J$6:$J$1888,E$4),SUMIFS(Data!$O$6:$O$1888,Data!$L$6:$L$1888,$B25,Data!$J$6:$J$1888,E$4))>0,IF($C$1=1,SUMIFS(Data!$G$6:$G$1888,Data!$L$6:$L$1888,$B25,Data!$J$6:$J$1888,E$4),SUMIFS(Data!$O$6:$O$1888,Data!$L$6:$L$1888,$B25,Data!$J$6:$J$1888,E$4)),"") ->  | F25: =IF(IF($C$1=1,SUMIFS(Data!$G$6:$G$1888,Data!$L$6:$L$1888,$B25,Data!$J$6:$J$1888,F$4),SUMIFS(Data!$O$6:$O$1888,Data!$L$6:$L$1888,$B25,Data!$J$6:$J$1888,F$4))>0,IF($C$1=1,SUMIFS(Data!$G$6:$G$1888,Data!$L$6:$L$1888,$B25,Data!$J$6:$J$1888,F$4),SUMIFS(Data!$O$6:$O$1888,Data!$L$6:$L$1888,$B25,Data!$J$6:$J$1888,F$4)),"") ->  | G25: =IF(IF($C$1=1,SUMIFS(Data!$G$6:$G$1888,Data!$L$6:$L$1888,$B25,Data!$J$6:$J$1888,G$4),SUMIFS(Data!$O$6:$O$1888,Data!$L$6:$L$1888,$B25,Data!$J$6:$J$1888,G$4))>0,IF($C$1=1,SUMIFS(Data!$G$6:$G$1888,Data!$L$6:$L$1888,$B25,Data!$J$6:$J$1888,G$4),SUMIFS(Data!$O$6:$O$1888,Data!$L$6:$L$1888,$B25,Data!$J$6:$J$1888,G$4)),"") -> 69868.48682 | H25: =IF(IF($C$1=1,SUMIFS(Data!$G$6:$G$1888,Data!$L$6:$L$1888,$B25,Data!$J$6:$J$1888,H$4),SUMIFS(Data!$O$6:$O$1888,Data!$L$6:$L$1888,$B25,Data!$J$6:$J$1888,H$4))>0,IF($C$1=1,SUMIFS(Data!$G$6:$G$1888,Data!$L$6:$L$1888,$B25,Data!$J$6:$J$1888,H$4),SUMIFS(Data!$O$6:$O$1888,Data!$L$6:$L$1888,$B25,Data!$J$6:$J$1888,H$4)),"") ->  | I25: =IF(IF($C$1=1,SUMIFS(Data!$G$6:$G$1888,Data!$L$6:$L$1888,$B25,Data!$J$6:$J$1888,I$4),SUMIFS(Data!$O$6:$O$1888,Data!$L$6:$L$1888,$B25,Data!$J$6:$J$1888,I$4))>0,IF($C$1=1,SUMIFS(Data!$G$6:$G$1888,Data!$L$6:$L$1888,$B25,Data!$J$6:$J$1888,I$4),SUMIFS(Data!$O$6:$O$1888,Data!$L$6:$L$1888,$B25,Data!$J$6:$J$1888,I$4)),"") ->  | J25: =IF(IF($C$1=1,SUMIFS(Data!$G$6:$G$1888,Data!$L$6:$L$1888,$B25,Data!$J$6:$J$1888,J$4),SUMIFS(Data!$O$6:$O$1888,Data!$L$6:$L$1888,$B25,Data!$J$6:$J$1888,J$4))>0,IF($C$1=1,SUMIFS(Data!$G$6:$G$1888,Data!$L$6:$L$1888,$B25,Data!$J$6:$J$1888,J$4),SUMIFS(Data!$O$6:$O$1888,Data!$L$6:$L$1888,$B25,Data!$J$6:$J$1888,J$4)),"") -> 58799.34994 | K25: =IF(IF($C$1=1,SUMIFS(Data!$G$6:$G$1888,Data!$L$6:$L$1888,$B25,Data!$J$6:$J$1888,K$4),SUMIFS(Data!$O$6:$O$1888,Data!$L$6:$L$1888,$B25,Data!$J$6:$J$1888,K$4))>0,IF($C$1=1,SUMIFS(Data!$G$6:$G$1888,Data!$L$6:$L$1888,$B25,Data!$J$6:$J$1888,K$4),SUMIFS(Data!$O$6:$O$1888,Data!$L$6:$L$1888,$B25,Data!$J$6:$J$1888,K$4)),"") ->  | L25: =IF(IF($C$1=1,SUMIFS(Data!$G$6:$G$1888,Data!$L$6:$L$1888,$B25,Data!$J$6:$J$1888,L$4),SUMIFS(Data!$O$6:$O$1888,Data!$L$6:$L$1888,$B25,Data!$J$6:$J$1888,L$4))>0,IF($C$1=1,SUMIFS(Data!$G$6:$G$1888,Data!$L$6:$L$1888,$B25,Data!$J$6:$J$1888,L$4),SUMIFS(Data!$O$6:$O$1888,Data!$L$6:$L$1888,$B25,Data!$J$6:$J$1888,L$4)),"") ->  | M25: 128667.8368
B26: Hong Kong | C26: =IF(IF($C$1=1,SUMIFS(Data!$G$6:$G$1888,Data!$L$6:$L$1888,$B26,Data!$J$6:$J$1888,C$4),SUMIFS(Data!$O$6:$O$1888,Data!$L$6:$L$1888,$B26,Data!$J$6:$J$1888,C$4))>0,IF($C$1=1,SUMIFS(Data!$G$6:$G$1888,Data!$L$6:$L$1888,$B26,Data!$J$6:$J$1888,C$4),SUMIFS(Data!$O$6:$O$1888,Data!$L$6:$L$1888,$B26,Data!$J$6:$J$1888,C$4)),"") ->  | D26: =IF(IF($C$1=1,SUMIFS(Data!$G$6:$G$1888,Data!$L$6:$L$1888,$B26,Data!$J$6:$J$1888,D$4),SUMIFS(Data!$O$6:$O$1888,Data!$L$6:$L$1888,$B26,Data!$J$6:$J$1888,D$4))>0,IF($C$1=1,SUMIFS(Data!$G$6:$G$1888,Data!$L$6:$L$1888,$B26,Data!$J$6:$J$1888,D$4),SUMIFS(Data!$O$6:$O$1888,Data!$L$6:$L$1888,$B26,Data!$J$6:$J$1888,D$4)),"") ->  | E26: =IF(IF($C$1=1,SUMIFS(Data!$G$6:$G$1888,Data!$L$6:$L$1888,$B26,Data!$J$6:$J$1888,E$4),SUMIFS(Data!$O$6:$O$1888,Data!$L$6:$L$1888,$B26,Data!$J$6:$J$1888,E$4))>0,IF($C$1=1,SUMIFS(Data!$G$6:$G$1888,Data!$L$6:$L$1888,$B26,Data!$J$6:$J$1888,E$4),SUMIFS(Data!$O$6:$O$1888,Data!$L$6:$L$1888,$B26,Data!$J$6:$J$1888,E$4)),"") ->  | F26: =IF(IF($C$1=1,SUMIFS(Data!$G$6:$G$1888,Data!$L$6:$L$1888,$B26,Data!$J$6:$J$1888,F$4),SUMIFS(Data!$O$6:$O$1888,Data!$L$6:$L$1888,$B26,Data!$J$6:$J$1888,F$4))>0,IF($C$1=1,SUMIFS(Data!$G$6:$G$1888,Data!$L$6:$L$1888,$B26,Data!$J$6:$J$1888,F$4),SUMIFS(Data!$O$6:$O$1888,Data!$L$6:$L$1888,$B26,Data!$J$6:$J$1888,F$4)),"") ->  | G26: =IF(IF($C$1=1,SUMIFS(Data!$G$6:$G$1888,Data!$L$6:$L$1888,$B26,Data!$J$6:$J$1888,G$4),SUMIFS(Data!$O$6:$O$1888,Data!$L$6:$L$1888,$B26,Data!$J$6:$J$1888,G$4))>0,IF($C$1=1,SUMIFS(Data!$G$6:$G$1888,Data!$L$6:$L$1888,$B26,Data!$J$6:$J$1888,G$4),SUMIFS(Data!$O$6:$O$1888,Data!$L$6:$L$1888,$B26,Data!$J$6:$J$1888,G$4)),"") ->  | H26: =IF(IF($C$1=1,SUMIFS(Data!$G$6:$G$1888,Data!$L$6:$L$1888,$B26,Data!$J$6:$J$1888,H$4),SUMIFS(Data!$O$6:$O$1888,Data!$L$6:$L$1888,$B26,Data!$J$6:$J$1888,H$4))>0,IF($C$1=1,SUMIFS(Data!$G$6:$G$1888,Data!$L$6:$L$1888,$B26,Data!$J$6:$J$1888,H$4),SUMIFS(Data!$O$6:$O$1888,Data!$L$6:$L$1888,$B26,Data!$J$6:$J$1888,H$4)),"") ->  | I26: =IF(IF($C$1=1,SUMIFS(Data!$G$6:$G$1888,Data!$L$6:$L$1888,$B26,Data!$J$6:$J$1888,I$4),SUMIFS(Data!$O$6:$O$1888,Data!$L$6:$L$1888,$B26,Data!$J$6:$J$1888,I$4))>0,IF($C$1=1,SUMIFS(Data!$G$6:$G$1888,Data!$L$6:$L$1888,$B26,Data!$J$6:$J$1888,I$4),SUMIFS(Data!$O$6:$O$1888,Data!$L$6:$L$1888,$B26,Data!$J$6:$J$1888,I$4)),"") ->  | J26: =IF(IF($C$1=1,SUMIFS(Data!$G$6:$G$1888,Data!$L$6:$L$1888,$B26,Data!$J$6:$J$1888,J$4),SUMIFS(Data!$O$6:$O$1888,Data!$L$6:$L$1888,$B26,Data!$J$6:$J$1888,J$4))>0,IF($C$1=1,SUMIFS(Data!$G$6:$G$1888,Data!$L$6:$L$1888,$B26,Data!$J$6:$J$1888,J$4),SUMIFS(Data!$O$6:$O$1888,Data!$L$6:$L$1888,$B26,Data!$J$6:$J$1888,J$4)),"") -> 20000 | K26: =IF(IF($C$1=1,SUMIFS(Data!$G$6:$G$1888,Data!$L$6:$L$1888,$B26,Data!$J$6:$J$1888,K$4),SUMIFS(Data!$O$6:$O$1888,Data!$L$6:$L$1888,$B26,Data!$J$6:$J$1888,K$4))>0,IF($C$1=1,SUMIFS(Data!$G$6:$G$1888,Data!$L$6:$L$1888,$B26,Data!$J$6:$J$1888,K$4),SUMIFS(Data!$O$6:$O$1888,Data!$L$6:$L$1888,$B26,Data!$J$6:$J$1888,K$4)),"") ->  | L26: =IF(IF($C$1=1,SUMIFS(Data!$G$6:$G$1888,Data!$L$6:$L$1888,$B26,Data!$J$6:$J$1888,L$4),SUMIFS(Data!$O$6:$O$1888,Data!$L$6:$L$1888,$B26,Data!$J$6:$J$1888,L$4))>0,IF($C$1=1,SUMIFS(Data!$G$6:$G$1888,Data!$L$6:$L$1888,$B26,Data!$J$6:$J$1888,L$4),SUMIFS(Data!$O$6:$O$1888,Data!$L$6:$L$1888,$B26,Data!$J$6:$J$1888,L$4)),"") ->  | M26: 20000
B27: India | C27: =IF(IF($C$1=1,SUMIFS(Data!$G$6:$G$1888,Data!$L$6:$L$1888,$B27,Data!$J$6:$J$1888,C$4),SUMIFS(Data!$O$6:$O$1888,Data!$L$6:$L$1888,$B27,Data!$J$6:$J$1888,C$4))>0,IF($C$1=1,SUMIFS(Data!$G$6:$G$1888,Data!$L$6:$L$1888,$B27,Data!$J$6:$J$1888,C$4),SUMIFS(Data!$O$6:$O$1888,Data!$L$6:$L$1888,$B27,Data!$J$6:$J$1888,C$4)),"") -> 372571.8336 | D27: =IF(IF($C$1=1,SUMIFS(Data!$G$6:$G$1888,Data!$L$6:$L$1888,$B27,Data!$J$6:$J$1888,D$4),SUMIFS(Data!$O$6:$O$1888,Data!$L$6:$L$1888,$B27,Data!$J$6:$J$1888,D$4))>0,IF($C$1=1,SUMIFS(Data!$G$6:$G$1888,Data!$L$6:$L$1888,$B27,Data!$J$6:$J$1888,D$4),SUMIFS(Data!$O$6:$O$1888,Data!$L$6:$L$1888,$B27,Data!$J$6:$J$1888,D$4)),"") -> 73277.24006 | E27: =IF(IF($C$1=1,SUMIFS(Data!$G$6:$G$1888,Data!$L$6:$L$1888,$B27,Data!$J$6:$J$1888,E$4),SUMIFS(Data!$O$6:$O$1888,Data!$L$6:$L$1888,$B27,Data!$J$6:$J$1888,E$4))>0,IF($C$1=1,SUMIFS(Data!$G$6:$G$1888,Data!$L$6:$L$1888,$B27,Data!$J$6:$J$1888,E$4),SUMIFS(Data!$O$6:$O$1888,Data!$L$6:$L$1888,$B27,Data!$J$6:$J$1888,E$4)),"") -> 278567.9194 | F27: =IF(IF($C$1=1,SUMIFS(Data!$G$6:$G$1888,Data!$L$6:$L$1888,$B27,Data!$J$6:$J$1888,F$4),SUMIFS(Data!$O$6:$O$1888,Data!$L$6:$L$1888,$B27,Data!$J$6:$J$1888,F$4))>0,IF($C$1=1,SUMIFS(Data!$G$6:$G$1888,Data!$L$6:$L$1888,$B27,Data!$J$6:$J$1888,F$4),SUMIFS(Data!$O$6:$O$1888,Data!$L$6:$L$1888,$B27,Data!$J$6:$J$1888,F$4)),"") -> 153450.4334 | G27: =IF(IF($C$1=1,SUMIFS(Data!$G$6:$G$1888,Data!$L$6:$L$1888,$B27,Data!$J$6:$J$1888,G$4),SUMIFS(Data!$O$6:$O$1888,Data!$L$6:$L$1888,$B27,Data!$J$6:$J$1888,G$4))>0,IF($C$1=1,SUMIFS(Data!$G$6:$G$1888,Data!$L$6:$L$1888,$B27,Data!$J$6:$J$1888,G$4),SUMIFS(Data!$O$6:$O$1888,Data!$L$6:$L$1888,$B27,Data!$J$6:$J$1888,G$4)),"") -> 312239.5747 | H27: =IF(IF($C$1=1,SUMIFS(Data!$G$6:$G$1888,Data!$L$6:$L$1888,$B27,Data!$J$6:$J$1888,H$4),SUMIFS(Data!$O$6:$O$1888,Data!$L$6:$L$1888,$B27,Data!$J$6:$J$1888,H$4))>0,IF($C$1=1,SUMIFS(Data!$G$6:$G$1888,Data!$L$6:$L$1888,$B27,Data!$J$6:$J$1888,H$4),SUMIFS(Data!$O$6:$O$1888,Data!$L$6:$L$1888,$B27,Data!$J$6:$J$1888,H$4)),"") -> 272752.1626 | I27: =IF(IF($C$1=1,SUMIFS(Data!$G$6:$G$1888,Data!$L$6:$L$1888,$B27,Data!$J$6:$J$1888,I$4),SUMIFS(Data!$O$6:$O$1888,Data!$L$6:$L$1888,$B27,Data!$J$6:$J$1888,I$4))>0,IF($C$1=1,SUMIFS(Data!$G$6:$G$1888,Data!$L$6:$L$1888,$B27,Data!$J$6:$J$1888,I$4),SUMIFS(Data!$O$6:$O$1888,Data!$L$6:$L$1888,$B27,Data!$J$6:$J$1888,I$4)),"") -> 3363147.494 | J27: =IF(IF($C$1=1,SUMIFS(Data!$G$6:$G$1888,Data!$L$6:$L$1888,$B27,Data!$J$6:$J$1888,J$4),SUMIFS(Data!$O$6:$O$1888,Data!$L$6:$L$1888,$B27,Data!$J$6:$J$1888,J$4))>0,IF($C$1=1,SUMIFS(Data!$G$6:$G$1888,Data!$L$6:$L$1888,$B27,Data!$J$6:$J$1888,J$4),SUMIFS(Data!$O$6:$O$1888,Data!$L$6:$L$1888,$B27,Data!$J$6:$J$1888,J$4)),"") -> 2129031.374 | K27: =IF(IF($C$1=1,SUMIFS(Data!$G$6:$G$1888,Data!$L$6:$L$1888,$B27,Data!$J$6:$J$1888,K$4),SUMIFS(Data!$O$6:$O$1888,Data!$L$6:$L$1888,$B27,Data!$J$6:$J$1888,K$4))>0,IF($C$1=1,SUMIFS(Data!$G$6:$G$1888,Data!$L$6:$L$1888,$B27,Data!$J$6:$J$1888,K$4),SUMIFS(Data!$O$6:$O$1888,Data!$L$6:$L$1888,$B27,Data!$J$6:$J$1888,K$4)),"") -> 70205.33953 | L27: =IF(IF($C$1=1,SUMIFS(Data!$G$6:$G$1888,Data!$L$6:$L$1888,$B27,Data!$J$6:$J$1888,L$4),SUMIFS(Data!$O$6:$O$1888,Data!$L$6:$L$1888,$B27,Data!$J$6:$J$1888,L$4))>0,IF($C$1=1,SUMIFS(Data!$G$6:$G$1888,Data!$L$6:$L$1888,$B27,Data!$J$6:$J$1888,L$4),SUMIFS(Data!$O$6:$O$1888,Data!$L$6:$L$1888,$B27,Data!$J$6:$J$1888,L$4)),"") -> 618885.0837 | M27: 7644128.455
B28: Indonesia | C28: =IF(IF($C$1=1,SUMIFS(Data!$G$6:$G$1888,Data!$L$6:$L$1888,$B28,Data!$J$6:$J$1888,C$4),SUMIFS(Data!$O$6:$O$1888,Data!$L$6:$L$1888,$B28,Data!$J$6:$J$1888,C$4))>0,IF($C$1=1,SUMIFS(Data!$G$6:$G$1888,Data!$L$6:$L$1888,$B28,Data!$J$6:$J$1888,C$4),SUMIFS(Data!$O$6:$O$1888,Data!$L$6:$L$1888,$B28,Data!$J$6:$J$1888,C$4)),"") ->  | D28: =IF(IF($C$1=1,SUMIFS(Data!$G$6:$G$1888,Data!$L$6:$L$1888,$B28,Data!$J$6:$J$1888,D$4),SUMIFS(Data!$O$6:$O$1888,Data!$L$6:$L$1888,$B28,Data!$J$6:$J$1888,D$4))>0,IF($C$1=1,SUMIFS(Data!$G$6:$G$1888,Data!$L$6:$L$1888,$B28,Data!$J$6:$J$1888,D$4),SUMIFS(Data!$O$6:$O$1888,Data!$L$6:$L$1888,$B28,Data!$J$6:$J$1888,D$4)),"") -> 30000 | E28: =IF(IF($C$1=1,SUMIFS(Data!$G$6:$G$1888,Data!$L$6:$L$1888,$B28,Data!$J$6:$J$1888,E$4),SUMIFS(Data!$O$6:$O$1888,Data!$L$6:$L$1888,$B28,Data!$J$6:$J$1888,E$4))>0,IF($C$1=1,SUMIFS(Data!$G$6:$G$1888,Data!$L$6:$L$1888,$B28,Data!$J$6:$J$1888,E$4),SUMIFS(Data!$O$6:$O$1888,Data!$L$6:$L$1888,$B28,Data!$J$6:$J$1888,E$4)),"") ->  | F28: =IF(IF($C$1=1,SUMIFS(Data!$G$6:$G$1888,Data!$L$6:$L$1888,$B28,Data!$J$6:$J$1888,F$4),SUMIFS(Data!$O$6:$O$1888,Data!$L$6:$L$1888,$B28,Data!$J$6:$J$1888,F$4))>0,IF($C$1=1,SUMIFS(Data!$G$6:$G$1888,Data!$L$6:$L$1888,$B28,Data!$J$6:$J$1888,F$4),SUMIFS(Data!$O$6:$O$1888,Data!$L$6:$L$1888,$B28,Data!$J$6:$J$1888,F$4)),"") ->  | G28: =IF(IF($C$1=1,SUMIFS(Data!$G$6:$G$1888,Data!$L$6:$L$1888,$B28,Data!$J$6:$J$1888,G$4),SUMIFS(Data!$O$6:$O$1888,Data!$L$6:$L$1888,$B28,Data!$J$6:$J$1888,G$4))>0,IF($C$1=1,SUMIFS(Data!$G$6:$G$1888,Data!$L$6:$L$1888,$B28,Data!$J$6:$J$1888,G$4),SUMIFS(Data!$O$6:$O$1888,Data!$L$6:$L$1888,$B28,Data!$J$6:$J$1888,G$4)),"") ->  | H28: =IF(IF($C$1=1,SUMIFS(Data!$G$6:$G$1888,Data!$L$6:$L$1888,$B28,Data!$J$6:$J$1888,H$4),SUMIFS(Data!$O$6:$O$1888,Data!$L$6:$L$1888,$B28,Data!$J$6:$J$1888,H$4))>0,IF($C$1=1,SUMIFS(Data!$G$6:$G$1888,Data!$L$6:$L$1888,$B28,Data!$J$6:$J$1888,H$4),SUMIFS(Data!$O$6:$O$1888,Data!$L$6:$L$1888,$B28,Data!$J$6:$J$1888,H$4)),"") ->  | I28: =IF(IF($C$1=1,SUMIFS(Data!$G$6:$G$1888,Data!$L$6:$L$1888,$B28,Data!$J$6:$J$1888,I$4),SUMIFS(Data!$O$6:$O$1888,Data!$L$6:$L$1888,$B28,Data!$J$6:$J$1888,I$4))>0,IF($C$1=1,SUMIFS(Data!$G$6:$G$1888,Data!$L$6:$L$1888,$B28,Data!$J$6:$J$1888,I$4),SUMIFS(Data!$O$6:$O$1888,Data!$L$6:$L$1888,$B28,Data!$J$6:$J$1888,I$4)),"") -> 168000 | J28: =IF(IF($C$1=1,SUMIFS(Data!$G$6:$G$1888,Data!$L$6:$L$1888,$B28,Data!$J$6:$J$1888,J$4),SUMIFS(Data!$O$6:$O$1888,Data!$L$6:$L$1888,$B28,Data!$J$6:$J$1888,J$4))>0,IF($C$1=1,SUMIFS(Data!$G$6:$G$1888,Data!$L$6:$L$1888,$B28,Data!$J$6:$J$1888,J$4),SUMIFS(Data!$O$6:$O$1888,Data!$L$6:$L$1888,$B28,Data!$J$6:$J$1888,J$4)),"") -> 32982.69438 | K28: =IF(IF($C$1=1,SUMIFS(Data!$G$6:$G$1888,Data!$L$6:$L$1888,$B28,Data!$J$6:$J$1888,K$4),SUMIFS(Data!$O$6:$O$1888,Data!$L$6:$L$1888,$B28,Data!$J$6:$J$1888,K$4))>0,IF($C$1=1,SUMIFS(Data!$G$6:$G$1888,Data!$L$6:$L$1888,$B28,Data!$J$6:$J$1888,K$4),SUMIFS(Data!$O$6:$O$1888,Data!$L$6:$L$1888,$B28,Data!$J$6:$J$1888,K$4)),"") ->  | L28: =IF(IF($C$1=1,SUMIFS(Data!$G$6:$G$1888,Data!$L$6:$L$1888,$B28,Data!$J$6:$J$1888,L$4),SUMIFS(Data!$O$6:$O$1888,Data!$L$6:$L$1888,$B28,Data!$J$6:$J$1888,L$4))>0,IF($C$1=1,SUMIFS(Data!$G$6:$G$1888,Data!$L$6:$L$1888,$B28,Data!$J$6:$J$1888,L$4),SUMIFS(Data!$O$6:$O$1888,Data!$L$6:$L$1888,$B28,Data!$J$6:$J$1888,L$4)),"") ->  | M28: 230982.6944
B29: Iran | C29: =IF(IF($C$1=1,SUMIFS(Data!$G$6:$G$1888,Data!$L$6:$L$1888,$B29,Data!$J$6:$J$1888,C$4),SUMIFS(Data!$O$6:$O$1888,Data!$L$6:$L$1888,$B29,Data!$J$6:$J$1888,C$4))>0,IF($C$1=1,SUMIFS(Data!$G$6:$G$1888,Data!$L$6:$L$1888,$B29,Data!$J$6:$J$1888,C$4),SUMIFS(Data!$O$6:$O$1888,Data!$L$6:$L$1888,$B29,Data!$J$6:$J$1888,C$4)),"") ->  | D29: =IF(IF($C$1=1,SUMIFS(Data!$G$6:$G$1888,Data!$L$6:$L$1888,$B29,Data!$J$6:$J$1888,D$4),SUMIFS(Data!$O$6:$O$1888,Data!$L$6:$L$1888,$B29,Data!$J$6:$J$1888,D$4))>0,IF($C$1=1,SUMIFS(Data!$G$6:$G$1888,Data!$L$6:$L$1888,$B29,Data!$J$6:$J$1888,D$4),SUMIFS(Data!$O$6:$O$1888,Data!$L$6:$L$1888,$B29,Data!$J$6:$J$1888,D$4)),"") -> 12000 | E29: =IF(IF($C$1=1,SUMIFS(Data!$G$6:$G$1888,Data!$L$6:$L$1888,$B29,Data!$J$6:$J$1888,E$4),SUMIFS(Data!$O$6:$O$1888,Data!$L$6:$L$1888,$B29,Data!$J$6:$J$1888,E$4))>0,IF($C$1=1,SUMIFS(Data!$G$6:$G$1888,Data!$L$6:$L$1888,$B29,Data!$J$6:$J$1888,E$4),SUMIFS(Data!$O$6:$O$1888,Data!$L$6:$L$1888,$B29,Data!$J$6:$J$1888,E$4)),"") ->  | F29: =IF(IF($C$1=1,SUMIFS(Data!$G$6:$G$1888,Data!$L$6:$L$1888,$B29,Data!$J$6:$J$1888,F$4),SUMIFS(Data!$O$6:$O$1888,Data!$L$6:$L$1888,$B29,Data!$J$6:$J$1888,F$4))>0,IF($C$1=1,SUMIFS(Data!$G$6:$G$1888,Data!$L$6:$L$1888,$B29,Data!$J$6:$J$1888,F$4),SUMIFS(Data!$O$6:$O$1888,Data!$L$6:$L$1888,$B29,Data!$J$6:$J$1888,F$4)),"") ->  | G29: =IF(IF($C$1=1,SUMIFS(Data!$G$6:$G$1888,Data!$L$6:$L$1888,$B29,Data!$J$6:$J$1888,G$4),SUMIFS(Data!$O$6:$O$1888,Data!$L$6:$L$1888,$B29,Data!$J$6:$J$1888,G$4))>0,IF($C$1=1,SUMIFS(Data!$G$6:$G$1888,Data!$L$6:$L$1888,$B29,Data!$J$6:$J$1888,G$4),SUMIFS(Data!$O$6:$O$1888,Data!$L$6:$L$1888,$B29,Data!$J$6:$J$1888,G$4)),"") -> 30000 | H29: =IF(IF($C$1=1,SUMIFS(Data!$G$6:$G$1888,Data!$L$6:$L$1888,$B29,Data!$J$6:$J$1888,H$4),SUMIFS(Data!$O$6:$O$1888,Data!$L$6:$L$1888,$B29,Data!$J$6:$J$1888,H$4))>0,IF($C$1=1,SUMIFS(Data!$G$6:$G$1888,Data!$L$6:$L$1888,$B29,Data!$J$6:$J$1888,H$4),SUMIFS(Data!$O$6:$O$1888,Data!$L$6:$L$1888,$B29,Data!$J$6:$J$1888,H$4)),"") ->  | I29: =IF(IF($C$1=1,SUMIFS(Data!$G$6:$G$1888,Data!$L$6:$L$1888,$B29,Data!$J$6:$J$1888,I$4),SUMIFS(Data!$O$6:$O$1888,Data!$L$6:$L$1888,$B29,Data!$J$6:$J$1888,I$4))>0,IF($C$1=1,SUMIFS(Data!$G$6:$G$1888,Data!$L$6:$L$1888,$B29,Data!$J$6:$J$1888,I$4),SUMIFS(Data!$O$6:$O$1888,Data!$L$6:$L$1888,$B29,Data!$J$6:$J$1888,I$4)),"") ->  | J29: =IF(IF($C$1=1,SUMIFS(Data!$G$6:$G$1888,Data!$L$6:$L$1888,$B29,Data!$J$6:$J$1888,J$4),SUMIFS(Data!$O$6:$O$1888,Data!$L$6:$L$1888,$B29,Data!$J$6:$J$1888,J$4))>0,IF($C$1=1,SUMIFS(Data!$G$6:$G$1888,Data!$L$6:$L$1888,$B29,Data!$J$6:$J$1888,J$4),SUMIFS(Data!$O$6:$O$1888,Data!$L$6:$L$1888,$B29,Data!$J$6:$J$1888,J$4)),"") -> 12000 | K29: =IF(IF($C$1=1,SUMIFS(Data!$G$6:$G$1888,Data!$L$6:$L$1888,$B29,Data!$J$6:$J$1888,K$4),SUMIFS(Data!$O$6:$O$1888,Data!$L$6:$L$1888,$B29,Data!$J$6:$J$1888,K$4))>0,IF($C$1=1,SUMIFS(Data!$G$6:$G$1888,Data!$L$6:$L$1888,$B29,Data!$J$6:$J$1888,K$4),SUMIFS(Data!$O$6:$O$1888,Data!$L$6:$L$1888,$B29,Data!$J$6:$J$1888,K$4)),"") ->  | L29: =IF(IF($C$1=1,SUMIFS(Data!$G$6:$G$1888,Data!$L$6:$L$1888,$B29,Data!$J$6:$J$1888,L$4),SUMIFS(Data!$O$6:$O$1888,Data!$L$6:$L$1888,$B29,Data!$J$6:$J$1888,L$4))>0,IF($C$1=1,SUMIFS(Data!$G$6:$G$1888,Data!$L$6:$L$1888,$B29,Data!$J$6:$J$1888,L$4),SUMIFS(Data!$O$6:$O$1888,Data!$L$6:$L$1888,$B29,Data!$J$6:$J$1888,L$4)),"") ->  | M29: 54000
B30: Israel | C30: =IF(IF($C$1=1,SUMIFS(Data!$G$6:$G$1888,Data!$L$6:$L$1888,$B30,Data!$J$6:$J$1888,C$4),SUMIFS(Data!$O$6:$O$1888,Data!$L$6:$L$1888,$B30,Data!$J$6:$J$1888,C$4))>0,IF($C$1=1,SUMIFS(Data!$G$6:$G$1888,Data!$L$6:$L$1888,$B30,Data!$J$6:$J$1888,C$4),SUMIFS(Data!$O$6:$O$1888,Data!$L$6:$L$1888,$B30,Data!$J$6:$J$1888,C$4)),"") ->  | D30: =IF(IF($C$1=1,SUMIFS(Data!$G$6:$G$1888,Data!$L$6:$L$1888,$B30,Data!$J$6:$J$1888,D$4),SUMIFS(Data!$O$6:$O$1888,Data!$L$6:$L$1888,$B30,Data!$J$6:$J$1888,D$4))>0,IF($C$1=1,SUMIFS(Data!$G$6:$G$1888,Data!$L$6:$L$1888,$B30,Data!$J$6:$J$1888,D$4),SUMIFS(Data!$O$6:$O$1888,Data!$L$6:$L$1888,$B30,Data!$J$6:$J$1888,D$4)),"") ->  | E30: =IF(IF($C$1=1,SUMIFS(Data!$G$6:$G$1888,Data!$L$6:$L$1888,$B30,Data!$J$6:$J$1888,E$4),SUMIFS(Data!$O$6:$O$1888,Data!$L$6:$L$1888,$B30,Data!$J$6:$J$1888,E$4))>0,IF($C$1=1,SUMIFS(Data!$G$6:$G$1888,Data!$L$6:$L$1888,$B30,Data!$J$6:$J$1888,E$4),SUMIFS(Data!$O$6:$O$1888,Data!$L$6:$L$1888,$B30,Data!$J$6:$J$1888,E$4)),"") ->  | F30: =IF(IF($C$1=1,SUMIFS(Data!$G$6:$G$1888,Data!$L$6:$L$1888,$B30,Data!$J$6:$J$1888,F$4),SUMIFS(Data!$O$6:$O$1888,Data!$L$6:$L$1888,$B30,Data!$J$6:$J$1888,F$4))>0,IF($C$1=1,SUMIFS(Data!$G$6:$G$1888,Data!$L$6:$L$1888,$B30,Data!$J$6:$J$1888,F$4),SUMIFS(Data!$O$6:$O$1888,Data!$L$6:$L$1888,$B30,Data!$J$6:$J$1888,F$4)),"") ->  | G30: =IF(IF($C$1=1,SUMIFS(Data!$G$6:$G$1888,Data!$L$6:$L$1888,$B30,Data!$J$6:$J$1888,G$4),SUMIFS(Data!$O$6:$O$1888,Data!$L$6:$L$1888,$B30,Data!$J$6:$J$1888,G$4))>0,IF($C$1=1,SUMIFS(Data!$G$6:$G$1888,Data!$L$6:$L$1888,$B30,Data!$J$6:$J$1888,G$4),SUMIFS(Data!$O$6:$O$1888,Data!$L$6:$L$1888,$B30,Data!$J$6:$J$1888,G$4)),"") ->  | H30: =IF(IF($C$1=1,SUMIFS(Data!$G$6:$G$1888,Data!$L$6:$L$1888,$B30,Data!$J$6:$J$1888,H$4),SUMIFS(Data!$O$6:$O$1888,Data!$L$6:$L$1888,$B30,Data!$J$6:$J$1888,H$4))>0,IF($C$1=1,SUMIFS(Data!$G$6:$G$1888,Data!$L$6:$L$1888,$B30,Data!$J$6:$J$1888,H$4),SUMIFS(Data!$O$6:$O$1888,Data!$L$6:$L$1888,$B30,Data!$J$6:$J$1888,H$4)),"") ->  | I30: =IF(IF($C$1=1,SUMIFS(Data!$G$6:$G$1888,Data!$L$6:$L$1888,$B30,Data!$J$6:$J$1888,I$4),SUMIFS(Data!$O$6:$O$1888,Data!$L$6:$L$1888,$B30,Data!$J$6:$J$1888,I$4))>0,IF($C$1=1,SUMIFS(Data!$G$6:$G$1888,Data!$L$6:$L$1888,$B30,Data!$J$6:$J$1888,I$4),SUMIFS(Data!$O$6:$O$1888,Data!$L$6:$L$1888,$B30,Data!$J$6:$J$1888,I$4)),"") -> 248000 | J30: =IF(IF($C$1=1,SUMIFS(Data!$G$6:$G$1888,Data!$L$6:$L$1888,$B30,Data!$J$6:$J$1888,J$4),SUMIFS(Data!$O$6:$O$1888,Data!$L$6:$L$1888,$B30,Data!$J$6:$J$1888,J$4))>0,IF($C$1=1,SUMIFS(Data!$G$6:$G$1888,Data!$L$6:$L$1888,$B30,Data!$J$6:$J$1888,J$4),SUMIFS(Data!$O$6:$O$1888,Data!$L$6:$L$1888,$B30,Data!$J$6:$J$1888,J$4)),"") ->  | K30: =IF(IF($C$1=1,SUMIFS(Data!$G$6:$G$1888,Data!$L$6:$L$1888,$B30,Data!$J$6:$J$1888,K$4),SUMIFS(Data!$O$6:$O$1888,Data!$L$6:$L$1888,$B30,Data!$J$6:$J$1888,K$4))>0,IF($C$1=1,SUMIFS(Data!$G$6:$G$1888,Data!$L$6:$L$1888,$B30,Data!$J$6:$J$1888,K$4),SUMIFS(Data!$O$6:$O$1888,Data!$L$6:$L$1888,$B30,Data!$J$6:$J$1888,K$4)),"") ->  | L30: =IF(IF($C$1=1,SUMIFS(Data!$G$6:$G$1888,Data!$L$6:$L$1888,$B30,Data!$J$6:$J$1888,L$4),SUMIFS(Data!$O$6:$O$1888,Data!$L$6:$L$1888,$B30,Data!$J$6:$J$1888,L$4))>0,IF($C$1=1,SUMIFS(Data!$G$6:$G$1888,Data!$L$6:$L$1888,$B30,Data!$J$6:$J$1888,L$4),SUMIFS(Data!$O$6:$O$1888,Data!$L$6:$L$1888,$B30,Data!$J$6:$J$1888,L$4)),"") -> 86200 | M30: 334200
B31: Japan | C31: =IF(IF($C$1=1,SUMIFS(Data!$G$6:$G$1888,Data!$L$6:$L$1888,$B31,Data!$J$6:$J$1888,C$4),SUMIFS(Data!$O$6:$O$1888,Data!$L$6:$L$1888,$B31,Data!$J$6:$J$1888,C$4))>0,IF($C$1=1,SUMIFS(Data!$G$6:$G$1888,Data!$L$6:$L$1888,$B31,Data!$J$6:$J$1888,C$4),SUMIFS(Data!$O$6:$O$1888,Data!$L$6:$L$1888,$B31,Data!$J$6:$J$1888,C$4)),"") ->  | D31: =IF(IF($C$1=1,SUMIFS(Data!$G$6:$G$1888,Data!$L$6:$L$1888,$B31,Data!$J$6:$J$1888,D$4),SUMIFS(Data!$O$6:$O$1888,Data!$L$6:$L$1888,$B31,Data!$J$6:$J$1888,D$4))>0,IF($C$1=1,SUMIFS(Data!$G$6:$G$1888,Data!$L$6:$L$1888,$B31,Data!$J$6:$J$1888,D$4),SUMIFS(Data!$O$6:$O$1888,Data!$L$6:$L$1888,$B31,Data!$J$6:$J$1888,D$4)),"") ->  | E31: =IF(IF($C$1=1,SUMIFS(Data!$G$6:$G$1888,Data!$L$6:$L$1888,$B31,Data!$J$6:$J$1888,E$4),SUMIFS(Data!$O$6:$O$1888,Data!$L$6:$L$1888,$B31,Data!$J$6:$J$1888,E$4))>0,IF($C$1=1,SUMIFS(Data!$G$6:$G$1888,Data!$L$6:$L$1888,$B31,Data!$J$6:$J$1888,E$4),SUMIFS(Data!$O$6:$O$1888,Data!$L$6:$L$1888,$B31,Data!$J$6:$J$1888,E$4)),"") ->  | F31: =IF(IF($C$1=1,SUMIFS(Data!$G$6:$G$1888,Data!$L$6:$L$1888,$B31,Data!$J$6:$J$1888,F$4),SUMIFS(Data!$O$6:$O$1888,Data!$L$6:$L$1888,$B31,Data!$J$6:$J$1888,F$4))>0,IF($C$1=1,SUMIFS(Data!$G$6:$G$1888,Data!$L$6:$L$1888,$B31,Data!$J$6:$J$1888,F$4),SUMIFS(Data!$O$6:$O$1888,Data!$L$6:$L$1888,$B31,Data!$J$6:$J$1888,F$4)),"") ->  | G31: =IF(IF($C$1=1,SUMIFS(Data!$G$6:$G$1888,Data!$L$6:$L$1888,$B31,Data!$J$6:$J$1888,G$4),SUMIFS(Data!$O$6:$O$1888,Data!$L$6:$L$1888,$B31,Data!$J$6:$J$1888,G$4))>0,IF($C$1=1,SUMIFS(Data!$G$6:$G$1888,Data!$L$6:$L$1888,$B31,Data!$J$6:$J$1888,G$4),SUMIFS(Data!$O$6:$O$1888,Data!$L$6:$L$1888,$B31,Data!$J$6:$J$1888,G$4)),"") ->  | H31: =IF(IF($C$1=1,SUMIFS(Data!$G$6:$G$1888,Data!$L$6:$L$1888,$B31,Data!$J$6:$J$1888,H$4),SUMIFS(Data!$O$6:$O$1888,Data!$L$6:$L$1888,$B31,Data!$J$6:$J$1888,H$4))>0,IF($C$1=1,SUMIFS(Data!$G$6:$G$1888,Data!$L$6:$L$1888,$B31,Data!$J$6:$J$1888,H$4),SUMIFS(Data!$O$6:$O$1888,Data!$L$6:$L$1888,$B31,Data!$J$6:$J$1888,H$4)),"") ->  | I31: =IF(IF($C$1=1,SUMIFS(Data!$G$6:$G$1888,Data!$L$6:$L$1888,$B31,Data!$J$6:$J$1888,I$4),SUMIFS(Data!$O$6:$O$1888,Data!$L$6:$L$1888,$B31,Data!$J$6:$J$1888,I$4))>0,IF($C$1=1,SUMIFS(Data!$G$6:$G$1888,Data!$L$6:$L$1888,$B31,Data!$J$6:$J$1888,I$4),SUMIFS(Data!$O$6:$O$1888,Data!$L$6:$L$1888,$B31,Data!$J$6:$J$1888,I$4)),"") ->  | J31: =IF(IF($C$1=1,SUMIFS(Data!$G$6:$G$1888,Data!$L$6:$L$1888,$B31,Data!$J$6:$J$1888,J$4),SUMIFS(Data!$O$6:$O$1888,Data!$L$6:$L$1888,$B31,Data!$J$6:$J$1888,J$4))>0,IF($C$1=1,SUMIFS(Data!$G$6:$G$1888,Data!$L$6:$L$1888,$B31,Data!$J$6:$J$1888,J$4),SUMIFS(Data!$O$6:$O$1888,Data!$L$6:$L$1888,$B31,Data!$J$6:$J$1888,J$4)),"") -> 202694.3221 | K31: =IF(IF($C$1=1,SUMIFS(Data!$G$6:$G$1888,Data!$L$6:$L$1888,$B31,Data!$J$6:$J$1888,K$4),SUMIFS(Data!$O$6:$O$1888,Data!$L$6:$L$1888,$B31,Data!$J$6:$J$1888,K$4))>0,IF($C$1=1,SUMIFS(Data!$G$6:$G$1888,Data!$L$6:$L$1888,$B31,Data!$J$6:$J$1888,K$4),SUMIFS(Data!$O$6:$O$1888,Data!$L$6:$L$1888,$B31,Data!$J$6:$J$1888,K$4)),"") ->  | L31: =IF(IF($C$1=1,SUMIFS(Data!$G$6:$G$1888,Data!$L$6:$L$1888,$B31,Data!$J$6:$J$1888,L$4),SUMIFS(Data!$O$6:$O$1888,Data!$L$6:$L$1888,$B31,Data!$J$6:$J$1888,L$4))>0,IF($C$1=1,SUMIFS(Data!$G$6:$G$1888,Data!$L$6:$L$1888,$B31,Data!$J$6:$J$1888,L$4),SUMIFS(Data!$O$6:$O$1888,Data!$L$6:$L$1888,$B31,Data!$J$6:$J$1888,L$4)),"") ->  | M31: 202694.3221
B32: Kuwait | C32: =IF(IF($C$1=1,SUMIFS(Data!$G$6:$G$1888,Data!$L$6:$L$1888,$B32,Data!$J$6:$J$1888,C$4),SUMIFS(Data!$O$6:$O$1888,Data!$L$6:$L$1888,$B32,Data!$J$6:$J$1888,C$4))>0,IF($C$1=1,SUMIFS(Data!$G$6:$G$1888,Data!$L$6:$L$1888,$B32,Data!$J$6:$J$1888,C$4),SUMIFS(Data!$O$6:$O$1888,Data!$L$6:$L$1888,$B32,Data!$J$6:$J$1888,C$4)),"") ->  | D32: =IF(IF($C$1=1,SUMIFS(Data!$G$6:$G$1888,Data!$L$6:$L$1888,$B32,Data!$J$6:$J$1888,D$4),SUMIFS(Data!$O$6:$O$1888,Data!$L$6:$L$1888,$B32,Data!$J$6:$J$1888,D$4))>0,IF($C$1=1,SUMIFS(Data!$G$6:$G$1888,Data!$L$6:$L$1888,$B32,Data!$J$6:$J$1888,D$4),SUMIFS(Data!$O$6:$O$1888,Data!$L$6:$L$1888,$B32,Data!$J$6:$J$1888,D$4)),"") -> 15600 | E32: =IF(IF($C$1=1,SUMIFS(Data!$G$6:$G$1888,Data!$L$6:$L$1888,$B32,Data!$J$6:$J$1888,E$4),SUMIFS(Data!$O$6:$O$1888,Data!$L$6:$L$1888,$B32,Data!$J$6:$J$1888,E$4))>0,IF($C$1=1,SUMIFS(Data!$G$6:$G$1888,Data!$L$6:$L$1888,$B32,Data!$J$6:$J$1888,E$4),SUMIFS(Data!$O$6:$O$1888,Data!$L$6:$L$1888,$B32,Data!$J$6:$J$1888,E$4)),"") ->  | F32: =IF(IF($C$1=1,SUMIFS(Data!$G$6:$G$1888,Data!$L$6:$L$1888,$B32,Data!$J$6:$J$1888,F$4),SUMIFS(Data!$O$6:$O$1888,Data!$L$6:$L$1888,$B32,Data!$J$6:$J$1888,F$4))>0,IF($C$1=1,SUMIFS(Data!$G$6:$G$1888,Data!$L$6:$L$1888,$B32,Data!$J$6:$J$1888,F$4),SUMIFS(Data!$O$6:$O$1888,Data!$L$6:$L$1888,$B32,Data!$J$6:$J$1888,F$4)),"") ->  | G32: =IF(IF($C$1=1,SUMIFS(Data!$G$6:$G$1888,Data!$L$6:$L$1888,$B32,Data!$J$6:$J$1888,G$4),SUMIFS(Data!$O$6:$O$1888,Data!$L$6:$L$1888,$B32,Data!$J$6:$J$1888,G$4))>0,IF($C$1=1,SUMIFS(Data!$G$6:$G$1888,Data!$L$6:$L$1888,$B32,Data!$J$6:$J$1888,G$4),SUMIFS(Data!$O$6:$O$1888,Data!$L$6:$L$1888,$B32,Data!$J$6:$J$1888,G$4)),"") ->  | H32: =IF(IF($C$1=1,SUMIFS(Data!$G$6:$G$1888,Data!$L$6:$L$1888,$B32,Data!$J$6:$J$1888,H$4),SUMIFS(Data!$O$6:$O$1888,Data!$L$6:$L$1888,$B32,Data!$J$6:$J$1888,H$4))>0,IF($C$1=1,SUMIFS(Data!$G$6:$G$1888,Data!$L$6:$L$1888,$B32,Data!$J$6:$J$1888,H$4),SUMIFS(Data!$O$6:$O$1888,Data!$L$6:$L$1888,$B32,Data!$J$6:$J$1888,H$4)),"") ->  | I32: =IF(IF($C$1=1,SUMIFS(Data!$G$6:$G$1888,Data!$L$6:$L$1888,$B32,Data!$J$6:$J$1888,I$4),SUMIFS(Data!$O$6:$O$1888,Data!$L$6:$L$1888,$B32,Data!$J$6:$J$1888,I$4))>0,IF($C$1=1,SUMIFS(Data!$G$6:$G$1888,Data!$L$6:$L$1888,$B32,Data!$J$6:$J$1888,I$4),SUMIFS(Data!$O$6:$O$1888,Data!$L$6:$L$1888,$B32,Data!$J$6:$J$1888,I$4)),"") -> 42000 | J32: =IF(IF($C$1=1,SUMIFS(Data!$G$6:$G$1888,Data!$L$6:$L$1888,$B32,Data!$J$6:$J$1888,J$4),SUMIFS(Data!$O$6:$O$1888,Data!$L$6:$L$1888,$B32,Data!$J$6:$J$1888,J$4))>0,IF($C$1=1,SUMIFS(Data!$G$6:$G$1888,Data!$L$6:$L$1888,$B32,Data!$J$6:$J$1888,J$4),SUMIFS(Data!$O$6:$O$1888,Data!$L$6:$L$1888,$B32,Data!$J$6:$J$1888,J$4)),"") -> 86000 | K32: =IF(IF($C$1=1,SUMIFS(Data!$G$6:$G$1888,Data!$L$6:$L$1888,$B32,Data!$J$6:$J$1888,K$4),SUMIFS(Data!$O$6:$O$1888,Data!$L$6:$L$1888,$B32,Data!$J$6:$J$1888,K$4))>0,IF($C$1=1,SUMIFS(Data!$G$6:$G$1888,Data!$L$6:$L$1888,$B32,Data!$J$6:$J$1888,K$4),SUMIFS(Data!$O$6:$O$1888,Data!$L$6:$L$1888,$B32,Data!$J$6:$J$1888,K$4)),"") ->  | L32: =IF(IF($C$1=1,SUMIFS(Data!$G$6:$G$1888,Data!$L$6:$L$1888,$B32,Data!$J$6:$J$1888,L$4),SUMIFS(Data!$O$6:$O$1888,Data!$L$6:$L$1888,$B32,Data!$J$6:$J$1888,L$4))>0,IF($C$1=1,SUMIFS(Data!$G$6:$G$1888,Data!$L$6:$L$1888,$B32,Data!$J$6:$J$1888,L$4),SUMIFS(Data!$O$6:$O$1888,Data!$L$6:$L$1888,$B32,Data!$J$6:$J$1888,L$4)),"") ->  | M32: 143600
B33: Malaysia | C33: =IF(IF($C$1=1,SUMIFS(Data!$G$6:$G$1888,Data!$L$6:$L$1888,$B33,Data!$J$6:$J$1888,C$4),SUMIFS(Data!$O$6:$O$1888,Data!$L$6:$L$1888,$B33,Data!$J$6:$J$1888,C$4))>0,IF($C$1=1,SUMIFS(Data!$G$6:$G$1888,Data!$L$6:$L$1888,$B33,Data!$J$6:$J$1888,C$4),SUMIFS(Data!$O$6:$O$1888,Data!$L$6:$L$1888,$B33,Data!$J$6:$J$1888,C$4)),"") -> 35000 | D33: =IF(IF($C$1=1,SUMIFS(Data!$G$6:$G$1888,Data!$L$6:$L$1888,$B33,Data!$J$6:$J$1888,D$4),SUMIFS(Data!$O$6:$O$1888,Data!$L$6:$L$1888,$B33,Data!$J$6:$J$1888,D$4))>0,IF($C$1=1,SUMIFS(Data!$G$6:$G$1888,Data!$L$6:$L$1888,$B33,Data!$J$6:$J$1888,D$4),SUMIFS(Data!$O$6:$O$1888,Data!$L$6:$L$1888,$B33,Data!$J$6:$J$1888,D$4)),"") ->  | E33: =IF(IF($C$1=1,SUMIFS(Data!$G$6:$G$1888,Data!$L$6:$L$1888,$B33,Data!$J$6:$J$1888,E$4),SUMIFS(Data!$O$6:$O$1888,Data!$L$6:$L$1888,$B33,Data!$J$6:$J$1888,E$4))>0,IF($C$1=1,SUMIFS(Data!$G$6:$G$1888,Data!$L$6:$L$1888,$B33,Data!$J$6:$J$1888,E$4),SUMIFS(Data!$O$6:$O$1888,Data!$L$6:$L$1888,$B33,Data!$J$6:$J$1888,E$4)),"") ->  | F33: =IF(IF($C$1=1,SUMIFS(Data!$G$6:$G$1888,Data!$L$6:$L$1888,$B33,Data!$J$6:$J$1888,F$4),SUMIFS(Data!$O$6:$O$1888,Data!$L$6:$L$1888,$B33,Data!$J$6:$J$1888,F$4))>0,IF($C$1=1,SUMIFS(Data!$G$6:$G$1888,Data!$L$6:$L$1888,$B33,Data!$J$6:$J$1888,F$4),SUMIFS(Data!$O$6:$O$1888,Data!$L$6:$L$1888,$B33,Data!$J$6:$J$1888,F$4)),"") ->  | G33: =IF(IF($C$1=1,SUMIFS(Data!$G$6:$G$1888,Data!$L$6:$L$1888,$B33,Data!$J$6:$J$1888,G$4),SUMIFS(Data!$O$6:$O$1888,Data!$L$6:$L$1888,$B33,Data!$J$6:$J$1888,G$4))>0,IF($C$1=1,SUMIFS(Data!$G$6:$G$1888,Data!$L$6:$L$1888,$B33,Data!$J$6:$J$1888,G$4),SUMIFS(Data!$O$6:$O$1888,Data!$L$6:$L$1888,$B33,Data!$J$6:$J$1888,G$4)),"") ->  | H33: =IF(IF($C$1=1,SUMIFS(Data!$G$6:$G$1888,Data!$L$6:$L$1888,$B33,Data!$J$6:$J$1888,H$4),SUMIFS(Data!$O$6:$O$1888,Data!$L$6:$L$1888,$B33,Data!$J$6:$J$1888,H$4))>0,IF($C$1=1,SUMIFS(Data!$G$6:$G$1888,Data!$L$6:$L$1888,$B33,Data!$J$6:$J$1888,H$4),SUMIFS(Data!$O$6:$O$1888,Data!$L$6:$L$1888,$B33,Data!$J$6:$J$1888,H$4)),"") -> 11404.82044 | I33: =IF(IF($C$1=1,SUMIFS(Data!$G$6:$G$1888,Data!$L$6:$L$1888,$B33,Data!$J$6:$J$1888,I$4),SUMIFS(Data!$O$6:$O$1888,Data!$L$6:$L$1888,$B33,Data!$J$6:$J$1888,I$4))>0,IF($C$1=1,SUMIFS(Data!$G$6:$G$1888,Data!$L$6:$L$1888,$B33,Data!$J$6:$J$1888,I$4),SUMIFS(Data!$O$6:$O$1888,Data!$L$6:$L$1888,$B33,Data!$J$6:$J$1888,I$4)),"") -> 98568.11212 | J33: =IF(IF($C$1=1,SUMIFS(Data!$G$6:$G$1888,Data!$L$6:$L$1888,$B33,Data!$J$6:$J$1888,J$4),SUMIFS(Data!$O$6:$O$1888,Data!$L$6:$L$1888,$B33,Data!$J$6:$J$1888,J$4))>0,IF($C$1=1,SUMIFS(Data!$G$6:$G$1888,Data!$L$6:$L$1888,$B33,Data!$J$6:$J$1888,J$4),SUMIFS(Data!$O$6:$O$1888,Data!$L$6:$L$1888,$B33,Data!$J$6:$J$1888,J$4)),"") -> 42000 | K33: =IF(IF($C$1=1,SUMIFS(Data!$G$6:$G$1888,Data!$L$6:$L$1888,$B33,Data!$J$6:$J$1888,K$4),SUMIFS(Data!$O$6:$O$1888,Data!$L$6:$L$1888,$B33,Data!$J$6:$J$1888,K$4))>0,IF($C$1=1,SUMIFS(Data!$G$6:$G$1888,Data!$L$6:$L$1888,$B33,Data!$J$6:$J$1888,K$4),SUMIFS(Data!$O$6:$O$1888,Data!$L$6:$L$1888,$B33,Data!$J$6:$J$1888,K$4)),"") ->  | L33: =IF(IF($C$1=1,SUMIFS(Data!$G$6:$G$1888,Data!$L$6:$L$1888,$B33,Data!$J$6:$J$1888,L$4),SUMIFS(Data!$O$6:$O$1888,Data!$L$6:$L$1888,$B33,Data!$J$6:$J$1888,L$4))>0,IF($C$1=1,SUMIFS(Data!$G$6:$G$1888,Data!$L$6:$L$1888,$B33,Data!$J$6:$J$1888,L$4),SUMIFS(Data!$O$6:$O$1888,Data!$L$6:$L$1888,$B33,Data!$J$6:$J$1888,L$4)),"") ->  | M33: 186972.9326
B34: Mongolia | C34: =IF(IF($C$1=1,SUMIFS(Data!$G$6:$G$1888,Data!$L$6:$L$1888,$B34,Data!$J$6:$J$1888,C$4),SUMIFS(Data!$O$6:$O$1888,Data!$L$6:$L$1888,$B34,Data!$J$6:$J$1888,C$4))>0,IF($C$1=1,SUMIFS(Data!$G$6:$G$1888,Data!$L$6:$L$1888,$B34,Data!$J$6:$J$1888,C$4),SUMIFS(Data!$O$6:$O$1888,Data!$L$6:$L$1888,$B34,Data!$J$6:$J$1888,C$4)),"") ->  | D34: =IF(IF($C$1=1,SUMIFS(Data!$G$6:$G$1888,Data!$L$6:$L$1888,$B34,Data!$J$6:$J$1888,D$4),SUMIFS(Data!$O$6:$O$1888,Data!$L$6:$L$1888,$B34,Data!$J$6:$J$1888,D$4))>0,IF($C$1=1,SUMIFS(Data!$G$6:$G$1888,Data!$L$6:$L$1888,$B34,Data!$J$6:$J$1888,D$4),SUMIFS(Data!$O$6:$O$1888,Data!$L$6:$L$1888,$B34,Data!$J$6:$J$1888,D$4)),"") ->  | E34: =IF(IF($C$1=1,SUMIFS(Data!$G$6:$G$1888,Data!$L$6:$L$1888,$B34,Data!$J$6:$J$1888,E$4),SUMIFS(Data!$O$6:$O$1888,Data!$L$6:$L$1888,$B34,Data!$J$6:$J$1888,E$4))>0,IF($C$1=1,SUMIFS(Data!$G$6:$G$1888,Data!$L$6:$L$1888,$B34,Data!$J$6:$J$1888,E$4),SUMIFS(Data!$O$6:$O$1888,Data!$L$6:$L$1888,$B34,Data!$J$6:$J$1888,E$4)),"") ->  | F34: =IF(IF($C$1=1,SUMIFS(Data!$G$6:$G$1888,Data!$L$6:$L$1888,$B34,Data!$J$6:$J$1888,F$4),SUMIFS(Data!$O$6:$O$1888,Data!$L$6:$L$1888,$B34,Data!$J$6:$J$1888,F$4))>0,IF($C$1=1,SUMIFS(Data!$G$6:$G$1888,Data!$L$6:$L$1888,$B34,Data!$J$6:$J$1888,F$4),SUMIFS(Data!$O$6:$O$1888,Data!$L$6:$L$1888,$B34,Data!$J$6:$J$1888,F$4)),"") ->  | G34: =IF(IF($C$1=1,SUMIFS(Data!$G$6:$G$1888,Data!$L$6:$L$1888,$B34,Data!$J$6:$J$1888,G$4),SUMIFS(Data!$O$6:$O$1888,Data!$L$6:$L$1888,$B34,Data!$J$6:$J$1888,G$4))>0,IF($C$1=1,SUMIFS(Data!$G$6:$G$1888,Data!$L$6:$L$1888,$B34,Data!$J$6:$J$1888,G$4),SUMIFS(Data!$O$6:$O$1888,Data!$L$6:$L$1888,$B34,Data!$J$6:$J$1888,G$4)),"") ->  | H34: =IF(IF($C$1=1,SUMIFS(Data!$G$6:$G$1888,Data!$L$6:$L$1888,$B34,Data!$J$6:$J$1888,H$4),SUMIFS(Data!$O$6:$O$1888,Data!$L$6:$L$1888,$B34,Data!$J$6:$J$1888,H$4))>0,IF($C$1=1,SUMIFS(Data!$G$6:$G$1888,Data!$L$6:$L$1888,$B34,Data!$J$6:$J$1888,H$4),SUMIFS(Data!$O$6:$O$1888,Data!$L$6:$L$1888,$B34,Data!$J$6:$J$1888,H$4)),"") ->  | I34: =IF(IF($C$1=1,SUMIFS(Data!$G$6:$G$1888,Data!$L$6:$L$1888,$B34,Data!$J$6:$J$1888,I$4),SUMIFS(Data!$O$6:$O$1888,Data!$L$6:$L$1888,$B34,Data!$J$6:$J$1888,I$4))>0,IF($C$1=1,SUMIFS(Data!$G$6:$G$1888,Data!$L$6:$L$1888,$B34,Data!$J$6:$J$1888,I$4),SUMIFS(Data!$O$6:$O$1888,Data!$L$6:$L$1888,$B34,Data!$J$6:$J$1888,I$4)),"") ->  | J34: =IF(IF($C$1=1,SUMIFS(Data!$G$6:$G$1888,Data!$L$6:$L$1888,$B34,Data!$J$6:$J$1888,J$4),SUMIFS(Data!$O$6:$O$1888,Data!$L$6:$L$1888,$B34,Data!$J$6:$J$1888,J$4))>0,IF($C$1=1,SUMIFS(Data!$G$6:$G$1888,Data!$L$6:$L$1888,$B34,Data!$J$6:$J$1888,J$4),SUMIFS(Data!$O$6:$O$1888,Data!$L$6:$L$1888,$B34,Data!$J$6:$J$1888,J$4)),"") -> 7261.72466 | K34: =IF(IF($C$1=1,SUMIFS(Data!$G$6:$G$1888,Data!$L$6:$L$1888,$B34,Data!$J$6:$J$1888,K$4),SUMIFS(Data!$O$6:$O$1888,Data!$L$6:$L$1888,$B34,Data!$J$6:$J$1888,K$4))>0,IF($C$1=1,SUMIFS(Data!$G$6:$G$1888,Data!$L$6:$L$1888,$B34,Data!$J$6:$J$1888,K$4),SUMIFS(Data!$O$6:$O$1888,Data!$L$6:$L$1888,$B34,Data!$J$6:$J$1888,K$4)),"") ->  | L34: =IF(IF($C$1=1,SUMIFS(Data!$G$6:$G$1888,Data!$L$6:$L$1888,$B34,Data!$J$6:$J$1888,L$4),SUMIFS(Data!$O$6:$O$1888,Data!$L$6:$L$1888,$B34,Data!$J$6:$J$1888,L$4))>0,IF($C$1=1,SUMIFS(Data!$G$6:$G$1888,Data!$L$6:$L$1888,$B34,Data!$J$6:$J$1888,L$4),SUMIFS(Data!$O$6:$O$1888,Data!$L$6:$L$1888,$B34,Data!$J$6:$J$1888,L$4)),"") ->  | M34: 7261.72466
B35: Myanmar | C35: =IF(IF($C$1=1,SUMIFS(Data!$G$6:$G$1888,Data!$L$6:$L$1888,$B35,Data!$J$6:$J$1888,C$4),SUMIFS(Data!$O$6:$O$1888,Data!$L$6:$L$1888,$B35,Data!$J$6:$J$1888,C$4))>0,IF($C$1=1,SUMIFS(Data!$G$6:$G$1888,Data!$L$6:$L$1888,$B35,Data!$J$6:$J$1888,C$4),SUMIFS(Data!$O$6:$O$1888,Data!$L$6:$L$1888,$B35,Data!$J$6:$J$1888,C$4)),"") ->  | D35: =IF(IF($C$1=1,SUMIFS(Data!$G$6:$G$1888,Data!$L$6:$L$1888,$B35,Data!$J$6:$J$1888,D$4),SUMIFS(Data!$O$6:$O$1888,Data!$L$6:$L$1888,$B35,Data!$J$6:$J$1888,D$4))>0,IF($C$1=1,SUMIFS(Data!$G$6:$G$1888,Data!$L$6:$L$1888,$B35,Data!$J$6:$J$1888,D$4),SUMIFS(Data!$O$6:$O$1888,Data!$L$6:$L$1888,$B35,Data!$J$6:$J$1888,D$4)),"") ->  | E35: =IF(IF($C$1=1,SUMIFS(Data!$G$6:$G$1888,Data!$L$6:$L$1888,$B35,Data!$J$6:$J$1888,E$4),SUMIFS(Data!$O$6:$O$1888,Data!$L$6:$L$1888,$B35,Data!$J$6:$J$1888,E$4))>0,IF($C$1=1,SUMIFS(Data!$G$6:$G$1888,Data!$L$6:$L$1888,$B35,Data!$J$6:$J$1888,E$4),SUMIFS(Data!$O$6:$O$1888,Data!$L$6:$L$1888,$B35,Data!$J$6:$J$1888,E$4)),"") ->  | F35: =IF(IF($C$1=1,SUMIFS(Data!$G$6:$G$1888,Data!$L$6:$L$1888,$B35,Data!$J$6:$J$1888,F$4),SUMIFS(Data!$O$6:$O$1888,Data!$L$6:$L$1888,$B35,Data!$J$6:$J$1888,F$4))>0,IF($C$1=1,SUMIFS(Data!$G$6:$G$1888,Data!$L$6:$L$1888,$B35,Data!$J$6:$J$1888,F$4),SUMIFS(Data!$O$6:$O$1888,Data!$L$6:$L$1888,$B35,Data!$J$6:$J$1888,F$4)),"") ->  | G35: =IF(IF($C$1=1,SUMIFS(Data!$G$6:$G$1888,Data!$L$6:$L$1888,$B35,Data!$J$6:$J$1888,G$4),SUMIFS(Data!$O$6:$O$1888,Data!$L$6:$L$1888,$B35,Data!$J$6:$J$1888,G$4))>0,IF($C$1=1,SUMIFS(Data!$G$6:$G$1888,Data!$L$6:$L$1888,$B35,Data!$J$6:$J$1888,G$4),SUMIFS(Data!$O$6:$O$1888,Data!$L$6:$L$1888,$B35,Data!$J$6:$J$1888,G$4)),"") ->  | H35: =IF(IF($C$1=1,SUMIFS(Data!$G$6:$G$1888,Data!$L$6:$L$1888,$B35,Data!$J$6:$J$1888,H$4),SUMIFS(Data!$O$6:$O$1888,Data!$L$6:$L$1888,$B35,Data!$J$6:$J$1888,H$4))>0,IF($C$1=1,SUMIFS(Data!$G$6:$G$1888,Data!$L$6:$L$1888,$B35,Data!$J$6:$J$1888,H$4),SUMIFS(Data!$O$6:$O$1888,Data!$L$6:$L$1888,$B35,Data!$J$6:$J$1888,H$4)),"") ->  | I35: =IF(IF($C$1=1,SUMIFS(Data!$G$6:$G$1888,Data!$L$6:$L$1888,$B35,Data!$J$6:$J$1888,I$4),SUMIFS(Data!$O$6:$O$1888,Data!$L$6:$L$1888,$B35,Data!$J$6:$J$1888,I$4))>0,IF($C$1=1,SUMIFS(Data!$G$6:$G$1888,Data!$L$6:$L$1888,$B35,Data!$J$6:$J$1888,I$4),SUMIFS(Data!$O$6:$O$1888,Data!$L$6:$L$1888,$B35,Data!$J$6:$J$1888,I$4)),"") -> 35400 | J35: =IF(IF($C$1=1,SUMIFS(Data!$G$6:$G$1888,Data!$L$6:$L$1888,$B35,Data!$J$6:$J$1888,J$4),SUMIFS(Data!$O$6:$O$1888,Data!$L$6:$L$1888,$B35,Data!$J$6:$J$1888,J$4))>0,IF($C$1=1,SUMIFS(Data!$G$6:$G$1888,Data!$L$6:$L$1888,$B35,Data!$J$6:$J$1888,J$4),SUMIFS(Data!$O$6:$O$1888,Data!$L$6:$L$1888,$B35,Data!$J$6:$J$1888,J$4)),"") ->  | K35: =IF(IF($C$1=1,SUMIFS(Data!$G$6:$G$1888,Data!$L$6:$L$1888,$B35,Data!$J$6:$J$1888,K$4),SUMIFS(Data!$O$6:$O$1888,Data!$L$6:$L$1888,$B35,Data!$J$6:$J$1888,K$4))>0,IF($C$1=1,SUMIFS(Data!$G$6:$G$1888,Data!$L$6:$L$1888,$B35,Data!$J$6:$J$1888,K$4),SUMIFS(Data!$O$6:$O$1888,Data!$L$6:$L$1888,$B35,Data!$J$6:$J$1888,K$4)),"") ->  | L35: =IF(IF($C$1=1,SUMIFS(Data!$G$6:$G$1888,Data!$L$6:$L$1888,$B35,Data!$J$6:$J$1888,L$4),SUMIFS(Data!$O$6:$O$1888,Data!$L$6:$L$1888,$B35,Data!$J$6:$J$1888,L$4))>0,IF($C$1=1,SUMIFS(Data!$G$6:$G$1888,Data!$L$6:$L$1888,$B35,Data!$J$6:$J$1888,L$4),SUMIFS(Data!$O$6:$O$1888,Data!$L$6:$L$1888,$B35,Data!$J$6:$J$1888,L$4)),"") ->  | M35: 35400
B36: Oman | C36: =IF(IF($C$1=1,SUMIFS(Data!$G$6:$G$1888,Data!$L$6:$L$1888,$B36,Data!$J$6:$J$1888,C$4),SUMIFS(Data!$O$6:$O$1888,Data!$L$6:$L$1888,$B36,Data!$J$6:$J$1888,C$4))>0,IF($C$1=1,SUMIFS(Data!$G$6:$G$1888,Data!$L$6:$L$1888,$B36,Data!$J$6:$J$1888,C$4),SUMIFS(Data!$O$6:$O$1888,Data!$L$6:$L$1888,$B36,Data!$J$6:$J$1888,C$4)),"") -> 100800 | D36: =IF(IF($C$1=1,SUMIFS(Data!$G$6:$G$1888,Data!$L$6:$L$1888,$B36,Data!$J$6:$J$1888,D$4),SUMIFS(Data!$O$6:$O$1888,Data!$L$6:$L$1888,$B36,Data!$J$6:$J$1888,D$4))>0,IF($C$1=1,SUMIFS(Data!$G$6:$G$1888,Data!$L$6:$L$1888,$B36,Data!$J$6:$J$1888,D$4),SUMIFS(Data!$O$6:$O$1888,Data!$L$6:$L$1888,$B36,Data!$J$6:$J$1888,D$4)),"") ->  | E36: =IF(IF($C$1=1,SUMIFS(Data!$G$6:$G$1888,Data!$L$6:$L$1888,$B36,Data!$J$6:$J$1888,E$4),SUMIFS(Data!$O$6:$O$1888,Data!$L$6:$L$1888,$B36,Data!$J$6:$J$1888,E$4))>0,IF($C$1=1,SUMIFS(Data!$G$6:$G$1888,Data!$L$6:$L$1888,$B36,Data!$J$6:$J$1888,E$4),SUMIFS(Data!$O$6:$O$1888,Data!$L$6:$L$1888,$B36,Data!$J$6:$J$1888,E$4)),"") ->  | F36: =IF(IF($C$1=1,SUMIFS(Data!$G$6:$G$1888,Data!$L$6:$L$1888,$B36,Data!$J$6:$J$1888,F$4),SUMIFS(Data!$O$6:$O$1888,Data!$L$6:$L$1888,$B36,Data!$J$6:$J$1888,F$4))>0,IF($C$1=1,SUMIFS(Data!$G$6:$G$1888,Data!$L$6:$L$1888,$B36,Data!$J$6:$J$1888,F$4),SUMIFS(Data!$O$6:$O$1888,Data!$L$6:$L$1888,$B36,Data!$J$6:$J$1888,F$4)),"") ->  | G36: =IF(IF($C$1=1,SUMIFS(Data!$G$6:$G$1888,Data!$L$6:$L$1888,$B36,Data!$J$6:$J$1888,G$4),SUMIFS(Data!$O$6:$O$1888,Data!$L$6:$L$1888,$B36,Data!$J$6:$J$1888,G$4))>0,IF($C$1=1,SUMIFS(Data!$G$6:$G$1888,Data!$L$6:$L$1888,$B36,Data!$J$6:$J$1888,G$4),SUMIFS(Data!$O$6:$O$1888,Data!$L$6:$L$1888,$B36,Data!$J$6:$J$1888,G$4)),"") ->  | H36: =IF(IF($C$1=1,SUMIFS(Data!$G$6:$G$1888,Data!$L$6:$L$1888,$B36,Data!$J$6:$J$1888,H$4),SUMIFS(Data!$O$6:$O$1888,Data!$L$6:$L$1888,$B36,Data!$J$6:$J$1888,H$4))>0,IF($C$1=1,SUMIFS(Data!$G$6:$G$1888,Data!$L$6:$L$1888,$B36,Data!$J$6:$J$1888,H$4),SUMIFS(Data!$O$6:$O$1888,Data!$L$6:$L$1888,$B36,Data!$J$6:$J$1888,H$4)),"") ->  | I36: =IF(IF($C$1=1,SUMIFS(Data!$G$6:$G$1888,Data!$L$6:$L$1888,$B36,Data!$J$6:$J$1888,I$4),SUMIFS(Data!$O$6:$O$1888,Data!$L$6:$L$1888,$B36,Data!$J$6:$J$1888,I$4))>0,IF($C$1=1,SUMIFS(Data!$G$6:$G$1888,Data!$L$6:$L$1888,$B36,Data!$J$6:$J$1888,I$4),SUMIFS(Data!$O$6:$O$1888,Data!$L$6:$L$1888,$B36,Data!$J$6:$J$1888,I$4)),"") ->  | J36: =IF(IF($C$1=1,SUMIFS(Data!$G$6:$G$1888,Data!$L$6:$L$1888,$B36,Data!$J$6:$J$1888,J$4),SUMIFS(Data!$O$6:$O$1888,Data!$L$6:$L$1888,$B36,Data!$J$6:$J$1888,J$4))>0,IF($C$1=1,SUMIFS(Data!$G$6:$G$1888,Data!$L$6:$L$1888,$B36,Data!$J$6:$J$1888,J$4),SUMIFS(Data!$O$6:$O$1888,Data!$L$6:$L$1888,$B36,Data!$J$6:$J$1888,J$4)),"") ->  | K36: =IF(IF($C$1=1,SUMIFS(Data!$G$6:$G$1888,Data!$L$6:$L$1888,$B36,Data!$J$6:$J$1888,K$4),SUMIFS(Data!$O$6:$O$1888,Data!$L$6:$L$1888,$B36,Data!$J$6:$J$1888,K$4))>0,IF($C$1=1,SUMIFS(Data!$G$6:$G$1888,Data!$L$6:$L$1888,$B36,Data!$J$6:$J$1888,K$4),SUMIFS(Data!$O$6:$O$1888,Data!$L$6:$L$1888,$B36,Data!$J$6:$J$1888,K$4)),"") ->  | L36: =IF(IF($C$1=1,SUMIFS(Data!$G$6:$G$1888,Data!$L$6:$L$1888,$B36,Data!$J$6:$J$1888,L$4),SUMIFS(Data!$O$6:$O$1888,Data!$L$6:$L$1888,$B36,Data!$J$6:$J$1888,L$4))>0,IF($C$1=1,SUMIFS(Data!$G$6:$G$1888,Data!$L$6:$L$1888,$B36,Data!$J$6:$J$1888,L$4),SUMIFS(Data!$O$6:$O$1888,Data!$L$6:$L$1888,$B36,Data!$J$6:$J$1888,L$4)),"") ->  | M36: 100800
B37: Pakistan | C37: =IF(IF($C$1=1,SUMIFS(Data!$G$6:$G$1888,Data!$L$6:$L$1888,$B37,Data!$J$6:$J$1888,C$4),SUMIFS(Data!$O$6:$O$1888,Data!$L$6:$L$1888,$B37,Data!$J$6:$J$1888,C$4))>0,IF($C$1=1,SUMIFS(Data!$G$6:$G$1888,Data!$L$6:$L$1888,$B37,Data!$J$6:$J$1888,C$4),SUMIFS(Data!$O$6:$O$1888,Data!$L$6:$L$1888,$B37,Data!$J$6:$J$1888,C$4)),"") ->  | D37: =IF(IF($C$1=1,SUMIFS(Data!$G$6:$G$1888,Data!$L$6:$L$1888,$B37,Data!$J$6:$J$1888,D$4),SUMIFS(Data!$O$6:$O$1888,Data!$L$6:$L$1888,$B37,Data!$J$6:$J$1888,D$4))>0,IF($C$1=1,SUMIFS(Data!$G$6:$G$1888,Data!$L$6:$L$1888,$B37,Data!$J$6:$J$1888,D$4),SUMIFS(Data!$O$6:$O$1888,Data!$L$6:$L$1888,$B37,Data!$J$6:$J$1888,D$4)),"") -> 48000 | E37: =IF(IF($C$1=1,SUMIFS(Data!$G$6:$G$1888,Data!$L$6:$L$1888,$B37,Data!$J$6:$J$1888,E$4),SUMIFS(Data!$O$6:$O$1888,Data!$L$6:$L$1888,$B37,Data!$J$6:$J$1888,E$4))>0,IF($C$1=1,SUMIFS(Data!$G$6:$G$1888,Data!$L$6:$L$1888,$B37,Data!$J$6:$J$1888,E$4),SUMIFS(Data!$O$6:$O$1888,Data!$L$6:$L$1888,$B37,Data!$J$6:$J$1888,E$4)),"") -> 51596.63066 | F37: =IF(IF($C$1=1,SUMIFS(Data!$G$6:$G$1888,Data!$L$6:$L$1888,$B37,Data!$J$6:$J$1888,F$4),SUMIFS(Data!$O$6:$O$1888,Data!$L$6:$L$1888,$B37,Data!$J$6:$J$1888,F$4))>0,IF($C$1=1,SUMIFS(Data!$G$6:$G$1888,Data!$L$6:$L$1888,$B37,Data!$J$6:$J$1888,F$4),SUMIFS(Data!$O$6:$O$1888,Data!$L$6:$L$1888,$B37,Data!$J$6:$J$1888,F$4)),"") ->  | G37: =IF(IF($C$1=1,SUMIFS(Data!$G$6:$G$1888,Data!$L$6:$L$1888,$B37,Data!$J$6:$J$1888,G$4),SUMIFS(Data!$O$6:$O$1888,Data!$L$6:$L$1888,$B37,Data!$J$6:$J$1888,G$4))>0,IF($C$1=1,SUMIFS(Data!$G$6:$G$1888,Data!$L$6:$L$1888,$B37,Data!$J$6:$J$1888,G$4),SUMIFS(Data!$O$6:$O$1888,Data!$L$6:$L$1888,$B37,Data!$J$6:$J$1888,G$4)),"") -> 18533.41485 | H37: =IF(IF($C$1=1,SUMIFS(Data!$G$6:$G$1888,Data!$L$6:$L$1888,$B37,Data!$J$6:$J$1888,H$4),SUMIFS(Data!$O$6:$O$1888,Data!$L$6:$L$1888,$B37,Data!$J$6:$J$1888,H$4))>0,IF($C$1=1,SUMIFS(Data!$G$6:$G$1888,Data!$L$6:$L$1888,$B37,Data!$J$6:$J$1888,H$4),SUMIFS(Data!$O$6:$O$1888,Data!$L$6:$L$1888,$B37,Data!$J$6:$J$1888,H$4)),"") ->  | I37: =IF(IF($C$1=1,SUMIFS(Data!$G$6:$G$1888,Data!$L$6:$L$1888,$B37,Data!$J$6:$J$1888,I$4),SUMIFS(Data!$O$6:$O$1888,Data!$L$6:$L$1888,$B37,Data!$J$6:$J$1888,I$4))>0,IF($C$1=1,SUMIFS(Data!$G$6:$G$1888,Data!$L$6:$L$1888,$B37,Data!$J$6:$J$1888,I$4),SUMIFS(Data!$O$6:$O$1888,Data!$L$6:$L$1888,$B37,Data!$J$6:$J$1888,I$4)),"") -> 134970.4435 | J37: =IF(IF($C$1=1,SUMIFS(Data!$G$6:$G$1888,Data!$L$6:$L$1888,$B37,Data!$J$6:$J$1888,J$4),SUMIFS(Data!$O$6:$O$1888,Data!$L$6:$L$1888,$B37,Data!$J$6:$J$1888,J$4))>0,IF($C$1=1,SUMIFS(Data!$G$6:$G$1888,Data!$L$6:$L$1888,$B37,Data!$J$6:$J$1888,J$4),SUMIFS(Data!$O$6:$O$1888,Data!$L$6:$L$1888,$B37,Data!$J$6:$J$1888,J$4)),"") -> 89322 | K37: =IF(IF($C$1=1,SUMIFS(Data!$G$6:$G$1888,Data!$L$6:$L$1888,$B37,Data!$J$6:$J$1888,K$4),SUMIFS(Data!$O$6:$O$1888,Data!$L$6:$L$1888,$B37,Data!$J$6:$J$1888,K$4))>0,IF($C$1=1,SUMIFS(Data!$G$6:$G$1888,Data!$L$6:$L$1888,$B37,Data!$J$6:$J$1888,K$4),SUMIFS(Data!$O$6:$O$1888,Data!$L$6:$L$1888,$B37,Data!$J$6:$J$1888,K$4)),"") ->  | L37: =IF(IF($C$1=1,SUMIFS(Data!$G$6:$G$1888,Data!$L$6:$L$1888,$B37,Data!$J$6:$J$1888,L$4),SUMIFS(Data!$O$6:$O$1888,Data!$L$6:$L$1888,$B37,Data!$J$6:$J$1888,L$4))>0,IF($C$1=1,SUMIFS(Data!$G$6:$G$1888,Data!$L$6:$L$1888,$B37,Data!$J$6:$J$1888,L$4),SUMIFS(Data!$O$6:$O$1888,Data!$L$6:$L$1888,$B37,Data!$J$6:$J$1888,L$4)),"") -> 1910.535969 | M37: 344333.025
B38: Philippines | C38: =IF(IF($C$1=1,SUMIFS(Data!$G$6:$G$1888,Data!$L$6:$L$1888,$B38,Data!$J$6:$J$1888,C$4),SUMIFS(Data!$O$6:$O$1888,Data!$L$6:$L$1888,$B38,Data!$J$6:$J$1888,C$4))>0,IF($C$1=1,SUMIFS(Data!$G$6:$G$1888,Data!$L$6:$L$1888,$B38,Data!$J$6:$J$1888,C$4),SUMIFS(Data!$O$6:$O$1888,Data!$L$6:$L$1888,$B38,Data!$J$6:$J$1888,C$4)),"") ->  | D38: =IF(IF($C$1=1,SUMIFS(Data!$G$6:$G$1888,Data!$L$6:$L$1888,$B38,Data!$J$6:$J$1888,D$4),SUMIFS(Data!$O$6:$O$1888,Data!$L$6:$L$1888,$B38,Data!$J$6:$J$1888,D$4))>0,IF($C$1=1,SUMIFS(Data!$G$6:$G$1888,Data!$L$6:$L$1888,$B38,Data!$J$6:$J$1888,D$4),SUMIFS(Data!$O$6:$O$1888,Data!$L$6:$L$1888,$B38,Data!$J$6:$J$1888,D$4)),"") ->  | E38: =IF(IF($C$1=1,SUMIFS(Data!$G$6:$G$1888,Data!$L$6:$L$1888,$B38,Data!$J$6:$J$1888,E$4),SUMIFS(Data!$O$6:$O$1888,Data!$L$6:$L$1888,$B38,Data!$J$6:$J$1888,E$4))>0,IF($C$1=1,SUMIFS(Data!$G$6:$G$1888,Data!$L$6:$L$1888,$B38,Data!$J$6:$J$1888,E$4),SUMIFS(Data!$O$6:$O$1888,Data!$L$6:$L$1888,$B38,Data!$J$6:$J$1888,E$4)),"") ->  | F38: =IF(IF($C$1=1,SUMIFS(Data!$G$6:$G$1888,Data!$L$6:$L$1888,$B38,Data!$J$6:$J$1888,F$4),SUMIFS(Data!$O$6:$O$1888,Data!$L$6:$L$1888,$B38,Data!$J$6:$J$1888,F$4))>0,IF($C$1=1,SUMIFS(Data!$G$6:$G$1888,Data!$L$6:$L$1888,$B38,Data!$J$6:$J$1888,F$4),SUMIFS(Data!$O$6:$O$1888,Data!$L$6:$L$1888,$B38,Data!$J$6:$J$1888,F$4)),"") -> 16519 | G38: =IF(IF($C$1=1,SUMIFS(Data!$G$6:$G$1888,Data!$L$6:$L$1888,$B38,Data!$J$6:$J$1888,G$4),SUMIFS(Data!$O$6:$O$1888,Data!$L$6:$L$1888,$B38,Data!$J$6:$J$1888,G$4))>0,IF($C$1=1,SUMIFS(Data!$G$6:$G$1888,Data!$L$6:$L$1888,$B38,Data!$J$6:$J$1888,G$4),SUMIFS(Data!$O$6:$O$1888,Data!$L$6:$L$1888,$B38,Data!$J$6:$J$1888,G$4)),"") -> 19068 | H38: =IF(IF($C$1=1,SUMIFS(Data!$G$6:$G$1888,Data!$L$6:$L$1888,$B38,Data!$J$6:$J$1888,H$4),SUMIFS(Data!$O$6:$O$1888,Data!$L$6:$L$1888,$B38,Data!$J$6:$J$1888,H$4))>0,IF($C$1=1,SUMIFS(Data!$G$6:$G$1888,Data!$L$6:$L$1888,$B38,Data!$J$6:$J$1888,H$4),SUMIFS(Data!$O$6:$O$1888,Data!$L$6:$L$1888,$B38,Data!$J$6:$J$1888,H$4)),"") ->  | I38: =IF(IF($C$1=1,SUMIFS(Data!$G$6:$G$1888,Data!$L$6:$L$1888,$B38,Data!$J$6:$J$1888,I$4),SUMIFS(Data!$O$6:$O$1888,Data!$L$6:$L$1888,$B38,Data!$J$6:$J$1888,I$4))>0,IF($C$1=1,SUMIFS(Data!$G$6:$G$1888,Data!$L$6:$L$1888,$B38,Data!$J$6:$J$1888,I$4),SUMIFS(Data!$O$6:$O$1888,Data!$L$6:$L$1888,$B38,Data!$J$6:$J$1888,I$4)),"") -> 37833.2634 | J38: =IF(IF($C$1=1,SUMIFS(Data!$G$6:$G$1888,Data!$L$6:$L$1888,$B38,Data!$J$6:$J$1888,J$4),SUMIFS(Data!$O$6:$O$1888,Data!$L$6:$L$1888,$B38,Data!$J$6:$J$1888,J$4))>0,IF($C$1=1,SUMIFS(Data!$G$6:$G$1888,Data!$L$6:$L$1888,$B38,Data!$J$6:$J$1888,J$4),SUMIFS(Data!$O$6:$O$1888,Data!$L$6:$L$1888,$B38,Data!$J$6:$J$1888,J$4)),"") -> 89982.44878 | K38: =IF(IF($C$1=1,SUMIFS(Data!$G$6:$G$1888,Data!$L$6:$L$1888,$B38,Data!$J$6:$J$1888,K$4),SUMIFS(Data!$O$6:$O$1888,Data!$L$6:$L$1888,$B38,Data!$J$6:$J$1888,K$4))>0,IF($C$1=1,SUMIFS(Data!$G$6:$G$1888,Data!$L$6:$L$1888,$B38,Data!$J$6:$J$1888,K$4),SUMIFS(Data!$O$6:$O$1888,Data!$L$6:$L$1888,$B38,Data!$J$6:$J$1888,K$4)),"") ->  | L38: =IF(IF($C$1=1,SUMIFS(Data!$G$6:$G$1888,Data!$L$6:$L$1888,$B38,Data!$J$6:$J$1888,L$4),SUMIFS(Data!$O$6:$O$1888,Data!$L$6:$L$1888,$B38,Data!$J$6:$J$1888,L$4))>0,IF($C$1=1,SUMIFS(Data!$G$6:$G$1888,Data!$L$6:$L$1888,$B38,Data!$J$6:$J$1888,L$4),SUMIFS(Data!$O$6:$O$1888,Data!$L$6:$L$1888,$B38,Data!$J$6:$J$1888,L$4)),"") -> 28869.50383 | M38: 192272.216
B39: Qatar | C39: =IF(IF($C$1=1,SUMIFS(Data!$G$6:$G$1888,Data!$L$6:$L$1888,$B39,Data!$J$6:$J$1888,C$4),SUMIFS(Data!$O$6:$O$1888,Data!$L$6:$L$1888,$B39,Data!$J$6:$J$1888,C$4))>0,IF($C$1=1,SUMIFS(Data!$G$6:$G$1888,Data!$L$6:$L$1888,$B39,Data!$J$6:$J$1888,C$4),SUMIFS(Data!$O$6:$O$1888,Data!$L$6:$L$1888,$B39,Data!$J$6:$J$1888,C$4)),"") ->  | D39: =IF(IF($C$1=1,SUMIFS(Data!$G$6:$G$1888,Data!$L$6:$L$1888,$B39,Data!$J$6:$J$1888,D$4),SUMIFS(Data!$O$6:$O$1888,Data!$L$6:$L$1888,$B39,Data!$J$6:$J$1888,D$4))>0,IF($C$1=1,SUMIFS(Data!$G$6:$G$1888,Data!$L$6:$L$1888,$B39,Data!$J$6:$J$1888,D$4),SUMIFS(Data!$O$6:$O$1888,Data!$L$6:$L$1888,$B39,Data!$J$6:$J$1888,D$4)),"") -> 48000 | E39: =IF(IF($C$1=1,SUMIFS(Data!$G$6:$G$1888,Data!$L$6:$L$1888,$B39,Data!$J$6:$J$1888,E$4),SUMIFS(Data!$O$6:$O$1888,Data!$L$6:$L$1888,$B39,Data!$J$6:$J$1888,E$4))>0,IF($C$1=1,SUMIFS(Data!$G$6:$G$1888,Data!$L$6:$L$1888,$B39,Data!$J$6:$J$1888,E$4),SUMIFS(Data!$O$6:$O$1888,Data!$L$6:$L$1888,$B39,Data!$J$6:$J$1888,E$4)),"") ->  | F39: =IF(IF($C$1=1,SUMIFS(Data!$G$6:$G$1888,Data!$L$6:$L$1888,$B39,Data!$J$6:$J$1888,F$4),SUMIFS(Data!$O$6:$O$1888,Data!$L$6:$L$1888,$B39,Data!$J$6:$J$1888,F$4))>0,IF($C$1=1,SUMIFS(Data!$G$6:$G$1888,Data!$L$6:$L$1888,$B39,Data!$J$6:$J$1888,F$4),SUMIFS(Data!$O$6:$O$1888,Data!$L$6:$L$1888,$B39,Data!$J$6:$J$1888,F$4)),"") ->  | G39: =IF(IF($C$1=1,SUMIFS(Data!$G$6:$G$1888,Data!$L$6:$L$1888,$B39,Data!$J$6:$J$1888,G$4),SUMIFS(Data!$O$6:$O$1888,Data!$L$6:$L$1888,$B39,Data!$J$6:$J$1888,G$4))>0,IF($C$1=1,SUMIFS(Data!$G$6:$G$1888,Data!$L$6:$L$1888,$B39,Data!$J$6:$J$1888,G$4),SUMIFS(Data!$O$6:$O$1888,Data!$L$6:$L$1888,$B39,Data!$J$6:$J$1888,G$4)),"") -> 49200 | H39: =IF(IF($C$1=1,SUMIFS(Data!$G$6:$G$1888,Data!$L$6:$L$1888,$B39,Data!$J$6:$J$1888,H$4),SUMIFS(Data!$O$6:$O$1888,Data!$L$6:$L$1888,$B39,Data!$J$6:$J$1888,H$4))>0,IF($C$1=1,SUMIFS(Data!$G$6:$G$1888,Data!$L$6:$L$1888,$B39,Data!$J$6:$J$1888,H$4),SUMIFS(Data!$O$6:$O$1888,Data!$L$6:$L$1888,$B39,Data!$J$6:$J$1888,H$4)),"") ->  | I39: =IF(IF($C$1=1,SUMIFS(Data!$G$6:$G$1888,Data!$L$6:$L$1888,$B39,Data!$J$6:$J$1888,I$4),SUMIFS(Data!$O$6:$O$1888,Data!$L$6:$L$1888,$B39,Data!$J$6:$J$1888,I$4))>0,IF($C$1=1,SUMIFS(Data!$G$6:$G$1888,Data!$L$6:$L$1888,$B39,Data!$J$6:$J$1888,I$4),SUMIFS(Data!$O$6:$O$1888,Data!$L$6:$L$1888,$B39,Data!$J$6:$J$1888,I$4)),"") -> 62000 | J39: =IF(IF($C$1=1,SUMIFS(Data!$G$6:$G$1888,Data!$L$6:$L$1888,$B39,Data!$J$6:$J$1888,J$4),SUMIFS(Data!$O$6:$O$1888,Data!$L$6:$L$1888,$B39,Data!$J$6:$J$1888,J$4))>0,IF($C$1=1,SUMIFS(Data!$G$6:$G$1888,Data!$L$6:$L$1888,$B39,Data!$J$6:$J$1888,J$4),SUMIFS(Data!$O$6:$O$1888,Data!$L$6:$L$1888,$B39,Data!$J$6:$J$1888,J$4)),"") ->  | K39: =IF(IF($C$1=1,SUMIFS(Data!$G$6:$G$1888,Data!$L$6:$L$1888,$B39,Data!$J$6:$J$1888,K$4),SUMIFS(Data!$O$6:$O$1888,Data!$L$6:$L$1888,$B39,Data!$J$6:$J$1888,K$4))>0,IF($C$1=1,SUMIFS(Data!$G$6:$G$1888,Data!$L$6:$L$1888,$B39,Data!$J$6:$J$1888,K$4),SUMIFS(Data!$O$6:$O$1888,Data!$L$6:$L$1888,$B39,Data!$J$6:$J$1888,K$4)),"") ->  | L39: =IF(IF($C$1=1,SUMIFS(Data!$G$6:$G$1888,Data!$L$6:$L$1888,$B39,Data!$J$6:$J$1888,L$4),SUMIFS(Data!$O$6:$O$1888,Data!$L$6:$L$1888,$B39,Data!$J$6:$J$1888,L$4))>0,IF($C$1=1,SUMIFS(Data!$G$6:$G$1888,Data!$L$6:$L$1888,$B39,Data!$J$6:$J$1888,L$4),SUMIFS(Data!$O$6:$O$1888,Data!$L$6:$L$1888,$B39,Data!$J$6:$J$1888,L$4)),"") ->  | M39: 159200
B40: Russia | C40: =IF(IF($C$1=1,SUMIFS(Data!$G$6:$G$1888,Data!$L$6:$L$1888,$B40,Data!$J$6:$J$1888,C$4),SUMIFS(Data!$O$6:$O$1888,Data!$L$6:$L$1888,$B40,Data!$J$6:$J$1888,C$4))>0,IF($C$1=1,SUMIFS(Data!$G$6:$G$1888,Data!$L$6:$L$1888,$B40,Data!$J$6:$J$1888,C$4),SUMIFS(Data!$O$6:$O$1888,Data!$L$6:$L$1888,$B40,Data!$J$6:$J$1888,C$4)),"") ->  | D40: =IF(IF($C$1=1,SUMIFS(Data!$G$6:$G$1888,Data!$L$6:$L$1888,$B40,Data!$J$6:$J$1888,D$4),SUMIFS(Data!$O$6:$O$1888,Data!$L$6:$L$1888,$B40,Data!$J$6:$J$1888,D$4))>0,IF($C$1=1,SUMIFS(Data!$G$6:$G$1888,Data!$L$6:$L$1888,$B40,Data!$J$6:$J$1888,D$4),SUMIFS(Data!$O$6:$O$1888,Data!$L$6:$L$1888,$B40,Data!$J$6:$J$1888,D$4)),"") -> 24000 | E40: =IF(IF($C$1=1,SUMIFS(Data!$G$6:$G$1888,Data!$L$6:$L$1888,$B40,Data!$J$6:$J$1888,E$4),SUMIFS(Data!$O$6:$O$1888,Data!$L$6:$L$1888,$B40,Data!$J$6:$J$1888,E$4))>0,IF($C$1=1,SUMIFS(Data!$G$6:$G$1888,Data!$L$6:$L$1888,$B40,Data!$J$6:$J$1888,E$4),SUMIFS(Data!$O$6:$O$1888,Data!$L$6:$L$1888,$B40,Data!$J$6:$J$1888,E$4)),"") -> 36000 | F40: =IF(IF($C$1=1,SUMIFS(Data!$G$6:$G$1888,Data!$L$6:$L$1888,$B40,Data!$J$6:$J$1888,F$4),SUMIFS(Data!$O$6:$O$1888,Data!$L$6:$L$1888,$B40,Data!$J$6:$J$1888,F$4))>0,IF($C$1=1,SUMIFS(Data!$G$6:$G$1888,Data!$L$6:$L$1888,$B40,Data!$J$6:$J$1888,F$4),SUMIFS(Data!$O$6:$O$1888,Data!$L$6:$L$1888,$B40,Data!$J$6:$J$1888,F$4)),"") -> 135147 | G40: =IF(IF($C$1=1,SUMIFS(Data!$G$6:$G$1888,Data!$L$6:$L$1888,$B40,Data!$J$6:$J$1888,G$4),SUMIFS(Data!$O$6:$O$1888,Data!$L$6:$L$1888,$B40,Data!$J$6:$J$1888,G$4))>0,IF($C$1=1,SUMIFS(Data!$G$6:$G$1888,Data!$L$6:$L$1888,$B40,Data!$J$6:$J$1888,G$4),SUMIFS(Data!$O$6:$O$1888,Data!$L$6:$L$1888,$B40,Data!$J$6:$J$1888,G$4)),"") ->  | H40: =IF(IF($C$1=1,SUMIFS(Data!$G$6:$G$1888,Data!$L$6:$L$1888,$B40,Data!$J$6:$J$1888,H$4),SUMIFS(Data!$O$6:$O$1888,Data!$L$6:$L$1888,$B40,Data!$J$6:$J$1888,H$4))>0,IF($C$1=1,SUMIFS(Data!$G$6:$G$1888,Data!$L$6:$L$1888,$B40,Data!$J$6:$J$1888,H$4),SUMIFS(Data!$O$6:$O$1888,Data!$L$6:$L$1888,$B40,Data!$J$6:$J$1888,H$4)),"") ->  | I40: =IF(IF($C$1=1,SUMIFS(Data!$G$6:$G$1888,Data!$L$6:$L$1888,$B40,Data!$J$6:$J$1888,I$4),SUMIFS(Data!$O$6:$O$1888,Data!$L$6:$L$1888,$B40,Data!$J$6:$J$1888,I$4))>0,IF($C$1=1,SUMIFS(Data!$G$6:$G$1888,Data!$L$6:$L$1888,$B40,Data!$J$6:$J$1888,I$4),SUMIFS(Data!$O$6:$O$1888,Data!$L$6:$L$1888,$B40,Data!$J$6:$J$1888,I$4)),"") -> 101000 | J40: =IF(IF($C$1=1,SUMIFS(Data!$G$6:$G$1888,Data!$L$6:$L$1888,$B40,Data!$J$6:$J$1888,J$4),SUMIFS(Data!$O$6:$O$1888,Data!$L$6:$L$1888,$B40,Data!$J$6:$J$1888,J$4))>0,IF($C$1=1,SUMIFS(Data!$G$6:$G$1888,Data!$L$6:$L$1888,$B40,Data!$J$6:$J$1888,J$4),SUMIFS(Data!$O$6:$O$1888,Data!$L$6:$L$1888,$B40,Data!$J$6:$J$1888,J$4)),"") -> 207000 | K40: =IF(IF($C$1=1,SUMIFS(Data!$G$6:$G$1888,Data!$L$6:$L$1888,$B40,Data!$J$6:$J$1888,K$4),SUMIFS(Data!$O$6:$O$1888,Data!$L$6:$L$1888,$B40,Data!$J$6:$J$1888,K$4))>0,IF($C$1=1,SUMIFS(Data!$G$6:$G$1888,Data!$L$6:$L$1888,$B40,Data!$J$6:$J$1888,K$4),SUMIFS(Data!$O$6:$O$1888,Data!$L$6:$L$1888,$B40,Data!$J$6:$J$1888,K$4)),"") ->  | L40: =IF(IF($C$1=1,SUMIFS(Data!$G$6:$G$1888,Data!$L$6:$L$1888,$B40,Data!$J$6:$J$1888,L$4),SUMIFS(Data!$O$6:$O$1888,Data!$L$6:$L$1888,$B40,Data!$J$6:$J$1888,L$4))>0,IF($C$1=1,SUMIFS(Data!$G$6:$G$1888,Data!$L$6:$L$1888,$B40,Data!$J$6:$J$1888,L$4),SUMIFS(Data!$O$6:$O$1888,Data!$L$6:$L$1888,$B40,Data!$J$6:$J$1888,L$4)),"") ->  | M40: 503147
B41: Saudi Arabia | C41: =IF(IF($C$1=1,SUMIFS(Data!$G$6:$G$1888,Data!$L$6:$L$1888,$B41,Data!$J$6:$J$1888,C$4),SUMIFS(Data!$O$6:$O$1888,Data!$L$6:$L$1888,$B41,Data!$J$6:$J$1888,C$4))>0,IF($C$1=1,SUMIFS(Data!$G$6:$G$1888,Data!$L$6:$L$1888,$B41,Data!$J$6:$J$1888,C$4),SUMIFS(Data!$O$6:$O$1888,Data!$L$6:$L$1888,$B41,Data!$J$6:$J$1888,C$4)),"") ->  | D41: =IF(IF($C$1=1,SUMIFS(Data!$G$6:$G$1888,Data!$L$6:$L$1888,$B41,Data!$J$6:$J$1888,D$4),SUMIFS(Data!$O$6:$O$1888,Data!$L$6:$L$1888,$B41,Data!$J$6:$J$1888,D$4))>0,IF($C$1=1,SUMIFS(Data!$G$6:$G$1888,Data!$L$6:$L$1888,$B41,Data!$J$6:$J$1888,D$4),SUMIFS(Data!$O$6:$O$1888,Data!$L$6:$L$1888,$B41,Data!$J$6:$J$1888,D$4)),"") -> 56960 | E41: =IF(IF($C$1=1,SUMIFS(Data!$G$6:$G$1888,Data!$L$6:$L$1888,$B41,Data!$J$6:$J$1888,E$4),SUMIFS(Data!$O$6:$O$1888,Data!$L$6:$L$1888,$B41,Data!$J$6:$J$1888,E$4))>0,IF($C$1=1,SUMIFS(Data!$G$6:$G$1888,Data!$L$6:$L$1888,$B41,Data!$J$6:$J$1888,E$4),SUMIFS(Data!$O$6:$O$1888,Data!$L$6:$L$1888,$B41,Data!$J$6:$J$1888,E$4)),"") ->  | F41: =IF(IF($C$1=1,SUMIFS(Data!$G$6:$G$1888,Data!$L$6:$L$1888,$B41,Data!$J$6:$J$1888,F$4),SUMIFS(Data!$O$6:$O$1888,Data!$L$6:$L$1888,$B41,Data!$J$6:$J$1888,F$4))>0,IF($C$1=1,SUMIFS(Data!$G$6:$G$1888,Data!$L$6:$L$1888,$B41,Data!$J$6:$J$1888,F$4),SUMIFS(Data!$O$6:$O$1888,Data!$L$6:$L$1888,$B41,Data!$J$6:$J$1888,F$4)),"") ->  | G41: =IF(IF($C$1=1,SUMIFS(Data!$G$6:$G$1888,Data!$L$6:$L$1888,$B41,Data!$J$6:$J$1888,G$4),SUMIFS(Data!$O$6:$O$1888,Data!$L$6:$L$1888,$B41,Data!$J$6:$J$1888,G$4))>0,IF($C$1=1,SUMIFS(Data!$G$6:$G$1888,Data!$L$6:$L$1888,$B41,Data!$J$6:$J$1888,G$4),SUMIFS(Data!$O$6:$O$1888,Data!$L$6:$L$1888,$B41,Data!$J$6:$J$1888,G$4)),"") -> 59500 | H41: =IF(IF($C$1=1,SUMIFS(Data!$G$6:$G$1888,Data!$L$6:$L$1888,$B41,Data!$J$6:$J$1888,H$4),SUMIFS(Data!$O$6:$O$1888,Data!$L$6:$L$1888,$B41,Data!$J$6:$J$1888,H$4))>0,IF($C$1=1,SUMIFS(Data!$G$6:$G$1888,Data!$L$6:$L$1888,$B41,Data!$J$6:$J$1888,H$4),SUMIFS(Data!$O$6:$O$1888,Data!$L$6:$L$1888,$B41,Data!$J$6:$J$1888,H$4)),"") -> 57600 | I41: =IF(IF($C$1=1,SUMIFS(Data!$G$6:$G$1888,Data!$L$6:$L$1888,$B41,Data!$J$6:$J$1888,I$4),SUMIFS(Data!$O$6:$O$1888,Data!$L$6:$L$1888,$B41,Data!$J$6:$J$1888,I$4))>0,IF($C$1=1,SUMIFS(Data!$G$6:$G$1888,Data!$L$6:$L$1888,$B41,Data!$J$6:$J$1888,I$4),SUMIFS(Data!$O$6:$O$1888,Data!$L$6:$L$1888,$B41,Data!$J$6:$J$1888,I$4)),"") -> 202093.3333 | J41: =IF(IF($C$1=1,SUMIFS(Data!$G$6:$G$1888,Data!$L$6:$L$1888,$B41,Data!$J$6:$J$1888,J$4),SUMIFS(Data!$O$6:$O$1888,Data!$L$6:$L$1888,$B41,Data!$J$6:$J$1888,J$4))>0,IF($C$1=1,SUMIFS(Data!$G$6:$G$1888,Data!$L$6:$L$1888,$B41,Data!$J$6:$J$1888,J$4),SUMIFS(Data!$O$6:$O$1888,Data!$L$6:$L$1888,$B41,Data!$J$6:$J$1888,J$4)),"") -> 18000 | K41: =IF(IF($C$1=1,SUMIFS(Data!$G$6:$G$1888,Data!$L$6:$L$1888,$B41,Data!$J$6:$J$1888,K$4),SUMIFS(Data!$O$6:$O$1888,Data!$L$6:$L$1888,$B41,Data!$J$6:$J$1888,K$4))>0,IF($C$1=1,SUMIFS(Data!$G$6:$G$1888,Data!$L$6:$L$1888,$B41,Data!$J$6:$J$1888,K$4),SUMIFS(Data!$O$6:$O$1888,Data!$L$6:$L$1888,$B41,Data!$J$6:$J$1888,K$4)),"") ->  | L41: =IF(IF($C$1=1,SUMIFS(Data!$G$6:$G$1888,Data!$L$6:$L$1888,$B41,Data!$J$6:$J$1888,L$4),SUMIFS(Data!$O$6:$O$1888,Data!$L$6:$L$1888,$B41,Data!$J$6:$J$1888,L$4))>0,IF($C$1=1,SUMIFS(Data!$G$6:$G$1888,Data!$L$6:$L$1888,$B41,Data!$J$6:$J$1888,L$4),SUMIFS(Data!$O$6:$O$1888,Data!$L$6:$L$1888,$B41,Data!$J$6:$J$1888,L$4)),"") ->  | M41: 394153.3333
B42: Singapore | C42: =IF(IF($C$1=1,SUMIFS(Data!$G$6:$G$1888,Data!$L$6:$L$1888,$B42,Data!$J$6:$J$1888,C$4),SUMIFS(Data!$O$6:$O$1888,Data!$L$6:$L$1888,$B42,Data!$J$6:$J$1888,C$4))>0,IF($C$1=1,SUMIFS(Data!$G$6:$G$1888,Data!$L$6:$L$1888,$B42,Data!$J$6:$J$1888,C$4),SUMIFS(Data!$O$6:$O$1888,Data!$L$6:$L$1888,$B42,Data!$J$6:$J$1888,C$4)),"") ->  | D42: =IF(IF($C$1=1,SUMIFS(Data!$G$6:$G$1888,Data!$L$6:$L$1888,$B42,Data!$J$6:$J$1888,D$4),SUMIFS(Data!$O$6:$O$1888,Data!$L$6:$L$1888,$B42,Data!$J$6:$J$1888,D$4))>0,IF($C$1=1,SUMIFS(Data!$G$6:$G$1888,Data!$L$6:$L$1888,$B42,Data!$J$6:$J$1888,D$4),SUMIFS(Data!$O$6:$O$1888,Data!$L$6:$L$1888,$B42,Data!$J$6:$J$1888,D$4)),"") ->  | E42: =IF(IF($C$1=1,SUMIFS(Data!$G$6:$G$1888,Data!$L$6:$L$1888,$B42,Data!$J$6:$J$1888,E$4),SUMIFS(Data!$O$6:$O$1888,Data!$L$6:$L$1888,$B42,Data!$J$6:$J$1888,E$4))>0,IF($C$1=1,SUMIFS(Data!$G$6:$G$1888,Data!$L$6:$L$1888,$B42,Data!$J$6:$J$1888,E$4),SUMIFS(Data!$O$6:$O$1888,Data!$L$6:$L$1888,$B42,Data!$J$6:$J$1888,E$4)),"") -> 255600 | F42: =IF(IF($C$1=1,SUMIFS(Data!$G$6:$G$1888,Data!$L$6:$L$1888,$B42,Data!$J$6:$J$1888,F$4),SUMIFS(Data!$O$6:$O$1888,Data!$L$6:$L$1888,$B42,Data!$J$6:$J$1888,F$4))>0,IF($C$1=1,SUMIFS(Data!$G$6:$G$1888,Data!$L$6:$L$1888,$B42,Data!$J$6:$J$1888,F$4),SUMIFS(Data!$O$6:$O$1888,Data!$L$6:$L$1888,$B42,Data!$J$6:$J$1888,F$4)),"") ->  | G42: =IF(IF($C$1=1,SUMIFS(Data!$G$6:$G$1888,Data!$L$6:$L$1888,$B42,Data!$J$6:$J$1888,G$4),SUMIFS(Data!$O$6:$O$1888,Data!$L$6:$L$1888,$B42,Data!$J$6:$J$1888,G$4))>0,IF($C$1=1,SUMIFS(Data!$G$6:$G$1888,Data!$L$6:$L$1888,$B42,Data!$J$6:$J$1888,G$4),SUMIFS(Data!$O$6:$O$1888,Data!$L$6:$L$1888,$B42,Data!$J$6:$J$1888,G$4)),"") -> 60000 | H42: =IF(IF($C$1=1,SUMIFS(Data!$G$6:$G$1888,Data!$L$6:$L$1888,$B42,Data!$J$6:$J$1888,H$4),SUMIFS(Data!$O$6:$O$1888,Data!$L$6:$L$1888,$B42,Data!$J$6:$J$1888,H$4))>0,IF($C$1=1,SUMIFS(Data!$G$6:$G$1888,Data!$L$6:$L$1888,$B42,Data!$J$6:$J$1888,H$4),SUMIFS(Data!$O$6:$O$1888,Data!$L$6:$L$1888,$B42,Data!$J$6:$J$1888,H$4)),"") -> 95000 | I42: =IF(IF($C$1=1,SUMIFS(Data!$G$6:$G$1888,Data!$L$6:$L$1888,$B42,Data!$J$6:$J$1888,I$4),SUMIFS(Data!$O$6:$O$1888,Data!$L$6:$L$1888,$B42,Data!$J$6:$J$1888,I$4))>0,IF($C$1=1,SUMIFS(Data!$G$6:$G$1888,Data!$L$6:$L$1888,$B42,Data!$J$6:$J$1888,I$4),SUMIFS(Data!$O$6:$O$1888,Data!$L$6:$L$1888,$B42,Data!$J$6:$J$1888,I$4)),"") -> 93211.8027 | J42: =IF(IF($C$1=1,SUMIFS(Data!$G$6:$G$1888,Data!$L$6:$L$1888,$B42,Data!$J$6:$J$1888,J$4),SUMIFS(Data!$O$6:$O$1888,Data!$L$6:$L$1888,$B42,Data!$J$6:$J$1888,J$4))>0,IF($C$1=1,SUMIFS(Data!$G$6:$G$1888,Data!$L$6:$L$1888,$B42,Data!$J$6:$J$1888,J$4),SUMIFS(Data!$O$6:$O$1888,Data!$L$6:$L$1888,$B42,Data!$J$6:$J$1888,J$4)),"") -> 174200 | K42: =IF(IF($C$1=1,SUMIFS(Data!$G$6:$G$1888,Data!$L$6:$L$1888,$B42,Data!$J$6:$J$1888,K$4),SUMIFS(Data!$O$6:$O$1888,Data!$L$6:$L$1888,$B42,Data!$J$6:$J$1888,K$4))>0,IF($C$1=1,SUMIFS(Data!$G$6:$G$1888,Data!$L$6:$L$1888,$B42,Data!$J$6:$J$1888,K$4),SUMIFS(Data!$O$6:$O$1888,Data!$L$6:$L$1888,$B42,Data!$J$6:$J$1888,K$4)),"") ->  | L42: =IF(IF($C$1=1,SUMIFS(Data!$G$6:$G$1888,Data!$L$6:$L$1888,$B42,Data!$J$6:$J$1888,L$4),SUMIFS(Data!$O$6:$O$1888,Data!$L$6:$L$1888,$B42,Data!$J$6:$J$1888,L$4))>0,IF($C$1=1,SUMIFS(Data!$G$6:$G$1888,Data!$L$6:$L$1888,$B42,Data!$J$6:$J$1888,L$4),SUMIFS(Data!$O$6:$O$1888,Data!$L$6:$L$1888,$B42,Data!$J$6:$J$1888,L$4)),"") ->  | M42: 678011.8027
B43: Sri Lanka | C43: =IF(IF($C$1=1,SUMIFS(Data!$G$6:$G$1888,Data!$L$6:$L$1888,$B43,Data!$J$6:$J$1888,C$4),SUMIFS(Data!$O$6:$O$1888,Data!$L$6:$L$1888,$B43,Data!$J$6:$J$1888,C$4))>0,IF($C$1=1,SUMIFS(Data!$G$6:$G$1888,Data!$L$6:$L$1888,$B43,Data!$J$6:$J$1888,C$4),SUMIFS(Data!$O$6:$O$1888,Data!$L$6:$L$1888,$B43,Data!$J$6:$J$1888,C$4)),"") ->  | D43: =IF(IF($C$1=1,SUMIFS(Data!$G$6:$G$1888,Data!$L$6:$L$1888,$B43,Data!$J$6:$J$1888,D$4),SUMIFS(Data!$O$6:$O$1888,Data!$L$6:$L$1888,$B43,Data!$J$6:$J$1888,D$4))>0,IF($C$1=1,SUMIFS(Data!$G$6:$G$1888,Data!$L$6:$L$1888,$B43,Data!$J$6:$J$1888,D$4),SUMIFS(Data!$O$6:$O$1888,Data!$L$6:$L$1888,$B43,Data!$J$6:$J$1888,D$4)),"") -> 13800 | E43: =IF(IF($C$1=1,SUMIFS(Data!$G$6:$G$1888,Data!$L$6:$L$1888,$B43,Data!$J$6:$J$1888,E$4),SUMIFS(Data!$O$6:$O$1888,Data!$L$6:$L$1888,$B43,Data!$J$6:$J$1888,E$4))>0,IF($C$1=1,SUMIFS(Data!$G$6:$G$1888,Data!$L$6:$L$1888,$B43,Data!$J$6:$J$1888,E$4),SUMIFS(Data!$O$6:$O$1888,Data!$L$6:$L$1888,$B43,Data!$J$6:$J$1888,E$4)),"") ->  | F43: =IF(IF($C$1=1,SUMIFS(Data!$G$6:$G$1888,Data!$L$6:$L$1888,$B43,Data!$J$6:$J$1888,F$4),SUMIFS(Data!$O$6:$O$1888,Data!$L$6:$L$1888,$B43,Data!$J$6:$J$1888,F$4))>0,IF($C$1=1,SUMIFS(Data!$G$6:$G$1888,Data!$L$6:$L$1888,$B43,Data!$J$6:$J$1888,F$4),SUMIFS(Data!$O$6:$O$1888,Data!$L$6:$L$1888,$B43,Data!$J$6:$J$1888,F$4)),"") ->  | G43: =IF(IF($C$1=1,SUMIFS(Data!$G$6:$G$1888,Data!$L$6:$L$1888,$B43,Data!$J$6:$J$1888,G$4),SUMIFS(Data!$O$6:$O$1888,Data!$L$6:$L$1888,$B43,Data!$J$6:$J$1888,G$4))>0,IF($C$1=1,SUMIFS(Data!$G$6:$G$1888,Data!$L$6:$L$1888,$B43,Data!$J$6:$J$1888,G$4),SUMIFS(Data!$O$6:$O$1888,Data!$L$6:$L$1888,$B43,Data!$J$6:$J$1888,G$4)),"") -> 3000 | H43: =IF(IF($C$1=1,SUMIFS(Data!$G$6:$G$1888,Data!$L$6:$L$1888,$B43,Data!$J$6:$J$1888,H$4),SUMIFS(Data!$O$6:$O$1888,Data!$L$6:$L$1888,$B43,Data!$J$6:$J$1888,H$4))>0,IF($C$1=1,SUMIFS(Data!$G$6:$G$1888,Data!$L$6:$L$1888,$B43,Data!$J$6:$J$1888,H$4),SUMIFS(Data!$O$6:$O$1888,Data!$L$6:$L$1888,$B43,Data!$J$6:$J$1888,H$4)),"") ->  | I43: =IF(IF($C$1=1,SUMIFS(Data!$G$6:$G$1888,Data!$L$6:$L$1888,$B43,Data!$J$6:$J$1888,I$4),SUMIFS(Data!$O$6:$O$1888,Data!$L$6:$L$1888,$B43,Data!$J$6:$J$1888,I$4))>0,IF($C$1=1,SUMIFS(Data!$G$6:$G$1888,Data!$L$6:$L$1888,$B43,Data!$J$6:$J$1888,I$4),SUMIFS(Data!$O$6:$O$1888,Data!$L$6:$L$1888,$B43,Data!$J$6:$J$1888,I$4)),"") -> 97805.77396 | J43: =IF(IF($C$1=1,SUMIFS(Data!$G$6:$G$1888,Data!$L$6:$L$1888,$B43,Data!$J$6:$J$1888,J$4),SUMIFS(Data!$O$6:$O$1888,Data!$L$6:$L$1888,$B43,Data!$J$6:$J$1888,J$4))>0,IF($C$1=1,SUMIFS(Data!$G$6:$G$1888,Data!$L$6:$L$1888,$B43,Data!$J$6:$J$1888,J$4),SUMIFS(Data!$O$6:$O$1888,Data!$L$6:$L$1888,$B43,Data!$J$6:$J$1888,J$4)),"") ->  | K43: =IF(IF($C$1=1,SUMIFS(Data!$G$6:$G$1888,Data!$L$6:$L$1888,$B43,Data!$J$6:$J$1888,K$4),SUMIFS(Data!$O$6:$O$1888,Data!$L$6:$L$1888,$B43,Data!$J$6:$J$1888,K$4))>0,IF($C$1=1,SUMIFS(Data!$G$6:$G$1888,Data!$L$6:$L$1888,$B43,Data!$J$6:$J$1888,K$4),SUMIFS(Data!$O$6:$O$1888,Data!$L$6:$L$1888,$B43,Data!$J$6:$J$1888,K$4)),"") ->  | L43: =IF(IF($C$1=1,SUMIFS(Data!$G$6:$G$1888,Data!$L$6:$L$1888,$B43,Data!$J$6:$J$1888,L$4),SUMIFS(Data!$O$6:$O$1888,Data!$L$6:$L$1888,$B43,Data!$J$6:$J$1888,L$4))>0,IF($C$1=1,SUMIFS(Data!$G$6:$G$1888,Data!$L$6:$L$1888,$B43,Data!$J$6:$J$1888,L$4),SUMIFS(Data!$O$6:$O$1888,Data!$L$6:$L$1888,$B43,Data!$J$6:$J$1888,L$4)),"") ->  | M43: 114605.774
B44: Thailand | C44: =IF(IF($C$1=1,SUMIFS(Data!$G$6:$G$1888,Data!$L$6:$L$1888,$B44,Data!$J$6:$J$1888,C$4),SUMIFS(Data!$O$6:$O$1888,Data!$L$6:$L$1888,$B44,Data!$J$6:$J$1888,C$4))>0,IF($C$1=1,SUMIFS(Data!$G$6:$G$1888,Data!$L$6:$L$1888,$B44,Data!$J$6:$J$1888,C$4),SUMIFS(Data!$O$6:$O$1888,Data!$L$6:$L$1888,$B44,Data!$J$6:$J$1888,C$4)),"") ->  | D44: =IF(IF($C$1=1,SUMIFS(Data!$G$6:$G$1888,Data!$L$6:$L$1888,$B44,Data!$J$6:$J$1888,D$4),SUMIFS(Data!$O$6:$O$1888,Data!$L$6:$L$1888,$B44,Data!$J$6:$J$1888,D$4))>0,IF($C$1=1,SUMIFS(Data!$G$6:$G$1888,Data!$L$6:$L$1888,$B44,Data!$J$6:$J$1888,D$4),SUMIFS(Data!$O$6:$O$1888,Data!$L$6:$L$1888,$B44,Data!$J$6:$J$1888,D$4)),"") ->  | E44: =IF(IF($C$1=1,SUMIFS(Data!$G$6:$G$1888,Data!$L$6:$L$1888,$B44,Data!$J$6:$J$1888,E$4),SUMIFS(Data!$O$6:$O$1888,Data!$L$6:$L$1888,$B44,Data!$J$6:$J$1888,E$4))>0,IF($C$1=1,SUMIFS(Data!$G$6:$G$1888,Data!$L$6:$L$1888,$B44,Data!$J$6:$J$1888,E$4),SUMIFS(Data!$O$6:$O$1888,Data!$L$6:$L$1888,$B44,Data!$J$6:$J$1888,E$4)),"") ->  | F44: =IF(IF($C$1=1,SUMIFS(Data!$G$6:$G$1888,Data!$L$6:$L$1888,$B44,Data!$J$6:$J$1888,F$4),SUMIFS(Data!$O$6:$O$1888,Data!$L$6:$L$1888,$B44,Data!$J$6:$J$1888,F$4))>0,IF($C$1=1,SUMIFS(Data!$G$6:$G$1888,Data!$L$6:$L$1888,$B44,Data!$J$6:$J$1888,F$4),SUMIFS(Data!$O$6:$O$1888,Data!$L$6:$L$1888,$B44,Data!$J$6:$J$1888,F$4)),"") ->  | G44: =IF(IF($C$1=1,SUMIFS(Data!$G$6:$G$1888,Data!$L$6:$L$1888,$B44,Data!$J$6:$J$1888,G$4),SUMIFS(Data!$O$6:$O$1888,Data!$L$6:$L$1888,$B44,Data!$J$6:$J$1888,G$4))>0,IF($C$1=1,SUMIFS(Data!$G$6:$G$1888,Data!$L$6:$L$1888,$B44,Data!$J$6:$J$1888,G$4),SUMIFS(Data!$O$6:$O$1888,Data!$L$6:$L$1888,$B44,Data!$J$6:$J$1888,G$4)),"") ->  | H44: =IF(IF($C$1=1,SUMIFS(Data!$G$6:$G$1888,Data!$L$6:$L$1888,$B44,Data!$J$6:$J$1888,H$4),SUMIFS(Data!$O$6:$O$1888,Data!$L$6:$L$1888,$B44,Data!$J$6:$J$1888,H$4))>0,IF($C$1=1,SUMIFS(Data!$G$6:$G$1888,Data!$L$6:$L$1888,$B44,Data!$J$6:$J$1888,H$4),SUMIFS(Data!$O$6:$O$1888,Data!$L$6:$L$1888,$B44,Data!$J$6:$J$1888,H$4)),"") -> 138000 | I44: =IF(IF($C$1=1,SUMIFS(Data!$G$6:$G$1888,Data!$L$6:$L$1888,$B44,Data!$J$6:$J$1888,I$4),SUMIFS(Data!$O$6:$O$1888,Data!$L$6:$L$1888,$B44,Data!$J$6:$J$1888,I$4))>0,IF($C$1=1,SUMIFS(Data!$G$6:$G$1888,Data!$L$6:$L$1888,$B44,Data!$J$6:$J$1888,I$4),SUMIFS(Data!$O$6:$O$1888,Data!$L$6:$L$1888,$B44,Data!$J$6:$J$1888,I$4)),"") -> 8000 | J44: =IF(IF($C$1=1,SUMIFS(Data!$G$6:$G$1888,Data!$L$6:$L$1888,$B44,Data!$J$6:$J$1888,J$4),SUMIFS(Data!$O$6:$O$1888,Data!$L$6:$L$1888,$B44,Data!$J$6:$J$1888,J$4))>0,IF($C$1=1,SUMIFS(Data!$G$6:$G$1888,Data!$L$6:$L$1888,$B44,Data!$J$6:$J$1888,J$4),SUMIFS(Data!$O$6:$O$1888,Data!$L$6:$L$1888,$B44,Data!$J$6:$J$1888,J$4)),"") ->  | K44: =IF(IF($C$1=1,SUMIFS(Data!$G$6:$G$1888,Data!$L$6:$L$1888,$B44,Data!$J$6:$J$1888,K$4),SUMIFS(Data!$O$6:$O$1888,Data!$L$6:$L$1888,$B44,Data!$J$6:$J$1888,K$4))>0,IF($C$1=1,SUMIFS(Data!$G$6:$G$1888,Data!$L$6:$L$1888,$B44,Data!$J$6:$J$1888,K$4),SUMIFS(Data!$O$6:$O$1888,Data!$L$6:$L$1888,$B44,Data!$J$6:$J$1888,K$4)),"") ->  | L44: =IF(IF($C$1=1,SUMIFS(Data!$G$6:$G$1888,Data!$L$6:$L$1888,$B44,Data!$J$6:$J$1888,L$4),SUMIFS(Data!$O$6:$O$1888,Data!$L$6:$L$1888,$B44,Data!$J$6:$J$1888,L$4))>0,IF($C$1=1,SUMIFS(Data!$G$6:$G$1888,Data!$L$6:$L$1888,$B44,Data!$J$6:$J$1888,L$4),SUMIFS(Data!$O$6:$O$1888,Data!$L$6:$L$1888,$B44,Data!$J$6:$J$1888,L$4)),"") ->  | M44: 146000
B45: Turkey | C45: =IF(IF($C$1=1,SUMIFS(Data!$G$6:$G$1888,Data!$L$6:$L$1888,$B45,Data!$J$6:$J$1888,C$4),SUMIFS(Data!$O$6:$O$1888,Data!$L$6:$L$1888,$B45,Data!$J$6:$J$1888,C$4))>0,IF($C$1=1,SUMIFS(Data!$G$6:$G$1888,Data!$L$6:$L$1888,$B45,Data!$J$6:$J$1888,C$4),SUMIFS(Data!$O$6:$O$1888,Data!$L$6:$L$1888,$B45,Data!$J$6:$J$1888,C$4)),"") ->  | D45: =IF(IF($C$1=1,SUMIFS(Data!$G$6:$G$1888,Data!$L$6:$L$1888,$B45,Data!$J$6:$J$1888,D$4),SUMIFS(Data!$O$6:$O$1888,Data!$L$6:$L$1888,$B45,Data!$J$6:$J$1888,D$4))>0,IF($C$1=1,SUMIFS(Data!$G$6:$G$1888,Data!$L$6:$L$1888,$B45,Data!$J$6:$J$1888,D$4),SUMIFS(Data!$O$6:$O$1888,Data!$L$6:$L$1888,$B45,Data!$J$6:$J$1888,D$4)),"") ->  | E45: =IF(IF($C$1=1,SUMIFS(Data!$G$6:$G$1888,Data!$L$6:$L$1888,$B45,Data!$J$6:$J$1888,E$4),SUMIFS(Data!$O$6:$O$1888,Data!$L$6:$L$1888,$B45,Data!$J$6:$J$1888,E$4))>0,IF($C$1=1,SUMIFS(Data!$G$6:$G$1888,Data!$L$6:$L$1888,$B45,Data!$J$6:$J$1888,E$4),SUMIFS(Data!$O$6:$O$1888,Data!$L$6:$L$1888,$B45,Data!$J$6:$J$1888,E$4)),"") ->  | F45: =IF(IF($C$1=1,SUMIFS(Data!$G$6:$G$1888,Data!$L$6:$L$1888,$B45,Data!$J$6:$J$1888,F$4),SUMIFS(Data!$O$6:$O$1888,Data!$L$6:$L$1888,$B45,Data!$J$6:$J$1888,F$4))>0,IF($C$1=1,SUMIFS(Data!$G$6:$G$1888,Data!$L$6:$L$1888,$B45,Data!$J$6:$J$1888,F$4),SUMIFS(Data!$O$6:$O$1888,Data!$L$6:$L$1888,$B45,Data!$J$6:$J$1888,F$4)),"") ->  | G45: =IF(IF($C$1=1,SUMIFS(Data!$G$6:$G$1888,Data!$L$6:$L$1888,$B45,Data!$J$6:$J$1888,G$4),SUMIFS(Data!$O$6:$O$1888,Data!$L$6:$L$1888,$B45,Data!$J$6:$J$1888,G$4))>0,IF($C$1=1,SUMIFS(Data!$G$6:$G$1888,Data!$L$6:$L$1888,$B45,Data!$J$6:$J$1888,G$4),SUMIFS(Data!$O$6:$O$1888,Data!$L$6:$L$1888,$B45,Data!$J$6:$J$1888,G$4)),"") -> 36000 | H45: =IF(IF($C$1=1,SUMIFS(Data!$G$6:$G$1888,Data!$L$6:$L$1888,$B45,Data!$J$6:$J$1888,H$4),SUMIFS(Data!$O$6:$O$1888,Data!$L$6:$L$1888,$B45,Data!$J$6:$J$1888,H$4))>0,IF($C$1=1,SUMIFS(Data!$G$6:$G$1888,Data!$L$6:$L$1888,$B45,Data!$J$6:$J$1888,H$4),SUMIFS(Data!$O$6:$O$1888,Data!$L$6:$L$1888,$B45,Data!$J$6:$J$1888,H$4)),"") ->  | I45: =IF(IF($C$1=1,SUMIFS(Data!$G$6:$G$1888,Data!$L$6:$L$1888,$B45,Data!$J$6:$J$1888,I$4),SUMIFS(Data!$O$6:$O$1888,Data!$L$6:$L$1888,$B45,Data!$J$6:$J$1888,I$4))>0,IF($C$1=1,SUMIFS(Data!$G$6:$G$1888,Data!$L$6:$L$1888,$B45,Data!$J$6:$J$1888,I$4),SUMIFS(Data!$O$6:$O$1888,Data!$L$6:$L$1888,$B45,Data!$J$6:$J$1888,I$4)),"") ->  | J45: =IF(IF($C$1=1,SUMIFS(Data!$G$6:$G$1888,Data!$L$6:$L$1888,$B45,Data!$J$6:$J$1888,J$4),SUMIFS(Data!$O$6:$O$1888,Data!$L$6:$L$1888,$B45,Data!$J$6:$J$1888,J$4))>0,IF($C$1=1,SUMIFS(Data!$G$6:$G$1888,Data!$L$6:$L$1888,$B45,Data!$J$6:$J$1888,J$4),SUMIFS(Data!$O$6:$O$1888,Data!$L$6:$L$1888,$B45,Data!$J$6:$J$1888,J$4)),"") -> 60000 | K45: =IF(IF($C$1=1,SUMIFS(Data!$G$6:$G$1888,Data!$L$6:$L$1888,$B45,Data!$J$6:$J$1888,K$4),SUMIFS(Data!$O$6:$O$1888,Data!$L$6:$L$1888,$B45,Data!$J$6:$J$1888,K$4))>0,IF($C$1=1,SUMIFS(Data!$G$6:$G$1888,Data!$L$6:$L$1888,$B45,Data!$J$6:$J$1888,K$4),SUMIFS(Data!$O$6:$O$1888,Data!$L$6:$L$1888,$B45,Data!$J$6:$J$1888,K$4)),"") ->  | L45: =IF(IF($C$1=1,SUMIFS(Data!$G$6:$G$1888,Data!$L$6:$L$1888,$B45,Data!$J$6:$J$1888,L$4),SUMIFS(Data!$O$6:$O$1888,Data!$L$6:$L$1888,$B45,Data!$J$6:$J$1888,L$4))>0,IF($C$1=1,SUMIFS(Data!$G$6:$G$1888,Data!$L$6:$L$1888,$B45,Data!$J$6:$J$1888,L$4),SUMIFS(Data!$O$6:$O$1888,Data!$L$6:$L$1888,$B45,Data!$J$6:$J$1888,L$4)),"") ->  | M45: 96000
B46: United Arab Emirates | C46: =IF(IF($C$1=1,SUMIFS(Data!$G$6:$G$1888,Data!$L$6:$L$1888,$B46,Data!$J$6:$J$1888,C$4),SUMIFS(Data!$O$6:$O$1888,Data!$L$6:$L$1888,$B46,Data!$J$6:$J$1888,C$4))>0,IF($C$1=1,SUMIFS(Data!$G$6:$G$1888,Data!$L$6:$L$1888,$B46,Data!$J$6:$J$1888,C$4),SUMIFS(Data!$O$6:$O$1888,Data!$L$6:$L$1888,$B46,Data!$J$6:$J$1888,C$4)),"") ->  | D46: =IF(IF($C$1=1,SUMIFS(Data!$G$6:$G$1888,Data!$L$6:$L$1888,$B46,Data!$J$6:$J$1888,D$4),SUMIFS(Data!$O$6:$O$1888,Data!$L$6:$L$1888,$B46,Data!$J$6:$J$1888,D$4))>0,IF($C$1=1,SUMIFS(Data!$G$6:$G$1888,Data!$L$6:$L$1888,$B46,Data!$J$6:$J$1888,D$4),SUMIFS(Data!$O$6:$O$1888,Data!$L$6:$L$1888,$B46,Data!$J$6:$J$1888,D$4)),"") -> 140500 | E46: =IF(IF($C$1=1,SUMIFS(Data!$G$6:$G$1888,Data!$L$6:$L$1888,$B46,Data!$J$6:$J$1888,E$4),SUMIFS(Data!$O$6:$O$1888,Data!$L$6:$L$1888,$B46,Data!$J$6:$J$1888,E$4))>0,IF($C$1=1,SUMIFS(Data!$G$6:$G$1888,Data!$L$6:$L$1888,$B46,Data!$J$6:$J$1888,E$4),SUMIFS(Data!$O$6:$O$1888,Data!$L$6:$L$1888,$B46,Data!$J$6:$J$1888,E$4)),"") ->  | F46: =IF(IF($C$1=1,SUMIFS(Data!$G$6:$G$1888,Data!$L$6:$L$1888,$B46,Data!$J$6:$J$1888,F$4),SUMIFS(Data!$O$6:$O$1888,Data!$L$6:$L$1888,$B46,Data!$J$6:$J$1888,F$4))>0,IF($C$1=1,SUMIFS(Data!$G$6:$G$1888,Data!$L$6:$L$1888,$B46,Data!$J$6:$J$1888,F$4),SUMIFS(Data!$O$6:$O$1888,Data!$L$6:$L$1888,$B46,Data!$J$6:$J$1888,F$4)),"") ->  | G46: =IF(IF($C$1=1,SUMIFS(Data!$G$6:$G$1888,Data!$L$6:$L$1888,$B46,Data!$J$6:$J$1888,G$4),SUMIFS(Data!$O$6:$O$1888,Data!$L$6:$L$1888,$B46,Data!$J$6:$J$1888,G$4))>0,IF($C$1=1,SUMIFS(Data!$G$6:$G$1888,Data!$L$6:$L$1888,$B46,Data!$J$6:$J$1888,G$4),SUMIFS(Data!$O$6:$O$1888,Data!$L$6:$L$1888,$B46,Data!$J$6:$J$1888,G$4)),"") -> 108000 | H46: =IF(IF($C$1=1,SUMIFS(Data!$G$6:$G$1888,Data!$L$6:$L$1888,$B46,Data!$J$6:$J$1888,H$4),SUMIFS(Data!$O$6:$O$1888,Data!$L$6:$L$1888,$B46,Data!$J$6:$J$1888,H$4))>0,IF($C$1=1,SUMIFS(Data!$G$6:$G$1888,Data!$L$6:$L$1888,$B46,Data!$J$6:$J$1888,H$4),SUMIFS(Data!$O$6:$O$1888,Data!$L$6:$L$1888,$B46,Data!$J$6:$J$1888,H$4)),"") -> 36000 | I46: =IF(IF($C$1=1,SUMIFS(Data!$G$6:$G$1888,Data!$L$6:$L$1888,$B46,Data!$J$6:$J$1888,I$4),SUMIFS(Data!$O$6:$O$1888,Data!$L$6:$L$1888,$B46,Data!$J$6:$J$1888,I$4))>0,IF($C$1=1,SUMIFS(Data!$G$6:$G$1888,Data!$L$6:$L$1888,$B46,Data!$J$6:$J$1888,I$4),SUMIFS(Data!$O$6:$O$1888,Data!$L$6:$L$1888,$B46,Data!$J$6:$J$1888,I$4)),"") -> 406072.3055 | J46: =IF(IF($C$1=1,SUMIFS(Data!$G$6:$G$1888,Data!$L$6:$L$1888,$B46,Data!$J$6:$J$1888,J$4),SUMIFS(Data!$O$6:$O$1888,Data!$L$6:$L$1888,$B46,Data!$J$6:$J$1888,J$4))>0,IF($C$1=1,SUMIFS(Data!$G$6:$G$1888,Data!$L$6:$L$1888,$B46,Data!$J$6:$J$1888,J$4),SUMIFS(Data!$O$6:$O$1888,Data!$L$6:$L$1888,$B46,Data!$J$6:$J$1888,J$4)),"") -> 126710.7981 | K46: =IF(IF($C$1=1,SUMIFS(Data!$G$6:$G$1888,Data!$L$6:$L$1888,$B46,Data!$J$6:$J$1888,K$4),SUMIFS(Data!$O$6:$O$1888,Data!$L$6:$L$1888,$B46,Data!$J$6:$J$1888,K$4))>0,IF($C$1=1,SUMIFS(Data!$G$6:$G$1888,Data!$L$6:$L$1888,$B46,Data!$J$6:$J$1888,K$4),SUMIFS(Data!$O$6:$O$1888,Data!$L$6:$L$1888,$B46,Data!$J$6:$J$1888,K$4)),"") ->  | L46: =IF(IF($C$1=1,SUMIFS(Data!$G$6:$G$1888,Data!$L$6:$L$1888,$B46,Data!$J$6:$J$1888,L$4),SUMIFS(Data!$O$6:$O$1888,Data!$L$6:$L$1888,$B46,Data!$J$6:$J$1888,L$4))>0,IF($C$1=1,SUMIFS(Data!$G$6:$G$1888,Data!$L$6:$L$1888,$B46,Data!$J$6:$J$1888,L$4),SUMIFS(Data!$O$6:$O$1888,Data!$L$6:$L$1888,$B46,Data!$J$6:$J$1888,L$4)),"") ->  | M46: 817283.1036
B47: Vietnam | C47: =IF(IF($C$1=1,SUMIFS(Data!$G$6:$G$1888,Data!$L$6:$L$1888,$B47,Data!$J$6:$J$1888,C$4),SUMIFS(Data!$O$6:$O$1888,Data!$L$6:$L$1888,$B47,Data!$J$6:$J$1888,C$4))>0,IF($C$1=1,SUMIFS(Data!$G$6:$G$1888,Data!$L$6:$L$1888,$B47,Data!$J$6:$J$1888,C$4),SUMIFS(Data!$O$6:$O$1888,Data!$L$6:$L$1888,$B47,Data!$J$6:$J$1888,C$4)),"") ->  | D47: =IF(IF($C$1=1,SUMIFS(Data!$G$6:$G$1888,Data!$L$6:$L$1888,$B47,Data!$J$6:$J$1888,D$4),SUMIFS(Data!$O$6:$O$1888,Data!$L$6:$L$1888,$B47,Data!$J$6:$J$1888,D$4))>0,IF($C$1=1,SUMIFS(Data!$G$6:$G$1888,Data!$L$6:$L$1888,$B47,Data!$J$6:$J$1888,D$4),SUMIFS(Data!$O$6:$O$1888,Data!$L$6:$L$1888,$B47,Data!$J$6:$J$1888,D$4)),"") ->  | E47: =IF(IF($C$1=1,SUMIFS(Data!$G$6:$G$1888,Data!$L$6:$L$1888,$B47,Data!$J$6:$J$1888,E$4),SUMIFS(Data!$O$6:$O$1888,Data!$L$6:$L$1888,$B47,Data!$J$6:$J$1888,E$4))>0,IF($C$1=1,SUMIFS(Data!$G$6:$G$1888,Data!$L$6:$L$1888,$B47,Data!$J$6:$J$1888,E$4),SUMIFS(Data!$O$6:$O$1888,Data!$L$6:$L$1888,$B47,Data!$J$6:$J$1888,E$4)),"") ->  | F47: =IF(IF($C$1=1,SUMIFS(Data!$G$6:$G$1888,Data!$L$6:$L$1888,$B47,Data!$J$6:$J$1888,F$4),SUMIFS(Data!$O$6:$O$1888,Data!$L$6:$L$1888,$B47,Data!$J$6:$J$1888,F$4))>0,IF($C$1=1,SUMIFS(Data!$G$6:$G$1888,Data!$L$6:$L$1888,$B47,Data!$J$6:$J$1888,F$4),SUMIFS(Data!$O$6:$O$1888,Data!$L$6:$L$1888,$B47,Data!$J$6:$J$1888,F$4)),"") ->  | G47: =IF(IF($C$1=1,SUMIFS(Data!$G$6:$G$1888,Data!$L$6:$L$1888,$B47,Data!$J$6:$J$1888,G$4),SUMIFS(Data!$O$6:$O$1888,Data!$L$6:$L$1888,$B47,Data!$J$6:$J$1888,G$4))>0,IF($C$1=1,SUMIFS(Data!$G$6:$G$1888,Data!$L$6:$L$1888,$B47,Data!$J$6:$J$1888,G$4),SUMIFS(Data!$O$6:$O$1888,Data!$L$6:$L$1888,$B47,Data!$J$6:$J$1888,G$4)),"") -> 10000 | H47: =IF(IF($C$1=1,SUMIFS(Data!$G$6:$G$1888,Data!$L$6:$L$1888,$B47,Data!$J$6:$J$1888,H$4),SUMIFS(Data!$O$6:$O$1888,Data!$L$6:$L$1888,$B47,Data!$J$6:$J$1888,H$4))>0,IF($C$1=1,SUMIFS(Data!$G$6:$G$1888,Data!$L$6:$L$1888,$B47,Data!$J$6:$J$1888,H$4),SUMIFS(Data!$O$6:$O$1888,Data!$L$6:$L$1888,$B47,Data!$J$6:$J$1888,H$4)),"") ->  | I47: =IF(IF($C$1=1,SUMIFS(Data!$G$6:$G$1888,Data!$L$6:$L$1888,$B47,Data!$J$6:$J$1888,I$4),SUMIFS(Data!$O$6:$O$1888,Data!$L$6:$L$1888,$B47,Data!$J$6:$J$1888,I$4))>0,IF($C$1=1,SUMIFS(Data!$G$6:$G$1888,Data!$L$6:$L$1888,$B47,Data!$J$6:$J$1888,I$4),SUMIFS(Data!$O$6:$O$1888,Data!$L$6:$L$1888,$B47,Data!$J$6:$J$1888,I$4)),"") -> 10000 | J47: =IF(IF($C$1=1,SUMIFS(Data!$G$6:$G$1888,Data!$L$6:$L$1888,$B47,Data!$J$6:$J$1888,J$4),SUMIFS(Data!$O$6:$O$1888,Data!$L$6:$L$1888,$B47,Data!$J$6:$J$1888,J$4))>0,IF($C$1=1,SUMIFS(Data!$G$6:$G$1888,Data!$L$6:$L$1888,$B47,Data!$J$6:$J$1888,J$4),SUMIFS(Data!$O$6:$O$1888,Data!$L$6:$L$1888,$B47,Data!$J$6:$J$1888,J$4)),"") ->  | K47: =IF(IF($C$1=1,SUMIFS(Data!$G$6:$G$1888,Data!$L$6:$L$1888,$B47,Data!$J$6:$J$1888,K$4),SUMIFS(Data!$O$6:$O$1888,Data!$L$6:$L$1888,$B47,Data!$J$6:$J$1888,K$4))>0,IF($C$1=1,SUMIFS(Data!$G$6:$G$1888,Data!$L$6:$L$1888,$B47,Data!$J$6:$J$1888,K$4),SUMIFS(Data!$O$6:$O$1888,Data!$L$6:$L$1888,$B47,Data!$J$6:$J$1888,K$4)),"") ->  | L47: =IF(IF($C$1=1,SUMIFS(Data!$G$6:$G$1888,Data!$L$6:$L$1888,$B47,Data!$J$6:$J$1888,L$4),SUMIFS(Data!$O$6:$O$1888,Data!$L$6:$L$1888,$B47,Data!$J$6:$J$1888,L$4))>0,IF($C$1=1,SUMIFS(Data!$G$6:$G$1888,Data!$L$6:$L$1888,$B47,Data!$J$6:$J$1888,L$4),SUMIFS(Data!$O$6:$O$1888,Data!$L$6:$L$1888,$B47,Data!$J$6:$J$1888,L$4)),"") ->  | M47: 20000
B48: Australia | C48: =IF(IF($C$1=1,SUMIFS(Data!$G$6:$G$1888,Data!$L$6:$L$1888,$B48,Data!$J$6:$J$1888,C$4),SUMIFS(Data!$O$6:$O$1888,Data!$L$6:$L$1888,$B48,Data!$J$6:$J$1888,C$4))>0,IF($C$1=1,SUMIFS(Data!$G$6:$G$1888,Data!$L$6:$L$1888,$B48,Data!$J$6:$J$1888,C$4),SUMIFS(Data!$O$6:$O$1888,Data!$L$6:$L$1888,$B48,Data!$J$6:$J$1888,C$4)),"") -> 285574.7038 | D48: =IF(IF($C$1=1,SUMIFS(Data!$G$6:$G$1888,Data!$L$6:$L$1888,$B48,Data!$J$6:$J$1888,D$4),SUMIFS(Data!$O$6:$O$1888,Data!$L$6:$L$1888,$B48,Data!$J$6:$J$1888,D$4))>0,IF($C$1=1,SUMIFS(Data!$G$6:$G$1888,Data!$L$6:$L$1888,$B48,Data!$J$6:$J$1888,D$4),SUMIFS(Data!$O$6:$O$1888,Data!$L$6:$L$1888,$B48,Data!$J$6:$J$1888,D$4)),"") -> 248857.9562 | E48: =IF(IF($C$1=1,SUMIFS(Data!$G$6:$G$1888,Data!$L$6:$L$1888,$B48,Data!$J$6:$J$1888,E$4),SUMIFS(Data!$O$6:$O$1888,Data!$L$6:$L$1888,$B48,Data!$J$6:$J$1888,E$4))>0,IF($C$1=1,SUMIFS(Data!$G$6:$G$1888,Data!$L$6:$L$1888,$B48,Data!$J$6:$J$1888,E$4),SUMIFS(Data!$O$6:$O$1888,Data!$L$6:$L$1888,$B48,Data!$J$6:$J$1888,E$4)),"") -> 723115.9464 | F48: =IF(IF($C$1=1,SUMIFS(Data!$G$6:$G$1888,Data!$L$6:$L$1888,$B48,Data!$J$6:$J$1888,F$4),SUMIFS(Data!$O$6:$O$1888,Data!$L$6:$L$1888,$B48,Data!$J$6:$J$1888,F$4))>0,IF($C$1=1,SUMIFS(Data!$G$6:$G$1888,Data!$L$6:$L$1888,$B48,Data!$J$6:$J$1888,F$4),SUMIFS(Data!$O$6:$O$1888,Data!$L$6:$L$1888,$B48,Data!$J$6:$J$1888,F$4)),"") -> 189703.1961 | G48: =IF(IF($C$1=1,SUMIFS(Data!$G$6:$G$1888,Data!$L$6:$L$1888,$B48,Data!$J$6:$J$1888,G$4),SUMIFS(Data!$O$6:$O$1888,Data!$L$6:$L$1888,$B48,Data!$J$6:$J$1888,G$4))>0,IF($C$1=1,SUMIFS(Data!$G$6:$G$1888,Data!$L$6:$L$1888,$B48,Data!$J$6:$J$1888,G$4),SUMIFS(Data!$O$6:$O$1888,Data!$L$6:$L$1888,$B48,Data!$J$6:$J$1888,G$4)),"") -> 556870.6724 | H48: =IF(IF($C$1=1,SUMIFS(Data!$G$6:$G$1888,Data!$L$6:$L$1888,$B48,Data!$J$6:$J$1888,H$4),SUMIFS(Data!$O$6:$O$1888,Data!$L$6:$L$1888,$B48,Data!$J$6:$J$1888,H$4))>0,IF($C$1=1,SUMIFS(Data!$G$6:$G$1888,Data!$L$6:$L$1888,$B48,Data!$J$6:$J$1888,H$4),SUMIFS(Data!$O$6:$O$1888,Data!$L$6:$L$1888,$B48,Data!$J$6:$J$1888,H$4)),"") -> 327390.9997 | I48: =IF(IF($C$1=1,SUMIFS(Data!$G$6:$G$1888,Data!$L$6:$L$1888,$B48,Data!$J$6:$J$1888,I$4),SUMIFS(Data!$O$6:$O$1888,Data!$L$6:$L$1888,$B48,Data!$J$6:$J$1888,I$4))>0,IF($C$1=1,SUMIFS(Data!$G$6:$G$1888,Data!$L$6:$L$1888,$B48,Data!$J$6:$J$1888,I$4),SUMIFS(Data!$O$6:$O$1888,Data!$L$6:$L$1888,$B48,Data!$J$6:$J$1888,I$4)),"") -> 1816989.564 | J48: =IF(IF($C$1=1,SUMIFS(Data!$G$6:$G$1888,Data!$L$6:$L$1888,$B48,Data!$J$6:$J$1888,J$4),SUMIFS(Data!$O$6:$O$1888,Data!$L$6:$L$1888,$B48,Data!$J$6:$J$1888,J$4))>0,IF($C$1=1,SUMIFS(Data!$G$6:$G$1888,Data!$L$6:$L$1888,$B48,Data!$J$6:$J$1888,J$4),SUMIFS(Data!$O$6:$O$1888,Data!$L$6:$L$1888,$B48,Data!$J$6:$J$1888,J$4)),"") -> 3287964.979 | K48: =IF(IF($C$1=1,SUMIFS(Data!$G$6:$G$1888,Data!$L$6:$L$1888,$B48,Data!$J$6:$J$1888,K$4),SUMIFS(Data!$O$6:$O$1888,Data!$L$6:$L$1888,$B48,Data!$J$6:$J$1888,K$4))>0,IF($C$1=1,SUMIFS(Data!$G$6:$G$1888,Data!$L$6:$L$1888,$B48,Data!$J$6:$J$1888,K$4),SUMIFS(Data!$O$6:$O$1888,Data!$L$6:$L$1888,$B48,Data!$J$6:$J$1888,K$4)),"") ->  | L48: =IF(IF($C$1=1,SUMIFS(Data!$G$6:$G$1888,Data!$L$6:$L$1888,$B48,Data!$J$6:$J$1888,L$4),SUMIFS(Data!$O$6:$O$1888,Data!$L$6:$L$1888,$B48,Data!$J$6:$J$1888,L$4))>0,IF($C$1=1,SUMIFS(Data!$G$6:$G$1888,Data!$L$6:$L$1888,$B48,Data!$J$6:$J$1888,L$4),SUMIFS(Data!$O$6:$O$1888,Data!$L$6:$L$1888,$B48,Data!$J$6:$J$1888,L$4)),"") -> 85000 | M48: 7521468.018
B49: New Zealand | C49: =IF(IF($C$1=1,SUMIFS(Data!$G$6:$G$1888,Data!$L$6:$L$1888,$B49,Data!$J$6:$J$1888,C$4),SUMIFS(Data!$O$6:$O$1888,Data!$L$6:$L$1888,$B49,Data!$J$6:$J$1888,C$4))>0,IF($C$1=1,SUMIFS(Data!$G$6:$G$1888,Data!$L$6:$L$1888,$B49,Data!$J$6:$J$1888,C$4),SUMIFS(Data!$O$6:$O$1888,Data!$L$6:$L$1888,$B49,Data!$J$6:$J$1888,C$4)),"") ->  | D49: =IF(IF($C$1=1,SUMIFS(Data!$G$6:$G$1888,Data!$L$6:$L$1888,$B49,Data!$J$6:$J$1888,D$4),SUMIFS(Data!$O$6:$O$1888,Data!$L$6:$L$1888,$B49,Data!$J$6:$J$1888,D$4))>0,IF($C$1=1,SUMIFS(Data!$G$6:$G$1888,Data!$L$6:$L$1888,$B49,Data!$J$6:$J$1888,D$4),SUMIFS(Data!$O$6:$O$1888,Data!$L$6:$L$1888,$B49,Data!$J$6:$J$1888,D$4)),"") ->  | E49: =IF(IF($C$1=1,SUMIFS(Data!$G$6:$G$1888,Data!$L$6:$L$1888,$B49,Data!$J$6:$J$1888,E$4),SUMIFS(Data!$O$6:$O$1888,Data!$L$6:$L$1888,$B49,Data!$J$6:$J$1888,E$4))>0,IF($C$1=1,SUMIFS(Data!$G$6:$G$1888,Data!$L$6:$L$1888,$B49,Data!$J$6:$J$1888,E$4),SUMIFS(Data!$O$6:$O$1888,Data!$L$6:$L$1888,$B49,Data!$J$6:$J$1888,E$4)),"") -> 72000 | F49: =IF(IF($C$1=1,SUMIFS(Data!$G$6:$G$1888,Data!$L$6:$L$1888,$B49,Data!$J$6:$J$1888,F$4),SUMIFS(Data!$O$6:$O$1888,Data!$L$6:$L$1888,$B49,Data!$J$6:$J$1888,F$4))>0,IF($C$1=1,SUMIFS(Data!$G$6:$G$1888,Data!$L$6:$L$1888,$B49,Data!$J$6:$J$1888,F$4),SUMIFS(Data!$O$6:$O$1888,Data!$L$6:$L$1888,$B49,Data!$J$6:$J$1888,F$4)),"") ->  | G49: =IF(IF($C$1=1,SUMIFS(Data!$G$6:$G$1888,Data!$L$6:$L$1888,$B49,Data!$J$6:$J$1888,G$4),SUMIFS(Data!$O$6:$O$1888,Data!$L$6:$L$1888,$B49,Data!$J$6:$J$1888,G$4))>0,IF($C$1=1,SUMIFS(Data!$G$6:$G$1888,Data!$L$6:$L$1888,$B49,Data!$J$6:$J$1888,G$4),SUMIFS(Data!$O$6:$O$1888,Data!$L$6:$L$1888,$B49,Data!$J$6:$J$1888,G$4)),"") -> 199397.0234 | H49: =IF(IF($C$1=1,SUMIFS(Data!$G$6:$G$1888,Data!$L$6:$L$1888,$B49,Data!$J$6:$J$1888,H$4),SUMIFS(Data!$O$6:$O$1888,Data!$L$6:$L$1888,$B49,Data!$J$6:$J$1888,H$4))>0,IF($C$1=1,SUMIFS(Data!$G$6:$G$1888,Data!$L$6:$L$1888,$B49,Data!$J$6:$J$1888,H$4),SUMIFS(Data!$O$6:$O$1888,Data!$L$6:$L$1888,$B49,Data!$J$6:$J$1888,H$4)),"") -> 39879.40468 | I49: =IF(IF($C$1=1,SUMIFS(Data!$G$6:$G$1888,Data!$L$6:$L$1888,$B49,Data!$J$6:$J$1888,I$4),SUMIFS(Data!$O$6:$O$1888,Data!$L$6:$L$1888,$B49,Data!$J$6:$J$1888,I$4))>0,IF($C$1=1,SUMIFS(Data!$G$6:$G$1888,Data!$L$6:$L$1888,$B49,Data!$J$6:$J$1888,I$4),SUMIFS(Data!$O$6:$O$1888,Data!$L$6:$L$1888,$B49,Data!$J$6:$J$1888,I$4)),"") -> 419095.5351 | J49: =IF(IF($C$1=1,SUMIFS(Data!$G$6:$G$1888,Data!$L$6:$L$1888,$B49,Data!$J$6:$J$1888,J$4),SUMIFS(Data!$O$6:$O$1888,Data!$L$6:$L$1888,$B49,Data!$J$6:$J$1888,J$4))>0,IF($C$1=1,SUMIFS(Data!$G$6:$G$1888,Data!$L$6:$L$1888,$B49,Data!$J$6:$J$1888,J$4),SUMIFS(Data!$O$6:$O$1888,Data!$L$6:$L$1888,$B49,Data!$J$6:$J$1888,J$4)),"") -> 323941.3613 | K49: =IF(IF($C$1=1,SUMIFS(Data!$G$6:$G$1888,Data!$L$6:$L$1888,$B49,Data!$J$6:$J$1888,K$4),SUMIFS(Data!$O$6:$O$1888,Data!$L$6:$L$1888,$B49,Data!$J$6:$J$1888,K$4))>0,IF($C$1=1,SUMIFS(Data!$G$6:$G$1888,Data!$L$6:$L$1888,$B49,Data!$J$6:$J$1888,K$4),SUMIFS(Data!$O$6:$O$1888,Data!$L$6:$L$1888,$B49,Data!$J$6:$J$1888,K$4)),"") ->  | L49: =IF(IF($C$1=1,SUMIFS(Data!$G$6:$G$1888,Data!$L$6:$L$1888,$B49,Data!$J$6:$J$1888,L$4),SUMIFS(Data!$O$6:$O$1888,Data!$L$6:$L$1888,$B49,Data!$J$6:$J$1888,L$4))>0,IF($C$1=1,SUMIFS(Data!$G$6:$G$1888,Data!$L$6:$L$1888,$B49,Data!$J$6:$J$1888,L$4),SUMIFS(Data!$O$6:$O$1888,Data!$L$6:$L$1888,$B49,Data!$J$6:$J$1888,L$4)),"") ->  | M49: 1054313.325
B50: Costa Rica | C50: =IF(IF($C$1=1,SUMIFS(Data!$G$6:$G$1888,Data!$L$6:$L$1888,$B50,Data!$J$6:$J$1888,C$4),SUMIFS(Data!$O$6:$O$1888,Data!$L$6:$L$1888,$B50,Data!$J$6:$J$1888,C$4))>0,IF($C$1=1,SUMIFS(Data!$G$6:$G$1888,Data!$L$6:$L$1888,$B50,Data!$J$6:$J$1888,C$4),SUMIFS(Data!$O$6:$O$1888,Data!$L$6:$L$1888,$B50,Data!$J$6:$J$1888,C$4)),"") ->  | D50: =IF(IF($C$1=1,SUMIFS(Data!$G$6:$G$1888,Data!$L$6:$L$1888,$B50,Data!$J$6:$J$1888,D$4),SUMIFS(Data!$O$6:$O$1888,Data!$L$6:$L$1888,$B50,Data!$J$6:$J$1888,D$4))>0,IF($C$1=1,SUMIFS(Data!$G$6:$G$1888,Data!$L$6:$L$1888,$B50,Data!$J$6:$J$1888,D$4),SUMIFS(Data!$O$6:$O$1888,Data!$L$6:$L$1888,$B50,Data!$J$6:$J$1888,D$4)),"") ->  | E50: =IF(IF($C$1=1,SUMIFS(Data!$G$6:$G$1888,Data!$L$6:$L$1888,$B50,Data!$J$6:$J$1888,E$4),SUMIFS(Data!$O$6:$O$1888,Data!$L$6:$L$1888,$B50,Data!$J$6:$J$1888,E$4))>0,IF($C$1=1,SUMIFS(Data!$G$6:$G$1888,Data!$L$6:$L$1888,$B50,Data!$J$6:$J$1888,E$4),SUMIFS(Data!$O$6:$O$1888,Data!$L$6:$L$1888,$B50,Data!$J$6:$J$1888,E$4)),"") ->  | F50: =IF(IF($C$1=1,SUMIFS(Data!$G$6:$G$1888,Data!$L$6:$L$1888,$B50,Data!$J$6:$J$1888,F$4),SUMIFS(Data!$O$6:$O$1888,Data!$L$6:$L$1888,$B50,Data!$J$6:$J$1888,F$4))>0,IF($C$1=1,SUMIFS(Data!$G$6:$G$1888,Data!$L$6:$L$1888,$B50,Data!$J$6:$J$1888,F$4),SUMIFS(Data!$O$6:$O$1888,Data!$L$6:$L$1888,$B50,Data!$J$6:$J$1888,F$4)),"") ->  | G50: =IF(IF($C$1=1,SUMIFS(Data!$G$6:$G$1888,Data!$L$6:$L$1888,$B50,Data!$J$6:$J$1888,G$4),SUMIFS(Data!$O$6:$O$1888,Data!$L$6:$L$1888,$B50,Data!$J$6:$J$1888,G$4))>0,IF($C$1=1,SUMIFS(Data!$G$6:$G$1888,Data!$L$6:$L$1888,$B50,Data!$J$6:$J$1888,G$4),SUMIFS(Data!$O$6:$O$1888,Data!$L$6:$L$1888,$B50,Data!$J$6:$J$1888,G$4)),"") ->  | H50: =IF(IF($C$1=1,SUMIFS(Data!$G$6:$G$1888,Data!$L$6:$L$1888,$B50,Data!$J$6:$J$1888,H$4),SUMIFS(Data!$O$6:$O$1888,Data!$L$6:$L$1888,$B50,Data!$J$6:$J$1888,H$4))>0,IF($C$1=1,SUMIFS(Data!$G$6:$G$1888,Data!$L$6:$L$1888,$B50,Data!$J$6:$J$1888,H$4),SUMIFS(Data!$O$6:$O$1888,Data!$L$6:$L$1888,$B50,Data!$J$6:$J$1888,H$4)),"") ->  | I50: =IF(IF($C$1=1,SUMIFS(Data!$G$6:$G$1888,Data!$L$6:$L$1888,$B50,Data!$J$6:$J$1888,I$4),SUMIFS(Data!$O$6:$O$1888,Data!$L$6:$L$1888,$B50,Data!$J$6:$J$1888,I$4))>0,IF($C$1=1,SUMIFS(Data!$G$6:$G$1888,Data!$L$6:$L$1888,$B50,Data!$J$6:$J$1888,I$4),SUMIFS(Data!$O$6:$O$1888,Data!$L$6:$L$1888,$B50,Data!$J$6:$J$1888,I$4)),"") ->  | J50: =IF(IF($C$1=1,SUMIFS(Data!$G$6:$G$1888,Data!$L$6:$L$1888,$B50,Data!$J$6:$J$1888,J$4),SUMIFS(Data!$O$6:$O$1888,Data!$L$6:$L$1888,$B50,Data!$J$6:$J$1888,J$4))>0,IF($C$1=1,SUMIFS(Data!$G$6:$G$1888,Data!$L$6:$L$1888,$B50,Data!$J$6:$J$1888,J$4),SUMIFS(Data!$O$6:$O$1888,Data!$L$6:$L$1888,$B50,Data!$J$6:$J$1888,J$4)),"") -> 28109.62755 | K50: =IF(IF($C$1=1,SUMIFS(Data!$G$6:$G$1888,Data!$L$6:$L$1888,$B50,Data!$J$6:$J$1888,K$4),SUMIFS(Data!$O$6:$O$1888,Data!$L$6:$L$1888,$B50,Data!$J$6:$J$1888,K$4))>0,IF($C$1=1,SUMIFS(Data!$G$6:$G$1888,Data!$L$6:$L$1888,$B50,Data!$J$6:$J$1888,K$4),SUMIFS(Data!$O$6:$O$1888,Data!$L$6:$L$1888,$B50,Data!$J$6:$J$1888,K$4)),"") ->  | L50: =IF(IF($C$1=1,SUMIFS(Data!$G$6:$G$1888,Data!$L$6:$L$1888,$B50,Data!$J$6:$J$1888,L$4),SUMIFS(Data!$O$6:$O$1888,Data!$L$6:$L$1888,$B50,Data!$J$6:$J$1888,L$4))>0,IF($C$1=1,SUMIFS(Data!$G$6:$G$1888,Data!$L$6:$L$1888,$B50,Data!$J$6:$J$1888,L$4),SUMIFS(Data!$O$6:$O$1888,Data!$L$6:$L$1888,$B50,Data!$J$6:$J$1888,L$4)),"") ->  | M50: 28109.62755
B51: Dominican Republic | C51: =IF(IF($C$1=1,SUMIFS(Data!$G$6:$G$1888,Data!$L$6:$L$1888,$B51,Data!$J$6:$J$1888,C$4),SUMIFS(Data!$O$6:$O$1888,Data!$L$6:$L$1888,$B51,Data!$J$6:$J$1888,C$4))>0,IF($C$1=1,SUMIFS(Data!$G$6:$G$1888,Data!$L$6:$L$1888,$B51,Data!$J$6:$J$1888,C$4),SUMIFS(Data!$O$6:$O$1888,Data!$L$6:$L$1888,$B51,Data!$J$6:$J$1888,C$4)),"") ->  | D51: =IF(IF($C$1=1,SUMIFS(Data!$G$6:$G$1888,Data!$L$6:$L$1888,$B51,Data!$J$6:$J$1888,D$4),SUMIFS(Data!$O$6:$O$1888,Data!$L$6:$L$1888,$B51,Data!$J$6:$J$1888,D$4))>0,IF($C$1=1,SUMIFS(Data!$G$6:$G$1888,Data!$L$6:$L$1888,$B51,Data!$J$6:$J$1888,D$4),SUMIFS(Data!$O$6:$O$1888,Data!$L$6:$L$1888,$B51,Data!$J$6:$J$1888,D$4)),"") ->  | E51: =IF(IF($C$1=1,SUMIFS(Data!$G$6:$G$1888,Data!$L$6:$L$1888,$B51,Data!$J$6:$J$1888,E$4),SUMIFS(Data!$O$6:$O$1888,Data!$L$6:$L$1888,$B51,Data!$J$6:$J$1888,E$4))>0,IF($C$1=1,SUMIFS(Data!$G$6:$G$1888,Data!$L$6:$L$1888,$B51,Data!$J$6:$J$1888,E$4),SUMIFS(Data!$O$6:$O$1888,Data!$L$6:$L$1888,$B51,Data!$J$6:$J$1888,E$4)),"") ->  | F51: =IF(IF($C$1=1,SUMIFS(Data!$G$6:$G$1888,Data!$L$6:$L$1888,$B51,Data!$J$6:$J$1888,F$4),SUMIFS(Data!$O$6:$O$1888,Data!$L$6:$L$1888,$B51,Data!$J$6:$J$1888,F$4))>0,IF($C$1=1,SUMIFS(Data!$G$6:$G$1888,Data!$L$6:$L$1888,$B51,Data!$J$6:$J$1888,F$4),SUMIFS(Data!$O$6:$O$1888,Data!$L$6:$L$1888,$B51,Data!$J$6:$J$1888,F$4)),"") ->  | G51: =IF(IF($C$1=1,SUMIFS(Data!$G$6:$G$1888,Data!$L$6:$L$1888,$B51,Data!$J$6:$J$1888,G$4),SUMIFS(Data!$O$6:$O$1888,Data!$L$6:$L$1888,$B51,Data!$J$6:$J$1888,G$4))>0,IF($C$1=1,SUMIFS(Data!$G$6:$G$1888,Data!$L$6:$L$1888,$B51,Data!$J$6:$J$1888,G$4),SUMIFS(Data!$O$6:$O$1888,Data!$L$6:$L$1888,$B51,Data!$J$6:$J$1888,G$4)),"") ->  | H51: =IF(IF($C$1=1,SUMIFS(Data!$G$6:$G$1888,Data!$L$6:$L$1888,$B51,Data!$J$6:$J$1888,H$4),SUMIFS(Data!$O$6:$O$1888,Data!$L$6:$L$1888,$B51,Data!$J$6:$J$1888,H$4))>0,IF($C$1=1,SUMIFS(Data!$G$6:$G$1888,Data!$L$6:$L$1888,$B51,Data!$J$6:$J$1888,H$4),SUMIFS(Data!$O$6:$O$1888,Data!$L$6:$L$1888,$B51,Data!$J$6:$J$1888,H$4)),"") -> 6629 | I51: =IF(IF($C$1=1,SUMIFS(Data!$G$6:$G$1888,Data!$L$6:$L$1888,$B51,Data!$J$6:$J$1888,I$4),SUMIFS(Data!$O$6:$O$1888,Data!$L$6:$L$1888,$B51,Data!$J$6:$J$1888,I$4))>0,IF($C$1=1,SUMIFS(Data!$G$6:$G$1888,Data!$L$6:$L$1888,$B51,Data!$J$6:$J$1888,I$4),SUMIFS(Data!$O$6:$O$1888,Data!$L$6:$L$1888,$B51,Data!$J$6:$J$1888,I$4)),"") ->  | J51: =IF(IF($C$1=1,SUMIFS(Data!$G$6:$G$1888,Data!$L$6:$L$1888,$B51,Data!$J$6:$J$1888,J$4),SUMIFS(Data!$O$6:$O$1888,Data!$L$6:$L$1888,$B51,Data!$J$6:$J$1888,J$4))>0,IF($C$1=1,SUMIFS(Data!$G$6:$G$1888,Data!$L$6:$L$1888,$B51,Data!$J$6:$J$1888,J$4),SUMIFS(Data!$O$6:$O$1888,Data!$L$6:$L$1888,$B51,Data!$J$6:$J$1888,J$4)),"") -> 15404.36457 | K51: =IF(IF($C$1=1,SUMIFS(Data!$G$6:$G$1888,Data!$L$6:$L$1888,$B51,Data!$J$6:$J$1888,K$4),SUMIFS(Data!$O$6:$O$1888,Data!$L$6:$L$1888,$B51,Data!$J$6:$J$1888,K$4))>0,IF($C$1=1,SUMIFS(Data!$G$6:$G$1888,Data!$L$6:$L$1888,$B51,Data!$J$6:$J$1888,K$4),SUMIFS(Data!$O$6:$O$1888,Data!$L$6:$L$1888,$B51,Data!$J$6:$J$1888,K$4)),"") ->  | L51: =IF(IF($C$1=1,SUMIFS(Data!$G$6:$G$1888,Data!$L$6:$L$1888,$B51,Data!$J$6:$J$1888,L$4),SUMIFS(Data!$O$6:$O$1888,Data!$L$6:$L$1888,$B51,Data!$J$6:$J$1888,L$4))>0,IF($C$1=1,SUMIFS(Data!$G$6:$G$1888,Data!$L$6:$L$1888,$B51,Data!$J$6:$J$1888,L$4),SUMIFS(Data!$O$6:$O$1888,Data!$L$6:$L$1888,$B51,Data!$J$6:$J$1888,L$4)),"") ->  | M51: 22033.36457
B52: Mexico | C52: =IF(IF($C$1=1,SUMIFS(Data!$G$6:$G$1888,Data!$L$6:$L$1888,$B52,Data!$J$6:$J$1888,C$4),SUMIFS(Data!$O$6:$O$1888,Data!$L$6:$L$1888,$B52,Data!$J$6:$J$1888,C$4))>0,IF($C$1=1,SUMIFS(Data!$G$6:$G$1888,Data!$L$6:$L$1888,$B52,Data!$J$6:$J$1888,C$4),SUMIFS(Data!$O$6:$O$1888,Data!$L$6:$L$1888,$B52,Data!$J$6:$J$1888,C$4)),"") -> 145000 | D52: =IF(IF($C$1=1,SUMIFS(Data!$G$6:$G$1888,Data!$L$6:$L$1888,$B52,Data!$J$6:$J$1888,D$4),SUMIFS(Data!$O$6:$O$1888,Data!$L$6:$L$1888,$B52,Data!$J$6:$J$1888,D$4))>0,IF($C$1=1,SUMIFS(Data!$G$6:$G$1888,Data!$L$6:$L$1888,$B52,Data!$J$6:$J$1888,D$4),SUMIFS(Data!$O$6:$O$1888,Data!$L$6:$L$1888,$B52,Data!$J$6:$J$1888,D$4)),"") ->  | E52: =IF(IF($C$1=1,SUMIFS(Data!$G$6:$G$1888,Data!$L$6:$L$1888,$B52,Data!$J$6:$J$1888,E$4),SUMIFS(Data!$O$6:$O$1888,Data!$L$6:$L$1888,$B52,Data!$J$6:$J$1888,E$4))>0,IF($C$1=1,SUMIFS(Data!$G$6:$G$1888,Data!$L$6:$L$1888,$B52,Data!$J$6:$J$1888,E$4),SUMIFS(Data!$O$6:$O$1888,Data!$L$6:$L$1888,$B52,Data!$J$6:$J$1888,E$4)),"") ->  | F52: =IF(IF($C$1=1,SUMIFS(Data!$G$6:$G$1888,Data!$L$6:$L$1888,$B52,Data!$J$6:$J$1888,F$4),SUMIFS(Data!$O$6:$O$1888,Data!$L$6:$L$1888,$B52,Data!$J$6:$J$1888,F$4))>0,IF($C$1=1,SUMIFS(Data!$G$6:$G$1888,Data!$L$6:$L$1888,$B52,Data!$J$6:$J$1888,F$4),SUMIFS(Data!$O$6:$O$1888,Data!$L$6:$L$1888,$B52,Data!$J$6:$J$1888,F$4)),"") ->  | G52: =IF(IF($C$1=1,SUMIFS(Data!$G$6:$G$1888,Data!$L$6:$L$1888,$B52,Data!$J$6:$J$1888,G$4),SUMIFS(Data!$O$6:$O$1888,Data!$L$6:$L$1888,$B52,Data!$J$6:$J$1888,G$4))>0,IF($C$1=1,SUMIFS(Data!$G$6:$G$1888,Data!$L$6:$L$1888,$B52,Data!$J$6:$J$1888,G$4),SUMIFS(Data!$O$6:$O$1888,Data!$L$6:$L$1888,$B52,Data!$J$6:$J$1888,G$4)),"") -> 15500 | H52: =IF(IF($C$1=1,SUMIFS(Data!$G$6:$G$1888,Data!$L$6:$L$1888,$B52,Data!$J$6:$J$1888,H$4),SUMIFS(Data!$O$6:$O$1888,Data!$L$6:$L$1888,$B52,Data!$J$6:$J$1888,H$4))>0,IF($C$1=1,SUMIFS(Data!$G$6:$G$1888,Data!$L$6:$L$1888,$B52,Data!$J$6:$J$1888,H$4),SUMIFS(Data!$O$6:$O$1888,Data!$L$6:$L$1888,$B52,Data!$J$6:$J$1888,H$4)),"") ->  | I52: =IF(IF($C$1=1,SUMIFS(Data!$G$6:$G$1888,Data!$L$6:$L$1888,$B52,Data!$J$6:$J$1888,I$4),SUMIFS(Data!$O$6:$O$1888,Data!$L$6:$L$1888,$B52,Data!$J$6:$J$1888,I$4))>0,IF($C$1=1,SUMIFS(Data!$G$6:$G$1888,Data!$L$6:$L$1888,$B52,Data!$J$6:$J$1888,I$4),SUMIFS(Data!$O$6:$O$1888,Data!$L$6:$L$1888,$B52,Data!$J$6:$J$1888,I$4)),"") -> 63000 | J52: =IF(IF($C$1=1,SUMIFS(Data!$G$6:$G$1888,Data!$L$6:$L$1888,$B52,Data!$J$6:$J$1888,J$4),SUMIFS(Data!$O$6:$O$1888,Data!$L$6:$L$1888,$B52,Data!$J$6:$J$1888,J$4))>0,IF($C$1=1,SUMIFS(Data!$G$6:$G$1888,Data!$L$6:$L$1888,$B52,Data!$J$6:$J$1888,J$4),SUMIFS(Data!$O$6:$O$1888,Data!$L$6:$L$1888,$B52,Data!$J$6:$J$1888,J$4)),"") -> 97884.98289 | K52: =IF(IF($C$1=1,SUMIFS(Data!$G$6:$G$1888,Data!$L$6:$L$1888,$B52,Data!$J$6:$J$1888,K$4),SUMIFS(Data!$O$6:$O$1888,Data!$L$6:$L$1888,$B52,Data!$J$6:$J$1888,K$4))>0,IF($C$1=1,SUMIFS(Data!$G$6:$G$1888,Data!$L$6:$L$1888,$B52,Data!$J$6:$J$1888,K$4),SUMIFS(Data!$O$6:$O$1888,Data!$L$6:$L$1888,$B52,Data!$J$6:$J$1888,K$4)),"") ->  | L52: =IF(IF($C$1=1,SUMIFS(Data!$G$6:$G$1888,Data!$L$6:$L$1888,$B52,Data!$J$6:$J$1888,L$4),SUMIFS(Data!$O$6:$O$1888,Data!$L$6:$L$1888,$B52,Data!$J$6:$J$1888,L$4))>0,IF($C$1=1,SUMIFS(Data!$G$6:$G$1888,Data!$L$6:$L$1888,$B52,Data!$J$6:$J$1888,L$4),SUMIFS(Data!$O$6:$O$1888,Data!$L$6:$L$1888,$B52,Data!$J$6:$J$1888,L$4)),"") ->  | M52: 321384.9829
B53: Panama | C53: =IF(IF($C$1=1,SUMIFS(Data!$G$6:$G$1888,Data!$L$6:$L$1888,$B53,Data!$J$6:$J$1888,C$4),SUMIFS(Data!$O$6:$O$1888,Data!$L$6:$L$1888,$B53,Data!$J$6:$J$1888,C$4))>0,IF($C$1=1,SUMIFS(Data!$G$6:$G$1888,Data!$L$6:$L$1888,$B53,Data!$J$6:$J$1888,C$4),SUMIFS(Data!$O$6:$O$1888,Data!$L$6:$L$1888,$B53,Data!$J$6:$J$1888,C$4)),"") ->  | D53: =IF(IF($C$1=1,SUMIFS(Data!$G$6:$G$1888,Data!$L$6:$L$1888,$B53,Data!$J$6:$J$1888,D$4),SUMIFS(Data!$O$6:$O$1888,Data!$L$6:$L$1888,$B53,Data!$J$6:$J$1888,D$4))>0,IF($C$1=1,SUMIFS(Data!$G$6:$G$1888,Data!$L$6:$L$1888,$B53,Data!$J$6:$J$1888,D$4),SUMIFS(Data!$O$6:$O$1888,Data!$L$6:$L$1888,$B53,Data!$J$6:$J$1888,D$4)),"") ->  | E53: =IF(IF($C$1=1,SUMIFS(Data!$G$6:$G$1888,Data!$L$6:$L$1888,$B53,Data!$J$6:$J$1888,E$4),SUMIFS(Data!$O$6:$O$1888,Data!$L$6:$L$1888,$B53,Data!$J$6:$J$1888,E$4))>0,IF($C$1=1,SUMIFS(Data!$G$6:$G$1888,Data!$L$6:$L$1888,$B53,Data!$J$6:$J$1888,E$4),SUMIFS(Data!$O$6:$O$1888,Data!$L$6:$L$1888,$B53,Data!$J$6:$J$1888,E$4)),"") ->  | F53: =IF(IF($C$1=1,SUMIFS(Data!$G$6:$G$1888,Data!$L$6:$L$1888,$B53,Data!$J$6:$J$1888,F$4),SUMIFS(Data!$O$6:$O$1888,Data!$L$6:$L$1888,$B53,Data!$J$6:$J$1888,F$4))>0,IF($C$1=1,SUMIFS(Data!$G$6:$G$1888,Data!$L$6:$L$1888,$B53,Data!$J$6:$J$1888,F$4),SUMIFS(Data!$O$6:$O$1888,Data!$L$6:$L$1888,$B53,Data!$J$6:$J$1888,F$4)),"") ->  | G53: =IF(IF($C$1=1,SUMIFS(Data!$G$6:$G$1888,Data!$L$6:$L$1888,$B53,Data!$J$6:$J$1888,G$4),SUMIFS(Data!$O$6:$O$1888,Data!$L$6:$L$1888,$B53,Data!$J$6:$J$1888,G$4))>0,IF($C$1=1,SUMIFS(Data!$G$6:$G$1888,Data!$L$6:$L$1888,$B53,Data!$J$6:$J$1888,G$4),SUMIFS(Data!$O$6:$O$1888,Data!$L$6:$L$1888,$B53,Data!$J$6:$J$1888,G$4)),"") ->  | H53: =IF(IF($C$1=1,SUMIFS(Data!$G$6:$G$1888,Data!$L$6:$L$1888,$B53,Data!$J$6:$J$1888,H$4),SUMIFS(Data!$O$6:$O$1888,Data!$L$6:$L$1888,$B53,Data!$J$6:$J$1888,H$4))>0,IF($C$1=1,SUMIFS(Data!$G$6:$G$1888,Data!$L$6:$L$1888,$B53,Data!$J$6:$J$1888,H$4),SUMIFS(Data!$O$6:$O$1888,Data!$L$6:$L$1888,$B53,Data!$J$6:$J$1888,H$4)),"") ->  | I53: =IF(IF($C$1=1,SUMIFS(Data!$G$6:$G$1888,Data!$L$6:$L$1888,$B53,Data!$J$6:$J$1888,I$4),SUMIFS(Data!$O$6:$O$1888,Data!$L$6:$L$1888,$B53,Data!$J$6:$J$1888,I$4))>0,IF($C$1=1,SUMIFS(Data!$G$6:$G$1888,Data!$L$6:$L$1888,$B53,Data!$J$6:$J$1888,I$4),SUMIFS(Data!$O$6:$O$1888,Data!$L$6:$L$1888,$B53,Data!$J$6:$J$1888,I$4)),"") -> 63519.97195 | J53: =IF(IF($C$1=1,SUMIFS(Data!$G$6:$G$1888,Data!$L$6:$L$1888,$B53,Data!$J$6:$J$1888,J$4),SUMIFS(Data!$O$6:$O$1888,Data!$L$6:$L$1888,$B53,Data!$J$6:$J$1888,J$4))>0,IF($C$1=1,SUMIFS(Data!$G$6:$G$1888,Data!$L$6:$L$1888,$B53,Data!$J$6:$J$1888,J$4),SUMIFS(Data!$O$6:$O$1888,Data!$L$6:$L$1888,$B53,Data!$J$6:$J$1888,J$4)),"") -> 26000 | K53: =IF(IF($C$1=1,SUMIFS(Data!$G$6:$G$1888,Data!$L$6:$L$1888,$B53,Data!$J$6:$J$1888,K$4),SUMIFS(Data!$O$6:$O$1888,Data!$L$6:$L$1888,$B53,Data!$J$6:$J$1888,K$4))>0,IF($C$1=1,SUMIFS(Data!$G$6:$G$1888,Data!$L$6:$L$1888,$B53,Data!$J$6:$J$1888,K$4),SUMIFS(Data!$O$6:$O$1888,Data!$L$6:$L$1888,$B53,Data!$J$6:$J$1888,K$4)),"") ->  | L53: =IF(IF($C$1=1,SUMIFS(Data!$G$6:$G$1888,Data!$L$6:$L$1888,$B53,Data!$J$6:$J$1888,L$4),SUMIFS(Data!$O$6:$O$1888,Data!$L$6:$L$1888,$B53,Data!$J$6:$J$1888,L$4))>0,IF($C$1=1,SUMIFS(Data!$G$6:$G$1888,Data!$L$6:$L$1888,$B53,Data!$J$6:$J$1888,L$4),SUMIFS(Data!$O$6:$O$1888,Data!$L$6:$L$1888,$B53,Data!$J$6:$J$1888,L$4)),"") ->  | M53: 89519.97195
B54: USA | C54: =IF(IF($C$1=1,SUMIFS(Data!$G$6:$G$1888,Data!$L$6:$L$1888,$B54,Data!$J$6:$J$1888,C$4),SUMIFS(Data!$O$6:$O$1888,Data!$L$6:$L$1888,$B54,Data!$J$6:$J$1888,C$4))>0,IF($C$1=1,SUMIFS(Data!$G$6:$G$1888,Data!$L$6:$L$1888,$B54,Data!$J$6:$J$1888,C$4),SUMIFS(Data!$O$6:$O$1888,Data!$L$6:$L$1888,$B54,Data!$J$6:$J$1888,C$4)),"") -> 4899000 | D54: =IF(IF($C$1=1,SUMIFS(Data!$G$6:$G$1888,Data!$L$6:$L$1888,$B54,Data!$J$6:$J$1888,D$4),SUMIFS(Data!$O$6:$O$1888,Data!$L$6:$L$1888,$B54,Data!$J$6:$J$1888,D$4))>0,IF($C$1=1,SUMIFS(Data!$G$6:$G$1888,Data!$L$6:$L$1888,$B54,Data!$J$6:$J$1888,D$4),SUMIFS(Data!$O$6:$O$1888,Data!$L$6:$L$1888,$B54,Data!$J$6:$J$1888,D$4)),"") -> 1492825 | E54: =IF(IF($C$1=1,SUMIFS(Data!$G$6:$G$1888,Data!$L$6:$L$1888,$B54,Data!$J$6:$J$1888,E$4),SUMIFS(Data!$O$6:$O$1888,Data!$L$6:$L$1888,$B54,Data!$J$6:$J$1888,E$4))>0,IF($C$1=1,SUMIFS(Data!$G$6:$G$1888,Data!$L$6:$L$1888,$B54,Data!$J$6:$J$1888,E$4),SUMIFS(Data!$O$6:$O$1888,Data!$L$6:$L$1888,$B54,Data!$J$6:$J$1888,E$4)),"") -> 1771000 | F54: =IF(IF($C$1=1,SUMIFS(Data!$G$6:$G$1888,Data!$L$6:$L$1888,$B54,Data!$J$6:$J$1888,F$4),SUMIFS(Data!$O$6:$O$1888,Data!$L$6:$L$1888,$B54,Data!$J$6:$J$1888,F$4))>0,IF($C$1=1,SUMIFS(Data!$G$6:$G$1888,Data!$L$6:$L$1888,$B54,Data!$J$6:$J$1888,F$4),SUMIFS(Data!$O$6:$O$1888,Data!$L$6:$L$1888,$B54,Data!$J$6:$J$1888,F$4)),"") -> 1745000 | G54: =IF(IF($C$1=1,SUMIFS(Data!$G$6:$G$1888,Data!$L$6:$L$1888,$B54,Data!$J$6:$J$1888,G$4),SUMIFS(Data!$O$6:$O$1888,Data!$L$6:$L$1888,$B54,Data!$J$6:$J$1888,G$4))>0,IF($C$1=1,SUMIFS(Data!$G$6:$G$1888,Data!$L$6:$L$1888,$B54,Data!$J$6:$J$1888,G$4),SUMIFS(Data!$O$6:$O$1888,Data!$L$6:$L$1888,$B54,Data!$J$6:$J$1888,G$4)),"") -> 2718962 | H54: =IF(IF($C$1=1,SUMIFS(Data!$G$6:$G$1888,Data!$L$6:$L$1888,$B54,Data!$J$6:$J$1888,H$4),SUMIFS(Data!$O$6:$O$1888,Data!$L$6:$L$1888,$B54,Data!$J$6:$J$1888,H$4))>0,IF($C$1=1,SUMIFS(Data!$G$6:$G$1888,Data!$L$6:$L$1888,$B54,Data!$J$6:$J$1888,H$4),SUMIFS(Data!$O$6:$O$1888,Data!$L$6:$L$1888,$B54,Data!$J$6:$J$1888,H$4)),"") -> 1873460 | I54: =IF(IF($C$1=1,SUMIFS(Data!$G$6:$G$1888,Data!$L$6:$L$1888,$B54,Data!$J$6:$J$1888,I$4),SUMIFS(Data!$O$6:$O$1888,Data!$L$6:$L$1888,$B54,Data!$J$6:$J$1888,I$4))>0,IF($C$1=1,SUMIFS(Data!$G$6:$G$1888,Data!$L$6:$L$1888,$B54,Data!$J$6:$J$1888,I$4),SUMIFS(Data!$O$6:$O$1888,Data!$L$6:$L$1888,$B54,Data!$J$6:$J$1888,I$4)),"") -> 11249348 | J54: =IF(IF($C$1=1,SUMIFS(Data!$G$6:$G$1888,Data!$L$6:$L$1888,$B54,Data!$J$6:$J$1888,J$4),SUMIFS(Data!$O$6:$O$1888,Data!$L$6:$L$1888,$B54,Data!$J$6:$J$1888,J$4))>0,IF($C$1=1,SUMIFS(Data!$G$6:$G$1888,Data!$L$6:$L$1888,$B54,Data!$J$6:$J$1888,J$4),SUMIFS(Data!$O$6:$O$1888,Data!$L$6:$L$1888,$B54,Data!$J$6:$J$1888,J$4)),"") -> 18587370 | K54: =IF(IF($C$1=1,SUMIFS(Data!$G$6:$G$1888,Data!$L$6:$L$1888,$B54,Data!$J$6:$J$1888,K$4),SUMIFS(Data!$O$6:$O$1888,Data!$L$6:$L$1888,$B54,Data!$J$6:$J$1888,K$4))>0,IF($C$1=1,SUMIFS(Data!$G$6:$G$1888,Data!$L$6:$L$1888,$B54,Data!$J$6:$J$1888,K$4),SUMIFS(Data!$O$6:$O$1888,Data!$L$6:$L$1888,$B54,Data!$J$6:$J$1888,K$4)),"") -> 251461 | L54: =IF(IF($C$1=1,SUMIFS(Data!$G$6:$G$1888,Data!$L$6:$L$1888,$B54,Data!$J$6:$J$1888,L$4),SUMIFS(Data!$O$6:$O$1888,Data!$L$6:$L$1888,$B54,Data!$J$6:$J$1888,L$4))>0,IF($C$1=1,SUMIFS(Data!$G$6:$G$1888,Data!$L$6:$L$1888,$B54,Data!$J$6:$J$1888,L$4),SUMIFS(Data!$O$6:$O$1888,Data!$L$6:$L$1888,$B54,Data!$J$6:$J$1888,L$4)),"") -> 291000 | M54: 44879426
B55: Albania | C55: =IF(IF($C$1=1,SUMIFS(Data!$G$6:$G$1888,Data!$L$6:$L$1888,$B55,Data!$J$6:$J$1888,C$4),SUMIFS(Data!$O$6:$O$1888,Data!$L$6:$L$1888,$B55,Data!$J$6:$J$1888,C$4))>0,IF($C$1=1,SUMIFS(Data!$G$6:$G$1888,Data!$L$6:$L$1888,$B55,Data!$J$6:$J$1888,C$4),SUMIFS(Data!$O$6:$O$1888,Data!$L$6:$L$1888,$B55,Data!$J$6:$J$1888,C$4)),"") -> 20571 | D55: =IF(IF($C$1=1,SUMIFS(Data!$G$6:$G$1888,Data!$L$6:$L$1888,$B55,Data!$J$6:$J$1888,D$4),SUMIFS(Data!$O$6:$O$1888,Data!$L$6:$L$1888,$B55,Data!$J$6:$J$1888,D$4))>0,IF($C$1=1,SUMIFS(Data!$G$6:$G$1888,Data!$L$6:$L$1888,$B55,Data!$J$6:$J$1888,D$4),SUMIFS(Data!$O$6:$O$1888,Data!$L$6:$L$1888,$B55,Data!$J$6:$J$1888,D$4)),"") ->  | E55: =IF(IF($C$1=1,SUMIFS(Data!$G$6:$G$1888,Data!$L$6:$L$1888,$B55,Data!$J$6:$J$1888,E$4),SUMIFS(Data!$O$6:$O$1888,Data!$L$6:$L$1888,$B55,Data!$J$6:$J$1888,E$4))>0,IF($C$1=1,SUMIFS(Data!$G$6:$G$1888,Data!$L$6:$L$1888,$B55,Data!$J$6:$J$1888,E$4),SUMIFS(Data!$O$6:$O$1888,Data!$L$6:$L$1888,$B55,Data!$J$6:$J$1888,E$4)),"") ->  | F55: =IF(IF($C$1=1,SUMIFS(Data!$G$6:$G$1888,Data!$L$6:$L$1888,$B55,Data!$J$6:$J$1888,F$4),SUMIFS(Data!$O$6:$O$1888,Data!$L$6:$L$1888,$B55,Data!$J$6:$J$1888,F$4))>0,IF($C$1=1,SUMIFS(Data!$G$6:$G$1888,Data!$L$6:$L$1888,$B55,Data!$J$6:$J$1888,F$4),SUMIFS(Data!$O$6:$O$1888,Data!$L$6:$L$1888,$B55,Data!$J$6:$J$1888,F$4)),"") ->  | G55: =IF(IF($C$1=1,SUMIFS(Data!$G$6:$G$1888,Data!$L$6:$L$1888,$B55,Data!$J$6:$J$1888,G$4),SUMIFS(Data!$O$6:$O$1888,Data!$L$6:$L$1888,$B55,Data!$J$6:$J$1888,G$4))>0,IF($C$1=1,SUMIFS(Data!$G$6:$G$1888,Data!$L$6:$L$1888,$B55,Data!$J$6:$J$1888,G$4),SUMIFS(Data!$O$6:$O$1888,Data!$L$6:$L$1888,$B55,Data!$J$6:$J$1888,G$4)),"") ->  | H55: =IF(IF($C$1=1,SUMIFS(Data!$G$6:$G$1888,Data!$L$6:$L$1888,$B55,Data!$J$6:$J$1888,H$4),SUMIFS(Data!$O$6:$O$1888,Data!$L$6:$L$1888,$B55,Data!$J$6:$J$1888,H$4))>0,IF($C$1=1,SUMIFS(Data!$G$6:$G$1888,Data!$L$6:$L$1888,$B55,Data!$J$6:$J$1888,H$4),SUMIFS(Data!$O$6:$O$1888,Data!$L$6:$L$1888,$B55,Data!$J$6:$J$1888,H$4)),"") ->  | I55: =IF(IF($C$1=1,SUMIFS(Data!$G$6:$G$1888,Data!$L$6:$L$1888,$B55,Data!$J$6:$J$1888,I$4),SUMIFS(Data!$O$6:$O$1888,Data!$L$6:$L$1888,$B55,Data!$J$6:$J$1888,I$4))>0,IF($C$1=1,SUMIFS(Data!$G$6:$G$1888,Data!$L$6:$L$1888,$B55,Data!$J$6:$J$1888,I$4),SUMIFS(Data!$O$6:$O$1888,Data!$L$6:$L$1888,$B55,Data!$J$6:$J$1888,I$4)),"") ->  | J55: =IF(IF($C$1=1,SUMIFS(Data!$G$6:$G$1888,Data!$L$6:$L$1888,$B55,Data!$J$6:$J$1888,J$4),SUMIFS(Data!$O$6:$O$1888,Data!$L$6:$L$1888,$B55,Data!$J$6:$J$1888,J$4))>0,IF($C$1=1,SUMIFS(Data!$G$6:$G$1888,Data!$L$6:$L$1888,$B55,Data!$J$6:$J$1888,J$4),SUMIFS(Data!$O$6:$O$1888,Data!$L$6:$L$1888,$B55,Data!$J$6:$J$1888,J$4)),"") ->  | K55: =IF(IF($C$1=1,SUMIFS(Data!$G$6:$G$1888,Data!$L$6:$L$1888,$B55,Data!$J$6:$J$1888,K$4),SUMIFS(Data!$O$6:$O$1888,Data!$L$6:$L$1888,$B55,Data!$J$6:$J$1888,K$4))>0,IF($C$1=1,SUMIFS(Data!$G$6:$G$1888,Data!$L$6:$L$1888,$B55,Data!$J$6:$J$1888,K$4),SUMIFS(Data!$O$6:$O$1888,Data!$L$6:$L$1888,$B55,Data!$J$6:$J$1888,K$4)),"") ->  | L55: =IF(IF($C$1=1,SUMIFS(Data!$G$6:$G$1888,Data!$L$6:$L$1888,$B55,Data!$J$6:$J$1888,L$4),SUMIFS(Data!$O$6:$O$1888,Data!$L$6:$L$1888,$B55,Data!$J$6:$J$1888,L$4))>0,IF($C$1=1,SUMIFS(Data!$G$6:$G$1888,Data!$L$6:$L$1888,$B55,Data!$J$6:$J$1888,L$4),SUMIFS(Data!$O$6:$O$1888,Data!$L$6:$L$1888,$B55,Data!$J$6:$J$1888,L$4)),"") ->  | M55: 20571
B56: Armenia | C56: =IF(IF($C$1=1,SUMIFS(Data!$G$6:$G$1888,Data!$L$6:$L$1888,$B56,Data!$J$6:$J$1888,C$4),SUMIFS(Data!$O$6:$O$1888,Data!$L$6:$L$1888,$B56,Data!$J$6:$J$1888,C$4))>0,IF($C$1=1,SUMIFS(Data!$G$6:$G$1888,Data!$L$6:$L$1888,$B56,Data!$J$6:$J$1888,C$4),SUMIFS(Data!$O$6:$O$1888,Data!$L$6:$L$1888,$B56,Data!$J$6:$J$1888,C$4)),"") ->  | D56: =IF(IF($C$1=1,SUMIFS(Data!$G$6:$G$1888,Data!$L$6:$L$1888,$B56,Data!$J$6:$J$1888,D$4),SUMIFS(Data!$O$6:$O$1888,Data!$L$6:$L$1888,$B56,Data!$J$6:$J$1888,D$4))>0,IF($C$1=1,SUMIFS(Data!$G$6:$G$1888,Data!$L$6:$L$1888,$B56,Data!$J$6:$J$1888,D$4),SUMIFS(Data!$O$6:$O$1888,Data!$L$6:$L$1888,$B56,Data!$J$6:$J$1888,D$4)),"") ->  | E56: =IF(IF($C$1=1,SUMIFS(Data!$G$6:$G$1888,Data!$L$6:$L$1888,$B56,Data!$J$6:$J$1888,E$4),SUMIFS(Data!$O$6:$O$1888,Data!$L$6:$L$1888,$B56,Data!$J$6:$J$1888,E$4))>0,IF($C$1=1,SUMIFS(Data!$G$6:$G$1888,Data!$L$6:$L$1888,$B56,Data!$J$6:$J$1888,E$4),SUMIFS(Data!$O$6:$O$1888,Data!$L$6:$L$1888,$B56,Data!$J$6:$J$1888,E$4)),"") ->  | F56: =IF(IF($C$1=1,SUMIFS(Data!$G$6:$G$1888,Data!$L$6:$L$1888,$B56,Data!$J$6:$J$1888,F$4),SUMIFS(Data!$O$6:$O$1888,Data!$L$6:$L$1888,$B56,Data!$J$6:$J$1888,F$4))>0,IF($C$1=1,SUMIFS(Data!$G$6:$G$1888,Data!$L$6:$L$1888,$B56,Data!$J$6:$J$1888,F$4),SUMIFS(Data!$O$6:$O$1888,Data!$L$6:$L$1888,$B56,Data!$J$6:$J$1888,F$4)),"") ->  | G56: =IF(IF($C$1=1,SUMIFS(Data!$G$6:$G$1888,Data!$L$6:$L$1888,$B56,Data!$J$6:$J$1888,G$4),SUMIFS(Data!$O$6:$O$1888,Data!$L$6:$L$1888,$B56,Data!$J$6:$J$1888,G$4))>0,IF($C$1=1,SUMIFS(Data!$G$6:$G$1888,Data!$L$6:$L$1888,$B56,Data!$J$6:$J$1888,G$4),SUMIFS(Data!$O$6:$O$1888,Data!$L$6:$L$1888,$B56,Data!$J$6:$J$1888,G$4)),"") ->  | H56: =IF(IF($C$1=1,SUMIFS(Data!$G$6:$G$1888,Data!$L$6:$L$1888,$B56,Data!$J$6:$J$1888,H$4),SUMIFS(Data!$O$6:$O$1888,Data!$L$6:$L$1888,$B56,Data!$J$6:$J$1888,H$4))>0,IF($C$1=1,SUMIFS(Data!$G$6:$G$1888,Data!$L$6:$L$1888,$B56,Data!$J$6:$J$1888,H$4),SUMIFS(Data!$O$6:$O$1888,Data!$L$6:$L$1888,$B56,Data!$J$6:$J$1888,H$4)),"") ->  | I56: =IF(IF($C$1=1,SUMIFS(Data!$G$6:$G$1888,Data!$L$6:$L$1888,$B56,Data!$J$6:$J$1888,I$4),SUMIFS(Data!$O$6:$O$1888,Data!$L$6:$L$1888,$B56,Data!$J$6:$J$1888,I$4))>0,IF($C$1=1,SUMIFS(Data!$G$6:$G$1888,Data!$L$6:$L$1888,$B56,Data!$J$6:$J$1888,I$4),SUMIFS(Data!$O$6:$O$1888,Data!$L$6:$L$1888,$B56,Data!$J$6:$J$1888,I$4)),"") ->  | J56: =IF(IF($C$1=1,SUMIFS(Data!$G$6:$G$1888,Data!$L$6:$L$1888,$B56,Data!$J$6:$J$1888,J$4),SUMIFS(Data!$O$6:$O$1888,Data!$L$6:$L$1888,$B56,Data!$J$6:$J$1888,J$4))>0,IF($C$1=1,SUMIFS(Data!$G$6:$G$1888,Data!$L$6:$L$1888,$B56,Data!$J$6:$J$1888,J$4),SUMIFS(Data!$O$6:$O$1888,Data!$L$6:$L$1888,$B56,Data!$J$6:$J$1888,J$4)),"") ->  | K56: =IF(IF($C$1=1,SUMIFS(Data!$G$6:$G$1888,Data!$L$6:$L$1888,$B56,Data!$J$6:$J$1888,K$4),SUMIFS(Data!$O$6:$O$1888,Data!$L$6:$L$1888,$B56,Data!$J$6:$J$1888,K$4))>0,IF($C$1=1,SUMIFS(Data!$G$6:$G$1888,Data!$L$6:$L$1888,$B56,Data!$J$6:$J$1888,K$4),SUMIFS(Data!$O$6:$O$1888,Data!$L$6:$L$1888,$B56,Data!$J$6:$J$1888,K$4)),"") ->  | L56: =IF(IF($C$1=1,SUMIFS(Data!$G$6:$G$1888,Data!$L$6:$L$1888,$B56,Data!$J$6:$J$1888,L$4),SUMIFS(Data!$O$6:$O$1888,Data!$L$6:$L$1888,$B56,Data!$J$6:$J$1888,L$4))>0,IF($C$1=1,SUMIFS(Data!$G$6:$G$1888,Data!$L$6:$L$1888,$B56,Data!$J$6:$J$1888,L$4),SUMIFS(Data!$O$6:$O$1888,Data!$L$6:$L$1888,$B56,Data!$J$6:$J$1888,L$4)),"") -> 6000 | M56: 6000
B57: Austria | C57: =IF(IF($C$1=1,SUMIFS(Data!$G$6:$G$1888,Data!$L$6:$L$1888,$B57,Data!$J$6:$J$1888,C$4),SUMIFS(Data!$O$6:$O$1888,Data!$L$6:$L$1888,$B57,Data!$J$6:$J$1888,C$4))>0,IF($C$1=1,SUMIFS(Data!$G$6:$G$1888,Data!$L$6:$L$1888,$B57,Data!$J$6:$J$1888,C$4),SUMIFS(Data!$O$6:$O$1888,Data!$L$6:$L$1888,$B57,Data!$J$6:$J$1888,C$4)),"") ->  | D57: =IF(IF($C$1=1,SUMIFS(Data!$G$6:$G$1888,Data!$L$6:$L$1888,$B57,Data!$J$6:$J$1888,D$4),SUMIFS(Data!$O$6:$O$1888,Data!$L$6:$L$1888,$B57,Data!$J$6:$J$1888,D$4))>0,IF($C$1=1,SUMIFS(Data!$G$6:$G$1888,Data!$L$6:$L$1888,$B57,Data!$J$6:$J$1888,D$4),SUMIFS(Data!$O$6:$O$1888,Data!$L$6:$L$1888,$B57,Data!$J$6:$J$1888,D$4)),"") ->  | E57: =IF(IF($C$1=1,SUMIFS(Data!$G$6:$G$1888,Data!$L$6:$L$1888,$B57,Data!$J$6:$J$1888,E$4),SUMIFS(Data!$O$6:$O$1888,Data!$L$6:$L$1888,$B57,Data!$J$6:$J$1888,E$4))>0,IF($C$1=1,SUMIFS(Data!$G$6:$G$1888,Data!$L$6:$L$1888,$B57,Data!$J$6:$J$1888,E$4),SUMIFS(Data!$O$6:$O$1888,Data!$L$6:$L$1888,$B57,Data!$J$6:$J$1888,E$4)),"") ->  | F57: =IF(IF($C$1=1,SUMIFS(Data!$G$6:$G$1888,Data!$L$6:$L$1888,$B57,Data!$J$6:$J$1888,F$4),SUMIFS(Data!$O$6:$O$1888,Data!$L$6:$L$1888,$B57,Data!$J$6:$J$1888,F$4))>0,IF($C$1=1,SUMIFS(Data!$G$6:$G$1888,Data!$L$6:$L$1888,$B57,Data!$J$6:$J$1888,F$4),SUMIFS(Data!$O$6:$O$1888,Data!$L$6:$L$1888,$B57,Data!$J$6:$J$1888,F$4)),"") ->  | G57: =IF(IF($C$1=1,SUMIFS(Data!$G$6:$G$1888,Data!$L$6:$L$1888,$B57,Data!$J$6:$J$1888,G$4),SUMIFS(Data!$O$6:$O$1888,Data!$L$6:$L$1888,$B57,Data!$J$6:$J$1888,G$4))>0,IF($C$1=1,SUMIFS(Data!$G$6:$G$1888,Data!$L$6:$L$1888,$B57,Data!$J$6:$J$1888,G$4),SUMIFS(Data!$O$6:$O$1888,Data!$L$6:$L$1888,$B57,Data!$J$6:$J$1888,G$4)),"") ->  | H57: =IF(IF($C$1=1,SUMIFS(Data!$G$6:$G$1888,Data!$L$6:$L$1888,$B57,Data!$J$6:$J$1888,H$4),SUMIFS(Data!$O$6:$O$1888,Data!$L$6:$L$1888,$B57,Data!$J$6:$J$1888,H$4))>0,IF($C$1=1,SUMIFS(Data!$G$6:$G$1888,Data!$L$6:$L$1888,$B57,Data!$J$6:$J$1888,H$4),SUMIFS(Data!$O$6:$O$1888,Data!$L$6:$L$1888,$B57,Data!$J$6:$J$1888,H$4)),"") ->  | I57: =IF(IF($C$1=1,SUMIFS(Data!$G$6:$G$1888,Data!$L$6:$L$1888,$B57,Data!$J$6:$J$1888,I$4),SUMIFS(Data!$O$6:$O$1888,Data!$L$6:$L$1888,$B57,Data!$J$6:$J$1888,I$4))>0,IF($C$1=1,SUMIFS(Data!$G$6:$G$1888,Data!$L$6:$L$1888,$B57,Data!$J$6:$J$1888,I$4),SUMIFS(Data!$O$6:$O$1888,Data!$L$6:$L$1888,$B57,Data!$J$6:$J$1888,I$4)),"") -> 50815.97756 | J57: =IF(IF($C$1=1,SUMIFS(Data!$G$6:$G$1888,Data!$L$6:$L$1888,$B57,Data!$J$6:$J$1888,J$4),SUMIFS(Data!$O$6:$O$1888,Data!$L$6:$L$1888,$B57,Data!$J$6:$J$1888,J$4))>0,IF($C$1=1,SUMIFS(Data!$G$6:$G$1888,Data!$L$6:$L$1888,$B57,Data!$J$6:$J$1888,J$4),SUMIFS(Data!$O$6:$O$1888,Data!$L$6:$L$1888,$B57,Data!$J$6:$J$1888,J$4)),"") ->  | K57: =IF(IF($C$1=1,SUMIFS(Data!$G$6:$G$1888,Data!$L$6:$L$1888,$B57,Data!$J$6:$J$1888,K$4),SUMIFS(Data!$O$6:$O$1888,Data!$L$6:$L$1888,$B57,Data!$J$6:$J$1888,K$4))>0,IF($C$1=1,SUMIFS(Data!$G$6:$G$1888,Data!$L$6:$L$1888,$B57,Data!$J$6:$J$1888,K$4),SUMIFS(Data!$O$6:$O$1888,Data!$L$6:$L$1888,$B57,Data!$J$6:$J$1888,K$4)),"") ->  | L57: =IF(IF($C$1=1,SUMIFS(Data!$G$6:$G$1888,Data!$L$6:$L$1888,$B57,Data!$J$6:$J$1888,L$4),SUMIFS(Data!$O$6:$O$1888,Data!$L$6:$L$1888,$B57,Data!$J$6:$J$1888,L$4))>0,IF($C$1=1,SUMIFS(Data!$G$6:$G$1888,Data!$L$6:$L$1888,$B57,Data!$J$6:$J$1888,L$4),SUMIFS(Data!$O$6:$O$1888,Data!$L$6:$L$1888,$B57,Data!$J$6:$J$1888,L$4)),"") ->  | M57: 50815.97756
B58: Azerbaijan | C58: =IF(IF($C$1=1,SUMIFS(Data!$G$6:$G$1888,Data!$L$6:$L$1888,$B58,Data!$J$6:$J$1888,C$4),SUMIFS(Data!$O$6:$O$1888,Data!$L$6:$L$1888,$B58,Data!$J$6:$J$1888,C$4))>0,IF($C$1=1,SUMIFS(Data!$G$6:$G$1888,Data!$L$6:$L$1888,$B58,Data!$J$6:$J$1888,C$4),SUMIFS(Data!$O$6:$O$1888,Data!$L$6:$L$1888,$B58,Data!$J$6:$J$1888,C$4)),"") ->  | D58: =IF(IF($C$1=1,SUMIFS(Data!$G$6:$G$1888,Data!$L$6:$L$1888,$B58,Data!$J$6:$J$1888,D$4),SUMIFS(Data!$O$6:$O$1888,Data!$L$6:$L$1888,$B58,Data!$J$6:$J$1888,D$4))>0,IF($C$1=1,SUMIFS(Data!$G$6:$G$1888,Data!$L$6:$L$1888,$B58,Data!$J$6:$J$1888,D$4),SUMIFS(Data!$O$6:$O$1888,Data!$L$6:$L$1888,$B58,Data!$J$6:$J$1888,D$4)),"") ->  | E58: =IF(IF($C$1=1,SUMIFS(Data!$G$6:$G$1888,Data!$L$6:$L$1888,$B58,Data!$J$6:$J$1888,E$4),SUMIFS(Data!$O$6:$O$1888,Data!$L$6:$L$1888,$B58,Data!$J$6:$J$1888,E$4))>0,IF($C$1=1,SUMIFS(Data!$G$6:$G$1888,Data!$L$6:$L$1888,$B58,Data!$J$6:$J$1888,E$4),SUMIFS(Data!$O$6:$O$1888,Data!$L$6:$L$1888,$B58,Data!$J$6:$J$1888,E$4)),"") -> 36000 | F58: =IF(IF($C$1=1,SUMIFS(Data!$G$6:$G$1888,Data!$L$6:$L$1888,$B58,Data!$J$6:$J$1888,F$4),SUMIFS(Data!$O$6:$O$1888,Data!$L$6:$L$1888,$B58,Data!$J$6:$J$1888,F$4))>0,IF($C$1=1,SUMIFS(Data!$G$6:$G$1888,Data!$L$6:$L$1888,$B58,Data!$J$6:$J$1888,F$4),SUMIFS(Data!$O$6:$O$1888,Data!$L$6:$L$1888,$B58,Data!$J$6:$J$1888,F$4)),"") ->  | G58: =IF(IF($C$1=1,SUMIFS(Data!$G$6:$G$1888,Data!$L$6:$L$1888,$B58,Data!$J$6:$J$1888,G$4),SUMIFS(Data!$O$6:$O$1888,Data!$L$6:$L$1888,$B58,Data!$J$6:$J$1888,G$4))>0,IF($C$1=1,SUMIFS(Data!$G$6:$G$1888,Data!$L$6:$L$1888,$B58,Data!$J$6:$J$1888,G$4),SUMIFS(Data!$O$6:$O$1888,Data!$L$6:$L$1888,$B58,Data!$J$6:$J$1888,G$4)),"") ->  | H58: =IF(IF($C$1=1,SUMIFS(Data!$G$6:$G$1888,Data!$L$6:$L$1888,$B58,Data!$J$6:$J$1888,H$4),SUMIFS(Data!$O$6:$O$1888,Data!$L$6:$L$1888,$B58,Data!$J$6:$J$1888,H$4))>0,IF($C$1=1,SUMIFS(Data!$G$6:$G$1888,Data!$L$6:$L$1888,$B58,Data!$J$6:$J$1888,H$4),SUMIFS(Data!$O$6:$O$1888,Data!$L$6:$L$1888,$B58,Data!$J$6:$J$1888,H$4)),"") ->  | I58: =IF(IF($C$1=1,SUMIFS(Data!$G$6:$G$1888,Data!$L$6:$L$1888,$B58,Data!$J$6:$J$1888,I$4),SUMIFS(Data!$O$6:$O$1888,Data!$L$6:$L$1888,$B58,Data!$J$6:$J$1888,I$4))>0,IF($C$1=1,SUMIFS(Data!$G$6:$G$1888,Data!$L$6:$L$1888,$B58,Data!$J$6:$J$1888,I$4),SUMIFS(Data!$O$6:$O$1888,Data!$L$6:$L$1888,$B58,Data!$J$6:$J$1888,I$4)),"") ->  | J58: =IF(IF($C$1=1,SUMIFS(Data!$G$6:$G$1888,Data!$L$6:$L$1888,$B58,Data!$J$6:$J$1888,J$4),SUMIFS(Data!$O$6:$O$1888,Data!$L$6:$L$1888,$B58,Data!$J$6:$J$1888,J$4))>0,IF($C$1=1,SUMIFS(Data!$G$6:$G$1888,Data!$L$6:$L$1888,$B58,Data!$J$6:$J$1888,J$4),SUMIFS(Data!$O$6:$O$1888,Data!$L$6:$L$1888,$B58,Data!$J$6:$J$1888,J$4)),"") ->  | K58: =IF(IF($C$1=1,SUMIFS(Data!$G$6:$G$1888,Data!$L$6:$L$1888,$B58,Data!$J$6:$J$1888,K$4),SUMIFS(Data!$O$6:$O$1888,Data!$L$6:$L$1888,$B58,Data!$J$6:$J$1888,K$4))>0,IF($C$1=1,SUMIFS(Data!$G$6:$G$1888,Data!$L$6:$L$1888,$B58,Data!$J$6:$J$1888,K$4),SUMIFS(Data!$O$6:$O$1888,Data!$L$6:$L$1888,$B58,Data!$J$6:$J$1888,K$4)),"") ->  | L58: =IF(IF($C$1=1,SUMIFS(Data!$G$6:$G$1888,Data!$L$6:$L$1888,$B58,Data!$J$6:$J$1888,L$4),SUMIFS(Data!$O$6:$O$1888,Data!$L$6:$L$1888,$B58,Data!$J$6:$J$1888,L$4))>0,IF($C$1=1,SUMIFS(Data!$G$6:$G$1888,Data!$L$6:$L$1888,$B58,Data!$J$6:$J$1888,L$4),SUMIFS(Data!$O$6:$O$1888,Data!$L$6:$L$1888,$B58,Data!$J$6:$J$1888,L$4)),"") ->  | M58: 36000
B59: Belgium | C59: =IF(IF($C$1=1,SUMIFS(Data!$G$6:$G$1888,Data!$L$6:$L$1888,$B59,Data!$J$6:$J$1888,C$4),SUMIFS(Data!$O$6:$O$1888,Data!$L$6:$L$1888,$B59,Data!$J$6:$J$1888,C$4))>0,IF($C$1=1,SUMIFS(Data!$G$6:$G$1888,Data!$L$6:$L$1888,$B59,Data!$J$6:$J$1888,C$4),SUMIFS(Data!$O$6:$O$1888,Data!$L$6:$L$1888,$B59,Data!$J$6:$J$1888,C$4)),"") ->  | D59: =IF(IF($C$1=1,SUMIFS(Data!$G$6:$G$1888,Data!$L$6:$L$1888,$B59,Data!$J$6:$J$1888,D$4),SUMIFS(Data!$O$6:$O$1888,Data!$L$6:$L$1888,$B59,Data!$J$6:$J$1888,D$4))>0,IF($C$1=1,SUMIFS(Data!$G$6:$G$1888,Data!$L$6:$L$1888,$B59,Data!$J$6:$J$1888,D$4),SUMIFS(Data!$O$6:$O$1888,Data!$L$6:$L$1888,$B59,Data!$J$6:$J$1888,D$4)),"") ->  | E59: =IF(IF($C$1=1,SUMIFS(Data!$G$6:$G$1888,Data!$L$6:$L$1888,$B59,Data!$J$6:$J$1888,E$4),SUMIFS(Data!$O$6:$O$1888,Data!$L$6:$L$1888,$B59,Data!$J$6:$J$1888,E$4))>0,IF($C$1=1,SUMIFS(Data!$G$6:$G$1888,Data!$L$6:$L$1888,$B59,Data!$J$6:$J$1888,E$4),SUMIFS(Data!$O$6:$O$1888,Data!$L$6:$L$1888,$B59,Data!$J$6:$J$1888,E$4)),"") ->  | F59: =IF(IF($C$1=1,SUMIFS(Data!$G$6:$G$1888,Data!$L$6:$L$1888,$B59,Data!$J$6:$J$1888,F$4),SUMIFS(Data!$O$6:$O$1888,Data!$L$6:$L$1888,$B59,Data!$J$6:$J$1888,F$4))>0,IF($C$1=1,SUMIFS(Data!$G$6:$G$1888,Data!$L$6:$L$1888,$B59,Data!$J$6:$J$1888,F$4),SUMIFS(Data!$O$6:$O$1888,Data!$L$6:$L$1888,$B59,Data!$J$6:$J$1888,F$4)),"") ->  | G59: =IF(IF($C$1=1,SUMIFS(Data!$G$6:$G$1888,Data!$L$6:$L$1888,$B59,Data!$J$6:$J$1888,G$4),SUMIFS(Data!$O$6:$O$1888,Data!$L$6:$L$1888,$B59,Data!$J$6:$J$1888,G$4))>0,IF($C$1=1,SUMIFS(Data!$G$6:$G$1888,Data!$L$6:$L$1888,$B59,Data!$J$6:$J$1888,G$4),SUMIFS(Data!$O$6:$O$1888,Data!$L$6:$L$1888,$B59,Data!$J$6:$J$1888,G$4)),"") ->  | H59: =IF(IF($C$1=1,SUMIFS(Data!$G$6:$G$1888,Data!$L$6:$L$1888,$B59,Data!$J$6:$J$1888,H$4),SUMIFS(Data!$O$6:$O$1888,Data!$L$6:$L$1888,$B59,Data!$J$6:$J$1888,H$4))>0,IF($C$1=1,SUMIFS(Data!$G$6:$G$1888,Data!$L$6:$L$1888,$B59,Data!$J$6:$J$1888,H$4),SUMIFS(Data!$O$6:$O$1888,Data!$L$6:$L$1888,$B59,Data!$J$6:$J$1888,H$4)),"") ->  | I59: =IF(IF($C$1=1,SUMIFS(Data!$G$6:$G$1888,Data!$L$6:$L$1888,$B59,Data!$J$6:$J$1888,I$4),SUMIFS(Data!$O$6:$O$1888,Data!$L$6:$L$1888,$B59,Data!$J$6:$J$1888,I$4))>0,IF($C$1=1,SUMIFS(Data!$G$6:$G$1888,Data!$L$6:$L$1888,$B59,Data!$J$6:$J$1888,I$4),SUMIFS(Data!$O$6:$O$1888,Data!$L$6:$L$1888,$B59,Data!$J$6:$J$1888,I$4)),"") -> 41160.94182 | J59: =IF(IF($C$1=1,SUMIFS(Data!$G$6:$G$1888,Data!$L$6:$L$1888,$B59,Data!$J$6:$J$1888,J$4),SUMIFS(Data!$O$6:$O$1888,Data!$L$6:$L$1888,$B59,Data!$J$6:$J$1888,J$4))>0,IF($C$1=1,SUMIFS(Data!$G$6:$G$1888,Data!$L$6:$L$1888,$B59,Data!$J$6:$J$1888,J$4),SUMIFS(Data!$O$6:$O$1888,Data!$L$6:$L$1888,$B59,Data!$J$6:$J$1888,J$4)),"") -> 125667.9125 | K59: =IF(IF($C$1=1,SUMIFS(Data!$G$6:$G$1888,Data!$L$6:$L$1888,$B59,Data!$J$6:$J$1888,K$4),SUMIFS(Data!$O$6:$O$1888,Data!$L$6:$L$1888,$B59,Data!$J$6:$J$1888,K$4))>0,IF($C$1=1,SUMIFS(Data!$G$6:$G$1888,Data!$L$6:$L$1888,$B59,Data!$J$6:$J$1888,K$4),SUMIFS(Data!$O$6:$O$1888,Data!$L$6:$L$1888,$B59,Data!$J$6:$J$1888,K$4)),"") ->  | L59: =IF(IF($C$1=1,SUMIFS(Data!$G$6:$G$1888,Data!$L$6:$L$1888,$B59,Data!$J$6:$J$1888,L$4),SUMIFS(Data!$O$6:$O$1888,Data!$L$6:$L$1888,$B59,Data!$J$6:$J$1888,L$4))>0,IF($C$1=1,SUMIFS(Data!$G$6:$G$1888,Data!$L$6:$L$1888,$B59,Data!$J$6:$J$1888,L$4),SUMIFS(Data!$O$6:$O$1888,Data!$L$6:$L$1888,$B59,Data!$J$6:$J$1888,L$4)),"") ->  | M59: 166828.8543
B60: Bulgaria | C60: =IF(IF($C$1=1,SUMIFS(Data!$G$6:$G$1888,Data!$L$6:$L$1888,$B60,Data!$J$6:$J$1888,C$4),SUMIFS(Data!$O$6:$O$1888,Data!$L$6:$L$1888,$B60,Data!$J$6:$J$1888,C$4))>0,IF($C$1=1,SUMIFS(Data!$G$6:$G$1888,Data!$L$6:$L$1888,$B60,Data!$J$6:$J$1888,C$4),SUMIFS(Data!$O$6:$O$1888,Data!$L$6:$L$1888,$B60,Data!$J$6:$J$1888,C$4)),"") ->  | D60: =IF(IF($C$1=1,SUMIFS(Data!$G$6:$G$1888,Data!$L$6:$L$1888,$B60,Data!$J$6:$J$1888,D$4),SUMIFS(Data!$O$6:$O$1888,Data!$L$6:$L$1888,$B60,Data!$J$6:$J$1888,D$4))>0,IF($C$1=1,SUMIFS(Data!$G$6:$G$1888,Data!$L$6:$L$1888,$B60,Data!$J$6:$J$1888,D$4),SUMIFS(Data!$O$6:$O$1888,Data!$L$6:$L$1888,$B60,Data!$J$6:$J$1888,D$4)),"") ->  | E60: =IF(IF($C$1=1,SUMIFS(Data!$G$6:$G$1888,Data!$L$6:$L$1888,$B60,Data!$J$6:$J$1888,E$4),SUMIFS(Data!$O$6:$O$1888,Data!$L$6:$L$1888,$B60,Data!$J$6:$J$1888,E$4))>0,IF($C$1=1,SUMIFS(Data!$G$6:$G$1888,Data!$L$6:$L$1888,$B60,Data!$J$6:$J$1888,E$4),SUMIFS(Data!$O$6:$O$1888,Data!$L$6:$L$1888,$B60,Data!$J$6:$J$1888,E$4)),"") ->  | F60: =IF(IF($C$1=1,SUMIFS(Data!$G$6:$G$1888,Data!$L$6:$L$1888,$B60,Data!$J$6:$J$1888,F$4),SUMIFS(Data!$O$6:$O$1888,Data!$L$6:$L$1888,$B60,Data!$J$6:$J$1888,F$4))>0,IF($C$1=1,SUMIFS(Data!$G$6:$G$1888,Data!$L$6:$L$1888,$B60,Data!$J$6:$J$1888,F$4),SUMIFS(Data!$O$6:$O$1888,Data!$L$6:$L$1888,$B60,Data!$J$6:$J$1888,F$4)),"") ->  | G60: =IF(IF($C$1=1,SUMIFS(Data!$G$6:$G$1888,Data!$L$6:$L$1888,$B60,Data!$J$6:$J$1888,G$4),SUMIFS(Data!$O$6:$O$1888,Data!$L$6:$L$1888,$B60,Data!$J$6:$J$1888,G$4))>0,IF($C$1=1,SUMIFS(Data!$G$6:$G$1888,Data!$L$6:$L$1888,$B60,Data!$J$6:$J$1888,G$4),SUMIFS(Data!$O$6:$O$1888,Data!$L$6:$L$1888,$B60,Data!$J$6:$J$1888,G$4)),"") ->  | H60: =IF(IF($C$1=1,SUMIFS(Data!$G$6:$G$1888,Data!$L$6:$L$1888,$B60,Data!$J$6:$J$1888,H$4),SUMIFS(Data!$O$6:$O$1888,Data!$L$6:$L$1888,$B60,Data!$J$6:$J$1888,H$4))>0,IF($C$1=1,SUMIFS(Data!$G$6:$G$1888,Data!$L$6:$L$1888,$B60,Data!$J$6:$J$1888,H$4),SUMIFS(Data!$O$6:$O$1888,Data!$L$6:$L$1888,$B60,Data!$J$6:$J$1888,H$4)),"") ->  | I60: =IF(IF($C$1=1,SUMIFS(Data!$G$6:$G$1888,Data!$L$6:$L$1888,$B60,Data!$J$6:$J$1888,I$4),SUMIFS(Data!$O$6:$O$1888,Data!$L$6:$L$1888,$B60,Data!$J$6:$J$1888,I$4))>0,IF($C$1=1,SUMIFS(Data!$G$6:$G$1888,Data!$L$6:$L$1888,$B60,Data!$J$6:$J$1888,I$4),SUMIFS(Data!$O$6:$O$1888,Data!$L$6:$L$1888,$B60,Data!$J$6:$J$1888,I$4)),"") ->  | J60: =IF(IF($C$1=1,SUMIFS(Data!$G$6:$G$1888,Data!$L$6:$L$1888,$B60,Data!$J$6:$J$1888,J$4),SUMIFS(Data!$O$6:$O$1888,Data!$L$6:$L$1888,$B60,Data!$J$6:$J$1888,J$4))>0,IF($C$1=1,SUMIFS(Data!$G$6:$G$1888,Data!$L$6:$L$1888,$B60,Data!$J$6:$J$1888,J$4),SUMIFS(Data!$O$6:$O$1888,Data!$L$6:$L$1888,$B60,Data!$J$6:$J$1888,J$4)),"") -> 14400 | K60: =IF(IF($C$1=1,SUMIFS(Data!$G$6:$G$1888,Data!$L$6:$L$1888,$B60,Data!$J$6:$J$1888,K$4),SUMIFS(Data!$O$6:$O$1888,Data!$L$6:$L$1888,$B60,Data!$J$6:$J$1888,K$4))>0,IF($C$1=1,SUMIFS(Data!$G$6:$G$1888,Data!$L$6:$L$1888,$B60,Data!$J$6:$J$1888,K$4),SUMIFS(Data!$O$6:$O$1888,Data!$L$6:$L$1888,$B60,Data!$J$6:$J$1888,K$4)),"") ->  | L60: =IF(IF($C$1=1,SUMIFS(Data!$G$6:$G$1888,Data!$L$6:$L$1888,$B60,Data!$J$6:$J$1888,L$4),SUMIFS(Data!$O$6:$O$1888,Data!$L$6:$L$1888,$B60,Data!$J$6:$J$1888,L$4))>0,IF($C$1=1,SUMIFS(Data!$G$6:$G$1888,Data!$L$6:$L$1888,$B60,Data!$J$6:$J$1888,L$4),SUMIFS(Data!$O$6:$O$1888,Data!$L$6:$L$1888,$B60,Data!$J$6:$J$1888,L$4)),"") ->  | M60: 14400
B61: Croatia | C61: =IF(IF($C$1=1,SUMIFS(Data!$G$6:$G$1888,Data!$L$6:$L$1888,$B61,Data!$J$6:$J$1888,C$4),SUMIFS(Data!$O$6:$O$1888,Data!$L$6:$L$1888,$B61,Data!$J$6:$J$1888,C$4))>0,IF($C$1=1,SUMIFS(Data!$G$6:$G$1888,Data!$L$6:$L$1888,$B61,Data!$J$6:$J$1888,C$4),SUMIFS(Data!$O$6:$O$1888,Data!$L$6:$L$1888,$B61,Data!$J$6:$J$1888,C$4)),"") ->  | D61: =IF(IF($C$1=1,SUMIFS(Data!$G$6:$G$1888,Data!$L$6:$L$1888,$B61,Data!$J$6:$J$1888,D$4),SUMIFS(Data!$O$6:$O$1888,Data!$L$6:$L$1888,$B61,Data!$J$6:$J$1888,D$4))>0,IF($C$1=1,SUMIFS(Data!$G$6:$G$1888,Data!$L$6:$L$1888,$B61,Data!$J$6:$J$1888,D$4),SUMIFS(Data!$O$6:$O$1888,Data!$L$6:$L$1888,$B61,Data!$J$6:$J$1888,D$4)),"") -> 15000 | E61: =IF(IF($C$1=1,SUMIFS(Data!$G$6:$G$1888,Data!$L$6:$L$1888,$B61,Data!$J$6:$J$1888,E$4),SUMIFS(Data!$O$6:$O$1888,Data!$L$6:$L$1888,$B61,Data!$J$6:$J$1888,E$4))>0,IF($C$1=1,SUMIFS(Data!$G$6:$G$1888,Data!$L$6:$L$1888,$B61,Data!$J$6:$J$1888,E$4),SUMIFS(Data!$O$6:$O$1888,Data!$L$6:$L$1888,$B61,Data!$J$6:$J$1888,E$4)),"") ->  | F61: =IF(IF($C$1=1,SUMIFS(Data!$G$6:$G$1888,Data!$L$6:$L$1888,$B61,Data!$J$6:$J$1888,F$4),SUMIFS(Data!$O$6:$O$1888,Data!$L$6:$L$1888,$B61,Data!$J$6:$J$1888,F$4))>0,IF($C$1=1,SUMIFS(Data!$G$6:$G$1888,Data!$L$6:$L$1888,$B61,Data!$J$6:$J$1888,F$4),SUMIFS(Data!$O$6:$O$1888,Data!$L$6:$L$1888,$B61,Data!$J$6:$J$1888,F$4)),"") ->  | G61: =IF(IF($C$1=1,SUMIFS(Data!$G$6:$G$1888,Data!$L$6:$L$1888,$B61,Data!$J$6:$J$1888,G$4),SUMIFS(Data!$O$6:$O$1888,Data!$L$6:$L$1888,$B61,Data!$J$6:$J$1888,G$4))>0,IF($C$1=1,SUMIFS(Data!$G$6:$G$1888,Data!$L$6:$L$1888,$B61,Data!$J$6:$J$1888,G$4),SUMIFS(Data!$O$6:$O$1888,Data!$L$6:$L$1888,$B61,Data!$J$6:$J$1888,G$4)),"") ->  | H61: =IF(IF($C$1=1,SUMIFS(Data!$G$6:$G$1888,Data!$L$6:$L$1888,$B61,Data!$J$6:$J$1888,H$4),SUMIFS(Data!$O$6:$O$1888,Data!$L$6:$L$1888,$B61,Data!$J$6:$J$1888,H$4))>0,IF($C$1=1,SUMIFS(Data!$G$6:$G$1888,Data!$L$6:$L$1888,$B61,Data!$J$6:$J$1888,H$4),SUMIFS(Data!$O$6:$O$1888,Data!$L$6:$L$1888,$B61,Data!$J$6:$J$1888,H$4)),"") ->  | I61: =IF(IF($C$1=1,SUMIFS(Data!$G$6:$G$1888,Data!$L$6:$L$1888,$B61,Data!$J$6:$J$1888,I$4),SUMIFS(Data!$O$6:$O$1888,Data!$L$6:$L$1888,$B61,Data!$J$6:$J$1888,I$4))>0,IF($C$1=1,SUMIFS(Data!$G$6:$G$1888,Data!$L$6:$L$1888,$B61,Data!$J$6:$J$1888,I$4),SUMIFS(Data!$O$6:$O$1888,Data!$L$6:$L$1888,$B61,Data!$J$6:$J$1888,I$4)),"") -> 115468.7596 | J61: =IF(IF($C$1=1,SUMIFS(Data!$G$6:$G$1888,Data!$L$6:$L$1888,$B61,Data!$J$6:$J$1888,J$4),SUMIFS(Data!$O$6:$O$1888,Data!$L$6:$L$1888,$B61,Data!$J$6:$J$1888,J$4))>0,IF($C$1=1,SUMIFS(Data!$G$6:$G$1888,Data!$L$6:$L$1888,$B61,Data!$J$6:$J$1888,J$4),SUMIFS(Data!$O$6:$O$1888,Data!$L$6:$L$1888,$B61,Data!$J$6:$J$1888,J$4)),"") ->  | K61: =IF(IF($C$1=1,SUMIFS(Data!$G$6:$G$1888,Data!$L$6:$L$1888,$B61,Data!$J$6:$J$1888,K$4),SUMIFS(Data!$O$6:$O$1888,Data!$L$6:$L$1888,$B61,Data!$J$6:$J$1888,K$4))>0,IF($C$1=1,SUMIFS(Data!$G$6:$G$1888,Data!$L$6:$L$1888,$B61,Data!$J$6:$J$1888,K$4),SUMIFS(Data!$O$6:$O$1888,Data!$L$6:$L$1888,$B61,Data!$J$6:$J$1888,K$4)),"") ->  | L61: =IF(IF($C$1=1,SUMIFS(Data!$G$6:$G$1888,Data!$L$6:$L$1888,$B61,Data!$J$6:$J$1888,L$4),SUMIFS(Data!$O$6:$O$1888,Data!$L$6:$L$1888,$B61,Data!$J$6:$J$1888,L$4))>0,IF($C$1=1,SUMIFS(Data!$G$6:$G$1888,Data!$L$6:$L$1888,$B61,Data!$J$6:$J$1888,L$4),SUMIFS(Data!$O$6:$O$1888,Data!$L$6:$L$1888,$B61,Data!$J$6:$J$1888,L$4)),"") ->  | M61: 130468.7596
B62: Czech Republic | C62: =IF(IF($C$1=1,SUMIFS(Data!$G$6:$G$1888,Data!$L$6:$L$1888,$B62,Data!$J$6:$J$1888,C$4),SUMIFS(Data!$O$6:$O$1888,Data!$L$6:$L$1888,$B62,Data!$J$6:$J$1888,C$4))>0,IF($C$1=1,SUMIFS(Data!$G$6:$G$1888,Data!$L$6:$L$1888,$B62,Data!$J$6:$J$1888,C$4),SUMIFS(Data!$O$6:$O$1888,Data!$L$6:$L$1888,$B62,Data!$J$6:$J$1888,C$4)),"") ->  | D62: =IF(IF($C$1=1,SUMIFS(Data!$G$6:$G$1888,Data!$L$6:$L$1888,$B62,Data!$J$6:$J$1888,D$4),SUMIFS(Data!$O$6:$O$1888,Data!$L$6:$L$1888,$B62,Data!$J$6:$J$1888,D$4))>0,IF($C$1=1,SUMIFS(Data!$G$6:$G$1888,Data!$L$6:$L$1888,$B62,Data!$J$6:$J$1888,D$4),SUMIFS(Data!$O$6:$O$1888,Data!$L$6:$L$1888,$B62,Data!$J$6:$J$1888,D$4)),"") -> 36000 | E62: =IF(IF($C$1=1,SUMIFS(Data!$G$6:$G$1888,Data!$L$6:$L$1888,$B62,Data!$J$6:$J$1888,E$4),SUMIFS(Data!$O$6:$O$1888,Data!$L$6:$L$1888,$B62,Data!$J$6:$J$1888,E$4))>0,IF($C$1=1,SUMIFS(Data!$G$6:$G$1888,Data!$L$6:$L$1888,$B62,Data!$J$6:$J$1888,E$4),SUMIFS(Data!$O$6:$O$1888,Data!$L$6:$L$1888,$B62,Data!$J$6:$J$1888,E$4)),"") ->  | F62: =IF(IF($C$1=1,SUMIFS(Data!$G$6:$G$1888,Data!$L$6:$L$1888,$B62,Data!$J$6:$J$1888,F$4),SUMIFS(Data!$O$6:$O$1888,Data!$L$6:$L$1888,$B62,Data!$J$6:$J$1888,F$4))>0,IF($C$1=1,SUMIFS(Data!$G$6:$G$1888,Data!$L$6:$L$1888,$B62,Data!$J$6:$J$1888,F$4),SUMIFS(Data!$O$6:$O$1888,Data!$L$6:$L$1888,$B62,Data!$J$6:$J$1888,F$4)),"") ->  | G62: =IF(IF($C$1=1,SUMIFS(Data!$G$6:$G$1888,Data!$L$6:$L$1888,$B62,Data!$J$6:$J$1888,G$4),SUMIFS(Data!$O$6:$O$1888,Data!$L$6:$L$1888,$B62,Data!$J$6:$J$1888,G$4))>0,IF($C$1=1,SUMIFS(Data!$G$6:$G$1888,Data!$L$6:$L$1888,$B62,Data!$J$6:$J$1888,G$4),SUMIFS(Data!$O$6:$O$1888,Data!$L$6:$L$1888,$B62,Data!$J$6:$J$1888,G$4)),"") ->  | H62: =IF(IF($C$1=1,SUMIFS(Data!$G$6:$G$1888,Data!$L$6:$L$1888,$B62,Data!$J$6:$J$1888,H$4),SUMIFS(Data!$O$6:$O$1888,Data!$L$6:$L$1888,$B62,Data!$J$6:$J$1888,H$4))>0,IF($C$1=1,SUMIFS(Data!$G$6:$G$1888,Data!$L$6:$L$1888,$B62,Data!$J$6:$J$1888,H$4),SUMIFS(Data!$O$6:$O$1888,Data!$L$6:$L$1888,$B62,Data!$J$6:$J$1888,H$4)),"") ->  | I62: =IF(IF($C$1=1,SUMIFS(Data!$G$6:$G$1888,Data!$L$6:$L$1888,$B62,Data!$J$6:$J$1888,I$4),SUMIFS(Data!$O$6:$O$1888,Data!$L$6:$L$1888,$B62,Data!$J$6:$J$1888,I$4))>0,IF($C$1=1,SUMIFS(Data!$G$6:$G$1888,Data!$L$6:$L$1888,$B62,Data!$J$6:$J$1888,I$4),SUMIFS(Data!$O$6:$O$1888,Data!$L$6:$L$1888,$B62,Data!$J$6:$J$1888,I$4)),"") ->  | J62: =IF(IF($C$1=1,SUMIFS(Data!$G$6:$G$1888,Data!$L$6:$L$1888,$B62,Data!$J$6:$J$1888,J$4),SUMIFS(Data!$O$6:$O$1888,Data!$L$6:$L$1888,$B62,Data!$J$6:$J$1888,J$4))>0,IF($C$1=1,SUMIFS(Data!$G$6:$G$1888,Data!$L$6:$L$1888,$B62,Data!$J$6:$J$1888,J$4),SUMIFS(Data!$O$6:$O$1888,Data!$L$6:$L$1888,$B62,Data!$J$6:$J$1888,J$4)),"") ->  | K62: =IF(IF($C$1=1,SUMIFS(Data!$G$6:$G$1888,Data!$L$6:$L$1888,$B62,Data!$J$6:$J$1888,K$4),SUMIFS(Data!$O$6:$O$1888,Data!$L$6:$L$1888,$B62,Data!$J$6:$J$1888,K$4))>0,IF($C$1=1,SUMIFS(Data!$G$6:$G$1888,Data!$L$6:$L$1888,$B62,Data!$J$6:$J$1888,K$4),SUMIFS(Data!$O$6:$O$1888,Data!$L$6:$L$1888,$B62,Data!$J$6:$J$1888,K$4)),"") ->  | L62: =IF(IF($C$1=1,SUMIFS(Data!$G$6:$G$1888,Data!$L$6:$L$1888,$B62,Data!$J$6:$J$1888,L$4),SUMIFS(Data!$O$6:$O$1888,Data!$L$6:$L$1888,$B62,Data!$J$6:$J$1888,L$4))>0,IF($C$1=1,SUMIFS(Data!$G$6:$G$1888,Data!$L$6:$L$1888,$B62,Data!$J$6:$J$1888,L$4),SUMIFS(Data!$O$6:$O$1888,Data!$L$6:$L$1888,$B62,Data!$J$6:$J$1888,L$4)),"") ->  | M62: 36000
